Workbook

Sheet Portada

Sheet Instrucciones
A1: INTRODUCCIÒN
A3: El presente Modelo de Toma de Decisiones (MTD) ofrece partiendo de la informacion suministrada por el usuario realizar un analisis de alternativas para reducir la cantidad de residuos sólidos objeto del Servicio Público de Aseo (SPA) que son destinados a la disposición final en Colombia a travès de la implementaciòn de tecnologias de tratamiento de residuos solidos.
A5: OBJETIVOS
A7: 1) Brindar un insumo que permita al usuario tomar decisiones frente a la implementación de tecnologías de tratamiento de residuos sólidos y que sirva de hoja de ruta inicial donde se identifiquen las consideraciones para garantizar el éxito de su implementación. 2) Identificar, dentro de las diferentes tecnologías de tratamiento de residuos sólidos aplicables al contexto colombiano, aquella con mayor relación en cuanto al costo y al beneficio de su implementación en función de las necesidades y objetivos del usuario y de consideraciones técnicas, financieras y ambientales.
A9: INSTRUCCIONES
A11: Para correr el Modelo, el usuario deberá seguir las siguientes instrucciones: 1) En caso de que haya una alerta de seguridad acerca de las macros en la parte superior de la pantalla, hacer click en "Habilitar contenido". 2) Ingresar la información solicitada en la pestaña "Datos de entrada". Esta secciòn representa el insumo principal del modelo la cual se debe completar segùn se indica. 3) Revisar las salidas del Modelo y los análisis presentados en la pestaña "Resultados". En esta secciòn se genera el archivo .pdf de los resultados generados. 4) La herramienta cuenta con un manual anexo el cual explica en mayor detalle los datos de entrada y los resultados obtenidos.
A13: LECTURA DE RESULTADOS
A14: 1) Para conocer más sobre la normativa y criterios para la implementación de la actividad de tratamiento y de los PGIRS, diríjase a la página web del Ministerio de Vivienda, Ciudad y Territorio https://www.minvivienda.gov.co/viceministerio-de-agua-y-saneamiento-basico 2) El análisis presentado a continuación debe interpretarse como un abrebocas para la planeación y estructuración de proyectos de tratamiento de residuos sólidos. 3) Los cálculos de costos, desviación de residuos, reducción de emisiones y demás son realizados con base en información de referencia que deberá revisarse en caso de que se decida avanzar con el proyecto. 4) Inicialmente se presentan los aspectos del mercado a atender así como información general del proyecto. Luego se presenta el escenario identificado para el municipio donde se planea levantar la infraestructura del proyecto y la favorabilidad de desarrollar proyectos de tratamiento en su jurisdicción. Finalmente se presentan las tres (3) tecnologías evaluadas como más adecuadas para el proyecto analizado así como una estimación de los costos incurridos en su implementación, la cantidad de residuos desviados de la disposición final en rellenos sanitarios y el porcentaje de reducción de Gases de Efecto Invernadero logrado. 5) Exportación de los resultados en formato PDF.

Sheet Datos de entrada
A1: DATOS DE ENTRADA | F1: Obligatoriedad datos
A2: 1) En esta pestaña, el usuario del modelo deberá ingresar la información solicitada por el modelo para identificar la favorabilidad de implementar un sistema de tratamiento de residuos sólidos. 2) Si se desea modelar un proyecto regional (donde se traten los residuos sólidos de dos o más municipios), se deberá seleccionar un municipio principal y serán los datos de este municipio los ingresados en las diferentes secciones, a menos que el modelo indique lo contrario. Este debe ser seleccionado en función a la cantidad de residuos generados, por ser el lugar donde se construirá la infraestructura del proyecto o por ser el municipio clave en los aspectos administrativos y gerenciales del proyecto. En el caso de un proyecto local la información a ingresar es la del municipio evaluado. 3) La información solicitada se divide en las siguientes cuatro (4) categorías: Información general: Datos para identificar el mercado a atender por el sistema de tratamiento de residuos y otros datos del proyecto evaluado. Capacidad administrativa: Indicadores relacionados a la robuztes institucional del municipio (o municipio principal). Capacidad técnica: Indicadores relacionados al estado de la separación en la fuente, la recolección y transporte de residuos, la disposición final y el uso del suelo en el municipio (o municipio principal). Capacidad económica: Indicadores relacionados con la disponibilidad de recursos para el desarrollo del proyecto en el municipio (o municipio principal). 4) Algunas casillas incluyen una breve descripción aclaratoria del alcance de la información solicitada, así como dónde puede ser encontrada y la obligatoriedad de su diligenciamiento para claridad del usuario. Aquellos datos de entrada con carácter OPCIONAL que no sean ingresados por el usuario serán estimados por el modelo.
A3: Información General | F3: Obligatoriedad datos
A4: Información | B4: Valor
A5: Año de inicio de operaciones | B5: 2022
A6: Proyecto Regional | B6: Si | E6: =+IF(B6="","No",1) -> 1 | F6: Si
A7: Población beneficiada | C7: revisar en donde se toma esta informacion | E7: =+IF(B7>0,1,2) -> 2 | F7: Si, puede que el usuario no lo ingrese pero la herramienta lo calcula
A8: Vida Útil del proyecto (años) | B8: 25
A9: Generación de residuos per cápita (kg-habitante-día) | B9: 0.65 | E9: =+IF(B9>0,1,2) -> 1 | F9: Si, si el usuario no lo ingresa, la herramienta usa como referencia 0,76 kg-hab-día
A10: Porcentaje de residuos orgánicos | B10: 0.6 | E10: =+IF(B10>0,1,2) -> 1 | F10: Si, puede que el usuario no lo ingrese pero la herramienta lo calcula
A11: Tratamiento de residuos orgánicos provenientes de plazas de mercado y centrales de abasto no incluidos anteriormente | B11: No | E11: =+IF(B11="","No",1) -> 1 | F11: Si
A12: Cantidad (ton/año)
A13: Tratamiento de residuos orgánicos provenientes de las actividades de poda de árboles y corte de césped no incluidos anteriormente | B13: No | E13: =+IF(OR(B11="Si",B13="Si"),"1","0") -> 0 | F13: Condicional para desplegar analisis en resultados
A14: Cantidad (ton/año)
A15: Municipio principal | B15: HUILA - PITALITO
A16: Si el proyecto es regional, haga click aquí para ingresar los demás municipios atendidos
A17: Capacidad administrativa
A18: Indicador | B18: Valor
A19: Medición de Desempeño Municipal | B19: Satisfactorio | E19: =+IF(B19>0,1,"No") -> 1 | F19: Si
A20: Municipio afectado por el conflicto armado | B20: Si
A21: Categoría Municipal (Ley 617 de 2000) | B21: Cuarta | E21: =+IF(B21>0,1,"No") -> 1 | F21: Si
A22: Existencia de PGIRS actualizado en el municipio principal | B22: Si | E22: =+IF(B22>0,1,"No") -> 1 | F22: Si
A23: Capacidad Técnica
A24: Separación en la fuente
A25: Indicador | B25: Valor
A26: ¿Existen rutas selectivas de residuos aprovechables? | B26: Si | E26: =+IF(B26>0,1,"No") -> 1 | F26: Si
A27: ¿Existe separación de los residuos orgánicos en la fuente? | B27: Si | E27: =+IF(B27>0,1,"No") -> 1 | F27: Si
A28: ¿Existe separación de los residuos inorgánicos en la fuente? | B28: Si | E28: =+IF(B28>0,1,2) -> 1 | F28: No
A29: Línea base de las actividades de poda de árboles y coste de césped está actualizada | B29: no | E29: =+IF(B29>0,1,"No") -> 1 | F29: Si
A30: Recolección y transporte
A31: Indicador | B31: Valor
A32: Cobertura en la recolección y transporte de residuos en el área urbana (%) | B32: Superior al 90% | E32: =+IF(B32>0,1,"No") -> 1 | F32: Si
A33: Cobertura en la recolección y transporte de residuos en el área rural (%) | B33: Entre el 50% y el 75% | E33: =+IF(B33>0,1,"No") -> 1 | F33: Si
A34: Distancia a sitio de disposición final desde el centroide del municipio principal (km) | B34: 2
A35: Distancia a sitio de disposición final desde el centroide del municipio principal | B35: =IF(B34<10,Ponderaciones!$D$49,IF(B34<20,Ponderaciones!$D$50,IF(B34<50,Ponderaciones!$D$51,IF(B34<100,Ponderaciones!$D$52,Ponderaciones!$D$53)))) -> Menor a 10 km | E35: =+IF(B35>0,1,"No") -> 1 | F35: Si
A36: Estado de las vías hasta el sitio de disposición final | B36: Tramo mayoritariamente despavimentado, fácil acceso | E36: =+IF(B36>0,1,"No") -> 1 | F36: Si
A37: Tratamiento y disposición final
A38: Indicador | B38: Valor
A39: Tipo de sitio de disposición final | B39: Relleno Sanitario | E39: =+IF(B39>0,1,"No") -> 1 | F39: Si
A40: El sitio de disposición final, ¿es regional? | B40: Si | E40: =+IF(B40>0,1,"No") -> 1 | F40: Si
A41: Años de operación del sitio de disposición final | B41: Más de 20 años | E41: =+IF(B41>0,1,"No") -> 1 | F41: Si
A42: Vida útil del sitio de disposición final | B42: Entre 5 y 10 años | E42: =+IF(B42>0,1,"No") -> 1 | F42: Si
A43: El sitio de disposición final, ¿cuenta con sistema de extracción y aprovechamiento de biogás? | B43: No cuenta con sistema de extracción del biogás | E43: =+IF(B43>0,1,"No") -> 1 | F43: Si
A44: Uso de suelo
A45: Indicador | B45: Valor
A46: Existencia de polígonos para la edificación de infraestructura del servicio público de aseo en el instrumento de planeación territorial (EOT, PBOT, POT) | B46: Si | E46: =+IF(B46>0,1,"No") -> 1 | F46: Si
A47: Existencia de áreas ya impactadas por las actividades de disposición final y transferencia | B47: Si | E47: =+IF(B47>0,1,"No") -> 1 | F47: Si
A48: Existencia de suelos urbanos con actividades definidas como industriales de alto impacto | B48: No | E48: =+IF(B48>0,1,"No") -> 1 | F48: Si
A49: Existencia de suelos de expansión y rurales sin restricciones ambientales y debidamente recogidas en la cartografía oficial | B49: Si | E49: =+IF(B49>0,1,"No") -> 1 | F49: Si
A50: ¿La infraestructura de tratamiento va a ubicarse en el mismo sitio del actual relleno sanitario? | B50: Si
A51: Distancia a sitio de tratamiento desde el centroide del municipio principal (km) | B51: 2
A52: Capacidad económica
A53: Indicador | B53: Valor
A54: ¿Es viable el programa de aprovechamiento conforme lo establecido en el PGIRS del municipio principal? | B54: No | E54: =+IF(B54>0,1,"No") -> 1 | F54: Si
A55: Recursos del Formulario Único Territorial (FUT) destinados por la entidad territorial para financiar el tratamiento de residuos sólidos | B55: No | E55: =+IF(B55>0,1,"No") -> 1 | F55: Si
A56: Índice de pobreza multidimensional | B56: Entre el 10% y el 25% | E56: =+IF(B56>0,1,"No") -> 1 | F56: Si
A57: Eficiencia en el recaudo | B57: Entre el 50% y el 75%
A58: ¿Requiere adquirir el predio para el levantamiento de la infraestructura? | B58: No
A59: Recursos estimados por tarifa del servicio público de aseo para el tratamiento de residuos (COP/ton) | B59: 70000 | E59: =+IF(B59>0,1,2) -> 1
E60: 1
A61: Tasa de Cambio Dólares americanos (USD) a Pesos Colombianos (COP) | B61: 3800

Sheet Municipios Proyecto Regional (hidden)
A1: N° | B1: Municipios atendidos proyecto regional
A2: 1 | B2: Huila - acevedo
A3: 2 | B3: huila - elías
A4: 3 | B4: Huila - Isnos
A5: 4 | B5: Huila - Palestina
A6: 5 | B6: Huila - Oporapa
A7: 6 | B7: Huila - Saladoblanco
A8: 7 | B8: Huila - San Agustín
A9: 8 | B9: Huila - Timaná
A10: 9
A11: 10
A12: 11
A13: 12
A14: 13
A15: 14
A16: 15
A17: 16
A18: 17
A19: 18
A20: 19
A21: 20
A22: 21
A23: 22
A24: 23
A25: 24
A26: 25
A27: 26
A28: 27
A29: 28
A30: 29
A31: 30
A32: 31
A33: 32
A34: 33
A35: 34
A36: 35
A37: 36
A38: 37
A39: 38
A40: 39
A41: 40
A42: 41
A43: 42
A44: 43
A45: 44
A46: 45
A47: 46
A48: 47
A49: 48
A50: 49
A51: 50
A52: 51
A53: 52
A54: 53
A55: 54
A56: 55
A57: 56
A58: 57
A59: 58
A60: 59
A61: 60
A62: 61
A63: 62
A64: 63
A65: 64
A66: 65
A67: 66
A68: 67
A69: 68
A70: 69
A71: 70
A72: 71
A73: 72
A74: 73
A75: 74
A76: 75
A77: 76
A78: 77
A79: 78
A80: 79
A81: 80
A82: 81
A83: 82
A84: 83
A85: 84
A86: 85
A87: 86
A88: 87
A89: 88
A90: 89
A91: 90
A92: 91
A93: 92
A94: 93
A95: 94
A96: 95
A97: 96
A98: 97
A99: 98
A100: 99
A101: 100
A102: 101
A103: 102
A104: 103
A105: 104
A106: 105
A107: 106
A108: 107
A109: 108
A110: 109
A111: 110
A112: 111
A113: 112
A114: 113
A115: 114
A116: 115
A117: 116
A118: 117
A119: 118
A120: 119
A121: 120

Sheet Resultados
A6: ANALISIS CONSOLIDADO DE RESULTADOS PARA LA TOMA DE DECISIONES
A9: ASPECTOS DEL MERCADO A ATENDER
A12: Aquí se presenta el tamaño del proyecto a implementar en función de su población atendida y de la cantidad de residuos sólidos a la que puede dar tratamiento.
A14: Variable | B14: Descripción | C14: Resultado
A15: Tipo de proyecto | B15: Indica si el proyecto atiende a un municipio (Local) o a varios (Regional) | C15: =IF('Datos de entrada'!$B$6=Listas!$E$2,"Regional","Local") -> Regional
A16: Población beneficiada | B16: Cantidad de habitantes beneficiados con la ejecución del proyecto. | C16: =Cálculo!$B$124 -> 313629
A17: Población beneficiada a futuro | B17: Cantidad de habitantes beneficiados con la ejecución del proyecto al inicio de la operación | C17: =+Cálculo!B125 -> 321216.4733
A18: Residuos sólidos domiciliarios (ton/año) | B18: Cantidad de residuos generados por los habitantes a atender, diferentes de aquellos generados en plazas de mercado, centrales de abasto o aquellos provenientes de la poda de árboles y corte de césped. Expresado en toneladas anuales. | C18: =Cálculo!$B$126 -> 76208.6083
A19: Residuos sólidos orgánicos (ton/año) | B19: Fracción orgánica de los residuos sólidos domiciliarios proveniente principalmente de residuos de alimentos, residuos vegetales. Expresado en toneladas anuales. | C19: =+Cálculo!$B$127 -> 45725.16498
A20: Municipio principal | B20: Municipio seleccionado en función a la cantidad de residuos generados, por ser el lugar donde se construirá la infraestructura del proyecto o por ser el municipio clave en los aspectos administrativos y gerenciales del proyecto. y utilizado como referente para la entrada de datos del modelo. | C20: ='Datos de entrada'!$B$15 -> HUILA - PITALITO
A22: IDENTIFICACIÓN DEL ESCENARIO DE FACTIBILIDAD
A25: Aquí se presenta el escenario para la implementación de una o varias tecnologías de tratamiento de residuos sólidos en el que se encuentra el municipio en donde se pretende construir el proyecto de conformidad con la información suministrada. Cada escenario indica un nivel de favorabilidad para el desarrollo de proyectos de tratamiento de residuos sólidos, tal como se presenta en la siguiente tabla.
A27: Escenario | B27: Nivel de favorabilidad
A28: 1 | B28: Muy alto
A29: 2 | B29: Alto
A30: 3 | B30: Medio
A31: 4 | B31: Moderado
A32: 5 | B32: Bajo
A33: 6 | B33: Muy bajo
A35: ="El modelo utiliza la informacion suministrada en los aspectos de capacidad administrativa, capacidad técnica y capacidad económica para establecer el escenario del municipio principal. Así las cosas, el escenario en el que se encuentra " &$C$20 & " es el siguiente:" -> El modelo utiliza la informacion suministrada en los aspectos de capacidad administrativa, capacidad técnica y capacidad económica para establecer el escenario del municipio principal. Así las cosas, el escenario en el que se encuentra HUILA - PITALITO es el siguiente:
A37: Aspecto | C37: Aspecto
A38: Capacidad Administrativa | C38: =Cálculo!C134 -> Media
A39: Capacidad Técnica | C39: =Cálculo!C135 -> Alta
A40: Separación en la fuente | C40: =Cálculo!C136 -> Media
A41: Recolección y transporte | C41: =Cálculo!C137 -> Alta
A42: Tratamiento y disposición final | C42: =Cálculo!C138 -> Media
A43: Uso de suelo | C43: =Cálculo!C139 -> Alta
A44: Capacidad Económica | C44: =Cálculo!C140 -> Media
A45: Resultado | B45: Escenario | C45: =Cálculo!$B$142 -> 2
B46: Nivel de favorabilidad | C46: =VLOOKUP($C$45,$A$28:$C$33,2,FALSE) -> Alto
A49: ¿ES RECOMENDABLE DESARROLLAR UN PROYECTO DE TRATAMIENTO DE RESIDUOS SÓLIDOS?
A52: =Cálculo!$B$145 -> Dado el contexto del proyecto, es recomendable continuar con las siguientes fases de planeación para el tratamiento de residuos sólidos órganicos implementando una o la combinación de las tecnologías identificadas en este reporte. Las alternativas contempladas se basan en tecnologías probadas (el análisis de tecnologias no convencionales deberá tener el cuenta lo establecido en el reglamento técnico para el sector de agua potable y saneamiento RAS).
A55: =IF(OR($C$45=1,$C$45=2,$C$45=3,'Datos de entrada'!$B$36=Ponderaciones!$G$49),"TECNOLOGÍAS DE TRATAMIENTO DE RESIDUOS SÓLIDOS ÓRGANICOS VIABLES A NIVEL DE PREFACTIBILIDAD. ",".") -> TECNOLOGÍAS DE TRATAMIENTO DE RESIDUOS SÓLIDOS ÓRGANICOS VIABLES A NIVEL DE PREFACTIBILIDAD.
A58: =IF(OR($C$45=1,$C$45=2,$C$45=3,'Datos de entrada'!$B$36=Ponderaciones!$G$49),IF('Datos de entrada'!B6="No","Para el tratamiento de residuos sólidos órganicos en "&$C$20&" las tecnologias que se recomiendan evaluar en la siguiente fase de factibilidad son:","En la siguiente fase de factibilidad regional se recomienda la evaluación de las siguientes tecnologías de tratamiento de residuos sólidos órganicos aplicado en los municipios: "&$C$20&IF(Cálculo!D3>0,", "&Cálculo!A3,"")&IF(Cálculo!D4>0,", "&Cálculo!A3,"")&IF(Cálculo!D5>0,", "&Cálculo!A5,"")&IF(Cálculo!D6>0,", "&Cálculo!A6,"")&IF(Cálculo!D7>0,", "&Cálculo!A7,"")&IF(Cálculo!D8>0,", "&Cálculo!A8,"")&IF(Cálculo!D9>0,", "&Cálculo!A9,"")&IF(Cálculo!D10>0,", "&Cálculo!A10,"")&IF(Cálculo!D11>0,", "&Cálculo!A11,"")&IF(Cálculo!D12>0,", "&Cálculo!A12,"")&IF(Cálculo!D13>0,", "&Cálculo!A13,"")&IF(Cálculo!D14>0,", "&Cálculo!A14,"")&IF(Cálculo!D15>0,", "&Cálculo!A15,"")&IF(Cálculo!D16>0,", "&Cálculo!A16,"")&IF(Cálculo!D17>0,", "&Cálculo!A17,"")&IF(Cálculo!D18>0,", "&Cálculo!A18,"")&IF(Cálculo!D19>0,", "&Cálculo!A19,"")&IF(Cálculo!D20>0,", "&Cálculo!A20,"")&IF(Cálculo!D21>0,", "&Cálculo!A21,"")&IF(Cálculo!D22>0,", "&Cálculo!A22,"")&IF(Cálculo!D23>0,", "&Cálculo!A23,"")&IF(Cálculo!D24>0,", "&Cálculo!A24,"")&IF(Cálculo!D25>0,", "&Cálculo!A25,"")&IF(Cálculo!D26>0,", "&Cálculo!A26,"")&IF(Cálculo!D27>0,", "&Cálculo!A27,"")&IF(Cálculo!D28>0,", "&Cálculo!A28,"")&IF(Cálculo!D29>0,", "&Cálculo!A29,"")&IF(Cálculo!D30>0,", "&Cálculo!A30,"")))&"." -> En la siguiente fase de factibilidad regional se recomienda la evaluación de las siguientes tecnologías de tratamiento de residuos sólidos órganicos aplicado en los municipios: HUILA - PITALITO, Huila - acevedo, Huila - acevedo, Huila - Isnos, Huila - Palestina, Huila - Oporapa, Huila - Saladoblanco, Huila - San Agustín, Huila - Timaná.
A60: =IF(OR($C$45=1,$C$45=2,$C$45=3,'Datos de entrada'!$B$36=Ponderaciones!$G$49),"N°",".") -> N° | B60: =IF(OR($C$45=1,$C$45=2,$C$45=3,'Datos de entrada'!$B$36=Ponderaciones!$G$49),"Tecnología recomendada",".") -> Tecnología recomendada
A61: =IF(OR($C$45=1,$C$45=2,$C$45=3,'Datos de entrada'!$B$36=Ponderaciones!$G$49),Cálculo!A168,".") -> 1 | B61: =IF(OR($C$45=1,$C$45=2,$C$45=3,'Datos de entrada'!$B$36=Ponderaciones!$G$49),Cálculo!C168,".") -> Compostaje en pilas con volteo manual
A62: =IF(OR($C$45=1,$C$45=2,$C$45=3,'Datos de entrada'!$B$36=Ponderaciones!$G$49),Cálculo!A169,".") -> 2 | B62: =IF(OR($C$45=1,$C$45=2,$C$45=3,'Datos de entrada'!$B$36=Ponderaciones!$G$49),Cálculo!C169,".") -> Tratamiento Mecánico Biológico
A63: =IF(OR($C$45=1,$C$45=2,$C$45=3,'Datos de entrada'!$B$36=Ponderaciones!$G$49),Cálculo!A170,".") -> 3 | B63: =IF(OR($C$45=1,$C$45=2,$C$45=3,'Datos de entrada'!$B$36=Ponderaciones!$G$49),Cálculo!C170,".") -> Compostaje en pilas con aireación forzada
A65: =IF(OR($C$45=1,$C$45=2,$C$45=3,'Datos de entrada'!$B$36=Ponderaciones!$G$49),"Así mismo, se presenta una estimación de los costos de inversión y operación en los que incurre cada tecnología. ",".") -> Así mismo, se presenta una estimación de los costos de inversión y operación en los que incurre cada tecnología.
A66: =IF(OR($C$45=1,$C$45=2,$C$45=3,'Datos de entrada'!$B$36=Ponderaciones!$G$49),"Es importante destacar que los costos de inversión y operación no incluyen los relacionados con el terreno para la costrucción de la planta.",".") -> Es importante destacar que los costos de inversión y operación no incluyen los relacionados con el terreno para la costrucción de la planta.
A68: =IF(OR($C$45=1,$C$45=2,$C$45=3,'Datos de entrada'!$B$36=Ponderaciones!$G$49),"Tecnología 1",".") -> Tecnología 1 | B68: =IF(OR($C$45=1,$C$45=2,$C$45=3,'Datos de entrada'!$B$36=Ponderaciones!$G$49),$B$61,".") -> Compostaje en pilas con volteo manual
A70: =IF(OR($C$45=1,$C$45=2,$C$45=3,'Datos de entrada'!$B$36=Ponderaciones!$G$49),"Variable",".") -> Variable | B70: =IF(OR($C$45=1,$C$45=2,$C$45=3,'Datos de entrada'!$B$36=Ponderaciones!$G$49),"Descripción",".") -> Descripción
A71: =IF(OR($C$45=1,$C$45=2,$C$45=3,'Datos de entrada'!$B$36=Ponderaciones!$G$49),'Interpretación de Resultados'!A2,".") -> Descripción | B71: =IF(OR($C$45=1,$C$45=2,$C$45=3,'Datos de entrada'!$B$36=Ponderaciones!$G$49),VLOOKUP(B68,'Fichas técnicas Tecnologías'!$A$3:$K$10,2,FALSE),".") -> Descomposición de la materia orgánica por microorganismos en condiciones aerobias, llevada a cabo en montículos de RSO bajo condiciones controladas y cuyos requerimientos de oxígeno son alcanzados mezclando las pilas frecuentemente.
A72: =IF(OR($C$45=1,$C$45=2,$C$45=3,'Datos de entrada'!$B$36=Ponderaciones!$G$49),'Interpretación de Resultados'!A3,".") -> Escala y capacidad óptima (ton/año) | B72: =IF(OR($C$45=1,$C$45=2,$C$45=3,'Datos de entrada'!$B$36=Ponderaciones!$G$49),VLOOKUP(B68,'Fichas técnicas Tecnologías'!$A$3:$K$10,9,FALSE),".") -> Compost
A73: =IF(OR($C$45=1,$C$45=2,$C$45=3,'Datos de entrada'!$B$36=Ponderaciones!$G$49),'Interpretación de Resultados'!A4,".") -> Complejidad | B73: =IF(OR($C$45=1,$C$45=2,$C$45=3,'Datos de entrada'!$B$36=Ponderaciones!$G$49),VLOOKUP(B68,'Fichas técnicas Tecnologías'!$A$3:$K$10,3,FALSE),".") -> 1000 - 200000
A74: =IF(OR($C$45=1,$C$45=2,$C$45=3,'Datos de entrada'!$B$36=Ponderaciones!$G$49), "Considerar",".") -> Considerar | B74: =IF(OR($C$45=1,$C$45=2,$C$45=3,'Datos de entrada'!$B$36=Ponderaciones!$G$49),VLOOKUP(B68,'Fichas técnicas Tecnologías'!$A$3:$K$10,4,FALSE),".") -> Dado que el proyecto busca dar tratamiento a aproximadamente a 45725 toneladas anuales de residuos orgánicos, cuenta con una escala adecuada para implementar la tecnología
A75: =IF(OR($C$45=1,$C$45=2,$C$45=3,'Datos de entrada'!$B$36=Ponderaciones!$G$49),'Interpretación de Resultados'!A5,".") -> Tipo de residuos tratados | B75: =IF(OR($C$45=1,$C$45=2,$C$45=3,'Datos de entrada'!$B$36=Ponderaciones!$G$49),VLOOKUP(B68,'Fichas técnicas Tecnologías'!$A$3:$K$10,5,FALSE),".") -> Baja-media
A76: =IF(OR($C$45=1,$C$45=2,$C$45=3,'Datos de entrada'!$B$36=Ponderaciones!$G$49), "Considerar",".") -> Considerar | B76: =IF(OR($C$45=1,$C$45=2,$C$45=3,'Datos de entrada'!$B$36=Ponderaciones!$G$49),VLOOKUP(B68,'Fichas técnicas Tecnologías'!$A$3:$K$10,6,FALSE),".") -> Esta tecnología no requiere personal muy tecnificado ni equipos con especificaciones técnicas elevadas.Su principal barrera se presenta por la incorrecta separación en la fuente de los residuos por parte del suscriptor.Dados las salidas obtenidas por el modelo en este aspecto se recomienda desarrollar campañas educativas que mantengan a los habitantes enterados sobre las buenas prácticas en gestión de residuos sólidos enfocados en la separación en la fuente de residuos sólidos orgánicos y en economía circular
A77: =IF(OR($C$45=1,$C$45=2,$C$45=3,'Datos de entrada'!$B$36=Ponderaciones!$G$49),'Interpretación de Resultados'!A6,".") -> Salidas | B77: =IF(OR($C$45=1,$C$45=2,$C$45=3,'Datos de entrada'!$B$36=Ponderaciones!$G$49),VLOOKUP(B68,'Fichas técnicas Tecnologías'!$A$3:$K$10,7,FALSE),".") -> Residuos Sólidos Orgánicos (RSO)
A78: =IF(OR($C$45=1,$C$45=2,$C$45=3,'Datos de entrada'!$B$36=Ponderaciones!$G$49), "Considerar",".") -> Considerar | B78: =IF(OR($C$45=1,$C$45=2,$C$45=3,'Datos de entrada'!$B$36=Ponderaciones!$G$49),VLOOKUP(B68,'Fichas técnicas Tecnologías'!$A$3:$K$10,8,FALSE),".") -> Dada que se cuenta con una separación en la fuente medianamente adecuada, es necesario fortalecerla con campañas, lo cual permitirá que los residuos destinados a tratamiento sean más homogéneos y así disminuir los costos de su adecuación para su tratamiento.
A79: =IF(OR($C$45=1,$C$45=2,$C$45=3,'Datos de entrada'!$B$36=Ponderaciones!$G$49),'Interpretación de Resultados'!A7,".") -> Impacto ambiental | B79: =IF(OR($C$45=1,$C$45=2,$C$45=3,'Datos de entrada'!$B$36=Ponderaciones!$G$49),VLOOKUP(B68,'Fichas técnicas Tecnologías'!$A$3:$K$10,11,FALSE),".") -> Olores Ruido Contaminación visual
A80: =IF(OR($C$45=1,$C$45=2,$C$45=3,'Datos de entrada'!$B$36=Ponderaciones!$G$49), "Considerar",".") -> Considerar | B80: =IF(OR($C$45=1,$C$45=2,$C$45=3,'Datos de entrada'!$B$36=Ponderaciones!$G$49),VLOOKUP(B68,'Fichas técnicas Tecnologías'!$A$3:$N$10,12,FALSE)&VLOOKUP(B68,'Fichas técnicas Tecnologías'!$A$3:$W$10,20,FALSE),".") -> Implemente prácticas adecuadas en la operación del sistema permite evitar el impacto ambiental ocasionado. Se recomienda que revise literatura y otras experiencias sobre cómo monitorear, entre otras variables, el tamaño de las partículas, el contenido de carbono y nitrógeno, el contenido de humedad, la temperatura, el pH y la presencia de patógenos. Algunas Corporaciones Autónomas Regionales han expedido manuales al respecto, así como entidades tales como la UAESP de Bogotá y organizaciones como ACODAL. El tamaño de la planta requiere licenciamiento ambiental, por lo tanto debe elaborar el plan de manejo ambiental y adelantar los tramites para obtenerla.Tenga presente que la tecnologia de Compostaje con volteo manual requiere mayor área frente a la tecnología con aireación forzada. Para una planta de 46000 toneladas por año se requieren de 16 hectaréas frente a un área de 13 hectareas para la segunda"Esta tecnología presenta menor resistencia a los cambios metereológicos.
A81: =IF(OR($C$45=1,$C$45=2,$C$45=3,'Datos de entrada'!$B$36=Ponderaciones!$G$49),'Interpretación de Resultados'!A8,".") -> Desviación de residuos (ton/año) | B81: =IF(OR($C$45=1,$C$45=2,$C$45=3,'Datos de entrada'!$B$36=Ponderaciones!$G$49),VLOOKUP(1,Cálculo!$B$156:$U$160,15,FALSE),".") -> 8573.468434
A82: =IF(OR($C$45=1,$C$45=2,$C$45=3,'Datos de entrada'!$B$36=Ponderaciones!$G$49), "Considerar",".") -> Considerar | B82: =IF(OR($C$45=1,$C$45=2,$C$45=3,'Datos de entrada'!$B$36=Ponderaciones!$G$49),"La desviación de residuos se estima teniendo en cuenta la capacidad de la planta.",".") -> La desviación de residuos se estima teniendo en cuenta la capacidad de la planta.
A83: =IF(OR($C$45=1,$C$45=2,$C$45=3,'Datos de entrada'!$B$36=Ponderaciones!$G$49),'Interpretación de Resultados'!A9,".") -> % Reducción de GEI en comparación con su disposición final en relleno sanitario | B83: =IF(OR($C$45=1,$C$45=2,$C$45=3,'Datos de entrada'!$B$36=Ponderaciones!$G$49),VLOOKUP(1,Cálculo!$B$156:$U$160,19,FALSE),".") -> 0.42
A84: =IF(OR($C$45=1,$C$45=2,$C$45=3,'Datos de entrada'!$B$36=Ponderaciones!$G$49), "Considerar",".") -> Considerar | B84: =IF(OR($C$45=1,$C$45=2,$C$45=3,'Datos de entrada'!$B$36=Ponderaciones!$G$49),IF('Datos de entrada'!$B$43=Ponderaciones!$D$77,_xlfn.CONCAT("Se recomienda implementar un sistema de extracción y aprovechamiento del biogás en el sitio de disposición final, ","para tratar los Gases de Efecto Invernadero generados por la descomposición de la materia orgánica de los residuos allí dispuestos.",VLOOKUP(B68,'Fichas técnicas Tecnologías'!A:M,13,0)),IF('Datos de entrada'!$B$43=Ponderaciones!$D$78,_xlfn.CONCAT("Se recomienda implementar un sistema de aprovechamiento del biogás en el sitio de disposición final, ","para tratar los Gases de Efecto Invernadero generados por la descomposición de la materia orgánica de los residuos allí dispuestos.",VLOOKUP(B68,'Fichas técnicas Tecnologías'!A:M,13,0)),"El sistema de extracción y aprovechamiento de biogás instalado en el relleno sanitario permite la reducción de Gases de Efecto Invernadero generados por la descomposición de materia orgánica de los residuos allí dispuestos."&VLOOKUP(B68,'Fichas técnicas Tecnologías'!A:M,13,0))),".") -> Se recomienda implementar un sistema de extracción y aprovechamiento del biogás en el sitio de disposición final, para tratar los Gases de Efecto Invernadero generados por la descomposición de la materia orgánica de los residuos allí dispuestos. Si usted desea hacer una estimación de toneladas equivalentes de CO2 puede remitirse a la herramienta de cálculo de gases de efecto invernadero (GEI) en el manejo de residuos sólidos (MRS) en este link https://www.bivica.org/file/view/id/1081 y al https://www.ifeu.de/en/project/tool-for-calculating-greenhouse-gases-ghg-in-solid-waste-management-swm/
A86: =IF(OR($C$45=1,$C$45=2,$C$45=3,'Datos de entrada'!$B$36=Ponderaciones!$G$49),"Costos de inversión",".") -> Costos de inversión
A88: =IF(OR($C$45=1,$C$45=2,$C$45=3,'Datos de entrada'!$B$36=Ponderaciones!$G$49),IF(Cálculo!A201<>0,Cálculo!A201,""),".") -> Pre-inversión | C88: =IF(OR($C$45=1,$C$45=2,$C$45=3,'Datos de entrada'!$B$36=Ponderaciones!$G$49),IF(Cálculo!B201<>0,Cálculo!B201,""),".") -> 
A89: =IF(OR($C$45=1,$C$45=2,$C$45=3,'Datos de entrada'!$B$36=Ponderaciones!$G$49),IF(Cálculo!A202<>0,Cálculo!A202,""),".") -> Estudios, Diseños | C89: =IF(OR($C$45=1,$C$45=2,$C$45=3,'Datos de entrada'!$B$36=Ponderaciones!$G$49),IF(Cálculo!B202<>0,Cálculo!B202,""),".") -> 126000000
A90: =IF(OR($C$45=1,$C$45=2,$C$45=3,'Datos de entrada'!$B$36=Ponderaciones!$G$49),IF(Cálculo!A203<>0,Cálculo!A203,""),".") -> Permisos | C90: =IF(OR($C$45=1,$C$45=2,$C$45=3,'Datos de entrada'!$B$36=Ponderaciones!$G$49),IF(Cálculo!B203<>0,Cálculo!B203,""),".") -> 63000000
A91: =IF(OR($C$45=1,$C$45=2,$C$45=3,'Datos de entrada'!$B$36=Ponderaciones!$G$49),IF(Cálculo!A204<>0,Cálculo!A204,""),".") -> Infraestructura | C91: =IF(OR($C$45=1,$C$45=2,$C$45=3,'Datos de entrada'!$B$36=Ponderaciones!$G$49),IF(Cálculo!B204<>0,Cálculo!B204,""),".") -> 4007000000
A92: =IF(OR($C$45=1,$C$45=2,$C$45=3,'Datos de entrada'!$B$36=Ponderaciones!$G$49),IF(Cálculo!A205<>0,Cálculo!A205,""),".") -> Maquinaria y Equipos (incluido el costo de instalación) | C92: =IF(OR($C$45=1,$C$45=2,$C$45=3,'Datos de entrada'!$B$36=Ponderaciones!$G$49),IF(Cálculo!B205<>0,Cálculo!B205,""),".") -> 
A93: =IF(OR($C$45=1,$C$45=2,$C$45=3,'Datos de entrada'!$B$36=Ponderaciones!$G$49),IF(Cálculo!A206<>0,Cálculo!A206,""),".") -> Trommel | C93: =IF(OR($C$45=1,$C$45=2,$C$45=3,'Datos de entrada'!$B$36=Ponderaciones!$G$49),IF(Cálculo!B206<>0,Cálculo!B206,""),".") -> 141000000
A94: =IF(OR($C$45=1,$C$45=2,$C$45=3,'Datos de entrada'!$B$36=Ponderaciones!$G$49),IF(Cálculo!A207<>0,Cálculo!A207,""),".") -> Minicargador | C94: =IF(OR($C$45=1,$C$45=2,$C$45=3,'Datos de entrada'!$B$36=Ponderaciones!$G$49),IF(Cálculo!B207<>0,Cálculo!B207,""),".") -> 244344853
A95: =IF(OR($C$45=1,$C$45=2,$C$45=3,'Datos de entrada'!$B$36=Ponderaciones!$G$49),IF(Cálculo!A208<>0,Cálculo!A208,""),".") -> Tractor | C95: =IF(OR($C$45=1,$C$45=2,$C$45=3,'Datos de entrada'!$B$36=Ponderaciones!$G$49),IF(Cálculo!B208<>0,Cálculo!B208,""),".") -> 244344853
A96: =IF(OR($C$45=1,$C$45=2,$C$45=3,'Datos de entrada'!$B$36=Ponderaciones!$G$49),IF(Cálculo!A209<>0,Cálculo!A209,""),".") -> Retroexcavadora | C96: =IF(OR($C$45=1,$C$45=2,$C$45=3,'Datos de entrada'!$B$36=Ponderaciones!$G$49),IF(Cálculo!B209<>0,Cálculo!B209,""),".") -> 212985085
A97: =IF(OR($C$45=1,$C$45=2,$C$45=3,'Datos de entrada'!$B$36=Ponderaciones!$G$49),IF(Cálculo!A210<>0,Cálculo!A210,""),".") -> Montacargas | C97: =IF(OR($C$45=1,$C$45=2,$C$45=3,'Datos de entrada'!$B$36=Ponderaciones!$G$49),IF(Cálculo!B210<>0,Cálculo!B210,""),".") -> 151572208
A98: =IF(OR($C$45=1,$C$45=2,$C$45=3,'Datos de entrada'!$B$36=Ponderaciones!$G$49),IF(Cálculo!A211<>0,Cálculo!A211,""),".") -> Planta electrica | C98: =IF(OR($C$45=1,$C$45=2,$C$45=3,'Datos de entrada'!$B$36=Ponderaciones!$G$49),IF(Cálculo!B211<>0,Cálculo!B211,""),".") -> 143732266
A99: =IF(OR($C$45=1,$C$45=2,$C$45=3,'Datos de entrada'!$B$36=Ponderaciones!$G$49),IF(Cálculo!A212<>0,Cálculo!A212,""),".") -> Compresor | C99: =IF(OR($C$45=1,$C$45=2,$C$45=3,'Datos de entrada'!$B$36=Ponderaciones!$G$49),IF(Cálculo!B212<>0,Cálculo!B212,""),".") -> 35279738
A100: =IF(OR($C$45=1,$C$45=2,$C$45=3,'Datos de entrada'!$B$36=Ponderaciones!$G$49),IF(Cálculo!A213<>0,Cálculo!A213,""),".") -> Volqueta | C100: =IF(OR($C$45=1,$C$45=2,$C$45=3,'Datos de entrada'!$B$36=Ponderaciones!$G$49),IF(Cálculo!B213<>0,Cálculo!B213,""),".") -> 574929065
A101: =IF(OR($C$45=1,$C$45=2,$C$45=3,'Datos de entrada'!$B$36=Ponderaciones!$G$49),IF(Cálculo!A214<>0,Cálculo!A214,""),".") -> Total Costo de Inversión Inicial | C101: =IF(OR($C$45=1,$C$45=2,$C$45=3,'Datos de entrada'!$B$36=Ponderaciones!$G$49),IF(Cálculo!B214<>0,Cálculo!B214,""),".") -> 5944188068
A102: =IF(OR($C$45=1,$C$45=2,$C$45=3,'Datos de entrada'!$B$36=Ponderaciones!$G$49),IF(Cálculo!A215<>0,Cálculo!A215,""),".") ->  | C102: =IF(OR($C$45=1,$C$45=2,$C$45=3,'Datos de entrada'!$B$36=Ponderaciones!$G$49),IF(Cálculo!B215<>0,Cálculo!B215,""),".") -> 
A103: =IF(OR($C$45=1,$C$45=2,$C$45=3,'Datos de entrada'!$B$36=Ponderaciones!$G$49),IF(Cálculo!A216<>0,Cálculo!A216,""),".") ->  | C103: =IF(OR($C$45=1,$C$45=2,$C$45=3,'Datos de entrada'!$B$36=Ponderaciones!$G$49),IF(Cálculo!B216<>0,Cálculo!B216,""),".") -> 
A104: =IF(OR($C$45=1,$C$45=2,$C$45=3,'Datos de entrada'!$B$36=Ponderaciones!$G$49),IF(Cálculo!A217<>0,Cálculo!A217,""),".") ->  | C104: =IF(OR($C$45=1,$C$45=2,$C$45=3,'Datos de entrada'!$B$36=Ponderaciones!$G$49),IF(Cálculo!B217<>0,Cálculo!B217,""),".") -> 
A108: =IF(OR($C$45=1,$C$45=2,$C$45=3,'Datos de entrada'!$B$36=Ponderaciones!$G$49),"Costos de operación",".") -> Costos de operación
A110: =IF(OR($C$45=1,$C$45=2,$C$45=3,'Datos de entrada'!$B$36=Ponderaciones!$G$49),IF(Cálculo!D201<>0,Cálculo!D201,""),".") -> Energia | C110: =IF(OR($C$45=1,$C$45=2,$C$45=3,'Datos de entrada'!$B$36=Ponderaciones!$G$49),IF(Cálculo!E201<>0,Cálculo!E201,""),".") -> 63000000
A111: =IF(OR($C$45=1,$C$45=2,$C$45=3,'Datos de entrada'!$B$36=Ponderaciones!$G$49),IF(Cálculo!D202<>0,Cálculo!D202,""),".") -> Combustible | C111: =IF(OR($C$45=1,$C$45=2,$C$45=3,'Datos de entrada'!$B$36=Ponderaciones!$G$49),IF(Cálculo!E202<>0,Cálculo!E202,""),".") -> 242000000
A112: =IF(OR($C$45=1,$C$45=2,$C$45=3,'Datos de entrada'!$B$36=Ponderaciones!$G$49),IF(Cálculo!D203<>0,Cálculo!D203,""),".") -> Agua | C112: =IF(OR($C$45=1,$C$45=2,$C$45=3,'Datos de entrada'!$B$36=Ponderaciones!$G$49),IF(Cálculo!E203<>0,Cálculo!E203,""),".") -> 8000000
A113: =IF(OR($C$45=1,$C$45=2,$C$45=3,'Datos de entrada'!$B$36=Ponderaciones!$G$49),IF(Cálculo!D204<>0,Cálculo!D204,""),".") -> Tratamiento RSO | C113: =IF(OR($C$45=1,$C$45=2,$C$45=3,'Datos de entrada'!$B$36=Ponderaciones!$G$49),IF(Cálculo!E204<>0,Cálculo!E204,""),".") -> 811000000
A114: =IF(OR($C$45=1,$C$45=2,$C$45=3,'Datos de entrada'!$B$36=Ponderaciones!$G$49),IF(Cálculo!D205<>0,Cálculo!D205,""),".") -> Monitoreo Ambiental | C114: =IF(OR($C$45=1,$C$45=2,$C$45=3,'Datos de entrada'!$B$36=Ponderaciones!$G$49),IF(Cálculo!E205<>0,Cálculo!E205,""),".") -> 4000000
A115: =IF(OR($C$45=1,$C$45=2,$C$45=3,'Datos de entrada'!$B$36=Ponderaciones!$G$49),IF(Cálculo!D206<>0,Cálculo!D206,""),".") -> Mantenimiento - Maquinaria y equipos | C115: =IF(OR($C$45=1,$C$45=2,$C$45=3,'Datos de entrada'!$B$36=Ponderaciones!$G$49),IF(Cálculo!E206<>0,Cálculo!E206,""),".") -> 31000000
A116: =IF(OR($C$45=1,$C$45=2,$C$45=3,'Datos de entrada'!$B$36=Ponderaciones!$G$49),IF(Cálculo!D207<>0,Cálculo!D207,""),".") -> Mantenimiento - Infraestructura | C116: =IF(OR($C$45=1,$C$45=2,$C$45=3,'Datos de entrada'!$B$36=Ponderaciones!$G$49),IF(Cálculo!E207<>0,Cálculo!E207,""),".") -> 36000000
A117: =IF(OR($C$45=1,$C$45=2,$C$45=3,'Datos de entrada'!$B$36=Ponderaciones!$G$49),IF(Cálculo!D208<>0,Cálculo!D208,""),".") -> Mano de Obra | C117: =IF(OR($C$45=1,$C$45=2,$C$45=3,'Datos de entrada'!$B$36=Ponderaciones!$G$49),IF(Cálculo!E208<>0,Cálculo!E208,""),".") -> 57000000
A118: =IF(OR($C$45=1,$C$45=2,$C$45=3,'Datos de entrada'!$B$36=Ponderaciones!$G$49),IF(Cálculo!D209<>0,Cálculo!D209,""),".") -> Valor de Operación Anual | C118: =IF(OR($C$45=1,$C$45=2,$C$45=3,'Datos de entrada'!$B$36=Ponderaciones!$G$49),IF(Cálculo!E209<>0,Cálculo!E209,""),".") -> 1252000000
A119: =IF(OR($C$45=1,$C$45=2,$C$45=3,'Datos de entrada'!$B$36=Ponderaciones!$G$49),IF(Cálculo!D210<>0,Cálculo!D210,""),".") ->  | C119: =IF(OR($C$45=1,$C$45=2,$C$45=3,'Datos de entrada'!$B$36=Ponderaciones!$G$49),IF(Cálculo!E210<>0,Cálculo!E210,""),".") -> 
A120: =IF(OR($C$45=1,$C$45=2,$C$45=3,'Datos de entrada'!$B$36=Ponderaciones!$G$49),IF(Cálculo!D211<>0,Cálculo!D211,""),".") ->  | C120: =IF(OR($C$45=1,$C$45=2,$C$45=3,'Datos de entrada'!$B$36=Ponderaciones!$G$49),IF(Cálculo!E211<>0,Cálculo!E211,""),".") -> 
A122: =IF(OR($C$45=1,$C$45=2,$C$45=3,'Datos de entrada'!$B$36=Ponderaciones!$G$49),"Ingresos",".") -> Ingresos
A124: =IF(OR($C$45=1,$C$45=2,$C$45=3,'Datos de entrada'!$B$36=Ponderaciones!$G$49),Cálculo!G200,".") -> Ingresos por tarifa (COP) (Promedio Anual) | C124: =IF(OR($C$45=1,$C$45=2,$C$45=3,'Datos de entrada'!$B$36=Ponderaciones!$G$49),Cálculo!H200,".") -> 3296800000
A127: =IF(OR($C$45=1,$C$45=2,$C$45=3,'Datos de entrada'!$B$36=Ponderaciones!$G$49),"Tecnología 2",".") -> Tecnología 2 | B127: =IF(OR($C$45=1,$C$45=2,$C$45=3,'Datos de entrada'!$B$36=Ponderaciones!$G$49),$B$62,".") -> Tratamiento Mecánico Biológico
A129: =IF(OR($C$45=1,$C$45=2,$C$45=3,'Datos de entrada'!$B$36=Ponderaciones!$G$49),"Variable",".") -> Variable | B129: =IF(OR($C$45=1,$C$45=2,$C$45=3,'Datos de entrada'!$B$36=Ponderaciones!$G$49),"Descripción",".") -> Descripción
A130: =IF(OR($C$45=1,$C$45=2,$C$45=3,'Datos de entrada'!$B$36=Ponderaciones!$G$49),'Interpretación de Resultados'!A2,".") -> Descripción | B130: =IF(OR($C$45=1,$C$45=2,$C$45=3,'Datos de entrada'!$B$36=Ponderaciones!$G$49),VLOOKUP(B127,'Fichas técnicas Tecnologías'!$A$3:$K$10,2,FALSE),".") -> Combinación de tratamientos físicos con tratamientos biológicos para el aprovechamiento de la fracción orgánica e inorgánica de los residuos sólidos. Esta tecnología es priorizada sobre las demás, dado los lineamientos del Plan Integral de Gestión de Cambio Climático Sectorial adoptado mediante la Resolución 431 de 2020.
A131: =IF(OR($C$45=1,$C$45=2,$C$45=3,'Datos de entrada'!$B$36=Ponderaciones!$G$49),'Interpretación de Resultados'!A3,".") -> Escala y capacidad óptima (ton/año) | B131: =IF(OR($C$45=1,$C$45=2,$C$45=3,'Datos de entrada'!$B$36=Ponderaciones!$G$49),VLOOKUP(B127,'Fichas técnicas Tecnologías'!$A$3:$K$10,9,FALSE),".") -> Compost y materiales reciclables
A132: =IF(OR($C$45=1,$C$45=2,$C$45=3,'Datos de entrada'!$B$36=Ponderaciones!$G$49),'Interpretación de Resultados'!A4,".") -> Complejidad | B132: =IF(OR($C$45=1,$C$45=2,$C$45=3,'Datos de entrada'!$B$36=Ponderaciones!$G$49),VLOOKUP(B127,'Fichas técnicas Tecnologías'!$A$3:$K$10,3,FALSE),".") -> 20000-500000
A133: =IF(OR($C$45=1,$C$45=2,$C$45=3,'Datos de entrada'!$B$36=Ponderaciones!$G$49), "Considerar",".") -> Considerar | B133: =IF(OR($C$45=1,$C$45=2,$C$45=3,'Datos de entrada'!$B$36=Ponderaciones!$G$49),VLOOKUP(B127,'Fichas técnicas Tecnologías'!$A$3:$K$10,4,FALSE),".") -> Dado que el proyecto busca dar tratamiento a aproximadamente a 45725 toneladas anuales de residuos sólidos, cuenta con una escala adecuada para implementar la tecnología.
A134: =IF(OR($C$45=1,$C$45=2,$C$45=3,'Datos de entrada'!$B$36=Ponderaciones!$G$49),'Interpretación de Resultados'!A5,".") -> Tipo de residuos tratados | B134: =IF(OR($C$45=1,$C$45=2,$C$45=3,'Datos de entrada'!$B$36=Ponderaciones!$G$49),VLOOKUP(B127,'Fichas técnicas Tecnologías'!$A$3:$K$10,5,FALSE),".") -> Media-alta
A135: =IF(OR($C$45=1,$C$45=2,$C$45=3,'Datos de entrada'!$B$36=Ponderaciones!$G$49), "Considerar",".") -> Considerar | B135: =IF(OR($C$45=1,$C$45=2,$C$45=3,'Datos de entrada'!$B$36=Ponderaciones!$G$49),VLOOKUP(B127,'Fichas técnicas Tecnologías'!$A$3:$K$10,6,FALSE),".") -> Esta tecnología requiere personal medianamente tecnificado para el adecuado uso de los equipos y su mantenimiento.Para su uso óptimo se requiere una adecua separación en la fuente de los residuos por parte del suscriptor, pero no es necesaria. Se recomienda desarrollar que mantengan a los habitantes enterados sobre las buenas prácticas en gestión de residuos sólidos enfocados en la separación en la fuente de residuos sólidos orgánicos y en economía circular.
A136: =IF(OR($C$45=1,$C$45=2,$C$45=3,'Datos de entrada'!$B$36=Ponderaciones!$G$49),'Interpretación de Resultados'!A6,".") -> Salidas | B136: =IF(OR($C$45=1,$C$45=2,$C$45=3,'Datos de entrada'!$B$36=Ponderaciones!$G$49),VLOOKUP(B127,'Fichas técnicas Tecnologías'!$A$3:$K$10,7,FALSE),".") -> Residuos domiciliarios sin separar
A137: =IF(OR($C$45=1,$C$45=2,$C$45=3,'Datos de entrada'!$B$36=Ponderaciones!$G$49), "Considerar",".") -> Considerar | B137: =IF(OR($C$45=1,$C$45=2,$C$45=3,'Datos de entrada'!$B$36=Ponderaciones!$G$49),VLOOKUP(B127,'Fichas técnicas Tecnologías'!$A$3:$K$10,8,FALSE),".") -> A mayor separación en la fuente mayor facilidad tienen los procesos del Tratamiento Mecánico Biológico. Dada que se cuenta con una separación en la fuente medianamente adecuada, es necesario fortalecerla con campañas, lo cual permitirá que los residuos destinados a tratamiento sean más homogéneos y así disminuir los costos de su adecuación para su tratamiento e incrementar la desviación de residuos que de otra forma irían al relleno..
A138: =IF(OR($C$45=1,$C$45=2,$C$45=3,'Datos de entrada'!$B$36=Ponderaciones!$G$49),'Interpretación de Resultados'!A7,".") -> Impacto ambiental | B138: =IF(OR($C$45=1,$C$45=2,$C$45=3,'Datos de entrada'!$B$36=Ponderaciones!$G$49),VLOOKUP(B127,'Fichas técnicas Tecnologías'!$A$3:$K$10,11,FALSE),".") -> Olores Ruido Contaminación visual
A139: =IF(OR($C$45=1,$C$45=2,$C$45=3,'Datos de entrada'!$B$36=Ponderaciones!$G$49), "Considerar",".") -> Considerar | B139: =IF(OR($C$45=1,$C$45=2,$C$45=3,'Datos de entrada'!$B$36=Ponderaciones!$G$49),VLOOKUP(B127,'Fichas técnicas Tecnologías'!$A$3:$N$10,12,FALSE)&VLOOKUP(B127,'Fichas técnicas Tecnologías'!$A$3:$U$10,20,FALSE),".") -> Un manejo adecuado de los residuos orgánicos permitirá evitar la generación de olores. Esto implica cortos períodos de almacenamiento para evitar su descomposición. El tamaño de la planta requiere licenciamiento ambiental, por lo tanto debe elaborar el plan de manejo ambiental y adelantar los tramites para obtenerla.
A140: =IF(OR($C$45=1,$C$45=2,$C$45=3,'Datos de entrada'!$B$36=Ponderaciones!$G$49),'Interpretación de Resultados'!A8,".") -> Desviación de residuos (ton/año) | B140: =IF(OR($C$45=1,$C$45=2,$C$45=3,'Datos de entrada'!$B$36=Ponderaciones!$G$49),VLOOKUP(2,Cálculo!$B$156:$U$160,15,FALSE),".") -> 27600
A141: =IF(OR($C$45=1,$C$45=2,$C$45=3,'Datos de entrada'!$B$36=Ponderaciones!$G$49), "Considerar",".") -> Considerar | B141: =IF(OR($C$45=1,$C$45=2,$C$45=3,'Datos de entrada'!$B$36=Ponderaciones!$G$49),"La desviación de residuos se estima teniendo en cuenta la capacidad de la planta.",".") -> La desviación de residuos se estima teniendo en cuenta la capacidad de la planta.
A142: =IF(OR($C$45=1,$C$45=2,$C$45=3,'Datos de entrada'!$B$36=Ponderaciones!$G$49),'Interpretación de Resultados'!A9,".") -> % Reducción de GEI en comparación con su disposición final en relleno sanitario | B142: =IF(OR($C$45=1,$C$45=2,$C$45=3,'Datos de entrada'!$B$36=Ponderaciones!$G$49),VLOOKUP(2,Cálculo!$B$156:$U$160,19,FALSE),".") -> 0.68
A143: =IF(OR($C$45=1,$C$45=2,$C$45=3,'Datos de entrada'!$B$36=Ponderaciones!$G$49), "Considerar",".") -> Considerar | B143: =IF(OR($C$45=1,$C$45=2,$C$45=3,'Datos de entrada'!$B$36=Ponderaciones!$G$49),IF('Datos de entrada'!$B$43=Ponderaciones!$D$77, _xlfn.CONCAT("Se recomienda implementar un sistema de extracción y aprovechamiento del biogás en el sitio de disposición final, ", "para tratar los Gases de Efecto Invernadero generados por la descomposición de la materia orgánica de los residuos allí dispuestos.",VLOOKUP(B127,'Fichas técnicas Tecnologías'!A:M,13,0)), IF('Datos de entrada'!$B$43=Ponderaciones!$D$78, _xlfn.CONCAT("Se recomienda implementar un sistema de aprovechamiento del biogás en el sitio de disposición final, ", "para tratar los Gases de Efecto Invernadero generados por la descomposición de la materia orgánica de los residuos allí dispuestos.",VLOOKUP(B127,'Fichas técnicas Tecnologías'!A:M,13,0)), "El sistema de extracción y aprovechamiento de biogás instalado en el relleno sanitario permite la reducción de Gases de Efecto Invernadero generados por la descomposición de materia orgánica de los residuos allí dispuestos."&VLOOKUP(B127,'Fichas técnicas Tecnologías'!A:M,13,0))),".") -> Se recomienda implementar un sistema de extracción y aprovechamiento del biogás en el sitio de disposición final, para tratar los Gases de Efecto Invernadero generados por la descomposición de la materia orgánica de los residuos allí dispuestos. Si usted desea hacer una estimación de toneladas equivalentes de CO2 puede remitirse a la herramienta de cálculo de gases de efecto invernadero (GEI) en el manejo de residuos sólidos (MRS) en este link https://www.bivica.org/file/view/id/1081 y al https://www.ifeu.de/en/project/tool-for-calculating-greenhouse-gases-ghg-in-solid-waste-management-swm/
A145: =IF(OR($C$45=1,$C$45=2,$C$45=3,'Datos de entrada'!$B$36=Ponderaciones!$G$49),"Costos de inversión",".") -> Costos de inversión
A147: =IF(OR($C$45=1,$C$45=2,$C$45=3,'Datos de entrada'!$B$36=Ponderaciones!$G$49),IF(Cálculo!A248<>0,Cálculo!A248,""),".") -> Pre-inversión | C147: =IF(OR($C$45=1,$C$45=2,$C$45=3,'Datos de entrada'!$B$36=Ponderaciones!$G$49),IF(Cálculo!B248<>0,Cálculo!B248,""),".") -> 
A148: =IF(OR($C$45=1,$C$45=2,$C$45=3,'Datos de entrada'!$B$36=Ponderaciones!$G$49),IF(Cálculo!A249<>0,Cálculo!A249,""),".") -> Estudios, Diseños | C148: =IF(OR($C$45=1,$C$45=2,$C$45=3,'Datos de entrada'!$B$36=Ponderaciones!$G$49),IF(Cálculo!B249<>0,Cálculo!B249,""),".") -> 121000000
A149: =IF(OR($C$45=1,$C$45=2,$C$45=3,'Datos de entrada'!$B$36=Ponderaciones!$G$49),IF(Cálculo!A250<>0,Cálculo!A250,""),".") -> Permisos | C149: =IF(OR($C$45=1,$C$45=2,$C$45=3,'Datos de entrada'!$B$36=Ponderaciones!$G$49),IF(Cálculo!B250<>0,Cálculo!B250,""),".") -> 81000000
A150: =IF(OR($C$45=1,$C$45=2,$C$45=3,'Datos de entrada'!$B$36=Ponderaciones!$G$49),IF(Cálculo!A251<>0,Cálculo!A251,""),".") -> Infraestructura | C150: =IF(OR($C$45=1,$C$45=2,$C$45=3,'Datos de entrada'!$B$36=Ponderaciones!$G$49),IF(Cálculo!B251<>0,Cálculo!B251,""),".") -> 811000000
A151: =IF(OR($C$45=1,$C$45=2,$C$45=3,'Datos de entrada'!$B$36=Ponderaciones!$G$49),IF(Cálculo!A252<>0,Cálculo!A252,""),".") -> Maquinaria y Equipos (incluido el costo de instalación) | C151: =IF(OR($C$45=1,$C$45=2,$C$45=3,'Datos de entrada'!$B$36=Ponderaciones!$G$49),IF(Cálculo!B252<>0,Cálculo!B252,""),".") -> 
A152: =IF(OR($C$45=1,$C$45=2,$C$45=3,'Datos de entrada'!$B$36=Ponderaciones!$G$49),IF(Cálculo!A253<>0,Cálculo!A253,""),".") -> Bandas transportadoras | C152: =IF(OR($C$45=1,$C$45=2,$C$45=3,'Datos de entrada'!$B$36=Ponderaciones!$G$49),IF(Cálculo!B253<>0,Cálculo!B253,""),".") -> 277000000
A153: =IF(OR($C$45=1,$C$45=2,$C$45=3,'Datos de entrada'!$B$36=Ponderaciones!$G$49),IF(Cálculo!A254<>0,Cálculo!A254,""),".") -> Sistema de tamizaje (piso vivo, tolva viva, bandas y tromel) | C153: =IF(OR($C$45=1,$C$45=2,$C$45=3,'Datos de entrada'!$B$36=Ponderaciones!$G$49),IF(Cálculo!B254<>0,Cálculo!B254,""),".") -> 185000000
A154: =IF(OR($C$45=1,$C$45=2,$C$45=3,'Datos de entrada'!$B$36=Ponderaciones!$G$49),IF(Cálculo!A255<>0,Cálculo!A255,""),".") -> Imán de remoción de metales | C154: =IF(OR($C$45=1,$C$45=2,$C$45=3,'Datos de entrada'!$B$36=Ponderaciones!$G$49),IF(Cálculo!B255<>0,Cálculo!B255,""),".") -> 87883396
A155: =IF(OR($C$45=1,$C$45=2,$C$45=3,'Datos de entrada'!$B$36=Ponderaciones!$G$49),IF(Cálculo!A256<>0,Cálculo!A256,""),".") -> Sistema separación balística | C155: =IF(OR($C$45=1,$C$45=2,$C$45=3,'Datos de entrada'!$B$36=Ponderaciones!$G$49),IF(Cálculo!B256<>0,Cálculo!B256,""),".") -> 461000000
A156: =IF(OR($C$45=1,$C$45=2,$C$45=3,'Datos de entrada'!$B$36=Ponderaciones!$G$49),IF(Cálculo!A257<>0,Cálculo!A257,""),".") -> Rompebolsas | C156: =IF(OR($C$45=1,$C$45=2,$C$45=3,'Datos de entrada'!$B$36=Ponderaciones!$G$49),IF(Cálculo!B257<>0,Cálculo!B257,""),".") -> 554000000
A157: =IF(OR($C$45=1,$C$45=2,$C$45=3,'Datos de entrada'!$B$36=Ponderaciones!$G$49),IF(Cálculo!A258<>0,Cálculo!A258,""),".") -> Báscula de pesaje | C157: =IF(OR($C$45=1,$C$45=2,$C$45=3,'Datos de entrada'!$B$36=Ponderaciones!$G$49),IF(Cálculo!B258<>0,Cálculo!B258,""),".") -> 206314606
A158: =IF(OR($C$45=1,$C$45=2,$C$45=3,'Datos de entrada'!$B$36=Ponderaciones!$G$49),IF(Cálculo!A259<>0,Cálculo!A259,""),".") -> Sistema de compostaje (Compostaje en pilas con aireación forzada) | C158: =IF(OR($C$45=1,$C$45=2,$C$45=3,'Datos de entrada'!$B$36=Ponderaciones!$G$49),IF(Cálculo!B259<>0,Cálculo!B259,""),".") -> 4074000000
A159: =IF(OR($C$45=1,$C$45=2,$C$45=3,'Datos de entrada'!$B$36=Ponderaciones!$G$49),IF(Cálculo!A260<>0,Cálculo!A260,""),".") -> Total Costo de Inversión Inicial | C159: =IF(OR($C$45=1,$C$45=2,$C$45=3,'Datos de entrada'!$B$36=Ponderaciones!$G$49),IF(Cálculo!B260<>0,Cálculo!B260,""),".") -> 6858198002
A160: =IF(OR($C$45=1,$C$45=2,$C$45=3,'Datos de entrada'!$B$36=Ponderaciones!$G$49),IF(Cálculo!A261<>0,Cálculo!A261,""),".") ->  | C160: =IF(OR($C$45=1,$C$45=2,$C$45=3,'Datos de entrada'!$B$36=Ponderaciones!$G$49),IF(Cálculo!B261<>0,Cálculo!B261,""),".") -> 
A161: =IF(OR($C$45=1,$C$45=2,$C$45=3,'Datos de entrada'!$B$36=Ponderaciones!$G$49),IF(Cálculo!A262<>0,Cálculo!A262,""),".") ->  | C161: =IF(OR($C$45=1,$C$45=2,$C$45=3,'Datos de entrada'!$B$36=Ponderaciones!$G$49),IF(Cálculo!B262<>0,Cálculo!B262,""),".") -> 
A162: =IF(OR($C$45=1,$C$45=2,$C$45=3,'Datos de entrada'!$B$36=Ponderaciones!$G$49),IF(Cálculo!A263<>0,Cálculo!A263,""),".") ->  | C162: =IF(OR($C$45=1,$C$45=2,$C$45=3,'Datos de entrada'!$B$36=Ponderaciones!$G$49),IF(Cálculo!B263<>0,Cálculo!B263,""),".") -> 
A163: =IF(OR($C$45=1,$C$45=2,$C$45=3,'Datos de entrada'!$B$36=Ponderaciones!$G$49),IF(Cálculo!A264<>0,Cálculo!A264,""),".") ->  | C163: =IF(OR($C$45=1,$C$45=2,$C$45=3,'Datos de entrada'!$B$36=Ponderaciones!$G$49),IF(Cálculo!B264<>0,Cálculo!B264,""),".") -> 
A167: =IF(OR($C$45=1,$C$45=2,$C$45=3,'Datos de entrada'!$B$36=Ponderaciones!$G$49),"Costos de operación",".") -> Costos de operación
A169: =IF(OR($C$45=1,$C$45=2,$C$45=3,'Datos de entrada'!$B$36=Ponderaciones!$G$49),IF(Cálculo!D248<>0,Cálculo!D248,""),".") -> Disposición final de rechazos diferentes a residuos que van a otro tratamiento | C169: =IF(OR($C$45=1,$C$45=2,$C$45=3,'Datos de entrada'!$B$36=Ponderaciones!$G$49),IF(Cálculo!E248<>0,Cálculo!E248,""),".") -> 3560000000
A170: =IF(OR($C$45=1,$C$45=2,$C$45=3,'Datos de entrada'!$B$36=Ponderaciones!$G$49),IF(Cálculo!D249<>0,Cálculo!D249,""),".") -> Tratamiento RSO (compostaje aireación forzada) | C170: =IF(OR($C$45=1,$C$45=2,$C$45=3,'Datos de entrada'!$B$36=Ponderaciones!$G$49),IF(Cálculo!E249<>0,Cálculo!E249,""),".") -> 868000000
A171: =IF(OR($C$45=1,$C$45=2,$C$45=3,'Datos de entrada'!$B$36=Ponderaciones!$G$49),IF(Cálculo!D250<>0,Cálculo!D250,""),".") -> Combustible | C171: =IF(OR($C$45=1,$C$45=2,$C$45=3,'Datos de entrada'!$B$36=Ponderaciones!$G$49),IF(Cálculo!E250<>0,Cálculo!E250,""),".") -> 108000000
A172: =IF(OR($C$45=1,$C$45=2,$C$45=3,'Datos de entrada'!$B$36=Ponderaciones!$G$49),IF(Cálculo!D251<>0,Cálculo!D251,""),".") -> Energía (consumo) | C172: =IF(OR($C$45=1,$C$45=2,$C$45=3,'Datos de entrada'!$B$36=Ponderaciones!$G$49),IF(Cálculo!E251<>0,Cálculo!E251,""),".") -> 299000000
A173: =IF(OR($C$45=1,$C$45=2,$C$45=3,'Datos de entrada'!$B$36=Ponderaciones!$G$49),IF(Cálculo!D252<>0,Cálculo!D252,""),".") -> Monitoreo Ambiental | C173: =IF(OR($C$45=1,$C$45=2,$C$45=3,'Datos de entrada'!$B$36=Ponderaciones!$G$49),IF(Cálculo!E252<>0,Cálculo!E252,""),".") -> 4000000
A174: =IF(OR($C$45=1,$C$45=2,$C$45=3,'Datos de entrada'!$B$36=Ponderaciones!$G$49),IF(Cálculo!D253<>0,Cálculo!D253,""),".") -> Mantenimiento - Maquinaria y equipos | C174: =IF(OR($C$45=1,$C$45=2,$C$45=3,'Datos de entrada'!$B$36=Ponderaciones!$G$49),IF(Cálculo!E253<>0,Cálculo!E253,""),".") -> 30000000
A175: =IF(OR($C$45=1,$C$45=2,$C$45=3,'Datos de entrada'!$B$36=Ponderaciones!$G$49),IF(Cálculo!D254<>0,Cálculo!D254,""),".") -> Mantenimiento - Infraestructura | C175: =IF(OR($C$45=1,$C$45=2,$C$45=3,'Datos de entrada'!$B$36=Ponderaciones!$G$49),IF(Cálculo!E254<>0,Cálculo!E254,""),".") -> 10000000
A176: =IF(OR($C$45=1,$C$45=2,$C$45=3,'Datos de entrada'!$B$36=Ponderaciones!$G$49),IF(Cálculo!D255<>0,Cálculo!D255,""),".") -> Mano de Obra | C176: =IF(OR($C$45=1,$C$45=2,$C$45=3,'Datos de entrada'!$B$36=Ponderaciones!$G$49),IF(Cálculo!E255<>0,Cálculo!E255,""),".") -> 227000000
A177: =IF(OR($C$45=1,$C$45=2,$C$45=3,'Datos de entrada'!$B$36=Ponderaciones!$G$49),IF(Cálculo!D256<>0,Cálculo!D256,""),".") -> Valor de Operación Anual | C177: =IF(OR($C$45=1,$C$45=2,$C$45=3,'Datos de entrada'!$B$36=Ponderaciones!$G$49),IF(Cálculo!E256<>0,Cálculo!E256,""),".") -> 4879000000
A178: =IF(OR($C$45=1,$C$45=2,$C$45=3,'Datos de entrada'!$B$36=Ponderaciones!$G$49),IF(Cálculo!D257<>0,Cálculo!D257,""),".") ->  | C178: =IF(OR($C$45=1,$C$45=2,$C$45=3,'Datos de entrada'!$B$36=Ponderaciones!$G$49),IF(Cálculo!E257<>0,Cálculo!E257,""),".") -> 
A179: =IF(OR($C$45=1,$C$45=2,$C$45=3,'Datos de entrada'!$B$36=Ponderaciones!$G$49),IF(Cálculo!D258<>0,Cálculo!D258,""),".") ->  | C179: =IF(OR($C$45=1,$C$45=2,$C$45=3,'Datos de entrada'!$B$36=Ponderaciones!$G$49),IF(Cálculo!E258<>0,Cálculo!E258,""),".") -> 
A181: =IF(OR($C$45=1,$C$45=2,$C$45=3,'Datos de entrada'!$B$36=Ponderaciones!$G$49),"Ingresos",".") -> Ingresos
A183: =IF(OR($C$45=1,$C$45=2,$C$45=3,'Datos de entrada'!$B$36=Ponderaciones!$G$49),Cálculo!G247,".") -> Ingresos por tarifa (COP) (Promedio Anual) | C183: =IF(OR($C$45=1,$C$45=2,$C$45=3,'Datos de entrada'!$B$36=Ponderaciones!$G$49),Cálculo!H247,".") -> 3296800000
A185: =IF(OR($C$45=1,$C$45=2,$C$45=3,'Datos de entrada'!$B$36=Ponderaciones!$G$49),"Tecnología 3",".") -> Tecnología 3 | B185: =IF(OR($C$45=1,$C$45=2,$C$45=3,'Datos de entrada'!$B$36=Ponderaciones!$G$49),$B$63,".") -> Compostaje en pilas con aireación forzada
A187: =IF(OR($C$45=1,$C$45=2,$C$45=3,'Datos de entrada'!$B$36=Ponderaciones!$G$49),"Variable",".") -> Variable | B187: =IF(OR($C$45=1,$C$45=2,$C$45=3,'Datos de entrada'!$B$36=Ponderaciones!$G$49),"Descripción",".") -> Descripción
A188: =IF(OR($C$45=1,$C$45=2,$C$45=3,'Datos de entrada'!$B$36=Ponderaciones!$G$49),'Interpretación de Resultados'!A2,".") -> Descripción | B188: =IF(OR($C$45=1,$C$45=2,$C$45=3,'Datos de entrada'!$B$36=Ponderaciones!$G$49),VLOOKUP(B185,'Fichas técnicas Tecnologías'!$A$3:$K$10,2,FALSE),".") -> Proceso similar al compostaje en pilas con volteo manual, cuya diferencia radica en que el oxígeno requerido es inyectado mecánicamente.
A189: =IF(OR($C$45=1,$C$45=2,$C$45=3,'Datos de entrada'!$B$36=Ponderaciones!$G$49),'Interpretación de Resultados'!A3,".") -> Escala y capacidad óptima (ton/año) | B189: =IF(OR($C$45=1,$C$45=2,$C$45=3,'Datos de entrada'!$B$36=Ponderaciones!$G$49),VLOOKUP(B185,'Fichas técnicas Tecnologías'!$A$3:$K$10,9,FALSE),".") -> Compost
A190: =IF(OR($C$45=1,$C$45=2,$C$45=3,'Datos de entrada'!$B$36=Ponderaciones!$G$49),'Interpretación de Resultados'!A4,".") -> Complejidad | B190: =IF(OR($C$45=1,$C$45=2,$C$45=3,'Datos de entrada'!$B$36=Ponderaciones!$G$49),VLOOKUP(B185,'Fichas técnicas Tecnologías'!$A$3:$K$10,3,FALSE),".") -> 1000 - 200000
A191: =IF(OR($C$45=1,$C$45=2,$C$45=3,'Datos de entrada'!$B$36=Ponderaciones!$G$49), "Considerar",".") -> Considerar | B191: =IF(OR($C$45=1,$C$45=2,$C$45=3,'Datos de entrada'!$B$36=Ponderaciones!$G$49),VLOOKUP(B185,'Fichas técnicas Tecnologías'!$A$3:$K$10,4,FALSE),".") -> Dado que el proyecto busca dar tratamiento a aproximadamente a 45725 toneladas anuales de residuos orgánicos, cuenta con una escala adecuada para implementar la tecnología
A192: =IF(OR($C$45=1,$C$45=2,$C$45=3,'Datos de entrada'!$B$36=Ponderaciones!$G$49),'Interpretación de Resultados'!A5,".") -> Tipo de residuos tratados | B192: =IF(OR($C$45=1,$C$45=2,$C$45=3,'Datos de entrada'!$B$36=Ponderaciones!$G$49),VLOOKUP(B185,'Fichas técnicas Tecnologías'!$A$3:$K$10,5,FALSE),".") -> Baja-media
A193: =IF(OR($C$45=1,$C$45=2,$C$45=3,'Datos de entrada'!$B$36=Ponderaciones!$G$49), "Considerar",".") -> Considerar | B193: =IF(OR($C$45=1,$C$45=2,$C$45=3,'Datos de entrada'!$B$36=Ponderaciones!$G$49),VLOOKUP(B185,'Fichas técnicas Tecnologías'!$A$3:$K$10,6,FALSE),".") -> Esta tecnología no requiere personal muy tecnificado ni equipos con especificaciones técnicas elevadas.Su principal barrera se presenta por la incorrecta separación en la fuente de los residuos por parte del suscriptor.Dados las salidas obtenidas por el modelo en este aspecto se recomienda desarrollar campañas educativas que mantengan a los habitantes enterados sobre las buenas prácticas en gestión de residuos sólidos enfocados en la separación en la fuente de residuos sólidos orgánicos y en economía circular
A194: =IF(OR($C$45=1,$C$45=2,$C$45=3,'Datos de entrada'!$B$36=Ponderaciones!$G$49),'Interpretación de Resultados'!A6,".") -> Salidas | B194: =IF(OR($C$45=1,$C$45=2,$C$45=3,'Datos de entrada'!$B$36=Ponderaciones!$G$49),VLOOKUP(B185,'Fichas técnicas Tecnologías'!$A$3:$K$10,7,FALSE),".") -> Residuos Sólidos Orgánicos (RSO)
A195: =IF(OR($C$45=1,$C$45=2,$C$45=3,'Datos de entrada'!$B$36=Ponderaciones!$G$49), "Considerar",".") -> Considerar | B195: =IF(OR($C$45=1,$C$45=2,$C$45=3,'Datos de entrada'!$B$36=Ponderaciones!$G$49),VLOOKUP(B185,'Fichas técnicas Tecnologías'!$A$3:$K$10,8,FALSE),".") -> Dada que se cuenta con una separación en la fuente medianamente adecuada, es necesario fortalecerla con campañas, lo cual permitirá que los residuos destinados a tratamiento sean más homogéneos y así disminuir los costos de su adecuación para su tratamiento.
A196: =IF(OR($C$45=1,$C$45=2,$C$45=3,'Datos de entrada'!$B$36=Ponderaciones!$G$49),'Interpretación de Resultados'!A7,".") -> Impacto ambiental | B196: =IF(OR($C$45=1,$C$45=2,$C$45=3,'Datos de entrada'!$B$36=Ponderaciones!$G$49),VLOOKUP(B185,'Fichas técnicas Tecnologías'!$A$3:$K$10,11,FALSE),".") -> Olores Ruido Contaminación visual
A197: =IF(OR($C$45=1,$C$45=2,$C$45=3,'Datos de entrada'!$B$36=Ponderaciones!$G$49), "Considerar",".") -> Considerar | B197: =IF(OR($C$45=1,$C$45=2,$C$45=3,'Datos de entrada'!$B$36=Ponderaciones!$G$49),VLOOKUP(B185,'Fichas técnicas Tecnologías'!$A$3:$N$10,12,FALSE)&VLOOKUP(B185,'Fichas técnicas Tecnologías'!$A$3:$U$10,20,FALSE),".") -> Implemente prácticas adecuadas en la operación del sistema permite evitar el impacto ambiental ocasionado. Se recomienda que revise literatura y otras experiencias sobre cómo monitorear, entre otras variables, el tamaño de las partículas, el contenido de carbono y nitrógeno, el contenido de humedad, la temperatura, el pH y la presencia de patógenos. Algunas Corporaciones Autónomas Regionales han expedido manuales al respecto, así como entidades tales como la UAESP de Bogotá y organizaciones como ACODAL. El tamaño de la planta requiere licenciamiento ambiental, por lo tanto debe elaborar el plan de manejo ambiental y adelantar los tramites para obtenerla.Tenga presente que la tecnologia de Compostaje con aireación forzada requiere menos áreas frente a la tecnología con volteo manual. Para una planta de 46000 toneladas por año se requieren de 13 hectaréas frente a un área de 16 hectareas para la segunda. Esta tecnología presenta mayor resistencia a los cambios metereológicos, sin embargo, demanda mayor monitoreo.
A198: =IF(OR($C$45=1,$C$45=2,$C$45=3,'Datos de entrada'!$B$36=Ponderaciones!$G$49),'Interpretación de Resultados'!A8,".") -> Desviación de residuos (ton/año) | B198: =IF(OR($C$45=1,$C$45=2,$C$45=3,'Datos de entrada'!$B$36=Ponderaciones!$G$49),VLOOKUP(3,Cálculo!$B$156:$U$160,15,FALSE),".") -> 9218.19326
A199: =IF(OR($C$45=1,$C$45=2,$C$45=3,'Datos de entrada'!$B$36=Ponderaciones!$G$49), "Considerar",".") -> Considerar | B199: =IF(OR($C$45=1,$C$45=2,$C$45=3,'Datos de entrada'!$B$36=Ponderaciones!$G$49),"La desviación de residuos se estima teniendo en cuenta la capacidad de la planta.",".") -> La desviación de residuos se estima teniendo en cuenta la capacidad de la planta.
A200: =IF(OR($C$45=1,$C$45=2,$C$45=3,'Datos de entrada'!$B$36=Ponderaciones!$G$49),'Interpretación de Resultados'!A9,".") -> % Reducción de GEI en comparación con su disposición final en relleno sanitario | B200: =IF(OR($C$45=1,$C$45=2,$C$45=3,'Datos de entrada'!$B$36=Ponderaciones!$G$49),VLOOKUP(3,Cálculo!$B$156:$U$160,19,FALSE),".") -> 0.4
A201: =IF(OR($C$45=1,$C$45=2,$C$45=3,'Datos de entrada'!$B$36=Ponderaciones!$G$49), "Considerar",".") -> Considerar | B201: =IF(OR($C$45=1,$C$45=2,$C$45=3,'Datos de entrada'!$B$36=Ponderaciones!$G$49),IF('Datos de entrada'!$B$43=Ponderaciones!$D$77, _xlfn.CONCAT("Se recomienda implementar un sistema de extracción y aprovechamiento del biogás en el sitio de disposición final, ", "para tratar los Gases de Efecto Invernadero generados por la descomposición de la materia orgánica de los residuos allí dispuestos.",VLOOKUP(B185,'Fichas técnicas Tecnologías'!A:M,13,0)), IF('Datos de entrada'!$B$43=Ponderaciones!$D$78, _xlfn.CONCAT("Se recomienda implementar un sistema de aprovechamiento del biogás en el sitio de disposición final, ", "para tratar los Gases de Efecto Invernadero generados por la descomposición de la materia orgánica de los residuos allí dispuestos.",VLOOKUP(B185,'Fichas técnicas Tecnologías'!A:M,13,0)), "El sistema de extracción y aprovechamiento de biogás instalado en el relleno sanitario permite la reducción de Gases de Efecto Invernadero generados por la descomposición de materia orgánica de los residuos allí dispuestos."&VLOOKUP(B185,'Fichas técnicas Tecnologías'!A:M,13,0))),".") -> Se recomienda implementar un sistema de extracción y aprovechamiento del biogás en el sitio de disposición final, para tratar los Gases de Efecto Invernadero generados por la descomposición de la materia orgánica de los residuos allí dispuestos. Si usted desea hacer una estimación de toneladas equivalentes de CO2 puede remitirse a la herramienta de cálculo de gases de efecto invernadero (GEI) en el manejo de residuos sólidos (MRS) en este link https://www.bivica.org/file/view/id/1081 y al https://www.ifeu.de/en/project/tool-for-calculating-greenhouse-gases-ghg-in-solid-waste-management-swm/
A203: =IF(OR($C$45=1,$C$45=2,$C$45=3,'Datos de entrada'!$B$36=Ponderaciones!$G$49),"Costos de inversión",".") -> Costos de inversión
A205: =IF(OR($C$45=1,$C$45=2,$C$45=3,'Datos de entrada'!$B$36=Ponderaciones!$G$49),IF(Cálculo!A295<>0,Cálculo!A295,""),".") -> Pre-inversión | C205: =IF(OR($C$45=1,$C$45=2,$C$45=3,'Datos de entrada'!$B$36=Ponderaciones!$G$49),IF(Cálculo!B295<>0,Cálculo!B295,""),".") -> 
A206: =IF(OR($C$45=1,$C$45=2,$C$45=3,'Datos de entrada'!$B$36=Ponderaciones!$G$49),IF(Cálculo!A296<>0,Cálculo!A296,""),".") -> Estudios, Diseños | C206: =IF(OR($C$45=1,$C$45=2,$C$45=3,'Datos de entrada'!$B$36=Ponderaciones!$G$49),IF(Cálculo!B296<>0,Cálculo!B296,""),".") -> 264000000
A207: =IF(OR($C$45=1,$C$45=2,$C$45=3,'Datos de entrada'!$B$36=Ponderaciones!$G$49),IF(Cálculo!A297<>0,Cálculo!A297,""),".") -> Permisos | C207: =IF(OR($C$45=1,$C$45=2,$C$45=3,'Datos de entrada'!$B$36=Ponderaciones!$G$49),IF(Cálculo!B297<>0,Cálculo!B297,""),".") -> 72000000
A208: =IF(OR($C$45=1,$C$45=2,$C$45=3,'Datos de entrada'!$B$36=Ponderaciones!$G$49),IF(Cálculo!A298<>0,Cálculo!A298,""),".") -> Infraestructura | C208: =IF(OR($C$45=1,$C$45=2,$C$45=3,'Datos de entrada'!$B$36=Ponderaciones!$G$49),IF(Cálculo!B298<>0,Cálculo!B298,""),".") -> 4288000000
A209: =IF(OR($C$45=1,$C$45=2,$C$45=3,'Datos de entrada'!$B$36=Ponderaciones!$G$49),IF(Cálculo!A299<>0,Cálculo!A299,""),".") -> Maquinaria y Equipos (incluido el costo de instalación) | C209: =IF(OR($C$45=1,$C$45=2,$C$45=3,'Datos de entrada'!$B$36=Ponderaciones!$G$49),IF(Cálculo!B299<>0,Cálculo!B299,""),".") -> 
A210: =IF(OR($C$45=1,$C$45=2,$C$45=3,'Datos de entrada'!$B$36=Ponderaciones!$G$49),IF(Cálculo!A300<>0,Cálculo!A300,""),".") -> Trommel | C210: =IF(OR($C$45=1,$C$45=2,$C$45=3,'Datos de entrada'!$B$36=Ponderaciones!$G$49),IF(Cálculo!B300<>0,Cálculo!B300,""),".") -> 151000000
A211: =IF(OR($C$45=1,$C$45=2,$C$45=3,'Datos de entrada'!$B$36=Ponderaciones!$G$49),IF(Cálculo!A301<>0,Cálculo!A301,""),".") -> Minicargador | C211: =IF(OR($C$45=1,$C$45=2,$C$45=3,'Datos de entrada'!$B$36=Ponderaciones!$G$49),IF(Cálculo!B301<>0,Cálculo!B301,""),".") -> 261448992
A212: =IF(OR($C$45=1,$C$45=2,$C$45=3,'Datos de entrada'!$B$36=Ponderaciones!$G$49),IF(Cálculo!A302<>0,Cálculo!A302,""),".") -> Tractor | C212: =IF(OR($C$45=1,$C$45=2,$C$45=3,'Datos de entrada'!$B$36=Ponderaciones!$G$49),IF(Cálculo!B302<>0,Cálculo!B302,""),".") -> 261448992
A213: =IF(OR($C$45=1,$C$45=2,$C$45=3,'Datos de entrada'!$B$36=Ponderaciones!$G$49),IF(Cálculo!A303<>0,Cálculo!A303,""),".") -> Retroexcavadora | C213: =IF(OR($C$45=1,$C$45=2,$C$45=3,'Datos de entrada'!$B$36=Ponderaciones!$G$49),IF(Cálculo!B303<>0,Cálculo!B303,""),".") -> 227894041
A214: =IF(OR($C$45=1,$C$45=2,$C$45=3,'Datos de entrada'!$B$36=Ponderaciones!$G$49),IF(Cálculo!A304<>0,Cálculo!A304,""),".") -> Montacargas | C214: =IF(OR($C$45=1,$C$45=2,$C$45=3,'Datos de entrada'!$B$36=Ponderaciones!$G$49),IF(Cálculo!B304<>0,Cálculo!B304,""),".") -> 162182263
A215: =IF(OR($C$45=1,$C$45=2,$C$45=3,'Datos de entrada'!$B$36=Ponderaciones!$G$49),IF(Cálculo!A305<>0,Cálculo!A305,""),".") -> Planta electrica | C215: =IF(OR($C$45=1,$C$45=2,$C$45=3,'Datos de entrada'!$B$36=Ponderaciones!$G$49),IF(Cálculo!B305<>0,Cálculo!B305,""),".") -> 307587050
A216: =IF(OR($C$45=1,$C$45=2,$C$45=3,'Datos de entrada'!$B$36=Ponderaciones!$G$49),IF(Cálculo!A306<>0,Cálculo!A306,""),".") -> Compresor | C216: =IF(OR($C$45=1,$C$45=2,$C$45=3,'Datos de entrada'!$B$36=Ponderaciones!$G$49),IF(Cálculo!B306<>0,Cálculo!B306,""),".") -> 75498640
A217: =IF(OR($C$45=1,$C$45=2,$C$45=3,'Datos de entrada'!$B$36=Ponderaciones!$G$49),IF(Cálculo!A307<>0,Cálculo!A307,""),".") -> Volqueta | C217: =IF(OR($C$45=1,$C$45=2,$C$45=3,'Datos de entrada'!$B$36=Ponderaciones!$G$49),IF(Cálculo!B307<>0,Cálculo!B307,""),".") -> 615174100
A218: =IF(OR($C$45=1,$C$45=2,$C$45=3,'Datos de entrada'!$B$36=Ponderaciones!$G$49),IF(Cálculo!A308<>0,Cálculo!A308,""),".") -> Báscula de pesaje | C218: =IF(OR($C$45=1,$C$45=2,$C$45=3,'Datos de entrada'!$B$36=Ponderaciones!$G$49),IF(Cálculo!B308<>0,Cálculo!B308,""),".") -> 103157303
A219: =IF(OR($C$45=1,$C$45=2,$C$45=3,'Datos de entrada'!$B$36=Ponderaciones!$G$49),IF(Cálculo!A309<>0,Cálculo!A309,""),".") -> Total Costo de Inversión Inicial | C219: =IF(OR($C$45=1,$C$45=2,$C$45=3,'Datos de entrada'!$B$36=Ponderaciones!$G$49),IF(Cálculo!B309<>0,Cálculo!B309,""),".") -> 6789391381
A220: =IF(OR($C$45=1,$C$45=2,$C$45=3,'Datos de entrada'!$B$36=Ponderaciones!$G$49),IF(Cálculo!A310<>0,Cálculo!A310,""),".") ->  | C220: =IF(OR($C$45=1,$C$45=2,$C$45=3,'Datos de entrada'!$B$36=Ponderaciones!$G$49),IF(Cálculo!B310<>0,Cálculo!B310,""),".") -> 
A221: =IF(OR($C$45=1,$C$45=2,$C$45=3,'Datos de entrada'!$B$36=Ponderaciones!$G$49),IF(Cálculo!A311<>0,Cálculo!A311,""),".") ->  | C221: =IF(OR($C$45=1,$C$45=2,$C$45=3,'Datos de entrada'!$B$36=Ponderaciones!$G$49),IF(Cálculo!B311<>0,Cálculo!B311,""),".") -> 
A225: =IF(OR($C$45=1,$C$45=2,$C$45=3,'Datos de entrada'!$B$36=Ponderaciones!$G$49),"Costos de operación",".") -> Costos de operación
A227: =IF(OR($C$45=1,$C$45=2,$C$45=3,'Datos de entrada'!$B$36=Ponderaciones!$G$49),IF(Cálculo!D295<>0,Cálculo!D295,""),".") -> Energia | C227: =IF(OR($C$45=1,$C$45=2,$C$45=3,'Datos de entrada'!$B$36=Ponderaciones!$G$49),IF(Cálculo!E295<>0,Cálculo!E295,""),".") -> 67000000
A228: =IF(OR($C$45=1,$C$45=2,$C$45=3,'Datos de entrada'!$B$36=Ponderaciones!$G$49),IF(Cálculo!D296<>0,Cálculo!D296,""),".") -> Combustible | C228: =IF(OR($C$45=1,$C$45=2,$C$45=3,'Datos de entrada'!$B$36=Ponderaciones!$G$49),IF(Cálculo!E296<>0,Cálculo!E296,""),".") -> 259000000
A229: =IF(OR($C$45=1,$C$45=2,$C$45=3,'Datos de entrada'!$B$36=Ponderaciones!$G$49),IF(Cálculo!D297<>0,Cálculo!D297,""),".") -> Agua | C229: =IF(OR($C$45=1,$C$45=2,$C$45=3,'Datos de entrada'!$B$36=Ponderaciones!$G$49),IF(Cálculo!E297<>0,Cálculo!E297,""),".") -> 8000000
A230: =IF(OR($C$45=1,$C$45=2,$C$45=3,'Datos de entrada'!$B$36=Ponderaciones!$G$49),IF(Cálculo!D298<>0,Cálculo!D298,""),".") -> Tratamiento RSO | C230: =IF(OR($C$45=1,$C$45=2,$C$45=3,'Datos de entrada'!$B$36=Ponderaciones!$G$49),IF(Cálculo!E298<>0,Cálculo!E298,""),".") -> 868000000
A231: =IF(OR($C$45=1,$C$45=2,$C$45=3,'Datos de entrada'!$B$36=Ponderaciones!$G$49),IF(Cálculo!D299<>0,Cálculo!D299,""),".") -> Monitoreo Ambiental | C231: =IF(OR($C$45=1,$C$45=2,$C$45=3,'Datos de entrada'!$B$36=Ponderaciones!$G$49),IF(Cálculo!E299<>0,Cálculo!E299,""),".") -> 4000000
A232: =IF(OR($C$45=1,$C$45=2,$C$45=3,'Datos de entrada'!$B$36=Ponderaciones!$G$49),IF(Cálculo!D300<>0,Cálculo!D300,""),".") -> Mantenimiento - Maquinaria y equipos | C232: =IF(OR($C$45=1,$C$45=2,$C$45=3,'Datos de entrada'!$B$36=Ponderaciones!$G$49),IF(Cálculo!E300<>0,Cálculo!E300,""),".") -> 33000000
A233: =IF(OR($C$45=1,$C$45=2,$C$45=3,'Datos de entrada'!$B$36=Ponderaciones!$G$49),IF(Cálculo!D301<>0,Cálculo!D301,""),".") -> Mantenimiento - Infraestructura | C233: =IF(OR($C$45=1,$C$45=2,$C$45=3,'Datos de entrada'!$B$36=Ponderaciones!$G$49),IF(Cálculo!E301<>0,Cálculo!E301,""),".") -> 54000000
A234: =IF(OR($C$45=1,$C$45=2,$C$45=3,'Datos de entrada'!$B$36=Ponderaciones!$G$49),IF(Cálculo!D302<>0,Cálculo!D302,""),".") -> Mano de Obra | C234: =IF(OR($C$45=1,$C$45=2,$C$45=3,'Datos de entrada'!$B$36=Ponderaciones!$G$49),IF(Cálculo!E302<>0,Cálculo!E302,""),".") -> 57000000
A235: =IF(OR($C$45=1,$C$45=2,$C$45=3,'Datos de entrada'!$B$36=Ponderaciones!$G$49),IF(Cálculo!D303<>0,Cálculo!D303,""),".") -> Valor de Operación Anual | C235: =IF(OR($C$45=1,$C$45=2,$C$45=3,'Datos de entrada'!$B$36=Ponderaciones!$G$49),IF(Cálculo!E303<>0,Cálculo!E303,""),".") -> 1350000000
A236: =IF(OR($C$45=1,$C$45=2,$C$45=3,'Datos de entrada'!$B$36=Ponderaciones!$G$49),IF(Cálculo!D304<>0,Cálculo!D304,""),".") ->  | C236: =IF(OR($C$45=1,$C$45=2,$C$45=3,'Datos de entrada'!$B$36=Ponderaciones!$G$49),IF(Cálculo!E304<>0,Cálculo!E304,""),".") -> 
A237: =IF(OR($C$45=1,$C$45=2,$C$45=3,'Datos de entrada'!$B$36=Ponderaciones!$G$49),IF(Cálculo!D305<>0,Cálculo!D305,""),".") ->  | C237: =IF(OR($C$45=1,$C$45=2,$C$45=3,'Datos de entrada'!$B$36=Ponderaciones!$G$49),IF(Cálculo!E305<>0,Cálculo!E305,""),".") -> 
A239: =IF(OR($C$45=1,$C$45=2,$C$45=3,'Datos de entrada'!$B$36=Ponderaciones!$G$49),"Ingresos",".") -> Ingresos
A241: =IF(OR($C$45=1,$C$45=2,$C$45=3,'Datos de entrada'!$B$36=Ponderaciones!$G$49),Cálculo!G294,".") -> Ingresos por tarifa (COP) (Promedio Anual) | C241: =IF(OR($C$45=1,$C$45=2,$C$45=3,'Datos de entrada'!$B$36=Ponderaciones!$G$49),Cálculo!H294,".") -> 3296800000
A243: =IF(OR($C$45=1,$C$45=2,$C$45=3,'Datos de entrada'!$B$36=Ponderaciones!$G$49),"MEDIDAS A IMPLEMENTAR SEGÚN EL ESCENARIO","") -> MEDIDAS A IMPLEMENTAR SEGÚN EL ESCENARIO
A246: =IF(OR($C$45=1,$C$45=2,$C$45=3,'Datos de entrada'!$B$36=Ponderaciones!$G$49),"Aquí se presentan medidas generales para el escenario identificado por el modelo. Para garantizar el éxito de un proyecto de tratamiento de residuos sólidos se deben aplicar aquellas medidas con las que no se cuente en la actualidad. ","") -> Aquí se presentan medidas generales para el escenario identificado por el modelo. Para garantizar el éxito de un proyecto de tratamiento de residuos sólidos se deben aplicar aquellas medidas con las que no se cuente en la actualidad.
A248: =IF(OR($C$45=1,$C$45=2,$C$45=3,'Datos de entrada'!$B$36=Ponderaciones!$G$49),"Se recomienda aplicar las siguientes medidas","") -> Se recomienda aplicar las siguientes medidas
A250: =IF(OR($C$45=1,$C$45=2,$C$45=3,'Datos de entrada'!$B$36=Ponderaciones!$G$49),Cálculo!$B$146,"") -> 1) Actualice el PGIRS, que prevea la viabilidad de proyectos para el tratamiento de residuos sólidos. Para ello como mínimo debe realizarse la actualización o elaboración de: a. Caracterización de residuos con especial énfasis en la fracción orgánica b. Estudios técnico-operativos para determinar el tipo de tratamiento más viable c. Estudios de mercado que permitan determinar la viabilidad del tratamiento 2) Fortalezca la capacidad administrativa de los municipios revisando los indicadores de gestión y resultados de la Medición de Desempeño Municipal (MDM) en los cuales existen falencias. 3) Amplie la destinación de recursos para financiar actividades del servicio público de aseo 4) Implemente sistemas de extracción y aprovechamiento de biogás en el sitio de disposición final 5) Implemente un sistema de Monitoreo, Reporte y Verificación (MRV) de emisiones de la reducción de emisiones de GEI 6) Actualice la infraestructura para la presentación de los residuos sólidos para adoptar el código de colores establecido en la Resolución 2184 de 2019.
A270: =IF(OR($C$45=1,$C$45=2,$C$45=3,'Datos de entrada'!$B$36=Ponderaciones!$G$49),"Es importante tener en cuenta que las medidas descritas anteriormente son de carácter general para los diferentes escenarios analizados y "& "sirven para fortalecer las condiciones que permiten una adecuada implementación de proyectos de tratamiento de residuos sólidos.","") -> Es importante tener en cuenta que las medidas descritas anteriormente son de carácter general para los diferentes escenarios analizados y sirven para fortalecer las condiciones que permiten una adecuada implementación de proyectos de tratamiento de residuos sólidos.
A283: =+'Datos de entrada'!E13 -> 0 | B283: 0 | C283: =+IF(Cálculo!B128<Valoración!B3,0,1) -> 0
A284: ANÁLISIS DE TRATAMIENTO DE RESÍDUOS ORGANICOS PROVENIENTES DE LAS ACTIVIDADES DE PODA Y CORTE DE CESPED, Y DE PLAZAS DE MERCADO
A287: =+IF(C283=1," Basado en la cantidad de residuos a tratar se considera viable llevar a cabo un proyecto de tratamiento","Con base en la cantidad de residuos a tratar se considera inviable llevar a cabo un proyecto de tratamiento") -> Con base en la cantidad de residuos a tratar se considera inviable llevar a cabo un proyecto de tratamiento
A289: Variable | C289: Resultado
A290: Tipo de proyecto | B290: Compostaje de residuos organicos no contaminados | C290: Compost Comercializable
A291: Residuos sólidos provenientes de la actividad de poda y corte, y de plazas de mercado (ton/año) | B291: Cantidad de residuos generados en plazas de mercado, centrales de abasto o aquellos provenientes de la poda de árboles y corte de césped. Expresado en toneladas anuales. | C291: =IF('Datos de entrada'!B12+'Datos de entrada'!B14=0,"Se debe indicar en los datos de entrada la cantidad de residuos provenientes de la actividad de poda y corte de cesped, y de plazas de mercado",'Datos de entrada'!B12+'Datos de entrada'!B14) -> Se debe indicar en los datos de entrada la cantidad de residuos provenientes de la actividad de poda y corte de cesped, y de plazas de mercado
A293: =IF(OR($C$45=1,$C$45=2,$C$45=3,'Datos de entrada'!$B$36=Ponderaciones!$G$49), "Recomendaciones",".") -> Recomendaciones | B293: =IF(OR($C$45=1,$C$45=2,$C$45=3,'Datos de entrada'!$B$36=Ponderaciones!$G$49),"Realice el estudio de mercado sobre la comercializacion del compost y su certificación ante el ICA. Evalue tratar adicionalmente residuos organicos separados en fuente siempre y cuando cuente con los controles necesarios para evitar su contaminación","") -> Realice el estudio de mercado sobre la comercializacion del compost y su certificación ante el ICA. Evalue tratar adicionalmente residuos organicos separados en fuente siempre y cuando cuente con los controles necesarios para evitar su contaminación
A296: Opción de Tratamiento | B296: =+Valoración!A3 -> Compostaje en pilas con volteo manual
A300: =+'Costos de inversión'!C4 -> Pre-inversión | C300: =+'Costos de inversión'!P4 -> 0
A301: =+'Costos de inversión'!C5 -> Estudios, Diseños | C301: =+'Costos de inversión'!P5 -> 374000000
A302: =+'Costos de inversión'!C6 -> Permisos | C302: =+'Costos de inversión'!P6 -> 86000000
... 52 more rows

Sheet Interpretación de Resultados
A1: Variable | B1: Descripción
A2: Descripción | B2: Breve descripción de la tecnología.
A3: Escala y capacidad óptima (ton/año) | B3: Corresponde con la cantidad típica de residuos a tratar a través del proyecto de tratamiento.
A4: Complejidad | B4: Indica el grado de dificultad de operar una tecnología. Depende del nivel de preparación técnica requerido por el personal, los requerimientos de funcionamiento y de monitoreo y laboratorio de una tecnología.
A5: Tipo de residuos tratados | B5: Indica si la tecnología es apta para residuos mixtos, orgánicos, inorgánicos, etc.
A6: Salidas | B6: Indica los subproductos de cada tecnología y si estos requieren una gestión especial posteriormente.
A7: Impacto ambiental | B7: Refiere a las afectaciones en las matrices ambientales (suelo, atmosfera, agua, biota) que pueden ocasionarse de manera directa e indirecta por el desarrollo del proyecto y que deben considerarse en el momento de evaluar su implementación.
A8: Desviación de residuos (ton/año) | B8: Corresponde a la cantidad de residuos que pueden desviarse de su disposición final en rellenos sanitarios con la implementación de la tecnología.
A9: % Reducción de GEI en comparación con su disposición final en relleno sanitario | B9: Indica el potencial de emisiones de Gases de Efecto Invernadero (GEI) evitadas por la implementación de la tecnología en comparación con su disposición final en rellenos sanitarios.

Sheet Cálculo (hidden)
A1: Municipios | B1: Categoría de mercado | C1: Población año de inicio de operaciones
A2: =IF('Datos de entrada'!B15<>0,'Datos de entrada'!B15,"") -> HUILA - PITALITO | B2: =IFERROR((VLOOKUP(A2,'Información municipios'!$E$3:$I$1124,5,FALSE)),"") -> 2 | C2: =IFERROR(VLOOKUP(A2,'Información municipios'!$E$3:$F$1124,2,0)*((1+1.75%)^('Datos de entrada'!$B$5-2019)),"") -> 142961.2393 | D2: =IFERROR(B2*1,0) -> 2
A3: =IF('Municipios Proyecto Regional'!B2<>0,'Municipios Proyecto Regional'!B2,"") -> Huila - acevedo | B3: =IFERROR((VLOOKUP(A3,'Información municipios'!$E$3:$I$1124,5,FALSE)),"") -> 1 | C3: =IFERROR(VLOOKUP(A3,'Información municipios'!$E$3:$F$1124,2,0)*((1+1.75%)^('Datos de entrada'!$B$5-2019)),"") -> 37793.69677 | D3: =IFERROR(B3*1,0) -> 1
A4: =IF('Municipios Proyecto Regional'!B3<>0,'Municipios Proyecto Regional'!B3,"") -> huila - elías | B4: =IFERROR((VLOOKUP(A4,'Información municipios'!$E$3:$I$1124,5,FALSE)),"") -> 1 | C4: =IFERROR(VLOOKUP(A4,'Información municipios'!$E$3:$F$1124,2,0)*((1+1.75%)^('Datos de entrada'!$B$5-2019)),"") -> 4430.701804 | D4: 1
A5: =IF('Municipios Proyecto Regional'!B4<>0,'Municipios Proyecto Regional'!B4,"") -> Huila - Isnos | B5: =IFERROR((VLOOKUP(A5,'Información municipios'!$E$3:$I$1124,5,FALSE)),"") -> 1 | C5: =IFERROR(VLOOKUP(A5,'Información municipios'!$E$3:$F$1124,2,0)*((1+1.75%)^('Datos de entrada'!$B$5-2019)),"") -> 30054.18984 | D5: 1
A6: =IF('Municipios Proyecto Regional'!B5<>0,'Municipios Proyecto Regional'!B5,"") -> Huila - Palestina | B6: =IFERROR((VLOOKUP(A6,'Información municipios'!$E$3:$I$1124,5,FALSE)),"") -> 1 | C6: =IFERROR(VLOOKUP(A6,'Información municipios'!$E$3:$F$1124,2,0)*((1+1.75%)^('Datos de entrada'!$B$5-2019)),"") -> 12720.09612 | D6: 1
A7: =IF('Municipios Proyecto Regional'!B6<>0,'Municipios Proyecto Regional'!B6,"") -> Huila - Oporapa | B7: =IFERROR((VLOOKUP(A7,'Información municipios'!$E$3:$I$1124,5,FALSE)),"") -> 1 | C7: =IFERROR(VLOOKUP(A7,'Información municipios'!$E$3:$F$1124,2,0)*((1+1.75%)^('Datos de entrada'!$B$5-2019)),"") -> 15603.31791 | D7: 1
A8: =IF('Municipios Proyecto Regional'!B7<>0,'Municipios Proyecto Regional'!B7,"") -> Huila - Saladoblanco | B8: =IFERROR((VLOOKUP(A8,'Información municipios'!$E$3:$I$1124,5,FALSE)),"") -> 1 | C8: =IFERROR(VLOOKUP(A8,'Información municipios'!$E$3:$F$1124,2,0)*((1+1.75%)^('Datos de entrada'!$B$5-2019)),"") -> 12567.34962 | D8: 1
A9: =IF('Municipios Proyecto Regional'!B8<>0,'Municipios Proyecto Regional'!B8,"") -> Huila - San Agustín | B9: =IFERROR((VLOOKUP(A9,'Información municipios'!$E$3:$I$1124,5,FALSE)),"") -> 1 | C9: =IFERROR(VLOOKUP(A9,'Información municipios'!$E$3:$F$1124,2,0)*((1+1.75%)^('Datos de entrada'!$B$5-2019)),"") -> 35942.83061 | D9: 1
A10: =IF('Municipios Proyecto Regional'!B9<>0,'Municipios Proyecto Regional'!B9,"") -> Huila - Timaná | B10: =IFERROR((VLOOKUP(A10,'Información municipios'!$E$3:$I$1124,5,FALSE)),"") -> 1 | C10: =IFERROR(VLOOKUP(A10,'Información municipios'!$E$3:$F$1124,2,0)*((1+1.75%)^('Datos de entrada'!$B$5-2019)),"") -> 21556.21755 | D10: 1
A11: =IF('Municipios Proyecto Regional'!B10<>0,'Municipios Proyecto Regional'!B10,"") ->  | B11: =IFERROR((VLOOKUP(A11,'Información municipios'!$E$3:$I$1124,5,FALSE)),"") ->  | C11: =IFERROR(VLOOKUP(A11,'Información municipios'!$E$3:$F$1124,2,0)*((1+1.75%)^('Datos de entrada'!$B$5-2019)),"") ->  | D11: 0
A12: =IF('Municipios Proyecto Regional'!B11<>0,'Municipios Proyecto Regional'!B11,"") ->  | B12: =IFERROR((VLOOKUP(A12,'Información municipios'!$E$3:$I$1124,5,FALSE)),"") ->  | C12: =IFERROR(VLOOKUP(A12,'Información municipios'!$E$3:$F$1124,2,0)*((1+1.75%)^('Datos de entrada'!$B$5-2019)),"") ->  | D12: 0
A13: =IF('Municipios Proyecto Regional'!B12<>0,'Municipios Proyecto Regional'!B12,"") ->  | B13: =IFERROR((VLOOKUP(A13,'Información municipios'!$E$3:$I$1124,5,FALSE)),"") ->  | C13: =IFERROR(VLOOKUP(A13,'Información municipios'!$E$3:$F$1124,2,0)*((1+1.75%)^('Datos de entrada'!$B$5-2019)),"") ->  | D13: 0
A14: =IF('Municipios Proyecto Regional'!B13<>0,'Municipios Proyecto Regional'!B13,"") ->  | B14: =IFERROR((VLOOKUP(A14,'Información municipios'!$E$3:$I$1124,5,FALSE)),"") ->  | C14: =IFERROR(VLOOKUP(A14,'Información municipios'!$E$3:$F$1124,2,0)*((1+1.75%)^('Datos de entrada'!$B$5-2019)),"") ->  | D14: 0
A15: =IF('Municipios Proyecto Regional'!B14<>0,'Municipios Proyecto Regional'!B14,"") ->  | B15: =IFERROR((VLOOKUP(A15,'Información municipios'!$E$3:$I$1124,5,FALSE)),"") ->  | C15: =IFERROR(VLOOKUP(A15,'Información municipios'!$E$3:$F$1124,2,0)*((1+1.75%)^('Datos de entrada'!$B$5-2019)),"") ->  | D15: 0
A16: =IF('Municipios Proyecto Regional'!B15<>0,'Municipios Proyecto Regional'!B15,"") ->  | B16: =IFERROR((VLOOKUP(A16,'Información municipios'!$E$3:$I$1124,5,FALSE)),"") ->  | C16: =IFERROR(VLOOKUP(A16,'Información municipios'!$E$3:$F$1124,2,0)*((1+1.75%)^('Datos de entrada'!$B$5-2019)),"") ->  | D16: 0
A17: =IF('Municipios Proyecto Regional'!B16<>0,'Municipios Proyecto Regional'!B16,"") ->  | B17: =IFERROR((VLOOKUP(A17,'Información municipios'!$E$3:$I$1124,5,FALSE)),"") ->  | C17: =IFERROR(VLOOKUP(A17,'Información municipios'!$E$3:$F$1124,2,0)*((1+1.75%)^('Datos de entrada'!$B$5-2019)),"") ->  | D17: 0
A18: =IF('Municipios Proyecto Regional'!B17<>0,'Municipios Proyecto Regional'!B17,"") ->  | B18: =IFERROR((VLOOKUP(A18,'Información municipios'!$E$3:$I$1124,5,FALSE)),"") ->  | C18: =IFERROR(VLOOKUP(A18,'Información municipios'!$E$3:$F$1124,2,0)*((1+1.75%)^('Datos de entrada'!$B$5-2019)),"") ->  | D18: 0
A19: =IF('Municipios Proyecto Regional'!B18<>0,'Municipios Proyecto Regional'!B18,"") ->  | B19: =IFERROR((VLOOKUP(A19,'Información municipios'!$E$3:$I$1124,5,FALSE)),"") ->  | C19: =IFERROR(VLOOKUP(A19,'Información municipios'!$E$3:$F$1124,2,0)*((1+1.75%)^('Datos de entrada'!$B$5-2019)),"") ->  | D19: 0
A20: =IF('Municipios Proyecto Regional'!B19<>0,'Municipios Proyecto Regional'!B19,"") ->  | B20: =IFERROR((VLOOKUP(A20,'Información municipios'!$E$3:$I$1124,5,FALSE)),"") ->  | C20: =IFERROR(VLOOKUP(A20,'Información municipios'!$E$3:$F$1124,2,0)*((1+1.75%)^('Datos de entrada'!$B$5-2019)),"") ->  | D20: 0
A21: =IF('Municipios Proyecto Regional'!B20<>0,'Municipios Proyecto Regional'!B20,"") ->  | B21: =IFERROR((VLOOKUP(A21,'Información municipios'!$E$3:$I$1124,5,FALSE)),"") ->  | C21: =IFERROR(VLOOKUP(A21,'Información municipios'!$E$3:$F$1124,2,0)*((1+1.75%)^('Datos de entrada'!$B$5-2019)),"") ->  | D21: 0
A22: =IF('Municipios Proyecto Regional'!B21<>0,'Municipios Proyecto Regional'!B21,"") ->  | B22: =IFERROR((VLOOKUP(A22,'Información municipios'!$E$3:$I$1124,5,FALSE)),"") ->  | C22: =IFERROR(VLOOKUP(A22,'Información municipios'!$E$3:$F$1124,2,0)*((1+1.75%)^('Datos de entrada'!$B$5-2019)),"") ->  | D22: 0
A23: =IF('Municipios Proyecto Regional'!B22<>0,'Municipios Proyecto Regional'!B22,"") ->  | B23: =IFERROR((VLOOKUP(A23,'Información municipios'!$E$3:$I$1124,5,FALSE)),"") ->  | C23: =IFERROR(VLOOKUP(A23,'Información municipios'!$E$3:$F$1124,2,0)*((1+1.75%)^('Datos de entrada'!$B$5-2019)),"") ->  | D23: 0
A24: =IF('Municipios Proyecto Regional'!B23<>0,'Municipios Proyecto Regional'!B23,"") ->  | B24: =IFERROR((VLOOKUP(A24,'Información municipios'!$E$3:$I$1124,5,FALSE)),"") ->  | C24: =IFERROR(VLOOKUP(A24,'Información municipios'!$E$3:$F$1124,2,0)*((1+1.75%)^('Datos de entrada'!$B$5-2019)),"") ->  | D24: 0
A25: =IF('Municipios Proyecto Regional'!B24<>0,'Municipios Proyecto Regional'!B24,"") ->  | B25: =IFERROR((VLOOKUP(A25,'Información municipios'!$E$3:$I$1124,5,FALSE)),"") ->  | C25: =IFERROR(VLOOKUP(A25,'Información municipios'!$E$3:$F$1124,2,0)*((1+1.75%)^('Datos de entrada'!$B$5-2019)),"") ->  | D25: 0
A26: =IF('Municipios Proyecto Regional'!B25<>0,'Municipios Proyecto Regional'!B25,"") ->  | B26: =IFERROR((VLOOKUP(A26,'Información municipios'!$E$3:$I$1124,5,FALSE)),"") ->  | C26: =IFERROR(VLOOKUP(A26,'Información municipios'!$E$3:$F$1124,2,0)*((1+1.75%)^('Datos de entrada'!$B$5-2019)),"") ->  | D26: 0
A27: =IF('Municipios Proyecto Regional'!B26<>0,'Municipios Proyecto Regional'!B26,"") ->  | B27: =IFERROR((VLOOKUP(A27,'Información municipios'!$E$3:$I$1124,5,FALSE)),"") ->  | C27: =IFERROR(VLOOKUP(A27,'Información municipios'!$E$3:$F$1124,2,0)*((1+1.75%)^('Datos de entrada'!$B$5-2019)),"") ->  | D27: 0
A28: =IF('Municipios Proyecto Regional'!B27<>0,'Municipios Proyecto Regional'!B27,"") ->  | B28: =IFERROR((VLOOKUP(A28,'Información municipios'!$E$3:$I$1124,5,FALSE)),"") ->  | C28: =IFERROR(VLOOKUP(A28,'Información municipios'!$E$3:$F$1124,2,0)*((1+1.75%)^('Datos de entrada'!$B$5-2019)),"") ->  | D28: 0
A29: =IF('Municipios Proyecto Regional'!B28<>0,'Municipios Proyecto Regional'!B28,"") ->  | B29: =IFERROR((VLOOKUP(A29,'Información municipios'!$E$3:$I$1124,5,FALSE)),"") ->  | C29: =IFERROR(VLOOKUP(A29,'Información municipios'!$E$3:$F$1124,2,0)*((1+1.75%)^('Datos de entrada'!$B$5-2019)),"") ->  | D29: 0
A30: =IF('Municipios Proyecto Regional'!B29<>0,'Municipios Proyecto Regional'!B29,"") ->  | B30: =IFERROR((VLOOKUP(A30,'Información municipios'!$E$3:$I$1124,5,FALSE)),"") ->  | C30: =IFERROR(VLOOKUP(A30,'Información municipios'!$E$3:$F$1124,2,0)*((1+1.75%)^('Datos de entrada'!$B$5-2019)),"") ->  | D30: 0
A31: =IF('Municipios Proyecto Regional'!B30<>0,'Municipios Proyecto Regional'!B30,"") ->  | B31: =IFERROR((VLOOKUP(A31,'Información municipios'!$E$3:$I$1124,5,FALSE)),"") ->  | C31: =IFERROR(VLOOKUP(A31,'Información municipios'!$E$3:$F$1124,2,0)*((1+1.75%)^('Datos de entrada'!$B$5-2019)),"") ->  | D31: 0
A32: =IF('Municipios Proyecto Regional'!B31<>0,'Municipios Proyecto Regional'!B31,"") ->  | B32: =IFERROR((VLOOKUP(A32,'Información municipios'!$E$3:$I$1124,5,FALSE)),"") ->  | C32: =IFERROR(VLOOKUP(A32,'Información municipios'!$E$3:$F$1124,2,0)*((1+1.75%)^('Datos de entrada'!$B$5-2019)),"") ->  | D32: 0
A33: =IF('Municipios Proyecto Regional'!B32<>0,'Municipios Proyecto Regional'!B32,"") ->  | B33: =IFERROR((VLOOKUP(A33,'Información municipios'!$E$3:$I$1124,5,FALSE)),"") ->  | C33: =IFERROR(VLOOKUP(A33,'Información municipios'!$E$3:$F$1124,2,0)*((1+1.75%)^('Datos de entrada'!$B$5-2019)),"") ->  | D33: 0
A34: =IF('Municipios Proyecto Regional'!B33<>0,'Municipios Proyecto Regional'!B33,"") ->  | B34: =IFERROR((VLOOKUP(A34,'Información municipios'!$E$3:$I$1124,5,FALSE)),"") ->  | C34: =IFERROR(VLOOKUP(A34,'Información municipios'!$E$3:$F$1124,2,0)*((1+1.75%)^('Datos de entrada'!$B$5-2019)),"") ->  | D34: 0
A35: =IF('Municipios Proyecto Regional'!B34<>0,'Municipios Proyecto Regional'!B34,"") ->  | B35: =IFERROR((VLOOKUP(A35,'Información municipios'!$E$3:$I$1124,5,FALSE)),"") ->  | C35: =IFERROR(VLOOKUP(A35,'Información municipios'!$E$3:$F$1124,2,0)*((1+1.75%)^('Datos de entrada'!$B$5-2019)),"") ->  | D35: 0
A36: =IF('Municipios Proyecto Regional'!B35<>0,'Municipios Proyecto Regional'!B35,"") ->  | B36: =IFERROR((VLOOKUP(A36,'Información municipios'!$E$3:$I$1124,5,FALSE)),"") ->  | C36: =IFERROR(VLOOKUP(A36,'Información municipios'!$E$3:$F$1124,2,0)*((1+1.75%)^('Datos de entrada'!$B$5-2019)),"") ->  | D36: 0
A37: =IF('Municipios Proyecto Regional'!B36<>0,'Municipios Proyecto Regional'!B36,"") ->  | B37: =IFERROR((VLOOKUP(A37,'Información municipios'!$E$3:$I$1124,5,FALSE)),"") ->  | C37: =IFERROR(VLOOKUP(A37,'Información municipios'!$E$3:$F$1124,2,0)*((1+1.75%)^('Datos de entrada'!$B$5-2019)),"") ->  | D37: 0
A38: =IF('Municipios Proyecto Regional'!B37<>0,'Municipios Proyecto Regional'!B37,"") ->  | B38: =IFERROR((VLOOKUP(A38,'Información municipios'!$E$3:$I$1124,5,FALSE)),"") ->  | C38: =IFERROR(VLOOKUP(A38,'Información municipios'!$E$3:$F$1124,2,0)*((1+1.75%)^('Datos de entrada'!$B$5-2019)),"") ->  | D38: 0
A39: =IF('Municipios Proyecto Regional'!B38<>0,'Municipios Proyecto Regional'!B38,"") ->  | B39: =IFERROR((VLOOKUP(A39,'Información municipios'!$E$3:$I$1124,5,FALSE)),"") ->  | C39: =IFERROR(VLOOKUP(A39,'Información municipios'!$E$3:$F$1124,2,0)*((1+1.75%)^('Datos de entrada'!$B$5-2019)),"") ->  | D39: 0
A40: =IF('Municipios Proyecto Regional'!B39<>0,'Municipios Proyecto Regional'!B39,"") ->  | B40: =IFERROR((VLOOKUP(A40,'Información municipios'!$E$3:$I$1124,5,FALSE)),"") ->  | C40: =IFERROR(VLOOKUP(A40,'Información municipios'!$E$3:$F$1124,2,0)*((1+1.75%)^('Datos de entrada'!$B$5-2019)),"") ->  | D40: 0
A41: =IF('Municipios Proyecto Regional'!B40<>0,'Municipios Proyecto Regional'!B40,"") ->  | B41: =IFERROR((VLOOKUP(A41,'Información municipios'!$E$3:$I$1124,5,FALSE)),"") ->  | C41: =IFERROR(VLOOKUP(A41,'Información municipios'!$E$3:$F$1124,2,0)*((1+1.75%)^('Datos de entrada'!$B$5-2019)),"") ->  | D41: 0
A42: =IF('Municipios Proyecto Regional'!B41<>0,'Municipios Proyecto Regional'!B41,"") ->  | B42: =IFERROR((VLOOKUP(A42,'Información municipios'!$E$3:$I$1124,5,FALSE)),"") ->  | C42: =IFERROR(VLOOKUP(A42,'Información municipios'!$E$3:$F$1124,2,0)*((1+1.75%)^('Datos de entrada'!$B$5-2019)),"") ->  | D42: 0
A43: =IF('Municipios Proyecto Regional'!B42<>0,'Municipios Proyecto Regional'!B42,"") ->  | B43: =IFERROR((VLOOKUP(A43,'Información municipios'!$E$3:$I$1124,5,FALSE)),"") ->  | C43: =IFERROR(VLOOKUP(A43,'Información municipios'!$E$3:$F$1124,2,0)*((1+1.75%)^('Datos de entrada'!$B$5-2019)),"") ->  | D43: 0
A44: =IF('Municipios Proyecto Regional'!B43<>0,'Municipios Proyecto Regional'!B43,"") ->  | B44: =IFERROR((VLOOKUP(A44,'Información municipios'!$E$3:$I$1124,5,FALSE)),"") ->  | C44: =IFERROR(VLOOKUP(A44,'Información municipios'!$E$3:$F$1124,2,0)*((1+1.75%)^('Datos de entrada'!$B$5-2019)),"") ->  | D44: 0
A45: =IF('Municipios Proyecto Regional'!B44<>0,'Municipios Proyecto Regional'!B44,"") ->  | B45: =IFERROR((VLOOKUP(A45,'Información municipios'!$E$3:$I$1124,5,FALSE)),"") ->  | C45: =IFERROR(VLOOKUP(A45,'Información municipios'!$E$3:$F$1124,2,0)*((1+1.75%)^('Datos de entrada'!$B$5-2019)),"") ->  | D45: 0
A46: =IF('Municipios Proyecto Regional'!B45<>0,'Municipios Proyecto Regional'!B45,"") ->  | B46: =IFERROR((VLOOKUP(A46,'Información municipios'!$E$3:$I$1124,5,FALSE)),"") ->  | C46: =IFERROR(VLOOKUP(A46,'Información municipios'!$E$3:$F$1124,2,0)*((1+1.75%)^('Datos de entrada'!$B$5-2019)),"") ->  | D46: 0
A47: =IF('Municipios Proyecto Regional'!B46<>0,'Municipios Proyecto Regional'!B46,"") ->  | B47: =IFERROR((VLOOKUP(A47,'Información municipios'!$E$3:$I$1124,5,FALSE)),"") ->  | C47: =IFERROR(VLOOKUP(A47,'Información municipios'!$E$3:$F$1124,2,0)*((1+1.75%)^('Datos de entrada'!$B$5-2019)),"") ->  | D47: 0
A48: =IF('Municipios Proyecto Regional'!B47<>0,'Municipios Proyecto Regional'!B47,"") ->  | B48: =IFERROR((VLOOKUP(A48,'Información municipios'!$E$3:$I$1124,5,FALSE)),"") ->  | C48: =IFERROR(VLOOKUP(A48,'Información municipios'!$E$3:$F$1124,2,0)*((1+1.75%)^('Datos de entrada'!$B$5-2019)),"") ->  | D48: 0
A49: =IF('Municipios Proyecto Regional'!B48<>0,'Municipios Proyecto Regional'!B48,"") ->  | B49: =IFERROR((VLOOKUP(A49,'Información municipios'!$E$3:$I$1124,5,FALSE)),"") ->  | C49: =IFERROR(VLOOKUP(A49,'Información municipios'!$E$3:$F$1124,2,0)*((1+1.75%)^('Datos de entrada'!$B$5-2019)),"") ->  | D49: 0
A50: =IF('Municipios Proyecto Regional'!B49<>0,'Municipios Proyecto Regional'!B49,"") ->  | B50: =IFERROR((VLOOKUP(A50,'Información municipios'!$E$3:$I$1124,5,FALSE)),"") ->  | C50: =IFERROR(VLOOKUP(A50,'Información municipios'!$E$3:$F$1124,2,0)*((1+1.75%)^('Datos de entrada'!$B$5-2019)),"") ->  | D50: 0
A51: =IF('Municipios Proyecto Regional'!B50<>0,'Municipios Proyecto Regional'!B50,"") ->  | B51: =IFERROR((VLOOKUP(A51,'Información municipios'!$E$3:$I$1124,5,FALSE)),"") ->  | C51: =IFERROR(VLOOKUP(A51,'Información municipios'!$E$3:$F$1124,2,0)*((1+1.75%)^('Datos de entrada'!$B$5-2019)),"") ->  | D51: 0
A52: =IF('Municipios Proyecto Regional'!B51<>0,'Municipios Proyecto Regional'!B51,"") ->  | B52: =IFERROR((VLOOKUP(A52,'Información municipios'!$E$3:$I$1124,5,FALSE)),"") ->  | C52: =IFERROR(VLOOKUP(A52,'Información municipios'!$E$3:$F$1124,2,0)*((1+1.75%)^('Datos de entrada'!$B$5-2019)),"") ->  | D52: 0
A53: =IF('Municipios Proyecto Regional'!B52<>0,'Municipios Proyecto Regional'!B52,"") ->  | B53: =IFERROR((VLOOKUP(A53,'Información municipios'!$E$3:$I$1124,5,FALSE)),"") ->  | C53: =IFERROR(VLOOKUP(A53,'Información municipios'!$E$3:$F$1124,2,0)*((1+1.75%)^('Datos de entrada'!$B$5-2019)),"") ->  | D53: 0
A54: =IF('Municipios Proyecto Regional'!B53<>0,'Municipios Proyecto Regional'!B53,"") ->  | B54: =IFERROR((VLOOKUP(A54,'Información municipios'!$E$3:$I$1124,5,FALSE)),"") ->  | C54: =IFERROR(VLOOKUP(A54,'Información municipios'!$E$3:$F$1124,2,0)*((1+1.75%)^('Datos de entrada'!$B$5-2019)),"") ->  | D54: 0
A55: =IF('Municipios Proyecto Regional'!B54<>0,'Municipios Proyecto Regional'!B54,"") ->  | B55: =IFERROR((VLOOKUP(A55,'Información municipios'!$E$3:$I$1124,5,FALSE)),"") ->  | C55: =IFERROR(VLOOKUP(A55,'Información municipios'!$E$3:$F$1124,2,0)*((1+1.75%)^('Datos de entrada'!$B$5-2019)),"") ->  | D55: 0
A56: =IF('Municipios Proyecto Regional'!B55<>0,'Municipios Proyecto Regional'!B55,"") ->  | B56: =IFERROR((VLOOKUP(A56,'Información municipios'!$E$3:$I$1124,5,FALSE)),"") ->  | C56: =IFERROR(VLOOKUP(A56,'Información municipios'!$E$3:$F$1124,2,0)*((1+1.75%)^('Datos de entrada'!$B$5-2019)),"") ->  | D56: 0
A57: =IF('Municipios Proyecto Regional'!B56<>0,'Municipios Proyecto Regional'!B56,"") ->  | B57: =IFERROR((VLOOKUP(A57,'Información municipios'!$E$3:$I$1124,5,FALSE)),"") ->  | C57: =IFERROR(VLOOKUP(A57,'Información municipios'!$E$3:$F$1124,2,0)*((1+1.75%)^('Datos de entrada'!$B$5-2019)),"") ->  | D57: 0
A58: =IF('Municipios Proyecto Regional'!B57<>0,'Municipios Proyecto Regional'!B57,"") ->  | B58: =IFERROR((VLOOKUP(A58,'Información municipios'!$E$3:$I$1124,5,FALSE)),"") ->  | C58: =IFERROR(VLOOKUP(A58,'Información municipios'!$E$3:$F$1124,2,0)*((1+1.75%)^('Datos de entrada'!$B$5-2019)),"") ->  | D58: 0
A59: =IF('Municipios Proyecto Regional'!B58<>0,'Municipios Proyecto Regional'!B58,"") ->  | B59: =IFERROR((VLOOKUP(A59,'Información municipios'!$E$3:$I$1124,5,FALSE)),"") ->  | C59: =IFERROR(VLOOKUP(A59,'Información municipios'!$E$3:$F$1124,2,0)*((1+1.75%)^('Datos de entrada'!$B$5-2019)),"") ->  | D59: 0
A60: =IF('Municipios Proyecto Regional'!B59<>0,'Municipios Proyecto Regional'!B59,"") ->  | B60: =IFERROR((VLOOKUP(A60,'Información municipios'!$E$3:$I$1124,5,FALSE)),"") ->  | C60: =IFERROR(VLOOKUP(A60,'Información municipios'!$E$3:$F$1124,2,0)*((1+1.75%)^('Datos de entrada'!$B$5-2019)),"") ->  | D60: 0
A61: =IF('Municipios Proyecto Regional'!B60<>0,'Municipios Proyecto Regional'!B60,"") ->  | B61: =IFERROR((VLOOKUP(A61,'Información municipios'!$E$3:$I$1124,5,FALSE)),"") ->  | C61: =IFERROR(VLOOKUP(A61,'Información municipios'!$E$3:$F$1124,2,0)*((1+1.75%)^('Datos de entrada'!$B$5-2019)),"") ->  | D61: 0
A62: =IF('Municipios Proyecto Regional'!B61<>0,'Municipios Proyecto Regional'!B61,"") ->  | B62: =IFERROR((VLOOKUP(A62,'Información municipios'!$E$3:$I$1124,5,FALSE)),"") ->  | C62: =IFERROR(VLOOKUP(A62,'Información municipios'!$E$3:$F$1124,2,0)*((1+1.75%)^('Datos de entrada'!$B$5-2019)),"") ->  | D62: 0
A63: =IF('Municipios Proyecto Regional'!B62<>0,'Municipios Proyecto Regional'!B62,"") ->  | B63: =IFERROR((VLOOKUP(A63,'Información municipios'!$E$3:$I$1124,5,FALSE)),"") ->  | C63: =IFERROR(VLOOKUP(A63,'Información municipios'!$E$3:$F$1124,2,0)*((1+1.75%)^('Datos de entrada'!$B$5-2019)),"") ->  | D63: 0
A64: =IF('Municipios Proyecto Regional'!B63<>0,'Municipios Proyecto Regional'!B63,"") ->  | B64: =IFERROR((VLOOKUP(A64,'Información municipios'!$E$3:$I$1124,5,FALSE)),"") ->  | C64: =IFERROR(VLOOKUP(A64,'Información municipios'!$E$3:$F$1124,2,0)*((1+1.75%)^('Datos de entrada'!$B$5-2019)),"") ->  | D64: 0
A65: =IF('Municipios Proyecto Regional'!B64<>0,'Municipios Proyecto Regional'!B64,"") ->  | B65: =IFERROR((VLOOKUP(A65,'Información municipios'!$E$3:$I$1124,5,FALSE)),"") ->  | C65: =IFERROR(VLOOKUP(A65,'Información municipios'!$E$3:$F$1124,2,0)*((1+1.75%)^('Datos de entrada'!$B$5-2019)),"") ->  | D65: 0
A66: =IF('Municipios Proyecto Regional'!B65<>0,'Municipios Proyecto Regional'!B65,"") ->  | B66: =IFERROR((VLOOKUP(A66,'Información municipios'!$E$3:$I$1124,5,FALSE)),"") ->  | C66: =IFERROR(VLOOKUP(A66,'Información municipios'!$E$3:$F$1124,2,0)*((1+1.75%)^('Datos de entrada'!$B$5-2019)),"") ->  | D66: 0
A67: =IF('Municipios Proyecto Regional'!B66<>0,'Municipios Proyecto Regional'!B66,"") ->  | B67: =IFERROR((VLOOKUP(A67,'Información municipios'!$E$3:$I$1124,5,FALSE)),"") ->  | C67: =IFERROR(VLOOKUP(A67,'Información municipios'!$E$3:$F$1124,2,0)*((1+1.75%)^('Datos de entrada'!$B$5-2019)),"") ->  | D67: =IFERROR(B67*1,0) -> 0
A68: =IF('Municipios Proyecto Regional'!B67<>0,'Municipios Proyecto Regional'!B67,"") ->  | B68: =IFERROR((VLOOKUP(A68,'Información municipios'!$E$3:$I$1124,5,FALSE)),"") ->  | C68: =IFERROR(VLOOKUP(A68,'Información municipios'!$E$3:$F$1124,2,0)*((1+1.75%)^('Datos de entrada'!$B$5-2019)),"") ->  | D68: 0
A69: =IF('Municipios Proyecto Regional'!B68<>0,'Municipios Proyecto Regional'!B68,"") ->  | B69: =IFERROR((VLOOKUP(A69,'Información municipios'!$E$3:$I$1124,5,FALSE)),"") ->  | C69: =IFERROR(VLOOKUP(A69,'Información municipios'!$E$3:$F$1124,2,0)*((1+1.75%)^('Datos de entrada'!$B$5-2019)),"") ->  | D69: 0
A70: =IF('Municipios Proyecto Regional'!B69<>0,'Municipios Proyecto Regional'!B69,"") ->  | B70: =IFERROR((VLOOKUP(A70,'Información municipios'!$E$3:$I$1124,5,FALSE)),"") ->  | C70: =IFERROR(VLOOKUP(A70,'Información municipios'!$E$3:$F$1124,2,0)*((1+1.75%)^('Datos de entrada'!$B$5-2019)),"") ->  | D70: 0
A71: =IF('Municipios Proyecto Regional'!B70<>0,'Municipios Proyecto Regional'!B70,"") ->  | B71: =IFERROR((VLOOKUP(A71,'Información municipios'!$E$3:$I$1124,5,FALSE)),"") ->  | C71: =IFERROR(VLOOKUP(A71,'Información municipios'!$E$3:$F$1124,2,0)*((1+1.75%)^('Datos de entrada'!$B$5-2019)),"") ->  | D71: 0
A72: =IF('Municipios Proyecto Regional'!B71<>0,'Municipios Proyecto Regional'!B71,"") ->  | B72: =IFERROR((VLOOKUP(A72,'Información municipios'!$E$3:$I$1124,5,FALSE)),"") ->  | C72: =IFERROR(VLOOKUP(A72,'Información municipios'!$E$3:$F$1124,2,0)*((1+1.75%)^('Datos de entrada'!$B$5-2019)),"") ->  | D72: 0
A73: =IF('Municipios Proyecto Regional'!B72<>0,'Municipios Proyecto Regional'!B72,"") ->  | B73: =IFERROR((VLOOKUP(A73,'Información municipios'!$E$3:$I$1124,5,FALSE)),"") ->  | C73: =IFERROR(VLOOKUP(A73,'Información municipios'!$E$3:$F$1124,2,0)*((1+1.75%)^('Datos de entrada'!$B$5-2019)),"") ->  | D73: 0
A74: =IF('Municipios Proyecto Regional'!B73<>0,'Municipios Proyecto Regional'!B73,"") ->  | B74: =IFERROR((VLOOKUP(A74,'Información municipios'!$E$3:$I$1124,5,FALSE)),"") ->  | C74: =IFERROR(VLOOKUP(A74,'Información municipios'!$E$3:$F$1124,2,0)*((1+1.75%)^('Datos de entrada'!$B$5-2019)),"") ->  | D74: 0
A75: =IF('Municipios Proyecto Regional'!B74<>0,'Municipios Proyecto Regional'!B74,"") ->  | B75: =IFERROR((VLOOKUP(A75,'Información municipios'!$E$3:$I$1124,5,FALSE)),"") ->  | C75: =IFERROR(VLOOKUP(A75,'Información municipios'!$E$3:$F$1124,2,0)*((1+1.75%)^('Datos de entrada'!$B$5-2019)),"") ->  | D75: 0
A76: =IF('Municipios Proyecto Regional'!B75<>0,'Municipios Proyecto Regional'!B75,"") ->  | B76: =IFERROR((VLOOKUP(A76,'Información municipios'!$E$3:$I$1124,5,FALSE)),"") ->  | C76: =IFERROR(VLOOKUP(A76,'Información municipios'!$E$3:$F$1124,2,0)*((1+1.75%)^('Datos de entrada'!$B$5-2019)),"") ->  | D76: 0
A77: =IF('Municipios Proyecto Regional'!B76<>0,'Municipios Proyecto Regional'!B76,"") ->  | B77: =IFERROR((VLOOKUP(A77,'Información municipios'!$E$3:$I$1124,5,FALSE)),"") ->  | C77: =IFERROR(VLOOKUP(A77,'Información municipios'!$E$3:$F$1124,2,0)*((1+1.75%)^('Datos de entrada'!$B$5-2019)),"") ->  | D77: 0
A78: =IF('Municipios Proyecto Regional'!B77<>0,'Municipios Proyecto Regional'!B77,"") ->  | B78: =IFERROR((VLOOKUP(A78,'Información municipios'!$E$3:$I$1124,5,FALSE)),"") ->  | C78: =IFERROR(VLOOKUP(A78,'Información municipios'!$E$3:$F$1124,2,0)*((1+1.75%)^('Datos de entrada'!$B$5-2019)),"") ->  | D78: 0
A79: =IF('Municipios Proyecto Regional'!B78<>0,'Municipios Proyecto Regional'!B78,"") ->  | B79: =IFERROR((VLOOKUP(A79,'Información municipios'!$E$3:$I$1124,5,FALSE)),"") ->  | C79: =IFERROR(VLOOKUP(A79,'Información municipios'!$E$3:$F$1124,2,0)*((1+1.75%)^('Datos de entrada'!$B$5-2019)),"") ->  | D79: 0
A80: =IF('Municipios Proyecto Regional'!B79<>0,'Municipios Proyecto Regional'!B79,"") ->  | B80: =IFERROR((VLOOKUP(A80,'Información municipios'!$E$3:$I$1124,5,FALSE)),"") ->  | C80: =IFERROR(VLOOKUP(A80,'Información municipios'!$E$3:$F$1124,2,0)*((1+1.75%)^('Datos de entrada'!$B$5-2019)),"") ->  | D80: 0
A81: =IF('Municipios Proyecto Regional'!B80<>0,'Municipios Proyecto Regional'!B80,"") ->  | B81: =IFERROR((VLOOKUP(A81,'Información municipios'!$E$3:$I$1124,5,FALSE)),"") ->  | C81: =IFERROR(VLOOKUP(A81,'Información municipios'!$E$3:$F$1124,2,0)*((1+1.75%)^('Datos de entrada'!$B$5-2019)),"") ->  | D81: 0
A82: =IF('Municipios Proyecto Regional'!B81<>0,'Municipios Proyecto Regional'!B81,"") ->  | B82: =IFERROR((VLOOKUP(A82,'Información municipios'!$E$3:$I$1124,5,FALSE)),"") ->  | C82: =IFERROR(VLOOKUP(A82,'Información municipios'!$E$3:$F$1124,2,0)*((1+1.75%)^('Datos de entrada'!$B$5-2019)),"") ->  | D82: 0
A83: =IF('Municipios Proyecto Regional'!B82<>0,'Municipios Proyecto Regional'!B82,"") ->  | B83: =IFERROR((VLOOKUP(A83,'Información municipios'!$E$3:$I$1124,5,FALSE)),"") ->  | C83: =IFERROR(VLOOKUP(A83,'Información municipios'!$E$3:$F$1124,2,0)*((1+1.75%)^('Datos de entrada'!$B$5-2019)),"") ->  | D83: 0
A84: =IF('Municipios Proyecto Regional'!B83<>0,'Municipios Proyecto Regional'!B83,"") ->  | B84: =IFERROR((VLOOKUP(A84,'Información municipios'!$E$3:$I$1124,5,FALSE)),"") ->  | C84: =IFERROR(VLOOKUP(A84,'Información municipios'!$E$3:$F$1124,2,0)*((1+1.75%)^('Datos de entrada'!$B$5-2019)),"") ->  | D84: 0
A85: =IF('Municipios Proyecto Regional'!B84<>0,'Municipios Proyecto Regional'!B84,"") ->  | B85: =IFERROR((VLOOKUP(A85,'Información municipios'!$E$3:$I$1124,5,FALSE)),"") ->  | C85: =IFERROR(VLOOKUP(A85,'Información municipios'!$E$3:$F$1124,2,0)*((1+1.75%)^('Datos de entrada'!$B$5-2019)),"") ->  | D85: 0
A86: =IF('Municipios Proyecto Regional'!B85<>0,'Municipios Proyecto Regional'!B85,"") ->  | B86: =IFERROR((VLOOKUP(A86,'Información municipios'!$E$3:$I$1124,5,FALSE)),"") ->  | C86: =IFERROR(VLOOKUP(A86,'Información municipios'!$E$3:$F$1124,2,0)*((1+1.75%)^('Datos de entrada'!$B$5-2019)),"") ->  | D86: 0
A87: =IF('Municipios Proyecto Regional'!B86<>0,'Municipios Proyecto Regional'!B86,"") ->  | B87: =IFERROR((VLOOKUP(A87,'Información municipios'!$E$3:$I$1124,5,FALSE)),"") ->  | C87: =IFERROR(VLOOKUP(A87,'Información municipios'!$E$3:$F$1124,2,0)*((1+1.75%)^('Datos de entrada'!$B$5-2019)),"") ->  | D87: 0
A88: =IF('Municipios Proyecto Regional'!B87<>0,'Municipios Proyecto Regional'!B87,"") ->  | B88: =IFERROR((VLOOKUP(A88,'Información municipios'!$E$3:$I$1124,5,FALSE)),"") ->  | C88: =IFERROR(VLOOKUP(A88,'Información municipios'!$E$3:$F$1124,2,0)*((1+1.75%)^('Datos de entrada'!$B$5-2019)),"") ->  | D88: 0
A89: =IF('Municipios Proyecto Regional'!B88<>0,'Municipios Proyecto Regional'!B88,"") ->  | B89: =IFERROR((VLOOKUP(A89,'Información municipios'!$E$3:$I$1124,5,FALSE)),"") ->  | C89: =IFERROR(VLOOKUP(A89,'Información municipios'!$E$3:$F$1124,2,0)*((1+1.75%)^('Datos de entrada'!$B$5-2019)),"") ->  | D89: 0
A90: =IF('Municipios Proyecto Regional'!B89<>0,'Municipios Proyecto Regional'!B89,"") ->  | B90: =IFERROR((VLOOKUP(A90,'Información municipios'!$E$3:$I$1124,5,FALSE)),"") ->  | C90: =IFERROR(VLOOKUP(A90,'Información municipios'!$E$3:$F$1124,2,0)*((1+1.75%)^('Datos de entrada'!$B$5-2019)),"") ->  | D90: 0
A91: =IF('Municipios Proyecto Regional'!B90<>0,'Municipios Proyecto Regional'!B90,"") ->  | B91: =IFERROR((VLOOKUP(A91,'Información municipios'!$E$3:$I$1124,5,FALSE)),"") ->  | C91: =IFERROR(VLOOKUP(A91,'Información municipios'!$E$3:$F$1124,2,0)*((1+1.75%)^('Datos de entrada'!$B$5-2019)),"") ->  | D91: 0
A92: =IF('Municipios Proyecto Regional'!B91<>0,'Municipios Proyecto Regional'!B91,"") ->  | B92: =IFERROR((VLOOKUP(A92,'Información municipios'!$E$3:$I$1124,5,FALSE)),"") ->  | C92: =IFERROR(VLOOKUP(A92,'Información municipios'!$E$3:$F$1124,2,0)*((1+1.75%)^('Datos de entrada'!$B$5-2019)),"") ->  | D92: 0
A93: =IF('Municipios Proyecto Regional'!B92<>0,'Municipios Proyecto Regional'!B92,"") ->  | B93: =IFERROR((VLOOKUP(A93,'Información municipios'!$E$3:$I$1124,5,FALSE)),"") ->  | C93: =IFERROR(VLOOKUP(A93,'Información municipios'!$E$3:$F$1124,2,0)*((1+1.75%)^('Datos de entrada'!$B$5-2019)),"") ->  | D93: 0
A94: =IF('Municipios Proyecto Regional'!B93<>0,'Municipios Proyecto Regional'!B93,"") ->  | B94: =IFERROR((VLOOKUP(A94,'Información municipios'!$E$3:$I$1124,5,FALSE)),"") ->  | C94: =IFERROR(VLOOKUP(A94,'Información municipios'!$E$3:$F$1124,2,0)*((1+1.75%)^('Datos de entrada'!$B$5-2019)),"") ->  | D94: 0
A95: =IF('Municipios Proyecto Regional'!B94<>0,'Municipios Proyecto Regional'!B94,"") ->  | B95: =IFERROR((VLOOKUP(A95,'Información municipios'!$E$3:$I$1124,5,FALSE)),"") ->  | C95: =IFERROR(VLOOKUP(A95,'Información municipios'!$E$3:$F$1124,2,0)*((1+1.75%)^('Datos de entrada'!$B$5-2019)),"") ->  | D95: 0
A96: =IF('Municipios Proyecto Regional'!B95<>0,'Municipios Proyecto Regional'!B95,"") ->  | B96: =IFERROR((VLOOKUP(A96,'Información municipios'!$E$3:$I$1124,5,FALSE)),"") ->  | C96: =IFERROR(VLOOKUP(A96,'Información municipios'!$E$3:$F$1124,2,0)*((1+1.75%)^('Datos de entrada'!$B$5-2019)),"") ->  | D96: 0
A97: =IF('Municipios Proyecto Regional'!B96<>0,'Municipios Proyecto Regional'!B96,"") ->  | B97: =IFERROR((VLOOKUP(A97,'Información municipios'!$E$3:$I$1124,5,FALSE)),"") ->  | C97: =IFERROR(VLOOKUP(A97,'Información municipios'!$E$3:$F$1124,2,0)*((1+1.75%)^('Datos de entrada'!$B$5-2019)),"") ->  | D97: 0
A98: =IF('Municipios Proyecto Regional'!B97<>0,'Municipios Proyecto Regional'!B97,"") ->  | B98: =IFERROR((VLOOKUP(A98,'Información municipios'!$E$3:$I$1124,5,FALSE)),"") ->  | C98: =IFERROR(VLOOKUP(A98,'Información municipios'!$E$3:$F$1124,2,0)*((1+1.75%)^('Datos de entrada'!$B$5-2019)),"") ->  | D98: 0
A99: =IF('Municipios Proyecto Regional'!B98<>0,'Municipios Proyecto Regional'!B98,"") ->  | B99: =IFERROR((VLOOKUP(A99,'Información municipios'!$E$3:$I$1124,5,FALSE)),"") ->  | C99: =IFERROR(VLOOKUP(A99,'Información municipios'!$E$3:$F$1124,2,0)*((1+1.75%)^('Datos de entrada'!$B$5-2019)),"") ->  | D99: 0
A100: =IF('Municipios Proyecto Regional'!B99<>0,'Municipios Proyecto Regional'!B99,"") ->  | B100: =IFERROR((VLOOKUP(A100,'Información municipios'!$E$3:$I$1124,5,FALSE)),"") ->  | C100: =IFERROR(VLOOKUP(A100,'Información municipios'!$E$3:$F$1124,2,0)*((1+1.75%)^('Datos de entrada'!$B$5-2019)),"") ->  | D100: 0
A101: =IF('Municipios Proyecto Regional'!B100<>0,'Municipios Proyecto Regional'!B100,"") ->  | B101: =IFERROR((VLOOKUP(A101,'Información municipios'!$E$3:$I$1124,5,FALSE)),"") ->  | C101: =IFERROR(VLOOKUP(A101,'Información municipios'!$E$3:$F$1124,2,0)*((1+1.75%)^('Datos de entrada'!$B$5-2019)),"") ->  | D101: 0
A102: =IF('Municipios Proyecto Regional'!B101<>0,'Municipios Proyecto Regional'!B101,"") ->  | B102: =IFERROR((VLOOKUP(A102,'Información municipios'!$E$3:$I$1124,5,FALSE)),"") ->  | C102: =IFERROR(VLOOKUP(A102,'Información municipios'!$E$3:$F$1124,2,0)*((1+1.75%)^('Datos de entrada'!$B$5-2019)),"") ->  | D102: 0
A103: =IF('Municipios Proyecto Regional'!B102<>0,'Municipios Proyecto Regional'!B102,"") ->  | B103: =IFERROR((VLOOKUP(A103,'Información municipios'!$E$3:$I$1124,5,FALSE)),"") ->  | C103: =IFERROR(VLOOKUP(A103,'Información municipios'!$E$3:$F$1124,2,0)*((1+1.75%)^('Datos de entrada'!$B$5-2019)),"") ->  | D103: 0
A104: =IF('Municipios Proyecto Regional'!B103<>0,'Municipios Proyecto Regional'!B103,"") ->  | B104: =IFERROR((VLOOKUP(A104,'Información municipios'!$E$3:$I$1124,5,FALSE)),"") ->  | C104: =IFERROR(VLOOKUP(A104,'Información municipios'!$E$3:$F$1124,2,0)*((1+1.75%)^('Datos de entrada'!$B$5-2019)),"") ->  | D104: 0
A105: =IF('Municipios Proyecto Regional'!B104<>0,'Municipios Proyecto Regional'!B104,"") ->  | B105: =IFERROR((VLOOKUP(A105,'Información municipios'!$E$3:$I$1124,5,FALSE)),"") ->  | C105: =IFERROR(VLOOKUP(A105,'Información municipios'!$E$3:$F$1124,2,0)*((1+1.75%)^('Datos de entrada'!$B$5-2019)),"") ->  | D105: 0
A106: =IF('Municipios Proyecto Regional'!B105<>0,'Municipios Proyecto Regional'!B105,"") ->  | B106: =IFERROR((VLOOKUP(A106,'Información municipios'!$E$3:$I$1124,5,FALSE)),"") ->  | C106: =IFERROR(VLOOKUP(A106,'Información municipios'!$E$3:$F$1124,2,0)*((1+1.75%)^('Datos de entrada'!$B$5-2019)),"") ->  | D106: 0
A107: =IF('Municipios Proyecto Regional'!B106<>0,'Municipios Proyecto Regional'!B106,"") ->  | B107: =IFERROR((VLOOKUP(A107,'Información municipios'!$E$3:$I$1124,5,FALSE)),"") ->  | C107: =IFERROR(VLOOKUP(A107,'Información municipios'!$E$3:$F$1124,2,0)*((1+1.75%)^('Datos de entrada'!$B$5-2019)),"") ->  | D107: 0
A108: =IF('Municipios Proyecto Regional'!B107<>0,'Municipios Proyecto Regional'!B107,"") ->  | B108: =IFERROR((VLOOKUP(A108,'Información municipios'!$E$3:$I$1124,5,FALSE)),"") ->  | C108: =IFERROR(VLOOKUP(A108,'Información municipios'!$E$3:$F$1124,2,0)*((1+1.75%)^('Datos de entrada'!$B$5-2019)),"") ->  | D108: 0
A109: =IF('Municipios Proyecto Regional'!B108<>0,'Municipios Proyecto Regional'!B108,"") ->  | B109: =IFERROR((VLOOKUP(A109,'Información municipios'!$E$3:$I$1124,5,FALSE)),"") ->  | C109: =IFERROR(VLOOKUP(A109,'Información municipios'!$E$3:$F$1124,2,0)*((1+1.75%)^('Datos de entrada'!$B$5-2019)),"") ->  | D109: 0
A110: =IF('Municipios Proyecto Regional'!B109<>0,'Municipios Proyecto Regional'!B109,"") ->  | B110: =IFERROR((VLOOKUP(A110,'Información municipios'!$E$3:$I$1124,5,FALSE)),"") ->  | C110: =IFERROR(VLOOKUP(A110,'Información municipios'!$E$3:$F$1124,2,0)*((1+1.75%)^('Datos de entrada'!$B$5-2019)),"") ->  | D110: 0
A111: =IF('Municipios Proyecto Regional'!B110<>0,'Municipios Proyecto Regional'!B110,"") ->  | B111: =IFERROR((VLOOKUP(A111,'Información municipios'!$E$3:$I$1124,5,FALSE)),"") ->  | C111: =IFERROR(VLOOKUP(A111,'Información municipios'!$E$3:$F$1124,2,0)*((1+1.75%)^('Datos de entrada'!$B$5-2019)),"") ->  | D111: 0
A112: =IF('Municipios Proyecto Regional'!B111<>0,'Municipios Proyecto Regional'!B111,"") ->  | B112: =IFERROR((VLOOKUP(A112,'Información municipios'!$E$3:$I$1124,5,FALSE)),"") ->  | C112: =IFERROR(VLOOKUP(A112,'Información municipios'!$E$3:$F$1124,2,0)*((1+1.75%)^('Datos de entrada'!$B$5-2019)),"") ->  | D112: 0
A113: =IF('Municipios Proyecto Regional'!B112<>0,'Municipios Proyecto Regional'!B112,"") ->  | B113: =IFERROR((VLOOKUP(A113,'Información municipios'!$E$3:$I$1124,5,FALSE)),"") ->  | C113: =IFERROR(VLOOKUP(A113,'Información municipios'!$E$3:$F$1124,2,0)*((1+1.75%)^('Datos de entrada'!$B$5-2019)),"") ->  | D113: 0
A114: =IF('Municipios Proyecto Regional'!B113<>0,'Municipios Proyecto Regional'!B113,"") ->  | B114: =IFERROR((VLOOKUP(A114,'Información municipios'!$E$3:$I$1124,5,FALSE)),"") ->  | C114: =IFERROR(VLOOKUP(A114,'Información municipios'!$E$3:$F$1124,2,0)*((1+1.75%)^('Datos de entrada'!$B$5-2019)),"") ->  | D114: 0
A115: =IF('Municipios Proyecto Regional'!B114<>0,'Municipios Proyecto Regional'!B114,"") ->  | B115: =IFERROR((VLOOKUP(A115,'Información municipios'!$E$3:$I$1124,5,FALSE)),"") ->  | C115: =IFERROR(VLOOKUP(A115,'Información municipios'!$E$3:$F$1124,2,0)*((1+1.75%)^('Datos de entrada'!$B$5-2019)),"") ->  | D115: 0
A116: =IF('Municipios Proyecto Regional'!B115<>0,'Municipios Proyecto Regional'!B115,"") ->  | B116: =IFERROR((VLOOKUP(A116,'Información municipios'!$E$3:$I$1124,5,FALSE)),"") ->  | C116: =IFERROR(VLOOKUP(A116,'Información municipios'!$E$3:$F$1124,2,0)*((1+1.75%)^('Datos de entrada'!$B$5-2019)),"") ->  | D116: 0
A117: =IF('Municipios Proyecto Regional'!B116<>0,'Municipios Proyecto Regional'!B116,"") ->  | B117: =IFERROR((VLOOKUP(A117,'Información municipios'!$E$3:$I$1124,5,FALSE)),"") ->  | C117: =IFERROR(VLOOKUP(A117,'Información municipios'!$E$3:$F$1124,2,0)*((1+1.75%)^('Datos de entrada'!$B$5-2019)),"") ->  | D117: 0
A118: =IF('Municipios Proyecto Regional'!B117<>0,'Municipios Proyecto Regional'!B117,"") ->  | B118: =IFERROR((VLOOKUP(A118,'Información municipios'!$E$3:$I$1124,5,FALSE)),"") ->  | C118: =IFERROR(VLOOKUP(A118,'Información municipios'!$E$3:$F$1124,2,0)*((1+1.75%)^('Datos de entrada'!$B$5-2019)),"") ->  | D118: 0
A119: =IF('Municipios Proyecto Regional'!B118<>0,'Municipios Proyecto Regional'!B118,"") ->  | B119: =IFERROR((VLOOKUP(A119,'Información municipios'!$E$3:$I$1124,5,FALSE)),"") ->  | C119: =IFERROR(VLOOKUP(A119,'Información municipios'!$E$3:$F$1124,2,0)*((1+1.75%)^('Datos de entrada'!$B$5-2019)),"") ->  | D119: 0
A120: =IF('Municipios Proyecto Regional'!B119<>0,'Municipios Proyecto Regional'!B119,"") ->  | B120: =IFERROR((VLOOKUP(A120,'Información municipios'!$E$3:$I$1124,5,FALSE)),"") ->  | C120: =IFERROR(VLOOKUP(A120,'Información municipios'!$E$3:$F$1124,2,0)*((1+1.75%)^('Datos de entrada'!$B$5-2019)),"") ->  | D120: 0
A121: =IF('Municipios Proyecto Regional'!B120<>0,'Municipios Proyecto Regional'!B120,"") ->  | B121: =IFERROR((VLOOKUP(A121,'Información municipios'!$E$3:$I$1124,5,FALSE)),"") ->  | C121: =IFERROR(VLOOKUP(A121,'Información municipios'!$E$3:$F$1124,2,0)*((1+1.75%)^('Datos de entrada'!$B$5-2019)),"") ->  | D121: 0
A122: Mercado a atender
B123: AÑO INICIO | C123: AÑO FIN
A124: Población (habitantes): | B124: =ROUNDDOWN(IF('Datos de entrada'!B6="Si",SUM(C2:C121),SUM(C2:C2)),0) -> 313629
A125: Población (habitantes) en operación: | B125: =B124*((1+Nacional_Área!I20)^('Datos de entrada'!$B$5-2019)) -> 321216.4733 | C125: =INT(B125*((1+Nacional_Área!I20)^(B130))) -> 392022
A126: Toneladas de residuos sólidos por año (sin residuos de poda y corte, ni de plazas de mercado) | B126: =IF('Datos de entrada'!$B$9>0, 'Datos de entrada'!$B$9*Resultados!C17*365/1000, Resultados!C17*'Información referencia'!$B$13*365/1000) -> 76208.6083 | C126: =IF('Datos de entrada'!$B$9>0, 'Datos de entrada'!$B$9*C125*365/1000, C125*'Información referencia'!$B$13*365/1000) -> 93007.2195
A127: Toneladas de residuos sólidos orgánicos por año (sin residuos de poda y corte, ni de plazas de mercado) | B127: =IF('Datos de entrada'!$B$10>0,'Datos de entrada'!$B$10*Cálculo!$B$126,Cálculo!$B$126*'Información referencia'!$B$14) -> 45725.16498 | C127: =IF('Datos de entrada'!$B$10>0,'Datos de entrada'!$B$10*Cálculo!$C$126,Cálculo!$C$126*'Información referencia'!$B$14) -> 55804.3317
A128: Toneladas de residuos sólidos orgánicos provenientes de poda y corte, y de plazas de mercado por año | B128: =++'Datos de entrada'!B12+'Datos de entrada'!B14 -> 0 | C128: =+B128 -> 0
A129: Toneladas de residuos sólidos por año (con residuos de poda y corte, y de plazas de mercado) | B129: =+'Datos de entrada'!$B$12+'Datos de entrada'!$B$14+$B$126 -> 76208.6083 | C129: =+'Datos de entrada'!$B$12+'Datos de entrada'!$B$14+$C$126 -> 93007.2195
A130: Vida útil del proyecto | B130: =IF('Datos de entrada'!$B$8>0,'Datos de entrada'!$B$8,'Información referencia'!$B$10) -> 25
A133: Selección Escenario | B133: Valor | C133: Interpretación
A134: Capacidad Administrativa | B134: =IFERROR((VLOOKUP('Datos de entrada'!$B$19,Ponderaciones!$A$12:$B$16,2,FALSE)*Ponderaciones!$F$4)+(VLOOKUP('Datos de entrada'!$B$21,Ponderaciones!$D$12:$E$18,2,FALSE)*Ponderaciones!$F$5)+(VLOOKUP('Datos de entrada'!$B$20,Ponderaciones!$G$12:$H$13,2,FALSE)*Ponderaciones!$F$6+VLOOKUP('Datos de entrada'!$B$22,Ponderaciones!$G$17:$H$19,2,FALSE)*Ponderaciones!$F$7),"") -> 7.125 | C134: =IF($B$134<Ponderaciones!$C$6,Ponderaciones!$A$6,IF($B$134<Ponderaciones!$C$4,Ponderaciones!$A$5,IF($B$134<=10,Ponderaciones!$A$4,""))) -> Media
A135: Capacidad Técnica | B135: =IFERROR(((VLOOKUP($C$136,Ponderaciones!$A$112:$B$114,2,FALSE)*Ponderaciones!$F$105)+(VLOOKUP($C$137,Ponderaciones!$A$112:$B$114,2,FALSE)*Ponderaciones!$F$106)+(VLOOKUP($C$138,Ponderaciones!$A$112:$B$114,2,FALSE)*Ponderaciones!$F$107)+(VLOOKUP($C$139,Ponderaciones!$A$112:$B$115,2,FALSE)*Ponderaciones!$F$108)),"") -> 8 | C135: =IF($B$135<Ponderaciones!$C$107,Ponderaciones!$A$107,IF($B$135<Ponderaciones!$C$105,Ponderaciones!$A$106,IF($B$135<=10,Ponderaciones!$A$105,""))) -> Alta
A136: Separación en la fuente | B136: =IFERROR((VLOOKUP('Datos de entrada'!$B$26,Ponderaciones!$A$32:$B$33,2,FALSE)*Ponderaciones!$F$24)+(VLOOKUP('Datos de entrada'!$B$27,Ponderaciones!$D$32:$E$33,2,FALSE)*Ponderaciones!$F$25)+(VLOOKUP('Datos de entrada'!$B$29,Ponderaciones!$G$32:$H$35,2,FALSE)*Ponderaciones!$F$26),"") -> 6.4 | C136: =IF($B$136<Ponderaciones!$C$26,Ponderaciones!$A$26,IF($B$136<Ponderaciones!$C$24,Ponderaciones!A25,IF($B$136<=10,Ponderaciones!$A$24,""))) -> Media
A137: Recolección y transporte | B137: =IFERROR((VLOOKUP('Datos de entrada'!$B$32,Ponderaciones!$A$49:$B$52,2,FALSE)*Ponderaciones!$F$41)+(VLOOKUP('Datos de entrada'!$B$33,Ponderaciones!$A$49:$B$52,2,FALSE)*Ponderaciones!$F$42)+(VLOOKUP('Datos de entrada'!$B$35,Ponderaciones!$D$49:$E$53,2,FALSE)*Ponderaciones!$F$43)+(VLOOKUP('Datos de entrada'!$B$36,Ponderaciones!$G$49:$H$53,2,FALSE)*Ponderaciones!$F$44),"") -> 8.2 | C137: =IF($B$137<Ponderaciones!$C$43,Ponderaciones!$A$43,IF($B$137<Ponderaciones!$C$41,Ponderaciones!$A$42,IF($B$137<=10,Ponderaciones!$A$41,""))) -> Alta
A138: Tratamiento y disposición final | B138: =IFERROR((VLOOKUP('Datos de entrada'!$B$39,Ponderaciones!$A$68:$B$72,2,FALSE)*Ponderaciones!$F$59)+(VLOOKUP('Datos de entrada'!$B$40,Ponderaciones!$D$68:$E$69,2,FALSE)*Ponderaciones!$F$60)+(VLOOKUP('Datos de entrada'!$B$41,Ponderaciones!$G$68:$H$72,2,FALSE)*Ponderaciones!$F$61)+(VLOOKUP('Datos de entrada'!$B$42,Ponderaciones!$A$77:$B$81,2,FALSE)*Ponderaciones!$F$62)+(VLOOKUP('Datos de entrada'!$B$43,Ponderaciones!$D$77:$E$79,2,FALSE)*Ponderaciones!$F$63),"") -> 7.6 | C138: =IF($B$138<Ponderaciones!$C$61,Ponderaciones!$A$61,IF($B$138<Ponderaciones!$C$59,Ponderaciones!$A$60,IF($B$138<=10,Ponderaciones!$A$59,""))) -> Media
A139: Uso de suelo | B139: =IFERROR((VLOOKUP('Datos de entrada'!$B$46,Ponderaciones!A94:$B$95,2,FALSE)*Ponderaciones!$F$86)+(VLOOKUP('Datos de entrada'!$B$47,Ponderaciones!D94:$E$95,2,FALSE)*Ponderaciones!$F$87)+(VLOOKUP('Datos de entrada'!$B$48,Ponderaciones!G94:$H$95,2,FALSE)*Ponderaciones!$F$88)+(VLOOKUP('Datos de entrada'!$B$49,Ponderaciones!A99:$B$100,2,FALSE)*Ponderaciones!$F$89),"") -> 9.1 | C139: =IF($B$139<Ponderaciones!$C$88,Ponderaciones!$A$88,IF($B$139<Ponderaciones!$C$86,Ponderaciones!$A$87,Ponderaciones!$A$86)) -> Alta
A140: Capacidad Económica | B140: =IFERROR((VLOOKUP('Datos de entrada'!$B$54,Ponderaciones!$A$127:$B$128,2,FALSE)*Ponderaciones!$F$120)+(VLOOKUP('Datos de entrada'!$B$55,Ponderaciones!$D$127:$E$128,2,FALSE)*Ponderaciones!$F$121)+(VLOOKUP('Datos de entrada'!$B$56,Ponderaciones!$G$127:$H$131,2,FALSE)*Ponderaciones!$F$122)+((VLOOKUP('Datos de entrada'!$B$57,Ponderaciones!$A$133:$B$137,2,FALSE)*Ponderaciones!$F$123)),"") -> 5.2 | C140: =IF($B$140<Ponderaciones!$C$122,Ponderaciones!A122,IF($B$140<Ponderaciones!$C$120,Ponderaciones!$A$121,IF($B$140<=10,Ponderaciones!$A$120,""))) -> Media
A141: Resultado | B141: Escenario | C141: Nivel de favorabilidad
B142: =IFERROR(INDEX(Ponderaciones!$G$145:$G$172,MATCH($C$134&$C$135&$C$140,INDEX(Ponderaciones!$D$145:$D$172&Ponderaciones!$E$145:$E$172&Ponderaciones!$F$145:$F$172,),0),1),"") -> 2 | C142: =IFERROR(VLOOKUP(B142,Ponderaciones!$A$145:$B$150,2,FALSE),"") -> Alta
A145: Viabilidad Tratamiento | B145: =IF(OR($B$142=1,$B$142=2,$B$142=3), 'Medidas Escenarios'!$B$7, IF('Datos de entrada'!$B$36=Ponderaciones!$G$49, 'Medidas Escenarios'!$B$9,'Medidas Escenarios'!$B$8)) -> Dado el contexto del proyecto, es recomendable continuar con las siguientes fases de planeación para el tratamiento de residuos sólidos órganicos implementando una o la combinación de las tecnologías identificadas en este reporte. Las alternativas contempladas se basan en tecnologías probadas (el análisis de tecnologias no convencionales deberá tener el cuenta lo establecido en el reglamento técnico para el sector de agua potable y saneamiento RAS).
A146: Medidas a implementar | B146: =IFERROR(VLOOKUP($B$142,'Medidas Escenarios'!$A$1:$B$6,2,FALSE),"") -> 1) Actualice el PGIRS, que prevea la viabilidad de proyectos para el tratamiento de residuos sólidos. Para ello como mínimo debe realizarse la actualización o elaboración de: a. Caracterización de residuos con especial énfasis en la fracción orgánica b. Estudios técnico-operativos para determinar el tipo de tratamiento más viable c. Estudios de mercado que permitan determinar la viabilidad del tratamiento 2) Fortalezca la capacidad administrativa de los municipios revisando los indicadores de gestión y resultados de la Medición de Desempeño Municipal (MDM) en los cuales existen falencias. 3) Amplie la destinación de recursos para financiar actividades del servicio público de aseo 4) Implemente sistemas de extracción y aprovechamiento de biogás en el sitio de disposición final 5) Implemente un sistema de Monitoreo, Reporte y Verificación (MRV) de emisiones de la reducción de emisiones de GEI 6) Actualice la infraestructura para la presentación de los residuos sólidos para adoptar el código de colores establecido en la Resolución 2184 de 2019.
X154: TRATAMIENTO DE PODA, CORTE DE CESPED Y PLAZAS DE MERCADO
A155: Valoración | B155: Mejor opción | C155: Evaluación de tecnologías | D155: Cumplimiento requerimientos (%) | E155: Valoración | F155: Costos de inversión (COP) | G155: Costos de operación (COP) (a lo largo de la vida útil) | H155: Costos totales (COP) (a lo largo de la vida útil) | I155: Alternativa más económica | J155: Valoración | K155: Ingresos por tarifa (COP) (a lo largo de la vida útil) | L155: Ingresos por comercialización (COP) (vida útil) | M155: Ingresos totales (COP) (vida útil) | N155: Relación costo beneficio | O155: Valoración | P155: Potencial de desvío de residuos a relleno sanitario (tpa) - límite inferior / Jerarquía resultados | Q155: Valoración | R155: Potencial de desvío de residuos a relleno sanitario (tpa) - límite superior / Jerarquía resultados | S155: Valoración | T155: Potencial de reducción de emisión de GEI | U155: Valoración | V155: Tecnología más apropiada | W155: Valoración | X155: Ingresos por tarifa (COP) (a lo largo de la vida útil) | Y155: Ingresos por comercialización (COP) (vida útil) | Z155: Ingresos totales (COP) (vida útil)
A156: =(IFERROR((W156*Ponderaciones!$F$180)+(Cálculo!O156*Ponderaciones!$F$181)+(Cálculo!Q156*Ponderaciones!$F$182)+(Cálculo!S156*Ponderaciones!$F$183)+(Cálculo!U156*Ponderaciones!$F$184)+(J156*Ponderaciones!$F$185),""))*IF(B127>Valoración!C3,0,1) -> 6.1 | B156: =IFERROR(_xlfn.RANK.EQ(A156,$A$156:$A$160,0),"") -> 1 | C156: =+'Fichas técnicas Tecnologías'!$A$3 -> Compostaje en pilas con volteo manual | D156: =Valoración!M3 -> 0.3333333333 | E156: =IF(D156<=Ponderaciones!$A$194,Ponderaciones!$B$194,IF(D156<=Ponderaciones!$A$193,Ponderaciones!$B$193, IF(D156<=Ponderaciones!$A$192,Ponderaciones!$B$192,IF(D156<=Ponderaciones!$A$191,Ponderaciones!$B$191,Ponderaciones!$B$190)))) -> 3 | F156: ='Costos de inversión'!$N$17*(1.03^('Datos de entrada'!$B$5-2021)) -> 6122513710 | G156: =+'Costos de operación'!$N$13*(1.03^('Datos de entrada'!$B$5-2021)) -> 0 | H156: =F156+G156 -> 6122513710 | I156: =_xlfn.RANK.EQ(H156,$H$156:$H$160,1) -> 1 | J156: =IFERROR(IF(I156=Ponderaciones!$G$190,Ponderaciones!$H$190,IF(I156=Ponderaciones!$G$191,Ponderaciones!$H$191,IF(I156=Ponderaciones!$G$192,Ponderaciones!$H$192,Ponderaciones!$H$193))),"") -> 10 | K156: =ROUND('Datos de entrada'!$B$59*$B$127*'Datos de entrada'!$B$8*(1.03^('Datos de entrada'!$B$5-2021)),-6) -> 82420000000 | L156: =ROUND($B$128*'Datos de entrada'!$B$8*'Fichas técnicas Tecnologías'!$Q$3*'Fichas técnicas Tecnologías'!$R$3*'Datos de entrada'!$B$61,-6) -> 0 | M156: =+K156+L156 -> 82420000000 | N156: =IF(M156/H156<1,Ponderaciones!$D$192,IF(M156/H156=1,Ponderaciones!$D$191,IF(M156/H156>1,Ponderaciones!$D$190,"Error"))) -> Mayor a 1 | O156: =IF(N156=Ponderaciones!$D$190,Ponderaciones!$E$190,IF(N156=Ponderaciones!$D$191,Ponderaciones!$E$191,IF(N156=Ponderaciones!$D$192,Ponderaciones!$E$192,""))) -> 10 | P156: ='Fichas técnicas Tecnologías'!Z3*'Fichas técnicas Tecnologías'!N3 -> 8573.468434 | Q156: =IF(_xlfn.RANK.EQ(P156,$P$156:$P$160,0)=Ponderaciones!$G$190,Ponderaciones!$H$190,IF(_xlfn.RANK.EQ(P156,$P$156:$P$160,0)=Ponderaciones!$G$191,Ponderaciones!$H$191,IF(_xlfn.RANK.EQ(P156,$P$156:$P$160,0)=Ponderaciones!$G$192,Ponderaciones!$H$192,Ponderaciones!$H$193))) -> 4 | R156: =($B$127)*'Fichas técnicas Tecnologías'!O3 -> 17375.56269 | S156: =IFERROR(IF(_xlfn.RANK.EQ(R156,$R$156:$R$160,0)=Ponderaciones!$A$199,Ponderaciones!$B$199,IF(_xlfn.RANK.EQ(R156,$R$156:$R$160,0)=Ponderaciones!$A$200,Ponderaciones!$B$200, IF(_xlfn.RANK.EQ(R156,$R$156:$R$160,0)=Ponderaciones!$A$201,Ponderaciones!$B$201,Ponderaciones!$B$202))),"") -> 4 | T156: ='Fichas técnicas Tecnologías'!P3 -> 0.42 | U156: =IFERROR(IF(T156<=Ponderaciones!$D$203,Ponderaciones!$E$203,IF(T156<=Ponderaciones!$D$202,Ponderaciones!$E$202,IF(T156<=Ponderaciones!$D$201,Ponderaciones!$E$201,IF(T156<=Ponderaciones!$D$200,Ponderaciones!$E$200,Ponderaciones!$E$199)))),"") -> 4 | V156: =IF(VLOOKUP(ROUNDDOWN(AVERAGE($B$2:$B$121),0),'Información municipios'!$O$3:$S$6,4,FALSE)=Cálculo!C156,Ponderaciones!$A$190,IF(VLOOKUP(ROUNDDOWN(AVERAGE($B$2:$B$121),0),'Información municipios'!$O$3:$S$6,5,FALSE)=Cálculo!C156,Ponderaciones!$A$191,Ponderaciones!$A$192)) -> Tecología más apropiada | W156: =IFERROR(VLOOKUP(V156,Ponderaciones!$A$190:$B$192,2,FALSE)*Ponderaciones!$F$180,"") -> 4 | X156: ='Datos de entrada'!$B$59*$B$128*'Datos de entrada'!$B$8*(1.03^('Datos de entrada'!$B$5-2021)) -> 0 | Y156: =$B$128*'Datos de entrada'!$B$8*'Fichas técnicas Tecnologías'!$Q$3*'Fichas técnicas Tecnologías'!$R$3*'Datos de entrada'!$B$61*(1.03^('Datos de entrada'!$B$5-2021)) -> 0 | Z156: =+X156+Y156 -> 0
A157: =IFERROR((W157*Ponderaciones!$F$180)+(Cálculo!O157*Ponderaciones!$F$181)+(Cálculo!Q157*Ponderaciones!$F$182)+(Cálculo!S157*Ponderaciones!$F$183)+(Cálculo!U157*Ponderaciones!$F$184)+(J157*Ponderaciones!$F$185),"")*IF(B127>Valoración!C4,0,1) -> 4.7 | B157: =IFERROR(_xlfn.RANK.EQ(A157,$A$156:$A$160,0),"") -> 3 | C157: =+'Fichas técnicas Tecnologías'!$A$4 -> Compostaje en pilas con aireación forzada | D157: =Valoración!M4 -> 0.3333333333 | E157: =IF(D157<=Ponderaciones!$A$194,Ponderaciones!$B$194,IF(D157<=Ponderaciones!$A$193,Ponderaciones!$B$193, IF(D157<=Ponderaciones!$A$192,Ponderaciones!$B$192,IF(D157<=Ponderaciones!$A$191,Ponderaciones!$B$191,Ponderaciones!$B$190)))) -> 3 | F157: =+'Costos de inversión'!$N$38*(1.03^('Datos de entrada'!$B$5-2021)) -> 6993073122 | G157: =+'Costos de operación'!$N$28*(1.03^('Datos de entrada'!$B$5-2021)) -> 0 | H157: =F157+G157 -> 6993073122 | I157: =_xlfn.RANK.EQ(H157,$H$156:$H$160,1) -> 2 | J157: =IFERROR(IF(I157=Ponderaciones!$G$190,Ponderaciones!$H$190,IF(I157=Ponderaciones!$G$191,Ponderaciones!$H$191,IF(I157=Ponderaciones!$G$192,Ponderaciones!$H$192,Ponderaciones!$H$193))),"") -> 8 | K157: =ROUND('Datos de entrada'!$B$59*$B$127*'Datos de entrada'!$B$8*(1.03^('Datos de entrada'!$B$5-2021)),-6) -> 82420000000 | L157: =ROUND($B$128*'Datos de entrada'!$B$8*'Fichas técnicas Tecnologías'!$Q$4*'Fichas técnicas Tecnologías'!$R$4*'Datos de entrada'!$B$61,-6) -> 0 | M157: =+K157+L157 -> 82420000000 | N157: =IF(M157/H157<1,Ponderaciones!$D$192,IF(M157/H157=1,Ponderaciones!$D$191,IF(M157/H157>1,Ponderaciones!$D$190,"Error"))) -> Mayor a 1 | O157: =IF(N157=Ponderaciones!$D$190,Ponderaciones!$E$190,IF(N157=Ponderaciones!$D$191,Ponderaciones!$E$191,IF(N157=Ponderaciones!$D$192,Ponderaciones!$E$192,""))) -> 10 | P157: ='Fichas técnicas Tecnologías'!Z4*'Fichas técnicas Tecnologías'!N4 -> 9218.19326 | Q157: =IF(_xlfn.RANK.EQ(P157,$P$156:$P$160,0)=Ponderaciones!$G$190,Ponderaciones!$H$190,IF(_xlfn.RANK.EQ(P157,$P$156:$P$160,0)=Ponderaciones!$G$191,Ponderaciones!$H$191,IF(_xlfn.RANK.EQ(P157,$P$156:$P$160,0)=Ponderaciones!$G$192,Ponderaciones!$H$192,Ponderaciones!$H$193))) -> 4 | R157: =$B$127*'Fichas técnicas Tecnologías'!O4 -> 18747.31764 | S157: =IFERROR(IF(_xlfn.RANK.EQ(R157,$R$156:$R$160,0)=Ponderaciones!$A$199,Ponderaciones!$B$199,IF(_xlfn.RANK.EQ(R157,$R$156:$R$160,0)=Ponderaciones!$A$200,Ponderaciones!$B$200, IF(_xlfn.RANK.EQ(R157,$R$156:$R$160,0)=Ponderaciones!$A$201,Ponderaciones!$B$201,Ponderaciones!$B$202))),"") -> 4 | T157: ='Fichas técnicas Tecnologías'!P4 -> 0.4 | U157: =IFERROR(IF(T157<=Ponderaciones!$D$203,Ponderaciones!$E$203,IF(T157<=Ponderaciones!$D$202,Ponderaciones!$E$202,IF(T157<=Ponderaciones!$D$201,Ponderaciones!$E$201,IF(T157<=Ponderaciones!$D$200,Ponderaciones!$E$200,Ponderaciones!$E$199)))),"") -> 4 | V157: =IF(VLOOKUP(ROUNDDOWN(AVERAGE($B$2:$B$121),0),'Información municipios'!$O$3:$S$6,4,FALSE)=Cálculo!C157,Ponderaciones!$A$190,IF(VLOOKUP(ROUNDDOWN(AVERAGE($B$2:$B$121),0),'Información municipios'!$O$3:$S$6,5,FALSE)=Cálculo!C157,Ponderaciones!$A$191,Ponderaciones!$A$192)) -> Tecnología apropiada | W157: =IFERROR(VLOOKUP(V157,Ponderaciones!$A$190:$B$192,2,FALSE)*Ponderaciones!$F$180,"") -> 2 | X157: ='Datos de entrada'!$B$59*$B$128*'Datos de entrada'!$B$8*(1.03^('Datos de entrada'!$B$5-2021)) -> 0 | Y157: =$B$128*'Datos de entrada'!$B$8*'Fichas técnicas Tecnologías'!$Q$3*'Fichas técnicas Tecnologías'!$R$3*'Datos de entrada'!$B$61*(1.03^('Datos de entrada'!$B$5-2021)) -> 0 | Z157: =+X157+Y157 -> 0
A158: =IFERROR((W158*Ponderaciones!$F$180)+(Cálculo!O158*Ponderaciones!$F$181)+(Cálculo!Q158*Ponderaciones!$F$182)+(Cálculo!S158*Ponderaciones!$F$183)+(Cálculo!U158*Ponderaciones!$F$184)+(J158*Ponderaciones!$F$185),"") -> 3.68 | B158: =IFERROR(_xlfn.RANK.EQ(A158,$A$156:$A$160,0),"") -> 5 | C158: =+'Fichas técnicas Tecnologías'!$A$5 -> Compostaje cerrado o "In vessel" | D158: =Valoración!M5 -> 0.3333333333 | E158: =IF(D158<=Ponderaciones!$A$194,Ponderaciones!$B$194,IF(D158<=Ponderaciones!$A$193,Ponderaciones!$B$193, IF(D158<=Ponderaciones!$A$192,Ponderaciones!$B$192,IF(D158<=Ponderaciones!$A$191,Ponderaciones!$B$191,Ponderaciones!$B$190)))) -> 3 | F158: =+'Costos de inversión'!$N$58*(1.03^('Datos de entrada'!$B$5-2021)) -> 7746473992 | G158: =+'Costos de operación'!$N$42*(1.03^('Datos de entrada'!$B$5-2021)) -> 0 | H158: =F158+G158 -> 7746473992 | I158: =_xlfn.RANK.EQ(H158,$H$156:$H$160,1) -> 4 | J158: =IFERROR(IF(I158=Ponderaciones!$G$190,Ponderaciones!$H$190,IF(I158=Ponderaciones!$G$191,Ponderaciones!$H$191,IF(I158=Ponderaciones!$G$192,Ponderaciones!$H$192,Ponderaciones!$H$193))),"") -> 4 | K158: =ROUND('Datos de entrada'!$B$59*$B$127*'Datos de entrada'!$B$8*(1.03^('Datos de entrada'!$B$5-2021)),-6) -> 82420000000 | L158: =ROUND($B$128*'Datos de entrada'!$B$8*'Fichas técnicas Tecnologías'!$Q$5*'Fichas técnicas Tecnologías'!$R$5*'Datos de entrada'!$B$61,-6)*0 -> 0 | M158: =+K158+L158 -> 82420000000 | N158: =IF(M158/H158<1,Ponderaciones!$D$192,IF(M158/H158=1,Ponderaciones!$D$191,IF(M158/H158>1,Ponderaciones!$D$190,"Error"))) -> Mayor a 1 | O158: =IF(N158=Ponderaciones!$D$190,Ponderaciones!$E$190,IF(N158=Ponderaciones!$D$191,Ponderaciones!$E$191,IF(N158=Ponderaciones!$D$192,Ponderaciones!$E$192,""))) -> 10 | P158: ='Fichas técnicas Tecnologías'!Z5*'Fichas técnicas Tecnologías'!N5 -> 11413.00118 | Q158: =IF(_xlfn.RANK.EQ(P158,$P$156:$P$160,0)=Ponderaciones!$G$190,Ponderaciones!$H$190,IF(_xlfn.RANK.EQ(P158,$P$156:$P$160,0)=Ponderaciones!$G$191,Ponderaciones!$H$191,IF(_xlfn.RANK.EQ(P158,$P$156:$P$160,0)=Ponderaciones!$G$192,Ponderaciones!$H$192,Ponderaciones!$H$193))) -> 8 | R158: =$B$127*'Fichas técnicas Tecnologías'!O5 -> 23777.08579 | S158: =IFERROR(IF(_xlfn.RANK.EQ(R158,$R$156:$R$160,0)=Ponderaciones!$A$199,Ponderaciones!$B$199,IF(_xlfn.RANK.EQ(R158,$R$156:$R$160,0)=Ponderaciones!$A$200,Ponderaciones!$B$200, IF(_xlfn.RANK.EQ(R158,$R$156:$R$160,0)=Ponderaciones!$A$201,Ponderaciones!$B$201,Ponderaciones!$B$202))),"") -> 6 | T158: ='Fichas técnicas Tecnologías'!P5 -> 0.38 | U158: =IFERROR(IF(T158<=Ponderaciones!$D$203,Ponderaciones!$E$203,IF(T158<=Ponderaciones!$D$202,Ponderaciones!$E$202,IF(T158<=Ponderaciones!$D$201,Ponderaciones!$E$201,IF(T158<=Ponderaciones!$D$200,Ponderaciones!$E$200,Ponderaciones!$E$199)))),"") -> 4 | V158: =IF(VLOOKUP(ROUNDDOWN(AVERAGE($B$2:$B$121),0),'Información municipios'!$O$3:$S$6,4,FALSE)=Cálculo!C158,Ponderaciones!$A$190,IF(VLOOKUP(ROUNDDOWN(AVERAGE($B$2:$B$121),0),'Información municipios'!$O$3:$S$6,5,FALSE)=Cálculo!C158,Ponderaciones!$A$191,Ponderaciones!$A$192)) -> Tecnología no apropiada | W158: =IFERROR(VLOOKUP(V158,Ponderaciones!$A$190:$B$192,2,FALSE)*Ponderaciones!$F$180,"") -> 1.2 | X158: ='Datos de entrada'!$B$59*$B$128*'Datos de entrada'!$B$8*(1.03^('Datos de entrada'!$B$5-2021)) -> 0 | Y158: =$B$128*'Datos de entrada'!$B$8*'Fichas técnicas Tecnologías'!$Q$3*'Fichas técnicas Tecnologías'!$R$3*'Datos de entrada'!$B$61*(1.03^('Datos de entrada'!$B$5-2021)) -> 0 | Z158: =+X158+Y158 -> 0
A159: =IFERROR((W159*Ponderaciones!$F$180)+(Cálculo!O159*Ponderaciones!$F$181)+(Cálculo!Q159*Ponderaciones!$F$182)+(Cálculo!S159*Ponderaciones!$F$183)+(Cálculo!U159*Ponderaciones!$F$184)+(J159*Ponderaciones!$F$185),"") -> 5.08 | B159: =IFERROR(_xlfn.RANK.EQ(A159,$A$156:$A$160,0),"") -> 2 | C159: =+'Fichas técnicas Tecnologías'!$A$6 -> Tratamiento Mecánico Biológico | D159: =Valoración!M6 -> 1 | E159: =IF(D159<=Ponderaciones!$A$194,Ponderaciones!$B$194,IF(D159<=Ponderaciones!$A$193,Ponderaciones!$B$193, IF(D159<=Ponderaciones!$A$192,Ponderaciones!$B$192,IF(D159<=Ponderaciones!$A$191,Ponderaciones!$B$191,Ponderaciones!$B$190)))) -> 3 | F159: =+'Costos de inversión'!$N$75*(1.03^('Datos de entrada'!$B$5-2021)) -> 7063943942 | G159: =+'Costos de operación'!$N$58*(1.03^('Datos de entrada'!$B$5-2021)) -> 0 | H159: =F159+G159 -> 7063943942 | I159: =_xlfn.RANK.EQ(H159,$H$156:$H$160,1) -> 3 | J159: =IFERROR(IF(I159=Ponderaciones!$G$190,Ponderaciones!$H$190,IF(I159=Ponderaciones!$G$191,Ponderaciones!$H$191,IF(I159=Ponderaciones!$G$192,Ponderaciones!$H$192,Ponderaciones!$H$193))),"") -> 6 | K159: =ROUND('Datos de entrada'!$B$59*$B$127*'Datos de entrada'!$B$8*(1.03^('Datos de entrada'!$B$5-2021)),-6) -> 82420000000 | L159: =ROUND($B$128*'Datos de entrada'!$B$8*'Fichas técnicas Tecnologías'!$Q$6*'Fichas técnicas Tecnologías'!$R$6*'Datos de entrada'!$B$61,-6) -> 0 | M159: =+K159+L159 -> 82420000000 | N159: =IF(M159/H159<1,Ponderaciones!$D$192,IF(M159/H159=1,Ponderaciones!$D$191,IF(M159/H159>1,Ponderaciones!$D$190,"Error"))) -> Mayor a 1 | O159: =IF(N159=Ponderaciones!$D$190,Ponderaciones!$E$190,IF(N159=Ponderaciones!$D$191,Ponderaciones!$E$191,IF(N159=Ponderaciones!$D$192,Ponderaciones!$E$192,""))) -> 10 | P159: ='Fichas técnicas Tecnologías'!X6*'Fichas técnicas Tecnologías'!N6 -> 27600 | Q159: =IF(_xlfn.RANK.EQ(P159,$P$156:$P$160,0)=Ponderaciones!$G$190,Ponderaciones!$H$190,IF(_xlfn.RANK.EQ(P159,$P$156:$P$160,0)=Ponderaciones!$G$191,Ponderaciones!$H$191,IF(_xlfn.RANK.EQ(P159,$P$156:$P$160,0)=Ponderaciones!$G$192,Ponderaciones!$H$192,Ponderaciones!$H$193))) -> 10 | R159: =($B$126)*'Fichas técnicas Tecnologías'!O6 -> 57156.45623 | S159: =IFERROR(IF(_xlfn.RANK.EQ(R159,$R$156:$R$160,0)=Ponderaciones!$A$199,Ponderaciones!$B$199,IF(_xlfn.RANK.EQ(R159,$R$156:$R$160,0)=Ponderaciones!$A$200,Ponderaciones!$B$200, IF(_xlfn.RANK.EQ(R159,$R$156:$R$160,0)=Ponderaciones!$A$201,Ponderaciones!$B$201,Ponderaciones!$B$202))),"") -> 10 | T159: ='Fichas técnicas Tecnologías'!P6 -> 0.68 | U159: =IFERROR(IF(T159<=Ponderaciones!$D$203,Ponderaciones!$E$203,IF(T159<=Ponderaciones!$D$202,Ponderaciones!$E$202,IF(T159<=Ponderaciones!$D$201,Ponderaciones!$E$201,IF(T159<=Ponderaciones!$D$200,Ponderaciones!$E$200,Ponderaciones!$E$199)))),"") -> 8 | V159: =IF(VLOOKUP(ROUNDDOWN(AVERAGE($B$2:$B$121),0),'Información municipios'!$O$3:$S$6,4,FALSE)=Cálculo!C159,Ponderaciones!$A$190,IF(VLOOKUP(ROUNDDOWN(AVERAGE($B$2:$B$121),0),'Información municipios'!$O$3:$S$6,5,FALSE)=Cálculo!C159,Ponderaciones!$A$191,Ponderaciones!$A$192)) -> Tecnología no apropiada | W159: =IFERROR(VLOOKUP(V159,Ponderaciones!$A$190:$B$192,2,FALSE)*Ponderaciones!$F$180,"") -> 1.2 | X159: ='Datos de entrada'!$B$59*$B$128*'Datos de entrada'!$B$8*(1.03^('Datos de entrada'!$B$5-2021)) -> 0 | Y159: =$B$128*'Datos de entrada'!$B$8*'Fichas técnicas Tecnologías'!$Q$3*'Fichas técnicas Tecnologías'!$R$3*'Datos de entrada'!$B$61*(1.03^('Datos de entrada'!$B$5-2021)) -> 0 | Z159: =+X159+Y159 -> 0
A160: =IFERROR((W160*Ponderaciones!$F$180)+(Cálculo!O160*Ponderaciones!$F$181)+(Cálculo!Q160*Ponderaciones!$F$182)+(Cálculo!S160*Ponderaciones!$F$183)+(Cálculo!U160*Ponderaciones!$F$184)+(J160*Ponderaciones!$F$185),"") -> 3.78 | B160: =IFERROR(_xlfn.RANK.EQ(A160,$A$156:$A$160,0),"") -> 4 | C160: =+'Fichas técnicas Tecnologías'!$A$9 -> Digestión Anaerobia | D160: =Valoración!M7 -> 0.6666666667 | E160: =IF(D160<=Ponderaciones!$A$194,Ponderaciones!$B$194,IF(D160<=Ponderaciones!$A$193,Ponderaciones!$B$193, IF(D160<=Ponderaciones!$A$192,Ponderaciones!$B$192,IF(D160<=Ponderaciones!$A$191,Ponderaciones!$B$191,Ponderaciones!$B$190)))) -> 3 | F160: =+'Costos de inversión'!$N$89*(1.03^('Datos de entrada'!$B$5-2021)) -> 2.916683404e+10 | G160: =+'Costos de operación'!$N$74*(1.03^('Datos de entrada'!$B$5-2021)) -> 0 | H160: =F160+G160 -> 2.916683404e+10 | I160: =_xlfn.RANK.EQ(H160,$H$156:$H$160,1) -> 5 | J160: =IFERROR(IF(I160=Ponderaciones!$G$190,Ponderaciones!$H$190,IF(I160=Ponderaciones!$G$191,Ponderaciones!$H$191,IF(I160=Ponderaciones!$G$192,Ponderaciones!$H$192,Ponderaciones!$H$193))),"") -> 4 | K160: =ROUND('Datos de entrada'!$B$59*$B$127*'Datos de entrada'!$B$8*(1.03^('Datos de entrada'!$B$5-2021)),-6) -> 82420000000 | L160: =ROUND($B$128*'Datos de entrada'!$B$8*'Fichas técnicas Tecnologías'!$Q$9*'Fichas técnicas Tecnologías'!$R$9*'Datos de entrada'!$B$61,-6)*0 -> 0 | M160: =+K160+L160 -> 82420000000 | N160: =IF(M160/H160<1,Ponderaciones!$D$192,IF(M160/H160=1,Ponderaciones!$D$191,IF(M160/H160>1,Ponderaciones!$D$190,"Error"))) -> Mayor a 1 | O160: =IF(N160=Ponderaciones!$D$190,Ponderaciones!$E$190,IF(N160=Ponderaciones!$D$191,Ponderaciones!$E$191,IF(N160=Ponderaciones!$D$192,Ponderaciones!$E$192,""))) -> 10 | P160: ='Fichas técnicas Tecnologías'!Z9*'Fichas técnicas Tecnologías'!N9 -> 10109.83398 | Q160: =IF(_xlfn.RANK.EQ(P160,$P$156:$P$160,0)=Ponderaciones!$G$190,Ponderaciones!$H$190,IF(_xlfn.RANK.EQ(P160,$P$156:$P$160,0)=Ponderaciones!$G$191,Ponderaciones!$H$191,IF(_xlfn.RANK.EQ(P160,$P$156:$P$160,0)=Ponderaciones!$G$192,Ponderaciones!$H$192,Ponderaciones!$H$193))) -> 6 | R160: =$B$127*'Fichas técnicas Tecnologías'!O9 -> 29721.35724 | S160: =IFERROR(IF(_xlfn.RANK.EQ(R160,$R$156:$R$160,0)=Ponderaciones!$A$199,Ponderaciones!$B$199,IF(_xlfn.RANK.EQ(R160,$R$156:$R$160,0)=Ponderaciones!$A$200,Ponderaciones!$B$200, IF(_xlfn.RANK.EQ(R160,$R$156:$R$160,0)=Ponderaciones!$A$201,Ponderaciones!$B$201,Ponderaciones!$B$202))),"") -> 8 | T160: ='Fichas técnicas Tecnologías'!P9 -> 0.58 | U160: =IFERROR(IF(T160<=Ponderaciones!$D$203,Ponderaciones!$E$203,IF(T160<=Ponderaciones!$D$202,Ponderaciones!$E$202,IF(T160<=Ponderaciones!$D$201,Ponderaciones!$E$201,IF(T160<=Ponderaciones!$D$200,Ponderaciones!$E$200,Ponderaciones!$E$199)))),"") -> 6 | V160: =IF(VLOOKUP(ROUNDDOWN(AVERAGE($B$2:$B$121),0),'Información municipios'!$O$3:$S$6,4,FALSE)=Cálculo!C160,Ponderaciones!$A$190,IF(VLOOKUP(ROUNDDOWN(AVERAGE($B$2:$B$121),0),'Información municipios'!$O$3:$S$6,5,FALSE)=Cálculo!C160,Ponderaciones!$A$191,Ponderaciones!$A$192)) -> Tecnología no apropiada | W160: =IFERROR(VLOOKUP(V160,Ponderaciones!$A$190:$B$192,2,FALSE)*Ponderaciones!$F$180,"") -> 1.2 | X160: ='Datos de entrada'!$B$59*$B$128*'Datos de entrada'!$B$8*(1.03^('Datos de entrada'!$B$5-2021)) -> 0 | Y160: =$B$128*'Datos de entrada'!$B$8*'Fichas técnicas Tecnologías'!$Q$3*'Fichas técnicas Tecnologías'!$R$3*'Datos de entrada'!$B$61*(1.03^('Datos de entrada'!$B$5-2021)) -> 0 | Z160: =+X160+Y160 -> 0
K163: =+K160/B130 -> 3296800000 | L163: =+L156/B130 -> 0 | M163: =+L163/200000 -> 0 | N163: =+M163/3800 -> 0
A167: Tecnologías recomendadas
A168: 1 | C168: =IFERROR(VLOOKUP(A168,$B$156:$C$160,2,FALSE),"") -> Compostaje en pilas con volteo manual
A169: 2 | C169: =IFERROR(VLOOKUP(A169,$B$156:$C$160,2,FALSE),"") -> Tratamiento Mecánico Biológico
A170: 3 | C170: =IFERROR(VLOOKUP(A170,$B$156:$C$160,2,FALSE),"") -> Compostaje en pilas con aireación forzada
A175: =+$C$168 -> Compostaje en pilas con volteo manual
A176: Costos de inversión (CAPEX) | D176: Costos de operación (OPEX) | G176: Ingresos
A178: Fila | B178: =+MATCH($C$168,'Costos de inversión'!$A:$A,0) -> 4 | D178: Fila | E178: =MATCH($C$168,'Costos de operación'!$A:$A,0) -> 4
B179: =+B178+1 -> 5 | E179: =+E178+1 -> 5
B180: =+B179+1 -> 6 | E180: =+E179+1 -> 6
B181: 7 | E181: 7
B182: 8 | E182: 8
B183: 9 | E183: 9
B184: 10 | E184: 10
B185: 11 | E185: 11
B186: 12 | E186: 12
B187: 13 | E187: 13
B188: 14
B189: 15
B190: 16
B191: 17
B192: 18
B193: 19
B194: 20
B195: 21
B196: 22
B197: 23
G200: Ingresos por tarifa (COP) (Promedio Anual) | H200: =VLOOKUP($A$175,$C$156:$M$160,9,FALSE)/'Datos de entrada'!$B$8 -> 3296800000 | X200: Ingresos por tarifa (COP) (Promedio Anual) | Y200: =+X156/B130 -> 0
A201: =IF(B178>0,VLOOKUP(B178,'Costos de inversión'!$B$1:$N$382,2,FALSE),"") -> Pre-inversión | B201: =IF(B178>0,VLOOKUP(B178,'Costos de inversión'!$B$1:$N$382,13,FALSE),"") -> 0 | D201: =IF(E178>0,VLOOKUP(E178,'Costos de operación'!$B:$N,2,FALSE),"") -> Energia | E201: =IF(E178>0,VLOOKUP(E178,'Costos de operación'!$B:$N,13,FALSE),"") -> 63000000 | G201: Ingresos por comercialización (COP) (Promedio Anual) | H201: =VLOOKUP($A$175,$C$156:$M$160,10,FALSE)/'Datos de entrada'!$B$8 -> 0 | X201: Ingresos por comercialización (COP) (Promedio Anual) | Y201: =+Y156/B130 -> 0
A202: =IF(B179>0,VLOOKUP(B179,'Costos de inversión'!$B$1:$N$382,2,FALSE),"") -> Estudios, Diseños | B202: =IF(B179>0,VLOOKUP(B179,'Costos de inversión'!$B$1:$N$382,13,FALSE),"") -> 126000000 | D202: =IF(E179>0,VLOOKUP(E179,'Costos de operación'!$B:$N,2,FALSE),"") -> Combustible | E202: =IF(E179>0,VLOOKUP(E179,'Costos de operación'!$B:$N,13,FALSE),"") -> 242000000 | G202: Ingresos totales | H202: =+H201+H200 -> 3296800000 | X202: Ingresos totales | Y202: =+Y201+Y200 -> 0
A203: =IF(B180>0,VLOOKUP(B180,'Costos de inversión'!$B$1:$N$382,2,FALSE),"") -> Permisos | B203: =IF(B180>0,VLOOKUP(B180,'Costos de inversión'!$B$1:$N$382,13,FALSE),"") -> 63000000 | D203: =IF(E180>0,VLOOKUP(E180,'Costos de operación'!$B:$N,2,FALSE),"") -> Agua | E203: =IF(E180>0,VLOOKUP(E180,'Costos de operación'!$B:$N,13,FALSE),"") -> 8000000
A204: =IF(B181>0,VLOOKUP(B181,'Costos de inversión'!$B$1:$N$382,2,FALSE),"") -> Infraestructura | B204: =IF(B181>0,VLOOKUP(B181,'Costos de inversión'!$B$1:$N$382,13,FALSE),"") -> 4007000000 | D204: =IF(E181>0,VLOOKUP(E181,'Costos de operación'!$B:$N,2,FALSE),"") -> Tratamiento RSO | E204: =IF(E181>0,VLOOKUP(E181,'Costos de operación'!$B:$N,13,FALSE),"") -> 811000000
A205: =IF(B182>0,VLOOKUP(B182,'Costos de inversión'!$B$1:$N$382,2,FALSE),"") -> Maquinaria y Equipos (incluido el costo de instalación) | B205: =IF(B182>0,VLOOKUP(B182,'Costos de inversión'!$B$1:$N$382,13,FALSE),"") -> 0 | D205: =IF(E182>0,VLOOKUP(E182,'Costos de operación'!$B:$N,2,FALSE),"") -> Monitoreo Ambiental | E205: =IF(E182>0,VLOOKUP(E182,'Costos de operación'!$B:$N,13,FALSE),"") -> 4000000
A206: =IF(B183>0,VLOOKUP(B183,'Costos de inversión'!$B$1:$N$382,2,FALSE),"") -> Trommel | B206: =IF(B183>0,VLOOKUP(B183,'Costos de inversión'!$B$1:$N$382,13,FALSE),"") -> 141000000 | D206: =IF(E183>0,VLOOKUP(E183,'Costos de operación'!$B:$N,2,FALSE),"") -> Mantenimiento - Maquinaria y equipos | E206: =IF(E183>0,VLOOKUP(E183,'Costos de operación'!$B:$N,13,FALSE),"") -> 31000000
A207: =IF(B184>0,VLOOKUP(B184,'Costos de inversión'!$B$1:$N$382,2,FALSE),"") -> Minicargador | B207: =IF(B184>0,VLOOKUP(B184,'Costos de inversión'!$B$1:$N$382,13,FALSE),"") -> 244344853 | D207: =IF(E184>0,VLOOKUP(E184,'Costos de operación'!$B:$N,2,FALSE),"") -> Mantenimiento - Infraestructura | E207: =IF(E184>0,VLOOKUP(E184,'Costos de operación'!$B:$N,13,FALSE),"") -> 36000000
A208: =IF(B185>0,VLOOKUP(B185,'Costos de inversión'!$B$1:$N$382,2,FALSE),"") -> Tractor | B208: =IF(B185>0,VLOOKUP(B185,'Costos de inversión'!$B$1:$N$382,13,FALSE),"") -> 244344853 | D208: =IF(E185>0,VLOOKUP(E185,'Costos de operación'!$B:$N,2,FALSE),"") -> Mano de Obra | E208: =IF(E185>0,VLOOKUP(E185,'Costos de operación'!$B:$N,13,FALSE),"") -> 57000000
A209: =IF(B186>0,VLOOKUP(B186,'Costos de inversión'!$B$1:$N$382,2,FALSE),"") -> Retroexcavadora | B209: =IF(B186>0,VLOOKUP(B186,'Costos de inversión'!$B$1:$N$382,13,FALSE),"") -> 212985085 | D209: =IF(E186>0,VLOOKUP(E186,'Costos de operación'!$B:$N,2,FALSE),"") -> Valor de Operación Anual | E209: =IF(E186>0,VLOOKUP(E186,'Costos de operación'!$B:$N,13,FALSE),"") -> 1252000000
A210: =IF(B187>0,VLOOKUP(B187,'Costos de inversión'!$B$1:$N$382,2,FALSE),"") -> Montacargas | B210: =IF(B187>0,VLOOKUP(B187,'Costos de inversión'!$B$1:$N$382,13,FALSE),"") -> 151572208 | D210: =IF(E187>0,VLOOKUP(E187,'Costos de operación'!$B:$N,2,FALSE),"") -> 0 | E210: =IF(E187>0,VLOOKUP(E187,'Costos de operación'!$B:$N,13,FALSE),"") -> 0
A211: =IF(B188>0,VLOOKUP(B188,'Costos de inversión'!$B$1:$N$382,2,FALSE),"") -> Planta electrica | B211: =IF(B188>0,VLOOKUP(B188,'Costos de inversión'!$B$1:$N$382,13,FALSE),"") -> 143732266 | D211: =IF(E188>0,VLOOKUP(E188,'Costos de operación'!$B:$N,2,FALSE),"") ->  | E211: =IF(E188>0,VLOOKUP(E188,'Costos de operación'!$B:$N,13,FALSE),"") -> 
A212: =IF(B189>0,VLOOKUP(B189,'Costos de inversión'!$B$1:$N$382,2,FALSE),"") -> Compresor | B212: =IF(B189>0,VLOOKUP(B189,'Costos de inversión'!$B$1:$N$382,13,FALSE),"") -> 35279738 | D212: =IF(E189>0,VLOOKUP(E189,'Costos de operación'!$B:$N,2,FALSE),"") ->  | E212: =IF(E189>0,VLOOKUP(E189,'Costos de operación'!$B:$N,13,FALSE),"") -> 
A213: =IF(B190>0,VLOOKUP(B190,'Costos de inversión'!$B$1:$N$382,2,FALSE),"") -> Volqueta | B213: =IF(B190>0,VLOOKUP(B190,'Costos de inversión'!$B$1:$N$382,13,FALSE),"") -> 574929065 | E213: =IF(E190>0,VLOOKUP(E190,'Costos de operación'!$B:$N,13,FALSE),"") -> 
A214: =IF(B191>0,VLOOKUP(B191,'Costos de inversión'!$B$1:$N$382,2,FALSE),"") -> Total Costo de Inversión Inicial | B214: =IF(B191>0,VLOOKUP(B191,'Costos de inversión'!$B$1:$N$382,13,FALSE),"") -> 5944188068 | D214: =IF(E191>0,VLOOKUP(E191,'Costos de operación'!$B:$N,2,FALSE),"") ->  | E214: =IF(E191>0,VLOOKUP(E191,'Costos de operación'!$B:$N,13,FALSE),"") -> 
A215: =IF(B192>0,VLOOKUP(B192,'Costos de inversión'!$B$1:$N$382,2,FALSE),"") -> 0 | B215: =IF(B192>0,VLOOKUP(B192,'Costos de inversión'!$B$1:$N$382,13,FALSE),"") -> 0
A216: =IF(B193>0,VLOOKUP(B193,'Costos de inversión'!$B$1:$N$382,2,FALSE),"") -> 0 | B216: =IF(B193>0,VLOOKUP(B193,'Costos de inversión'!$B$1:$N$382,13,FALSE),"") -> 0
A222: =+$C$169 -> Tratamiento Mecánico Biológico
A223: Costos de inversión (CAPEX) | D223: Costos de operación (OPEX) | G223: Ingresos
A225: Fila | B225: =+MATCH($C$169,'Costos de inversión'!$A:$A,0) -> 63 | D225: Fila | E225: =MATCH($C$169,'Costos de operación'!$A:$A,0) -> 49
B226: =+B225+1 -> 64 | E226: =+E225+1 -> 50
B227: =+B226+1 -> 65 | E227: =+E226+1 -> 51
B228: 66 | E228: 52
B229: 67 | E229: 53
... 75 more rows

Sheet Ponderaciones (hidden)
A1: Capacidad Administrativa
A3: Ponderación | B3: Valor | E3: Indicador | F3: Peso ponderación
A4: Alta | B4: >= | C4: 8 | E4: Medición de Desempeño Municipal | F4: 0.5
A5: Media | B5: 4<n<8 | E5: Categoría Municipal (Ley 617 de 2000) | F5: 0.125
A6: Baja | B6: < | C6: 4 | E6: Municipio PDET o ZOMAC | F6: 0.125
E7: Existencia de PGIRS actualizado | F7: 0.25
A10: Medición de Desempeño Municipal | D10: Categoría Municipal (Ley 617 de 2000) | G10: Municipio PDET o ZOMAC
A11: Resultado | B11: Valor | D11: Resultado | E11: Valor | G11: Resultado | H11: Valor
A12: Bajo | B12: 2 | D12: Sexta | E12: 1 | G12: Si | H12: 1
A13: Crítico | B13: 4 | D13: Quinta | E13: 2 | G13: No | H13: 10
A14: Medio | B14: 6 | D14: Cuarta | E14: 4
A15: Satisfactorio | B15: 8 | D15: Tercera | E15: 6
A16: Sobresaliente | B16: 10 | D16: Segunda | E16: 8 | G16: Existencia de PGIRS actualizado
D17: Primera | E17: 10 | G17: Resultado | H17: Valor
D18: Especial | E18: 10 | G18: Si | H18: 10
G19: No | H19: 1
A21: Capacidad Técnica - Separación en la fuente
A23: Ponderación | B23: Valor | E23: Indicador | F23: Peso ponderación
A24: Alta | B24: >= | C24: 8 | E24: ¿Existen rutas selectivas de residuos aprovechables? | F24: 0.4
A25: Media | B25: 4<n<8 | E25: ¿Separan los residuos orgánicos? | F25: 0.2
A26: Baja | B26: < | C26: 4 | E26: =G30 -> Línea base PGIRS actualizada | F26: 0.4
A30: ¿Existen rutas selectivas de residuos aprovechables? | D30: ¿Separan los residuos orgánicos? | G30: Línea base PGIRS actualizada
A31: Resultado | B31: Valor | D31: Resultado | E31: Valor | G31: Resultado | H31: Valor
A32: No | B32: 1 | D32: No | E32: 1 | G32: No | H32: 1
A33: Si | B33: 10 | D33: Si | E33: 10 | G33: Si | H33: 10
A38: Capacidad Técnica - Recolección y Transporte
A40: Ponderación | B40: Valor | E40: Indicador | F40: Peso ponderación
A41: Alta | B41: >= | C41: 8 | E41: Cobertura en la recolección y transporte de residuos en el área urbana (%) | F41: 0.4
A42: Media | B42: 4<n<8 | E42: Cobertura en la recolección y transporte de residuos en el área rural (%) | F42: 0.3
A43: Baja | B43: < | C43: 4 | E43: Distancia a sitio de disposición final | F43: 0.15
E44: Estado de las vías hasta el sitio de disposición final más cercano o utilizado actualmente | F44: 0.15
A47: Cobertura en la recolección y transporte de residuos | D47: Distancia a sitio de disposición final | G47: Distancia a sitio de disposición final
A48: Resultado | B48: Valor | D48: Resultado | E48: Valor | G48: Resultado | H48: Valor
A49: Menor al 50% | B49: 3 | D49: Menor a 10 km | E49: 10 | G49: Inexistentes o distintas a vía terreste | H49: 10
A50: Entre el 50% y el 75% | B50: 6 | D50: Entre 10 km y 20 km | E50: 8 | G50: Tramo mayoritariamente despavimentado, difícil acceso | H50: 4
A51: Entre el 75% y el 90% | B51: 8 | D51: Entre 20 km y 50 km | E51: 6 | G51: Tramo mayoritariamente despavimentado, fácil acceso | H51: 6
A52: Superior al 90% | B52: 10 | D52: Entre 50 km y 100 km | E52: 4 | G52: Tramo mayoritariamente pavimentado, difícil acceso | H52: 8
D53: Más de 100 km | E53: 2 | G53: Tramo mayoritariamente pavimentado, fácil acceso | H53: 10
A56: Capacidad Técnica - Tratamiento y Disposición final
A58: Ponderación | B58: Valor | E58: Indicador | F58: Peso ponderación
A59: Alta | B59: >= | C59: 8 | E59: Tipo de sitio de disposición final | F59: 0.5
A60: Media | B60: 4<n<8 | E60: El sitio de disposición final, ¿es regional? | F60: 0.1
A61: Baja | B61: < | C61: 4 | E61: Años de operación del sitio de disposición final | F61: 0.1
E62: Vida útil del sitio de disposición final | F62: 0.1
E63: Sistema de extracción y aprovechamiento de biogás en el sitio de disposición final | F63: 0.2
A66: Tipo de sitio de disposición final | D66: El sitio de disposición final, ¿es regional? | G66: Años de operación del sitio de disposición final
A67: Resultado | B67: Valor | D67: Resultado | E67: Valor | G67: Resultado | H67: Valor
A68: Relleno Sanitario | B68: 10 | D68: No | E68: 1 | G68: Menos de 5 años | H68: 2
A69: Celda de contingencia | B69: 7 | D69: Si | E69: 10 | G69: Entre 5 y 10 años | H69: 4
A70: Celda transitoria | B70: 5 | G70: Entre 10 y 15 años | H70: 6
A71: Botadero a cielo abierto | B71: 3 | G71: Entre 15 y 20 años | H71: 8
A72: Otro | B72: 1 | G72: Más de 20 años | H72: 10
A75: Vida útil del sitio de disposición final | D75: Sistema de extracción y aprovechamiento de biogás en el sitio de disposición final
A76: Resultado | B76: Valor | D76: Resultado | E76: Valor
A77: Menos de 5 años | B77: 2 | D77: No cuenta con sistema de extracción del biogás | E77: 1
A78: Entre 5 y 10 años | B78: 4 | D78: Cuenta con sistema de extracción más no de aprovechamiento | E78: 5
A79: Entre 10 y 15 años | B79: 6 | D79: Cuenta con sistema de extracción y de aprovechamiento | E79: 10
A80: Entre 15 y 20 años | B80: 8
A81: Más de 20 años | B81: 10
A83: Capacidad Técnica - Uso de suelo
A85: Ponderación | B85: Valor | E85: Indicador | F85: Peso ponderación
A86: Alta | B86: >= | C86: 8 | E86: Existencia de polígonos para la edificación de infraestructura de tratamiento en el Plan de Ordenamiento Territorial municipal | F86: 0.7
A87: Media | B87: 4<n<8 | E87: Existencia de áreas ya impactadas por las actividades de disposición final y transferencia | F87: 0.1
A88: Baja | B88: < | C88: 4 | E88: Existencia de suelos urbanos con actividades definidas como industriales de alto impacto | F88: 0.1
E89: Existencia de suelos de expansión y rurales sin restricciones ambientales y debidamente recogidas en la cartografía oficial | F89: 0.1
A92: Existencia de polígonos para la edificación de infraestructura de tratamiento en el Plan de Ordenamiento Territorial municipal | D92: Existencia de áreas ya impactadas por las actividades de disposición final y transferencia | G92: Existencia de suelos urbanos con actividades definidas como industriales de alto impacto
A93: Resultado | B93: Valor | D93: Resultado | E93: Valor | G93: Resultado | H93: Valor
A94: No | B94: 1 | D94: No | E94: 1 | G94: No | H94: 1
A95: Si | B95: 10 | D95: Si | E95: 10 | G95: Si | H95: 10
A97: Existencia de suelos de expansión y rurales sin restricciones ambientales y debidamente recogidas en la cartografía oficial
A98: Resultado | B98: Valor
A99: No | B99: 1
A100: Si | B100: 10
A102: Capacidad Técnica - Ponderación total
A104: Ponderación | B104: Valor | E104: Indicador | F104: Peso ponderación
A105: Alta | B105: >= | C105: 8 | E105: Separación en la fuente | F105: 0.15
A106: Media | B106: 4<n<8 | E106: Recolección y transporte | F106: 0.2
A107: Baja | B107: < | C107: 4 | E107: Tratamiento y Disposición Final | F107: 0.25
E108: Uso de suelo | F108: 0.4
A110: Resultados indicador
A111: Resultado | B111: Valor
A112: Alta | B112: 10
A113: Media | B113: 5
A114: Baja | B114: 1
A117: Capacidad Económica
A119: Ponderación | B119: Valor | E119: Indicador | F119: Peso ponderación
A120: Alta | B120: >= | C120: 8 | E120: Existen proyectos de tratamiento de residuos sólidos viabilizados en el PGIRS | F120: 0.25
A121: Media | B121: 4<n<8 | E121: Recursos del FUT destinados por la entidad territorial para financiar el tratamiento de residuos sólidos | F121: 0.15
A122: Baja | B122: < | C122: 4 | E122: Índice de pobreza multidimensional | F122: 0.4
E123: Eficiencia en el recaudo | F123: 0.2
A125: Existen proyectos de tratamiento de residuos sólidos viabilizados en el PGIRS | D125: Recursos del FUT destinados por la entidad territorial para financiar el tratamiento de residuos sólidos | G125: Índice de Pobreza Multidimensional
A126: Resultado | B126: Valor | D126: Resultado | E126: Valor | G126: Resultado | H126: Valor
A127: No | B127: 1 | D127: No | E127: 1 | G127: Menor al 10% | H127: 10
A128: Si | B128: 10 | D128: Si | E128: 10 | G128: Entre el 10% y el 25% | H128: 8
G129: Entre el 25% y el 50% | H129: 6
G130: Entre el 50% y el 75% | H130: 4
A131: Eficiencia en el recaudo | G131: Superior al 75% | H131: 2
A132: Resultado | B132: Valor
A133: Menor al 10% | B133: 2
A134: Entre el 10% y el 25% | B134: 4
A135: Entre el 25% y el 50% | B135: 6
A136: Entre el 50% y el 75% | B136: 8
A137: Superior al 75% | B137: 10
A140: Identificación Escenarios
A144: Escenario | B144: Nivel de favorabilidad | D144: Aspecto | G144: Escenario
A145: 1 | B145: Muy alta | D145: Capacidad Administrativa | E145: Capacidad técnica | F145: Capacidad económica
A146: 2 | B146: Alta | D146: Alta | E146: Alta | F146: Alta | G146: 1
A147: 3 | B147: Media | D147: Media | E147: Alta | F147: Alta | G147: 2
A148: 4 | B148: Moderada | D148: Alta | E148: Alta | F148: Media | G148: 2
A149: 5 | B149: Baja | D149: Media | E149: Alta | F149: Media | G149: 2
A150: 6 | B150: Muy baja | D150: Alta | E150: Alta | F150: Baja | G150: 2
D151: Baja | E151: Alta | F151: Alta | G151: 2
D152: Media | E152: Alta | F152: Baja | G152: 3
D153: Baja | E153: Alta | F153: Media | G153: 3
D154: Alta | E154: Media | F154: Alta | G154: 3
D155: Alta | E155: Media | F155: Media | G155: 3
D156: Media | E156: Media | F156: Alta | G156: 3
D157: Media | E157: Media | F157: Media | G157: 3
D158: Baja | E158: Alta | F158: Baja | G158: 4
D159: Alta | E159: Media | F159: Baja | G159: 4
D160: Media | E160: Media | F160: Baja | G160: 4
D161: Baja | E161: Media | F161: Alta | G161: 4
D162: Baja | E162: Media | F162: Media | G162: 4
D163: Baja | E163: Media | F163: Baja | G163: 4
D164: Alta | E164: Baja | F164: Alta | G164: 4
D165: Media | E165: Baja | F165: Alta | G165: 5
D166: Alta | E166: Baja | F166: Media | G166: 5
D167: Media | E167: Baja | F167: Media | G167: 5
D168: Baja | E168: Baja | F168: Alta | G168: 5
D169: Alta | E169: Baja | F169: Baja | G169: 5
D170: Media | E170: Baja | F170: Baja | G170: 6
D171: Baja | E171: Baja | F171: Media | G171: 6
D172: Baja | E172: Baja | F172: Baja | G172: 6
A177: Tecnologías a Evaluar
A179: Ponderación | B179: Valor | E179: Indicador | F179: Peso ponderación
A180: Alta | B180: >= | C180: 8 | E180: Tecnología según mercado atendido | F180: 0.4
A181: Media | B181: 4<n<8 | E181: Relación costo beneficio | F181: 0.05
A182: Baja | B182: < | C182: 4 | E182: Potencial de desvío de residuos a relleno sanitario (tpa) - límite inferior | F182: 0.1
E183: Potencial de desvío de residuos a relleno sanitario (tpa) - límite superior | F183: 0.05
E184: Potencial de reducción de emisión de GEI | F184: 0.1
E185: Alternativa más económica | F185: 0.3
A188: Tecnología según mercado atendido | D188: Relación costo beneficio | G188: Potencial de desvío de residuos a relleno sanitario (tpa) - límite inferior
A189: Resultado | B189: Valor | D189: Resultado | E189: Valor | G189: Resultado | H189: Valor
A190: Tecología más apropiada | B190: 10 | D190: Mayor a 1 | E190: 10 | G190: 1 | H190: 10
A191: Tecnología apropiada | B191: 5 | D191: Igual a 1 | E191: 5 | G191: 2 | H191: 8
A192: Tecnología no apropiada | B192: 3 | D192: Menor a 1 | E192: 1 | G192: 3 | H192: 6
G193: Otros | H193: 4
A197: Potencial de desvío de residuos a relleno sanitario (tpa) - límite superior | D197: Potencial de reducción de emisión de GEI | G197: Alternativa más económica
A198: Resultado | B198: Valor | D198: Resultado | E198: Valor | G198: Resultado | H198: Valor
A199: 1 | B199: 10 | D199: 0.9 | E199: 10 | G199: 1 | H199: 10
A200: 2 | B200: 8 | D200: 0.75 | E200: 8 | G200: 2 | H200: 8
A201: 3 | B201: 6 | D201: 0.6 | E201: 6 | G201: 3 | H201: 6
A202: Otros | B202: 4 | D202: 0.45 | E202: 4 | G202: Otros | H202: 4
A203: 0.3 | B203: 2 | D203: 0.3 | E203: 2 | G203: 0.3 | H203: 2

Sheet Fichas técnicas Tecnologías (hidden)
A1: Tecnología | B1: Descripción | C1: Escala y capacidad óptima (ton/año) | D1: Recomendaciones específicas | E1: Complejidad | F1: Recomendaciones específicas | G1: Tipo de residuos tratados | H1: Recomendaciones específicas | I1: Salidas | J1: Recomendaciones específicas | K1: Impacto ambiental | L1: Recomendaciones específicas | M1: Recomendaciones específicas sobre GEI | N1: Desviación de residuos (ton/año) | P1: % Reducción de GEI en comparación con su disposición final en relleno sanitario | Q1: Potencial transformación (ton subproducto/ton residuos) | R1: Ingresos venta supproductos (USD) por unidad | S1: % de rechazo de residuos | T1: Recomendaciones adicionales | U1: Recomendaciones Humedad | V1: Definición del área requerida por tecnologia de tratamiento para residuos sólidos totales | W1: Definición del área requerida por tecnologia de tratamiento para residuos de poda corte de cesped y plazas de mercado | X1: Definición del volumen para tratamiento para residuos sólidos totales | Y1: Definición del volumen para residuos de poda corte de cesped y plazas de mercado | Z1: Definición del volumen para desviación de residuos órganicos
N2: % inferior | O2: % superior
A3: Compostaje en pilas con volteo manual | B3: Descomposición de la materia orgánica por microorganismos en condiciones aerobias, llevada a cabo en montículos de RSO bajo condiciones controladas y cuyos requerimientos de oxígeno son alcanzados mezclando las pilas frecuentemente. | C3: 1000 - 200000 | D3: =IF(Cálculo!$B$127<1000,_xlfn.CONCAT("Dado que el proyecto busca dar tratamiento a aproximadamente a ",ROUNDDOWN(Cálculo!$B$127,0)," toneladas anuales de residuos orgánicos, para una implementación adecuada de la tecnología se recomienda abarcar un mercado mayor, incluyendo otros municipios dentro del proyecto. ",IF('Datos de entrada'!$B$11="No","Se recomienda considerar los residuos orgánicos provenientes de plazas de mercado y centrales de abasto para alcanzar la éscala óptima de la tecnología. ",""),IF('Datos de entrada'!$B$13="No","Además, se recomienda considerar los residuos orgánicos provenientes de corte de césped y poda de árboles para alcanzar la éscala óptima de la tecnología","")),IF(Cálculo!$B$127>200000,_xlfn.CONCAT("Dado que el proyecto busca dar tratamiento a aproximadamente a ",ROUNDDOWN(Cálculo!$B$127,0)," toneladas anuales de residuos orgánicos, se recomienda analizar la implementación de una mezcla de tecnologías y plantas de tratamiento en diferentes localizaciones para cubrir la demanda",". Todas las estimaciones realizadas parten de la capacidad de una planta de tratamiento de 200.000 toneladas al año"),_xlfn.CONCAT("Dado que el proyecto busca dar tratamiento a aproximadamente a ",ROUNDDOWN(Cálculo!$B$127,0)," toneladas anuales de residuos orgánicos, cuenta con una escala adecuada para implementar la tecnología"))) -> Dado que el proyecto busca dar tratamiento a aproximadamente a 45725 toneladas anuales de residuos orgánicos, cuenta con una escala adecuada para implementar la tecnología | E3: Baja-media | F3: =IF(Cálculo!$C$136=Ponderaciones!$A$24,"Esta tecnología no requiere personal muy tecnificado ni equipos con especificaciones técnicas elevadas."&"Su principal barrera se presenta por la incorrecta separación en la fuente de los residuos por parte del suscriptor."&"De acuerdo con la información suministrada la población atendida cuenta con buenas prácticas en este aspecto."&" Igualmente es recomendable desarrollar campañas educativas que mantengan a los habitantes enterados sobre las buenas prácticas en gestión de residuos sólidos",IF(Cálculo!$C$136=Ponderaciones!$A$25,"Esta tecnología no requiere personal muy tecnificado ni equipos con especificaciones técnicas elevadas."&"Su principal barrera se presenta por la incorrecta separación en la fuente de los residuos por parte del suscriptor."&"Dados las salidas obtenidas por el modelo en este aspecto se recomienda desarrollar campañas educativas que mantengan a los habitantes"&" enterados sobre las buenas prácticas en gestión de residuos sólidos enfocados en la separación en la fuente de residuos sólidos orgánicos y en economía circular","Esta tecnología no requiere personal muy tecnificado ni equipos con especificaciones técnicas elevadas."&"Su principal barrera se presenta por la incorrecta separación en la fuente de los residuos por parte del suscriptor."&" Dadas las salidas obtenidas por el modelo en este aspecto antes de implementar la tecnología es urgente desarrollar campañas"&" enfocadas en la separación en la fuente de residuos orgánicos la economía circular y los impactos negativos a la salud humana y del ambiente por una inadecuada gestión de residuos sólidos")) -> Esta tecnología no requiere personal muy tecnificado ni equipos con especificaciones técnicas elevadas.Su principal barrera se presenta por la incorrecta separación en la fuente de los residuos por parte del suscriptor.Dados las salidas obtenidas por el modelo en este aspecto se recomienda desarrollar campañas educativas que mantengan a los habitantes enterados sobre las buenas prácticas en gestión de residuos sólidos enfocados en la separación en la fuente de residuos sólidos orgánicos y en economía circular | G3: Residuos Sólidos Orgánicos (RSO) | H3: =IF(OR('Datos de entrada'!$B$11="No",'Datos de entrada'!$B$13="No"),IF(Cálculo!$C$136=Ponderaciones!$A$24,"Dada que se cuenta con una separación en la fuente adecuada, los RSO entregados serán homogéneos disminuyendo"&" los costos de su adecuación para el tratamiento."&" Además, se recomienda incluir los residuos provenientes de poda de árboles o corte de cesped,"&" o los de plaas de mercado y centrales de abasto",IF(Cálculo!$C$136=Ponderaciones!$A$25,"Dada que se cuenta con una separación en la fuente medianamente adecuada,"&" es necesario fortalecerla con campañas, lo cual permitirá que los residuos destinados a tratamiento"&" sean más homogéneos y así disminuir los costos de su adecuación para su tratamiento.","Antes de considerar desarrollar un proyecto de tratamiento de residuos sólidos, es necesario elevar los niveles de separación en la fuente para garantizar su éxito.")), IF(Cálculo!$C$136=Ponderaciones!$A$24,"Dada que se cuenta con una separación en la fuente adecuada, los RSO entregados serán homogéneos disminuyendo"&" los costos de su adecuación para el tratamiento.",IF(Cálculo!$C$136=Ponderaciones!$A$25,"Dada que se cuenta con una separación en la fuente medianamente adecuada,"&" es necesario fortalecerla con campañas, lo cual permitirá que los residuos destinados a tratamiento"&" sean más homogéneos y así disminuir los costos de su adecuación para su tratamiento.","Antes de considerar desarrollar un proyecto de tratamiento de residuos sólidos, es necesario elevar los niveles de separación en la fuente para garantizar su éxito."))) -> Dada que se cuenta con una separación en la fuente medianamente adecuada, es necesario fortalecerla con campañas, lo cual permitirá que los residuos destinados a tratamiento sean más homogéneos y así disminuir los costos de su adecuación para su tratamiento. | I3: Compost | K3: Olores Ruido Contaminación visual | L3: ="Implemente prácticas adecuadas en la operación del sistema permite evitar el impacto ambiental ocasionado."&" Se recomienda que revise literatura y otras experiencias sobre cómo monitorear, entre otras variables, el tamaño de las partículas, el contenido de carbono y nitrógeno, el contenido de humedad, la temperatura, el pH y la presencia de patógenos."&" Algunas Corporaciones Autónomas Regionales han expedido manuales al respecto, así como entidades tales como la UAESP de Bogotá y organizaciones como ACODAL."&IF(X3>=20000," El tamaño de la planta requiere licenciamiento ambiental, por lo tanto debe elaborar el plan de manejo ambiental y adelantar los tramites para obtenerla.","") -> Implemente prácticas adecuadas en la operación del sistema permite evitar el impacto ambiental ocasionado. Se recomienda que revise literatura y otras experiencias sobre cómo monitorear, entre otras variables, el tamaño de las partículas, el contenido de carbono y nitrógeno, el contenido de humedad, la temperatura, el pH y la presencia de patógenos. Algunas Corporaciones Autónomas Regionales han expedido manuales al respecto, así como entidades tales como la UAESP de Bogotá y organizaciones como ACODAL. El tamaño de la planta requiere licenciamiento ambiental, por lo tanto debe elaborar el plan de manejo ambiental y adelantar los tramites para obtenerla. | M3: Si usted desea hacer una estimación de toneladas equivalentes de CO2 puede remitirse a la herramienta de cálculo de gases de efecto invernadero (GEI) en el manejo de residuos sólidos (MRS) en este link https://www.bivica.org/file/view/id/1081 y al https://www.ifeu.de/en/project/tool-for-calculating-greenhouse-gases-ghg-in-solid-waste-management-swm/ | N3: 0.25 | O3: 0.38 | P3: 0.42 | Q3: 0.6 | R3: 60 | T3: ="Tenga presente que la tecnologia de Compostaje con volteo manual requiere mayor área frente a la tecnología con aireación forzada. Para una planta de "&X3&" toneladas por año se requieren de "&V3&" hectaréas frente a un área de "&V4&" hectareas para la segunda"&"""Esta tecnología presenta menor resistencia a los cambios metereológicos." -> Tenga presente que la tecnologia de Compostaje con volteo manual requiere mayor área frente a la tecnología con aireación forzada. Para una planta de 46000 toneladas por año se requieren de 16 hectaréas frente a un área de 13 hectareas para la segunda"Esta tecnología presenta menor resistencia a los cambios metereológicos. | U3: =+IF(Valoración!H3="No adecuado","La humedad existente no es suficiente, se debe aumentar su contenido para lo cual deberá evaluar su costo. ","") -> La humedad existente no es suficiente, se debe aumentar su contenido para lo cual deberá evaluar su costo. | V3: =Valoración!C3*0.8/10000 -> 16 | W3: =('Datos de entrada'!B12+'Datos de entrada'!B14)/Valoración!C3*0.6 -> 0 | X3: =ROUND(IF(AND(Cálculo!B127<=Valoración!C3,Cálculo!B127>=Valoración!B3),Cálculo!B127,Valoración!C3),-3) -> 46000 | Y3: =+IF(AND(Cálculo!$C$128<=Valoración!C3,Cálculo!$B$128>=Valoración!B3),Cálculo!$C$128,Valoración!C3) -> 200000 | Z3: =+IF(Cálculo!$B$127>=Valoración!C3,Valoración!C3*(1-N3),Cálculo!$B$127*(1-N3)) -> 34293.87374
A4: Compostaje en pilas con aireación forzada | B4: Proceso similar al compostaje en pilas con volteo manual, cuya diferencia radica en que el oxígeno requerido es inyectado mecánicamente. | C4: 1000 - 200000 | D4: =IF(Cálculo!$B$127<1000,_xlfn.CONCAT("Dado que el proyecto busca dar tratamiento a aproximadamente a ",ROUNDDOWN(Cálculo!$B$127,0)," toneladas anuales de residuos orgánicos, para una implementación adecuada de la tecnología se recomienda abarcar un mercado mayor, incluyendo otros municipios dentro del proyecto. ",IF('Datos de entrada'!$B$11="No","Se recomienda considerar los residuos orgánicos provenientes de plazas de mercado y centrales de abasto para alcanzar la éscala óptima de la tecnología. ",""),IF('Datos de entrada'!$B$13="No","Además, se recomienda considerar los residuos orgánicos provenientes de corte de césped y poda de árboles para alcanzar la éscala óptima de la tecnología","")),IF(Cálculo!$B$127>200000,_xlfn.CONCAT("Dado que el proyecto busca dar tratamiento a aproximadamente a ",ROUNDDOWN(Cálculo!$B$127,0)," toneladas anuales de residuos orgánicos, se recomienda analizar la implementación de una mezcla de tecnologías y plantas de tratamiento en diferentes localizaciones para cubrir la demanda",". Todas las estimaciones realizadas parten de la capacidad de una planta de tratamiento de 200.000 toneladas al año"),_xlfn.CONCAT("Dado que el proyecto busca dar tratamiento a aproximadamente a ",ROUNDDOWN(Cálculo!$B$127,0)," toneladas anuales de residuos orgánicos, cuenta con una escala adecuada para implementar la tecnología"))) -> Dado que el proyecto busca dar tratamiento a aproximadamente a 45725 toneladas anuales de residuos orgánicos, cuenta con una escala adecuada para implementar la tecnología | E4: Baja-media | F4: =IF(Cálculo!$C$136=Ponderaciones!$A$24,"Esta tecnología no requiere personal muy tecnificado ni equipos con especificaciones técnicas elevadas."&"Su principal barrera se presenta por la incorrecta separación en la fuente de los residuos por parte del suscriptor."&"De acuerdo con la información suministrada la población atendida cuenta con buenas prácticas en este aspecto."&" Igualmente es recomendable desarrollar campañas educativas que mantengan a los habitantes enterados sobre las buenas prácticas en gestión de residuos sólidos",IF(Cálculo!$C$136=Ponderaciones!$A$25,"Esta tecnología no requiere personal muy tecnificado ni equipos con especificaciones técnicas elevadas."&"Su principal barrera se presenta por la incorrecta separación en la fuente de los residuos por parte del suscriptor."&"Dados las salidas obtenidas por el modelo en este aspecto se recomienda desarrollar campañas educativas que mantengan a los habitantes"&" enterados sobre las buenas prácticas en gestión de residuos sólidos enfocados en la separación en la fuente de residuos sólidos orgánicos y en economía circular","Esta tecnología no requiere personal muy tecnificado ni equipos con especificaciones técnicas elevadas."&"Su principal barrera se presenta por la incorrecta separación en la fuente de los residuos por parte del suscriptor."&" Dadas las salidas obtenidas por el modelo en este aspecto antes de implementar la tecnología es urgente desarrollar campañas"&" enfocadas en la separación en la fuente de residuos orgánicos la economía circular y los impactos negativos a la salud humana y del ambiente por una inadecuada gestión de residuos sólidos")) -> Esta tecnología no requiere personal muy tecnificado ni equipos con especificaciones técnicas elevadas.Su principal barrera se presenta por la incorrecta separación en la fuente de los residuos por parte del suscriptor.Dados las salidas obtenidas por el modelo en este aspecto se recomienda desarrollar campañas educativas que mantengan a los habitantes enterados sobre las buenas prácticas en gestión de residuos sólidos enfocados en la separación en la fuente de residuos sólidos orgánicos y en economía circular | G4: Residuos Sólidos Orgánicos (RSO) | H4: =IF(OR('Datos de entrada'!$B$11="No",'Datos de entrada'!$B$13="No"),IF(Cálculo!$C$136=Ponderaciones!$A$24,"Dada que se cuenta con una separación en la fuente adecuada, los RSO entregados serán homogéneos disminuyendo"&" los costos de su adecuación para el tratamiento."&" Además, se recomienda incluir los residuos provenientes de poda de árboles o corte de cesped,"&" o los de plaas de mercado y centrales de abasto",IF(Cálculo!$C$136=Ponderaciones!$A$25,"Dada que se cuenta con una separación en la fuente medianamente adecuada,"&" es necesario fortalecerla con campañas, lo cual permitirá que los residuos destinados a tratamiento"&" sean más homogéneos y así disminuir los costos de su adecuación para su tratamiento.","Antes de considerar desarrollar un proyecto de tratamiento de residuos sólidos, es necesario elevar los niveles de separación en la fuente para garantizar su éxito.")), IF(Cálculo!$C$136=Ponderaciones!$A$24,"Dada que se cuenta con una separación en la fuente adecuada, los RSO entregados serán homogéneos disminuyendo"&" los costos de su adecuación para el tratamiento.",IF(Cálculo!$C$136=Ponderaciones!$A$25,"Dada que se cuenta con una separación en la fuente medianamente adecuada,"&" es necesario fortalecerla con campañas, lo cual permitirá que los residuos destinados a tratamiento"&" sean más homogéneos y así disminuir los costos de su adecuación para su tratamiento.","Antes de considerar desarrollar un proyecto de tratamiento de residuos sólidos, es necesario elevar los niveles de separación en la fuente para garantizar su éxito."))) -> Dada que se cuenta con una separación en la fuente medianamente adecuada, es necesario fortalecerla con campañas, lo cual permitirá que los residuos destinados a tratamiento sean más homogéneos y así disminuir los costos de su adecuación para su tratamiento. | I4: Compost | K4: Olores Ruido Contaminación visual | L4: ="Implemente prácticas adecuadas en la operación del sistema permite evitar el impacto ambiental ocasionado."&" Se recomienda que revise literatura y otras experiencias sobre cómo monitorear, entre otras variables, el tamaño de las partículas, el contenido de carbono y nitrógeno, el contenido de humedad, la temperatura, el pH y la presencia de patógenos."&" Algunas Corporaciones Autónomas Regionales han expedido manuales al respecto, así como entidades tales como la UAESP de Bogotá y organizaciones como ACODAL."&IF(X4>=20000," El tamaño de la planta requiere licenciamiento ambiental, por lo tanto debe elaborar el plan de manejo ambiental y adelantar los tramites para obtenerla.","") -> Implemente prácticas adecuadas en la operación del sistema permite evitar el impacto ambiental ocasionado. Se recomienda que revise literatura y otras experiencias sobre cómo monitorear, entre otras variables, el tamaño de las partículas, el contenido de carbono y nitrógeno, el contenido de humedad, la temperatura, el pH y la presencia de patógenos. Algunas Corporaciones Autónomas Regionales han expedido manuales al respecto, así como entidades tales como la UAESP de Bogotá y organizaciones como ACODAL. El tamaño de la planta requiere licenciamiento ambiental, por lo tanto debe elaborar el plan de manejo ambiental y adelantar los tramites para obtenerla. | M4: =+M3 -> Si usted desea hacer una estimación de toneladas equivalentes de CO2 puede remitirse a la herramienta de cálculo de gases de efecto invernadero (GEI) en el manejo de residuos sólidos (MRS) en este link https://www.bivica.org/file/view/id/1081 y al https://www.ifeu.de/en/project/tool-for-calculating-greenhouse-gases-ghg-in-solid-waste-management-swm/ | N4: 0.28 | O4: 0.41 | P4: 0.4 | Q4: 0.5 | R4: 60 | T4: ="Tenga presente que la tecnologia de Compostaje con aireación forzada requiere menos áreas frente a la tecnología con volteo manual. Para una planta de "&X4&" toneladas por año se requieren de "&V4&" hectaréas frente a un área de "&V3&" hectareas para la segunda."&" Esta tecnología presenta mayor resistencia a los cambios metereológicos, sin embargo, demanda mayor monitoreo." -> Tenga presente que la tecnologia de Compostaje con aireación forzada requiere menos áreas frente a la tecnología con volteo manual. Para una planta de 46000 toneladas por año se requieren de 13 hectaréas frente a un área de 16 hectareas para la segunda. Esta tecnología presenta mayor resistencia a los cambios metereológicos, sin embargo, demanda mayor monitoreo. | U4: =+IF(Valoración!H4="No adecuado","La humedad existente no es suficiente, se debe aumentar su contenido para lo cual deberá evaluar su costo. ","") -> La humedad existente no es suficiente, se debe aumentar su contenido para lo cual deberá evaluar su costo. | V4: =Valoración!C4*0.65/10000 -> 13 | W4: =('Datos de entrada'!B12+'Datos de entrada'!B14)/Valoración!C4*0.38 -> 0 | X4: =ROUND(IF(AND(Cálculo!$B$127<=Valoración!C4,Cálculo!$B$127>=Valoración!B4),Cálculo!$B$127,Valoración!C4),-3) -> 46000 | Y4: =+IF(AND(Cálculo!$C$128<=Valoración!C4,Cálculo!$B$128>=Valoración!B4),Cálculo!$C$128,Valoración!C4) -> 200000 | Z4: =+IF(Cálculo!$B$127>=Valoración!C4,Valoración!C4*(1-N4),Cálculo!$B$127*(1-N4)) -> 32922.11879
A5: Compostaje cerrado o "In vessel" | B5: Proceso de compostaje (degradación de la materia orgánica en condiciones aerobias) realizado en reactores cerrados en condiciones controladas. | C5: 5000 - 300000 | D5: =IF(Cálculo!$B$127<5000,_xlfn.CONCAT("Dado que el proyecto busca dar tratamiento a aproximadamente a ",ROUNDDOWN(Cálculo!$B$127,0)," toneladas anuales de residuos orgánicos, para una implementación adecuada de la tecnología se recomienda abarcar un mercado mayor, incluyendo otros municipios dentro del proyecto. ",IF('Datos de entrada'!$B$11="No","Se recomienda considerar los residuos orgánicos provenientes de plazas de mercado y centrales de abasto para alcanzar la éscala óptima de la tecnología. ",""),IF('Datos de entrada'!$B$13="No","Además, se recomienda considerar los residuos orgánicos provenientes de corte de césped y poda de árboles para alcanzar la éscala óptima de la tecnología","")),IF(Cálculo!$B$127>300000,_xlfn.CONCAT("Dado que el proyecto busca dar tratamiento a aproximadamente a ",ROUNDDOWN(Cálculo!$B$127,0)," toneladas anuales de residuos orgánicos, se recomienda analizar la implementación de una mezcla de tecnologías y plantas de tratamiento en diferentes localizaciones para cubrir la demanda",". Todas las estimaciones realizadas parten de la capacidad de una planta de tratamiento de 300.000 toneladas al año"),_xlfn.CONCAT("Dado que el proyecto busca dar tratamiento a aproximadamente a ",ROUNDDOWN(Cálculo!$B$127,0)," toneladas anuales de residuos orgánicos, cuenta con una escala adecuada para implementar la tecnología"))) -> Dado que el proyecto busca dar tratamiento a aproximadamente a 45725 toneladas anuales de residuos orgánicos, cuenta con una escala adecuada para implementar la tecnología | E5: Baja-media | F5: =IF(Cálculo!$C$136=Ponderaciones!$A$24,"Esta tecnología no requiere personal muy tecnificado ni equipos con especificaciones técnicas elevadas."&"Su principal barrera se presenta por la incorrecta separación en la fuente de los residuos por parte del suscriptor."&"De acuerdo con la información suministrada la población atendida cuenta con buenas prácticas en este aspecto."&" Igualmente es recomendable desarrollar campañas educativas que mantengan a los habitantes enterados sobre las buenas prácticas en gestión de residuos sólidos",IF(Cálculo!$C$136=Ponderaciones!$A$25,"Esta tecnología no requiere personal muy tecnificado ni equipos con especificaciones técnicas elevadas."&"Su principal barrera se presenta por la incorrecta separación en la fuente de los residuos por parte del suscriptor."&"Dados las salidas obtenidas por el modelo en este aspecto se recomienda desarrollar campañas educativas que mantengan a los habitantes"&" enterados sobre las buenas prácticas en gestión de residuos sólidos enfocados en la separación en la fuente de residuos sólidos orgánicos y en economía circular","Esta tecnología no requiere personal muy tecnificado ni equipos con especificaciones técnicas elevadas."&"Su principal barrera se presenta por la incorrecta separación en la fuente de los residuos por parte del suscriptor."&" Dadas las salidas obtenidas por el modelo en este aspecto antes de implementar la tecnología es urgente desarrollar campañas"&" enfocadas en la separación en la fuente de residuos orgánicos la economía circular y los impactos negativos a la salud humana y del ambiente por una inadecuada gestión de residuos sólidos")) -> Esta tecnología no requiere personal muy tecnificado ni equipos con especificaciones técnicas elevadas.Su principal barrera se presenta por la incorrecta separación en la fuente de los residuos por parte del suscriptor.Dados las salidas obtenidas por el modelo en este aspecto se recomienda desarrollar campañas educativas que mantengan a los habitantes enterados sobre las buenas prácticas en gestión de residuos sólidos enfocados en la separación en la fuente de residuos sólidos orgánicos y en economía circular | G5: Residuos Sólidos Orgánicos (RSO) | H5: =IF(OR('Datos de entrada'!$B$11="No",'Datos de entrada'!$B$13="No"),IF(Cálculo!$C$136=Ponderaciones!$A$24,"Dada que se cuenta con una separación en la fuente adecuada, los RSO entregados serán homogéneos disminuyendo"&" los costos de su adecuación para el tratamiento."&" Además, se recomienda incluir los residuos provenientes de poda de árboles o corte de cesped,"&" o los de plaas de mercado y centrales de abasto",IF(Cálculo!$C$136=Ponderaciones!$A$25,"Dada que se cuenta con una separación en la fuente medianamente adecuada,"&" es necesario fortalecerla con campañas, lo cual permitirá que los residuos destinados a tratamiento"&" sean más homogéneos y así disminuir los costos de su adecuación para su tratamiento.","Antes de considerar desarrollar un proyecto de tratamiento de residuos sólidos, es necesario elevar los niveles de separación en la fuente para garantizar su éxito.")), IF(Cálculo!$C$136=Ponderaciones!$A$24,"Dada que se cuenta con una separación en la fuente adecuada, los RSO entregados serán homogéneos disminuyendo"&" los costos de su adecuación para el tratamiento.",IF(Cálculo!$C$136=Ponderaciones!$A$25,"Dada que se cuenta con una separación en la fuente medianamente adecuada,"&" es necesario fortalecerla con campañas, lo cual permitirá que los residuos destinados a tratamiento"&" sean más homogéneos y así disminuir los costos de su adecuación para su tratamiento.","Antes de considerar desarrollar un proyecto de tratamiento de residuos sólidos, es necesario elevar los niveles de separación en la fuente para garantizar su éxito."))) -> Dada que se cuenta con una separación en la fuente medianamente adecuada, es necesario fortalecerla con campañas, lo cual permitirá que los residuos destinados a tratamiento sean más homogéneos y así disminuir los costos de su adecuación para su tratamiento. | I5: Compost | K5: Olores | L5: ="El control de olores de los sistemas de compostaje generalmente se logra mediante la aplicación de oxígeno para evitar reacciones anaeróbicas (sin presencia de este gas)."&IF(X4>=20000," El tamaño de la planta requiere licenciamiento ambiental, por lo tanto debe elaborar el plan de manejo ambiental y adelantar los tramites para obtenerla.","") -> El control de olores de los sistemas de compostaje generalmente se logra mediante la aplicación de oxígeno para evitar reacciones anaeróbicas (sin presencia de este gas). El tamaño de la planta requiere licenciamiento ambiental, por lo tanto debe elaborar el plan de manejo ambiental y adelantar los tramites para obtenerla. | M5: =+M4 -> Si usted desea hacer una estimación de toneladas equivalentes de CO2 puede remitirse a la herramienta de cálculo de gases de efecto invernadero (GEI) en el manejo de residuos sólidos (MRS) en este link https://www.bivica.org/file/view/id/1081 y al https://www.ifeu.de/en/project/tool-for-calculating-greenhouse-gases-ghg-in-solid-waste-management-swm/ | N5: 0.52 | O5: 0.52 | P5: 0.38 | Q5: 0.5 | R5: 60 | T5: =+IF(OR('Datos de entrada'!B11="SI",'Datos de entrada'!B13="SI")," Es importante tener presente que el material estabilizado resultante no es recomendado para uso agricola y debe disponerse. ","") ->  | U5: =+IF(Valoración!H5="No adecuado","La humedad existente no es suficiente, se debe aumentar su contenido para lo cual deberá evaluar su costo. ","") -> La humedad existente no es suficiente, se debe aumentar su contenido para lo cual deberá evaluar su costo. | X5: =ROUND(IF(AND(Cálculo!$B$127<=Valoración!C5,Cálculo!$B$127>=Valoración!B5),Cálculo!$B$127,Valoración!C5),-3) -> 46000 | Y5: =+IF(AND(Cálculo!$C$128<=Valoración!C5,Cálculo!$B$128>=Valoración!B5),Cálculo!$C$128,Valoración!C5) -> 300000 | Z5: =+IF(Cálculo!$B$127>=Valoración!C5,Valoración!C5*(1-N5),Cálculo!$B$127*(1-N5)) -> 21948.07919
A6: Tratamiento Mecánico Biológico | B6: Combinación de tratamientos físicos con tratamientos biológicos para el aprovechamiento de la fracción orgánica e inorgánica de los residuos sólidos. Esta tecnología es priorizada sobre las demás, dado los lineamientos del Plan Integral de Gestión de Cambio Climático Sectorial adoptado mediante la Resolución 431 de 2020. | C6: 20000-500000 | D6: =IF(Cálculo!$B$127<20000,_xlfn.CONCAT("Dado que el proyecto busca dar tratamiento a aproximadamente a ",ROUNDDOWN(Cálculo!$B$127,0)," toneladas anuales de residuos sólidos, para una implementación adecuada de la tecnología se recomienda abarcar un mercado mayor, incluyendo otros municipios dentro del proyecto. ",IF('Datos de entrada'!$B$11="No","Se recomienda considerar los residuos orgánicos provenientes de plazas de mercado y centrales de abasto para alcanzar la éscala óptima de la tecnología. ",""),IF('Datos de entrada'!$B$13="No","Además, se recomienda considerar los residuos orgánicos provenientes de corte de césped y poda de árboles para alcanzar la éscala óptima de la tecnología.",""), "Esta tecnología puede tratar residuos inorgánicos, logrando su separación para su posterior reciclaje, por lo que se recomienda identificar fuentes de estos residuos que permitan alcanzar la escala óptima de la tecnología"),IF(Cálculo!$B$127>500000,_xlfn.CONCAT("Dado que el proyecto busca dar tratamiento a aproximadamente a ",ROUNDDOWN(Cálculo!$B$127,0)," toneladas anuales de residuos sólidos se recomienda analizar la implementación de una mezcla de tecnologías y plantas de tratamiento en diferentes localizaciones para cubrir la demanda",". Todas las estimaciones realizadas parten de la capacidad de una planta de tratamiento de 500.000 toneladas al año"),_xlfn.CONCAT("Dado que el proyecto busca dar tratamiento a aproximadamente a ",ROUNDDOWN(Cálculo!$B$127,0)," toneladas anuales de residuos sólidos, cuenta con una escala adecuada para implementar la tecnología."))) -> Dado que el proyecto busca dar tratamiento a aproximadamente a 45725 toneladas anuales de residuos sólidos, cuenta con una escala adecuada para implementar la tecnología. | E6: Media-alta | F6: =IF(Cálculo!$C$136=Ponderaciones!$A$24,"Esta tecnología requiere personal medianamente tecnificado para el adecuado uso de los equipos y su mantenimiento."&"Para su uso óptimo se requiere una adecuada separación en la fuente de los residuos por parte del suscriptor."&"De acuerdo con la información suministrada la población atendida cuenta con buenas prácticas en este aspecto."&" Igualmente es recomendable desarrollar campañas educativas que mantengan a los habitantes enterados sobre las buenas prácticas en gestión de residuos sólidos","Esta tecnología requiere personal medianamente tecnificado para el adecuado uso de los equipos y su mantenimiento."&"Para su uso óptimo se requiere una adecua separación en la fuente de los residuos por parte del suscriptor, pero no es necesaria."&" Se recomienda desarrollar "&" que mantengan a los habitantes"&" enterados sobre las buenas prácticas en gestión de residuos sólidos enfocados en la separación en la fuente de residuos sólidos orgánicos y en economía circular.") -> Esta tecnología requiere personal medianamente tecnificado para el adecuado uso de los equipos y su mantenimiento.Para su uso óptimo se requiere una adecua separación en la fuente de los residuos por parte del suscriptor, pero no es necesaria. Se recomienda desarrollar que mantengan a los habitantes enterados sobre las buenas prácticas en gestión de residuos sólidos enfocados en la separación en la fuente de residuos sólidos orgánicos y en economía circular. | G6: Residuos domiciliarios sin separar | H6: ="A mayor separación en la fuente mayor facilidad tienen los procesos del Tratamiento Mecánico Biológico. "&IF(Cálculo!$C$136=Ponderaciones!$A$24,"Dada que se cuenta con una separación en la fuente adecuada, los RSO entregados serán homogéneos disminuyendo"&" los costos de su adecuación para el tratamiento e incrementando la desviación de residuos que de otra forma irían al relleno.",IF(Cálculo!$C$136=Ponderaciones!$A$25,"Dada que se cuenta con una separación en la fuente medianamente adecuada,"&" es necesario fortalecerla con campañas, lo cual permitirá que los residuos destinados a tratamiento"&" sean más homogéneos y así disminuir los costos de su adecuación para su tratamiento e incrementar la desviación de residuos que de otra forma irían al relleno..","Antes de considerar desarrollar un proyecto de tratamiento de residuos sólidos, es necesario elevar los niveles de separación en la fuente para garantizar su éxito."))&IF('Datos de entrada'!$B$28="No", "Es necesario implementar campañas para fortalecer la separación de residuos inorgánicos. ","")&IF('Datos de entrada'!$B$27="No", " Por otro lado, se deben fortalecer la separación de residuos orgánicos a través de programas de sensibilización.","") -> A mayor separación en la fuente mayor facilidad tienen los procesos del Tratamiento Mecánico Biológico. Dada que se cuenta con una separación en la fuente medianamente adecuada, es necesario fortalecerla con campañas, lo cual permitirá que los residuos destinados a tratamiento sean más homogéneos y así disminuir los costos de su adecuación para su tratamiento e incrementar la desviación de residuos que de otra forma irían al relleno.. | I6: Compost y materiales reciclables | K6: Olores Ruido Contaminación visual | L6: ="Un manejo adecuado de los residuos orgánicos permitirá evitar la generación de olores. Esto implica cortos períodos de almacenamiento para evitar su descomposición."&IF(X4>=20000," El tamaño de la planta requiere licenciamiento ambiental, por lo tanto debe elaborar el plan de manejo ambiental y adelantar los tramites para obtenerla.","") -> Un manejo adecuado de los residuos orgánicos permitirá evitar la generación de olores. Esto implica cortos períodos de almacenamiento para evitar su descomposición. El tamaño de la planta requiere licenciamiento ambiental, por lo tanto debe elaborar el plan de manejo ambiental y adelantar los tramites para obtenerla. | M6: =+M5 -> Si usted desea hacer una estimación de toneladas equivalentes de CO2 puede remitirse a la herramienta de cálculo de gases de efecto invernadero (GEI) en el manejo de residuos sólidos (MRS) en este link https://www.bivica.org/file/view/id/1081 y al https://www.ifeu.de/en/project/tool-for-calculating-greenhouse-gases-ghg-in-solid-waste-management-swm/ | N6: 0.6 | O6: 0.75 | P6: 0.68 | Q6: 0.2 | R6: 60 | S6: 0.95 | U6: =+IF(Valoración!H6="No adecuado","La humedad existente no es suficiente, por ello se debe adicionar agua. ","") ->  | V6: =Cálculo!B127/Valoración!C6*0.25 -> 0.02286258249 | W6: =('Datos de entrada'!B12+'Datos de entrada'!B14)/Valoración!C6*0.25 -> 0 | X6: =ROUND(IF(AND(Cálculo!$B$127<=Valoración!C6,Cálculo!$B$127>=Valoración!B6),Cálculo!$B$127,Valoración!C6),-3) -> 46000 | Y6: =+IF(AND(Cálculo!$C$128<=Valoración!C6,Cálculo!$B$128>=Valoración!B6),Cálculo!$C$128,Valoración!C6) -> 500000 | Z6: =+IF(Cálculo!$B$127>=Valoración!C6,Valoración!C6*(1-N6),Cálculo!$B$127*(1-N6)) -> 18290.06599
I7: RDF | Q7: 0.46 | R7: 30 | S7: =IF('Datos de entrada'!$B$10>0,'Datos de entrada'!$B$10,'Información referencia'!$B$14) -> 0.6
I8: Materiales reciclables | Q8: 0.05 | R8: 350 | S8: 0.1
A9: Digestión Anaerobia | B9: Descomposición de la materia orgánica por microorganismos en condiciones anaerobias, la cual genera biogás que puede ser aprovechado energéticamente. Este proceso es llevado a cabo en reactores cerrados en condiciones controladas. | C9: 20000-500000 | D9: =IF(Cálculo!$B$127<20000,_xlfn.CONCAT("Dado que el proyecto busca dar tratamiento a aproximadamente a ",ROUNDDOWN(Cálculo!$B$127,0)," toneladas anuales de residuos orgánicos, para una implementación adecuada de la tecnología se recomienda abarcar un mercado mayor, incluyendo otros municipios dentro del proyecto. ",IF('Datos de entrada'!$B$11="No","Se recomienda considerar los residuos orgánicos provenientes de plazas de mercado y centrales de abasto para alcanzar la éscala óptima de la tecnología. ",""),IF('Datos de entrada'!$B$13="No","Además, se recomienda considerar los residuos orgánicos provenientes de corte de césped y poda de árboles para alcanzar la éscala óptima de la tecnología",""), "Esta tecnología, además, permite tratar residuos semi sólidos por lo que se recomienda incluir lodos sin contaminantes peligrosos para alcanzar la escala obtenida"),IF(Cálculo!$B$127>500000,_xlfn.CONCAT("Dado que el proyecto busca dar tratamiento a aproximadamente a ",ROUNDDOWN(Cálculo!$B$127,0)," toneladas anuales de residuos orgánicos, se recomienda analizar la implementación de una mezcla de tecnologías y plantas de tratamiento en diferentes localizaciones para cubrir la demanda",". Todas las estimaciones realizadas parten de la capacidad de una planta de tratamiento de 500.000 toneladas al año"),_xlfn.CONCAT("Dado que el proyecto busca dar tratamiento a aproximadamente a ",ROUNDDOWN(Cálculo!$B$127,0)," toneladas anuales de residuos orgánicos, cuenta con una escala adecuada para implementar la tecnología"))) -> Dado que el proyecto busca dar tratamiento a aproximadamente a 45725 toneladas anuales de residuos orgánicos, cuenta con una escala adecuada para implementar la tecnología | E9: Media-alta | F9: =IF(Cálculo!$B$142=Ponderaciones!$A$145,"Esta tecnología requiere personal con altas capacidades técnicas y equipos especializados."&" Debe implementarse únicamente en escenarios con niveles de favorabilidad muy altos."&"Dados los resultados del modelo, en un primer análisis es viable implementar la tecnología."&" No obstante, este análisis debe complementarse con un estudio detallado que permita"&" identificar si su implementación es financieramente sostenible en el mediano plazo.", "Esta tecnología requiere personal con altas capacidades técnicas y equipos especializados."&" Debe implementarse únicamente en escenarios con niveles de favorabilidad muy altos."&"Dados los resultados del modelo, no se cuenta con los niveles de faborabilidad necesarios"&" Se recomienda analizar la implementación de una tecnología distinta.") -> Esta tecnología requiere personal con altas capacidades técnicas y equipos especializados. Debe implementarse únicamente en escenarios con niveles de favorabilidad muy altos.Dados los resultados del modelo, no se cuenta con los niveles de faborabilidad necesarios Se recomienda analizar la implementación de una tecnología distinta. | G9: Residuos Sólidos Orgánicos (RSO) | H9: =IF(OR('Datos de entrada'!$B$11="No",'Datos de entrada'!$B$13="No"),IF(Cálculo!$C$136=Ponderaciones!$A$24,"Dada que se cuenta con una separación en la fuente adecuada, los RSO entregados serán homogéneos disminuyendo"&" los costos de su adecuación para el tratamiento."&" Además, se recomienda incluir los residuos provenientes de poda de árboles o corte de cesped,"&" o los de plaas de mercado y centrales de abasto",IF(Cálculo!$C$136=Ponderaciones!$A$25,"Dada que se cuenta con una separación en la fuente medianamente adecuada,"&" es necesario fortalecerla con campañas, lo cual permitirá que los residuos destinados a tratamiento"&" sean más homogéneos y así disminuir los costos de su adecuación para su tratamiento.","Antes de considerar desarrollar un proyecto de tratamiento de residuos sólidos, es necesario elevar los niveles de separación en la fuente para garantizar su éxito.")), IF(Cálculo!$C$136=Ponderaciones!$A$24,"Dada que se cuenta con una separación en la fuente adecuada, los RSO entregados serán homogéneos disminuyendo"&" los costos de su adecuación para el tratamiento.",IF(Cálculo!$C$136=Ponderaciones!$A$25,"Dada que se cuenta con una separación en la fuente medianamente adecuada,"&" es necesario fortalecerla con campañas, lo cual permitirá que los residuos destinados a tratamiento"&" sean más homogéneos y así disminuir los costos de su adecuación para su tratamiento.","Antes de considerar desarrollar un proyecto de tratamiento de residuos sólidos, es necesario elevar los niveles de separación en la fuente para garantizar su éxito."))) -> Dada que se cuenta con una separación en la fuente medianamente adecuada, es necesario fortalecerla con campañas, lo cual permitirá que los residuos destinados a tratamiento sean más homogéneos y así disminuir los costos de su adecuación para su tratamiento. | I9: Biodigestato | K9: Olores | L9: ="El biogás generado presenta un característico olor a metano. No obstane, los equipos son cerrados y a menos que este sea liberado a la atmosfera esto no representa un impacto elevado."&IF(X4>=20000," El tamaño de la planta requiere licenciamiento ambiental, por lo tanto debe elaborar el plan de manejo ambiental y adelantar los tramites para obtenerla.","") -> El biogás generado presenta un característico olor a metano. No obstane, los equipos son cerrados y a menos que este sea liberado a la atmosfera esto no representa un impacto elevado. El tamaño de la planta requiere licenciamiento ambiental, por lo tanto debe elaborar el plan de manejo ambiental y adelantar los tramites para obtenerla. | M9: =+M6 -> Si usted desea hacer una estimación de toneladas equivalentes de CO2 puede remitirse a la herramienta de cálculo de gases de efecto invernadero (GEI) en el manejo de residuos sólidos (MRS) en este link https://www.bivica.org/file/view/id/1081 y al https://www.ifeu.de/en/project/tool-for-calculating-greenhouse-gases-ghg-in-solid-waste-management-swm/ | N9: 0.33 | O9: 0.65 | P9: 0.58 | Q9: 0.6 | R9: 60 | T9: =+IF(OR('Datos de entrada'!B11="SI",'Datos de entrada'!B13="SI")," Es importante tener presente que el material estabilizado resultante no es recomendado para uso agricola y debe disponerse. ","") ->  | U9: =+IF(Valoración!H7="No adecuado","La humedad existente no es suficiente, se debe aumentar su contenido para lo cual deberá evaluar su costo. ","") -> La humedad existente no es suficiente, se debe aumentar su contenido para lo cual deberá evaluar su costo. | V9: =140000/Valoración!C7*0.1 -> 0.028 | W9: =('Datos de entrada'!B12+'Datos de entrada'!B14)/Valoración!C7*0.1 -> 0 | X9: =ROUND(IF(AND(Cálculo!$B$127<=Valoración!C7,Cálculo!$B$127>=Valoración!B7),Cálculo!$B$127,Valoración!C7),-3) -> 46000 | Y9: =+IF(AND(Cálculo!$C$128<=Valoración!C7,Cálculo!$B$128>=Valoración!B7),Cálculo!$C$128,Valoración!C7) -> 500000 | Z9: =+IF(Cálculo!$B$127>=Valoración!C7,Valoración!C7*(1-N9),Cálculo!$B$127*(1-N9)) -> 30635.86054
I10: Energía eléctrica | Q10: 0.1 | R10: 0.25

Sheet CDF y CRT-TMB (hidden)
A1: 1 | B1: CDF y CRT utilizados por el modelo
A2: 2 | G2: Fórmula | H2: Estimación Proyecto
A3: 3
A4: 4 | G4: CDF + CRT | H4: =IF((Cálculo!$C$2/3)<5000,($H$31+'CDF y CRT-TMB'!$H$35),('CDF y CRT-TMB'!$H$21+$H$23)) -> 221118.916
A5: 5
A6: 6
A7: 7
A8: 8
A9: 9
A10: 10
A11: 11
A12: 12
A13: 13
A14: 14 | B14: Municipios CRA 720 de 2015 | I14: TMB
A15: 15 | G15: Fórmula | H15: Estimación Proyecto
A16: 16 | G16: QRS | H16: =I16/12 -> 1341.666667 | I16: ='Fichas técnicas Tecnologías'!$X$6*((1-'Fichas técnicas Tecnologías'!S6)+(1-'Fichas técnicas Tecnologías'!S7)-('Fichas técnicas Tecnologías'!S8)) -> 16100
A17: 17 | G17: D | H17: =IF('Datos de entrada'!$B$50="No",'Datos de entrada'!$B$51,'Datos de entrada'!$B$34) -> 2
A18: 18 | G18: CDF=CDFVU+CDFPC ($ dic 2014) | H18: =H19+H20 -> 123981.0713
A19: 19 | G19: CDFVU ($ dic 2014) | H19: =MIN(18722+(132924379/$H$16), 139896) -> 117796.0713
A20: 20 | G20: CDFPC ($ dic 2014) | H20: =MIN(242+(11652352/$H$16),6185) -> 6185
A21: 21 | G21: Actualización CDF($ año de inicio de operaciones) | H21: =+H18*((1+(2.23%*('Datos de entrada'!$B$5-2014)))) -> 146099.2944
A22: 22 | G22: CRT | H22: =64745+(738*$H$17)+(8683846/$H$16) -> 72693.4318
A23: 23 | G23: Actualización CRT($ año de inicio de operaciones) | H23: =$H$22*((0.89+(0.003*('Datos de entrada'!$B$5-2014)))+(0.11+(0.001*('Datos de entrada'!$B$5-2014)))) -> 75019.62162
A24: 24
A25: 25
A26: 26 | B26: Municipios CRA 853 de 2018
A27: 27
A28: 28 | G28: QRT | H28: =I16/12 -> 1341.666667
A29: 29 | G29: D | H29: =IF('Datos de entrada'!$B$50="No",'Datos de entrada'!$B$51,'Datos de entrada'!$B$34) -> 2
A30: 30 | G30: CRT ($ jul 2018) | H30: =IF($H$29<100,VLOOKUP($L$32,$A$43:$AM$62,$L$33,FALSE),25554+(1082*$H$29+(15659942/$H$28))) -> 73287
A31: 31 | G31: Actualización CRT($ año de inicio de operaciones) | H31: =$H$30*((0.89*(1+3%)^('Datos de entrada'!$B$5-2018))+(0.11*(1+1%)^('Datos de entrada'!$B$5-2018))) -> 81800.69817 | I31: =+H31/H30 -> 1.116169282
A32: 32 | G32: CDF=CDFVU+CDFPC ($ jul 2018) | H32: =+H33+H34 -> 139562.9287 | I32: =(I31^0.25)-1 -> 0.02785657078 | K32: Fila | L32: =+ROW(B43)+INT(H29/5) -> 43
A33: 33 | G33: CDFVU ($ jul 2018) | H33: =MIN(21075+(149630621/$H$28), 157478) -> 132600.9287 | K33: Columna | L33: =+IF(H28<=200,COLUMN(E41),IF(AND(H28>=200,H28<=365),COLUMN(F41)+INT((H28-200)/5),COLUMN(AM41))) -> 39 | M33: Le inclui un condicional siendo que se salia del rango maximo
A34: 34 | G34: CDFPC ($ jul 2018) | H34: =MIN(272+(13116846/$H$28),6962) -> 6962
A35: 35 | G35: Actualización CRT($ año de inicio de operaciones) | H35: =+H32*((1+(2.23%*('Datos de entrada'!$B$5-2018)))) -> 152011.9419
A36: 36
A37: 37
A38: 38
A39: 39 | B39: 1 | C39: 2 | D39: 3 | E39: 1 | F39: 2 | G39: 3 | H39: 4 | I39: 5 | J39: 6 | K39: 7 | L39: 8 | M39: 9 | N39: 10 | O39: 11 | P39: 12 | Q39: 13 | R39: 14 | S39: 15 | T39: 16 | U39: 17 | V39: 18 | W39: 19 | X39: 20 | Y39: 21 | Z39: 22 | AA39: 23 | AB39: 24 | AC39: 25 | AD39: 29 | AE39: 30 | AF39: 31 | AG39: 32 | AH39: 33 | AI39: 34 | AJ39: 35 | AK39: 36 | AL39: 37 | AM39: 38
A40: 40 | E40: Ton/mes
A41: 41 | E41: 0 | F41: 200 | G41: 205 | H41: 210 | I41: 215 | J41: 220 | K41: 225 | L41: 230 | M41: 235 | N41: 240 | O41: 245 | P41: 250 | Q41: 255 | R41: 260 | S41: 265 | T41: 270 | U41: 275 | V41: 280 | W41: 285 | X41: 290 | Y41: 295 | Z41: 300 | AA41: 305 | AB41: 310 | AC41: 315 | AD41: 320 | AE41: 325 | AF41: 330 | AG41: 335 | AH41: 340 | AI41: 345 | AJ41: 350 | AK41: 355 | AL41: 360 | AM41: 365
A42: 42 | C42: km | E42: 200 | F42: 205 | G42: 210 | H42: 215 | I42: 220 | J42: 225 | K42: 230 | L42: 235 | M42: 240 | N42: 245 | O42: 250 | P42: 255 | Q42: 260 | R42: 265 | S42: 270 | T42: 275 | U42: 280 | V42: 285 | W42: 290 | X42: 295 | Y42: 300 | Z42: 305 | AA42: 310 | AB42: 315 | AC42: 320 | AD42: 325 | AE42: 330 | AF42: 335 | AG42: 340 | AH42: 345 | AI42: 350 | AJ42: 355 | AK42: 360 | AL42: 365 | AM42: 10000000
A43: 43 | B43: 1 | C43: 0 | D43: 5 | E43: 109262 | F43: 107352 | G43: 105534 | H43: 103799 | I43: 102144 | J43: 100562 | K43: 99049 | L43: 97600 | M43: 96212 | N43: 94881 | O43: 93602 | P43: 92374 | Q43: 91193 | R43: 90056 | S43: 88962 | T43: 87908 | U43: 86891 | V43: 85910 | W43: 84962 | X43: 84047 | Y43: 83162 | Z43: 82306 | AA43: 81478 | AB43: 80676 | AC43: 79900 | AD43: 79147 | AE43: 78417 | AF43: 77708 | AG43: 77021 | AH43: 76354 | AI43: 75705 | AJ43: 75075 | AK43: 74462 | AL43: 73866 | AM43: 73287
A44: 44 | B44: 2 | C44: 5 | D44: 10 | E44: 114671 | F44: 112761 | G44: 110942 | H44: 109208 | I44: 107553 | J44: 105971 | K44: 104458 | L44: 103009 | M44: 101621 | N44: 100289 | O44: 99011 | P44: 97783 | Q44: 96602 | R44: 95465 | S44: 94371 | T44: 93316 | U44: 92299 | V44: 91318 | W44: 90371 | X44: 89456 | Y44: 88571 | Z44: 87715 | AA44: 86887 | AB44: 86085 | AC44: 85308 | AD44: 84555 | AE44: 83825 | AF44: 83117 | AG44: 82430 | AH44: 81762 | AI44: 81114 | AJ44: 80483 | AK44: 79871 | AL44: 79275 | AM44: 78695
A45: 45 | B45: 3 | C45: 10 | D45: 15 | E45: 120079 | F45: 118170 | G45: 116351 | H45: 114617 | I45: 112961 | J45: 111379 | K45: 109866 | L45: 108418 | M45: 107029 | N45: 105698 | O45: 104419 | P45: 103191 | Q45: 102010 | R45: 100874 | S45: 99779 | T45: 98725 | U45: 97708 | V45: 96727 | W45: 95779 | X45: 94864 | Y45: 93979 | Z45: 93124 | AA45: 92296 | AB45: 91494 | AC45: 90717 | AD45: 89964 | AE45: 89234 | AF45: 88526 | AG45: 87838 | AH45: 87171 | AI45: 86522 | AJ45: 85892 | AK45: 85279 | AL45: 84684 | AM45: 84104
A46: 46 | B46: 4 | C46: 15 | D46: 20 | E46: 125488 | F46: 123578 | G46: 121759 | H46: 120025 | I46: 118370 | J46: 116788 | K46: 115275 | L46: 113826 | M46: 112438 | N46: 111106 | O46: 109828 | P46: 108600 | Q46: 107419 | R46: 106282 | S46: 105188 | T46: 104133 | U46: 103117 | V46: 102135 | W46: 101188 | X46: 100273 | Y46: 99388 | Z46: 98532 | AA46: 97704 | AB46: 96902 | AC46: 96125 | AD46: 95373 | AE46: 94643 | AF46: 93934 | AG46: 93247 | AH46: 92579 | AI46: 91931 | AJ46: 91301 | AK46: 90688 | AL46: 90092 | AM46: 89512
A47: 47 | B47: 5 | C47: 20 | D47: 25 | E47: 130896 | F47: 128987 | G47: 127168 | H47: 125434 | I47: 123778 | J47: 122197 | K47: 120683 | L47: 119235 | M47: 117847 | N47: 116515 | O47: 115237 | P47: 114008 | Q47: 112827 | R47: 111691 | S47: 110597 | T47: 109542 | U47: 108525 | V47: 107544 | W47: 106597 | X47: 105681 | Y47: 104797 | Z47: 103941 | AA47: 103113 | AB47: 102311 | AC47: 101534 | AD47: 100781 | AE47: 100051 | AF47: 99343 | AG47: 98655 | AH47: 97988 | AI47: 97339 | AJ47: 96709 | AK47: 96097 | AL47: 95501 | AM47: 94921
A48: 48 | B48: 6 | C48: 25 | D48: 30 | E48: 136305 | F48: 134395 | G48: 132577 | H48: 130842 | I48: 129187 | J48: 127605 | K48: 126092 | L48: 124643 | M48: 123255 | N48: 121924 | O48: 120645 | P48: 119417 | Q48: 118236 | R48: 117099 | S48: 116005 | T48: 114951 | U48: 113934 | V48: 112953 | W48: 112005 | X48: 111090 | Y48: 110205 | Z48: 109349 | AA48: 108521 | AB48: 107719 | AC48: 106943 | AD48: 106190 | AE48: 105460 | AF48: 104751 | AG48: 104064 | AH48: 103397 | AI48: 102748 | AJ48: 102118 | AK48: 101505 | AL48: 100909 | AM48: 100330
A49: 49 | B49: 7 | C49: 30 | D49: 35 | E49: 141714 | F49: 139804 | G49: 137985 | H49: 136251 | I49: 134596 | J49: 133014 | K49: 131501 | L49: 130052 | M49: 128664 | N49: 127332 | O49: 126054 | P49: 124826 | Q49: 123645 | R49: 122508 | S49: 121414 | T49: 120359 | U49: 119342 | V49: 118361 | W49: 117414 | X49: 116499 | Y49: 115614 | Z49: 114758 | AA49: 113930 | AB49: 113128 | AC49: 112351 | AD49: 111598 | AE49: 110868 | AF49: 110160 | AG49: 109473 | AH49: 108805 | AI49: 108157 | AJ49: 107526 | AK49: 106914 | AL49: 106318 | AM49: 105738
A50: 50 | B50: 8 | C50: 35 | D50: 40 | E50: 147122 | F50: 145213 | G50: 143394 | H50: 141660 | I50: 140004 | J50: 138422 | K50: 136909 | L50: 135461 | M50: 134072 | N50: 132741 | O50: 131462 | P50: 130234 | Q50: 129053 | R50: 127917 | S50: 126822 | T50: 125768 | U50: 124751 | V50: 123770 | W50: 122822 | X50: 121907 | Y50: 121022 | Z50: 120167 | AA50: 119339 | AB50: 118537 | AC50: 117760 | AD50: 117007 | AE50: 116277 | AF50: 115569 | AG50: 114881 | AH50: 114214 | AI50: 113565 | AJ50: 112935 | AK50: 112322 | AL50: 111727 | AM50: 111147
A51: 51 | B51: 9 | C51: 40 | D51: 45 | E51: 152531 | F51: 150621 | G51: 148802 | H51: 147068 | I51: 145413 | J51: 143831 | K51: 142318 | L51: 140869 | M51: 139481 | N51: 138149 | O51: 136871 | P51: 135643 | Q51: 134462 | R51: 133325 | S51: 132231 | T51: 131176 | U51: 130160 | V51: 129178 | W51: 128231 | X51: 127316 | Y51: 126431 | Z51: 125575 | AA51: 124747 | AB51: 123945 | AC51: 123168 | AD51: 122416 | AE51: 121686 | AF51: 120977 | AG51: 120290 | AH51: 119622 | AI51: 118974 | AJ51: 118344 | AK51: 117731 | AL51: 117135 | AM51: 116555
A52: 52 | B52: 10 | C52: 45 | D52: 50 | E52: 157939 | F52: 156030 | G52: 154211 | H52: 152477 | I52: 150821 | J52: 149240 | K52: 147726 | L52: 146278 | M52: 144890 | N52: 143558 | O52: 142280 | P52: 141051 | Q52: 139870 | R52: 138734 | S52: 137640 | T52: 136585 | U52: 135568 | V52: 134587 | W52: 133640 | X52: 132724 | Y52: 131840 | Z52: 130984 | AA52: 130156 | AB52: 129354 | AC52: 128577 | AD52: 127824 | AE52: 127094 | AF52: 126386 | AG52: 125698 | AH52: 125031 | AI52: 124382 | AJ52: 123752 | AK52: 123140 | AL52: 122544 | AM52: 121964
A53: 53 | B53: 11 | C53: 50 | D53: 55 | E53: 163348 | F53: 161438 | G53: 159620 | H53: 157885 | I53: 156230 | J53: 154648 | K53: 153135 | L53: 151686 | M53: 150298 | N53: 148967 | O53: 147688 | P53: 146460 | Q53: 145279 | R53: 144143 | S53: 143048 | T53: 141994 | U53: 140977 | V53: 139996 | W53: 139048 | X53: 138133 | Y53: 137248 | Z53: 136392 | AA53: 135564 | AB53: 134762 | AC53: 133986 | AD53: 133233 | AE53: 132503 | AF53: 131794 | AG53: 131107 | AH53: 130440 | AI53: 129791 | AJ53: 129161 | AK53: 128548 | AL53: 127952 | AM53: 127373
A54: 54 | B54: 12 | C54: 55 | D54: 60 | E54: 168757 | F54: 166847 | G54: 165028 | H54: 163294 | I54: 161639 | J54: 160057 | K54: 158544 | L54: 157095 | M54: 155707 | N54: 154375 | O54: 153097 | P54: 151869 | Q54: 150688 | R54: 149551 | S54: 148457 | T54: 147402 | U54: 146385 | V54: 145404 | W54: 144457 | X54: 143542 | Y54: 142657 | Z54: 141801 | AA54: 140973 | AB54: 140171 | AC54: 139394 | AD54: 138641 | AE54: 137911 | AF54: 137203 | AG54: 136516 | AH54: 135848 | AI54: 135200 | AJ54: 134569 | AK54: 133957 | AL54: 133361 | AM54: 132781
A55: 55 | B55: 13 | C55: 60 | D55: 65 | E55: 174165 | F55: 172256 | G55: 170437 | H55: 168703 | I55: 167047 | J55: 165465 | K55: 163952 | L55: 162504 | M55: 161115 | N55: 159784 | O55: 158505 | P55: 157277 | Q55: 156096 | R55: 154960 | S55: 153865 | T55: 152811 | U55: 151794 | V55: 150813 | W55: 149865 | X55: 148950 | Y55: 148065 | Z55: 147210 | AA55: 146382 | AB55: 145580 | AC55: 144803 | AD55: 144050 | AE55: 143320 | AF55: 142612 | AG55: 141924 | AH55: 141257 | AI55: 140608 | AJ55: 139978 | AK55: 139365 | AL55: 138770 | AM55: 138190
A56: 56 | B56: 14 | C56: 65 | D56: 70 | E56: 179574 | F56: 177664 | G56: 175845 | H56: 174111 | I56: 172456 | J56: 170874 | K56: 169361 | L56: 167912 | M56: 166524 | N56: 165192 | O56: 163914 | P56: 162686 | Q56: 161505 | R56: 160368 | S56: 159274 | T56: 158219 | U56: 157203 | V56: 156221 | W56: 155274 | X56: 154359 | Y56: 153474 | Z56: 152618 | AA56: 151790 | AB56: 150988 | AC56: 150212 | AD56: 149459 | AE56: 148729 | AF56: 148020 | AG56: 147333 | AH56: 146665 | AI56: 146017 | AJ56: 145387 | AK56: 144774 | AL56: 144178 | AM56: 143598
A57: 57 | B57: 15 | C57: 70 | D57: 75 | E57: 184982 | F57: 183073 | G57: 181254 | H57: 179520 | I57: 177864 | J57: 176283 | K57: 174769 | L57: 173321 | M57: 171933 | N57: 170601 | O57: 169323 | P57: 168094 | Q57: 166913 | R57: 165777 | S57: 164683 | T57: 163628 | U57: 162611 | V57: 161630 | W57: 160683 | X57: 159767 | Y57: 158883 | Z57: 158027 | AA57: 157199 | AB57: 156397 | AC57: 155620 | AD57: 154867 | AE57: 154137 | AF57: 153429 | AG57: 152741 | AH57: 152074 | AI57: 151425 | AJ57: 150795 | AK57: 150183 | AL57: 149587 | AM57: 149007
A58: 58 | B58: 16 | C58: 75 | D58: 80 | E58: 190391 | F58: 188481 | G58: 186663 | H58: 184928 | I58: 183273 | J58: 181691 | K58: 180178 | L58: 178729 | M58: 177341 | N58: 176010 | O58: 174731 | P58: 173503 | Q58: 172322 | R58: 171186 | S58: 170091 | T58: 169037 | U58: 168020 | V58: 167039 | W58: 166091 | X58: 165176 | Y58: 164291 | Z58: 163435 | AA58: 162607 | AB58: 161805 | AC58: 161029 | AD58: 160276 | AE58: 159546 | AF58: 158837 | AG58: 158150 | AH58: 157483 | AI58: 156834 | AJ58: 156204 | AK58: 155591 | AL58: 154995 | AM58: 154416
A59: 59 | B59: 17 | C59: 80 | D59: 85 | E59: 195800 | F59: 193890 | G59: 192071 | H59: 190337 | I59: 188682 | J59: 187100 | K59: 185587 | L59: 184138 | M59: 182750 | N59: 181418 | O59: 180140 | P59: 178912 | Q59: 177731 | R59: 176594 | S59: 175500 | T59: 174445 | U59: 173428 | V59: 172447 | W59: 171500 | X59: 170585 | Y59: 169700 | Z59: 168844 | AA59: 168016 | AB59: 167214 | AC59: 166437 | AD59: 165684 | AE59: 164954 | AF59: 164246 | AG59: 163559 | AH59: 162891 | AI59: 162243 | AJ59: 161612 | AK59: 161000 | AL59: 160404 | AM59: 159824
A60: 60 | B60: 18 | C60: 85 | D60: 90 | E60: 201208 | F60: 199299 | G60: 197480 | H60: 195746 | I60: 194090 | J60: 192508 | K60: 190995 | L60: 189547 | M60: 188158 | N60: 186827 | O60: 185548 | P60: 184320 | Q60: 183139 | R60: 182003 | S60: 180908 | T60: 179854 | U60: 178837 | V60: 177856 | W60: 176908 | X60: 175993 | Y60: 175108 | Z60: 174253 | AA60: 173425 | AB60: 172623 | AC60: 171846 | AD60: 171093 | AE60: 170363 | AF60: 169655 | AG60: 168967 | AH60: 168300 | AI60: 167651 | AJ60: 167021 | AK60: 166408 | AL60: 165813 | AM60: 165233
A61: 61 | B61: 19 | C61: 90 | D61: 95 | E61: 206617 | F61: 204707 | G61: 202888 | H61: 201154 | I61: 199499 | J61: 197917 | K61: 196404 | L61: 194955 | M61: 193567 | N61: 192235 | O61: 190957 | P61: 189729 | Q61: 188548 | R61: 187411 | S61: 186317 | T61: 185262 | U61: 184246 | V61: 183264 | W61: 182317 | X61: 181402 | Y61: 180517 | Z61: 179661 | AA61: 178833 | AB61: 178031 | AC61: 177255 | AD61: 176502 | AE61: 175772 | AF61: 175063 | AG61: 174376 | AH61: 173708 | AI61: 173060 | AJ61: 172430 | AK61: 171817 | AL61: 171221 | AM61: 170641
A62: 62 | B62: 20 | C62: 95 | D62: 100 | E62: 212025 | F62: 210116 | G62: 208297 | H62: 206563 | I62: 204907 | J62: 203326 | K62: 201812 | L62: 200364 | M62: 198976 | N62: 197644 | O62: 196366 | P62: 195137 | Q62: 193956 | R62: 192820 | S62: 191726 | T62: 190671 | U62: 189654 | V62: 188673 | W62: 187726 | X62: 186810 | Y62: 185926 | Z62: 185070 | AA62: 184242 | AB62: 183440 | AC62: 182663 | AD62: 181910 | AE62: 181180 | AF62: 180472 | AG62: 179784 | AH62: 179117 | AI62: 178468 | AJ62: 177838 | AK62: 177226 | AL62: 176630 | AM62: 176050
A63: 63

Sheet CDF y CRT-DA (hidden)
A1: 1 | B1: CDF y CRT utilizados por el modelo
A2: 2 | G2: Fórmula | H2: Estimación Proyecto
A3: 3
A4: 4 | G4: CDF + CRT | H4: =IF((Cálculo!$C$2/3)<5000,($H$31+'CDF y CRT-DA'!$H$35),('CDF y CRT-DA'!$H$21+$H$23)) -> 168657.2274
A5: 5
A6: 6
A7: 7
A8: 8
A9: 9
A10: 10
A11: 11
A12: 12
A13: 13
A14: 14 | B14: Municipios CRA 720 de 2015 | I14: Digestión Anaerobia
A15: 15 | G15: Fórmula | H15: Estimación Proyecto
A16: 16 | G16: QRS | H16: =I16/12 -> 2300 | I16: ='Fichas técnicas Tecnologías'!$X$9*'Fichas técnicas Tecnologías'!Q9 -> 27600
A17: 17 | G17: D | H17: =IF('Datos de entrada'!$B$50="No",'Datos de entrada'!$B$51,'Datos de entrada'!$B$34) -> 2
A18: 18 | G18: CDF=CDFVU+CDFPC ($ dic 2014) | H18: =H19+H20 -> 81823.44826
A19: 19 | G19: CDFVU ($ dic 2014) | H19: =MIN(18722+(132924379/$H$16), 139896) -> 76515.20826
A20: 20 | G20: CDFPC ($ dic 2014) | H20: =MIN(242+(11652352/$H$16),6185) -> 5308.24
A21: 21 | G21: Actualización CDF($ año de inicio de operaciones) | H21: =+H18*((1+(2.23%*('Datos de entrada'!$B$5-2014)))) -> 96420.75143
A22: 22 | G22: CRT | H22: =64745+(738*$H$17)+(8683846/$H$16) -> 69996.58522
A23: 23 | G23: Actualización CRT($ año de inicio de operaciones) | H23: =$H$22*((0.89+(0.003*('Datos de entrada'!$B$5-2014)))+(0.11+(0.001*('Datos de entrada'!$B$5-2014)))) -> 72236.47594 | I23: Revisar formula de actualización
A24: 24
A25: 25
A26: 26 | B26: Municipios CRA 853 de 2018
A27: 27
A28: 28 | G28: QRT | H28: =I16/12 -> 2300
A29: 29 | G29: D | H29: =IF('Datos de entrada'!$B$50="No",'Datos de entrada'!$B$51,'Datos de entrada'!$B$34) -> 2
A30: 30 | G30: CRT ($ jul 2018) | H30: =IF($H$29<100,VLOOKUP($L$32,$A$43:$AM$62,$L$33,FALSE),25554+(1082*$H$29+(15659942/$H$28))) -> 73287
A31: 31 | G31: Actualización CRT($ año de inicio de operaciones) | H31: =$H$30*((0.89*(1+3%)^('Datos de entrada'!$B$5-2018))+(0.11*(1+1%)^('Datos de entrada'!$B$5-2018))) -> 81800.69817 | I31: =+H31/H30 -> 1.116169282
A32: 32 | G32: CDF=CDFVU+CDFPC ($ jul 2018) | H32: =+H33+H34 -> 92106.76826 | I32: =(I31^0.25)-1 -> 0.02785657078 | K32: Fila | L32: =+ROW(B43)+INT(H29/5) -> 43
A33: 33 | G33: CDFVU ($ jul 2018) | H33: =MIN(21075+(149630621/$H$28), 157478) -> 86131.79174 | K33: Columna | L33: =+IF(H28<=200,COLUMN(E41),IF(AND(H28>=200,H28<=365),COLUMN(F41)+INT((H28-200)/5),COLUMN(AM41))) -> 39 | M33: Le inclui un condicional siendo que se salia del rango maximo
A34: 34 | G34: CDFPC ($ jul 2018) | H34: =MIN(272+(13116846/$H$28),6962) -> 5974.976522
A35: 35 | G35: Actualización CRT($ año de inicio de operaciones) | H35: =+H32*((1+(2.23%*('Datos de entrada'!$B$5-2018)))) -> 100322.692
A36: 36
A37: 37
A38: 38
A39: 39 | B39: 1 | C39: 2 | D39: 3 | E39: 1 | F39: 2 | G39: 3 | H39: 4 | I39: 5 | J39: 6 | K39: 7 | L39: 8 | M39: 9 | N39: 10 | O39: 11 | P39: 12 | Q39: 13 | R39: 14 | S39: 15 | T39: 16 | U39: 17 | V39: 18 | W39: 19 | X39: 20 | Y39: 21 | Z39: 22 | AA39: 23 | AB39: 24 | AC39: 25 | AD39: 29 | AE39: 30 | AF39: 31 | AG39: 32 | AH39: 33 | AI39: 34 | AJ39: 35 | AK39: 36 | AL39: 37 | AM39: 38
A40: 40 | E40: Ton/mes
A41: 41 | E41: 0 | F41: 200 | G41: 205 | H41: 210 | I41: 215 | J41: 220 | K41: 225 | L41: 230 | M41: 235 | N41: 240 | O41: 245 | P41: 250 | Q41: 255 | R41: 260 | S41: 265 | T41: 270 | U41: 275 | V41: 280 | W41: 285 | X41: 290 | Y41: 295 | Z41: 300 | AA41: 305 | AB41: 310 | AC41: 315 | AD41: 320 | AE41: 325 | AF41: 330 | AG41: 335 | AH41: 340 | AI41: 345 | AJ41: 350 | AK41: 355 | AL41: 360 | AM41: 365
A42: 42 | C42: km | E42: 200 | F42: 205 | G42: 210 | H42: 215 | I42: 220 | J42: 225 | K42: 230 | L42: 235 | M42: 240 | N42: 245 | O42: 250 | P42: 255 | Q42: 260 | R42: 265 | S42: 270 | T42: 275 | U42: 280 | V42: 285 | W42: 290 | X42: 295 | Y42: 300 | Z42: 305 | AA42: 310 | AB42: 315 | AC42: 320 | AD42: 325 | AE42: 330 | AF42: 335 | AG42: 340 | AH42: 345 | AI42: 350 | AJ42: 355 | AK42: 360 | AL42: 365 | AM42: 10000000
A43: 43 | B43: 1 | C43: 0 | D43: 5 | E43: 109262 | F43: 107352 | G43: 105534 | H43: 103799 | I43: 102144 | J43: 100562 | K43: 99049 | L43: 97600 | M43: 96212 | N43: 94881 | O43: 93602 | P43: 92374 | Q43: 91193 | R43: 90056 | S43: 88962 | T43: 87908 | U43: 86891 | V43: 85910 | W43: 84962 | X43: 84047 | Y43: 83162 | Z43: 82306 | AA43: 81478 | AB43: 80676 | AC43: 79900 | AD43: 79147 | AE43: 78417 | AF43: 77708 | AG43: 77021 | AH43: 76354 | AI43: 75705 | AJ43: 75075 | AK43: 74462 | AL43: 73866 | AM43: 73287
A44: 44 | B44: 2 | C44: 5 | D44: 10 | E44: 114671 | F44: 112761 | G44: 110942 | H44: 109208 | I44: 107553 | J44: 105971 | K44: 104458 | L44: 103009 | M44: 101621 | N44: 100289 | O44: 99011 | P44: 97783 | Q44: 96602 | R44: 95465 | S44: 94371 | T44: 93316 | U44: 92299 | V44: 91318 | W44: 90371 | X44: 89456 | Y44: 88571 | Z44: 87715 | AA44: 86887 | AB44: 86085 | AC44: 85308 | AD44: 84555 | AE44: 83825 | AF44: 83117 | AG44: 82430 | AH44: 81762 | AI44: 81114 | AJ44: 80483 | AK44: 79871 | AL44: 79275 | AM44: 78695
A45: 45 | B45: 3 | C45: 10 | D45: 15 | E45: 120079 | F45: 118170 | G45: 116351 | H45: 114617 | I45: 112961 | J45: 111379 | K45: 109866 | L45: 108418 | M45: 107029 | N45: 105698 | O45: 104419 | P45: 103191 | Q45: 102010 | R45: 100874 | S45: 99779 | T45: 98725 | U45: 97708 | V45: 96727 | W45: 95779 | X45: 94864 | Y45: 93979 | Z45: 93124 | AA45: 92296 | AB45: 91494 | AC45: 90717 | AD45: 89964 | AE45: 89234 | AF45: 88526 | AG45: 87838 | AH45: 87171 | AI45: 86522 | AJ45: 85892 | AK45: 85279 | AL45: 84684 | AM45: 84104
A46: 46 | B46: 4 | C46: 15 | D46: 20 | E46: 125488 | F46: 123578 | G46: 121759 | H46: 120025 | I46: 118370 | J46: 116788 | K46: 115275 | L46: 113826 | M46: 112438 | N46: 111106 | O46: 109828 | P46: 108600 | Q46: 107419 | R46: 106282 | S46: 105188 | T46: 104133 | U46: 103117 | V46: 102135 | W46: 101188 | X46: 100273 | Y46: 99388 | Z46: 98532 | AA46: 97704 | AB46: 96902 | AC46: 96125 | AD46: 95373 | AE46: 94643 | AF46: 93934 | AG46: 93247 | AH46: 92579 | AI46: 91931 | AJ46: 91301 | AK46: 90688 | AL46: 90092 | AM46: 89512
A47: 47 | B47: 5 | C47: 20 | D47: 25 | E47: 130896 | F47: 128987 | G47: 127168 | H47: 125434 | I47: 123778 | J47: 122197 | K47: 120683 | L47: 119235 | M47: 117847 | N47: 116515 | O47: 115237 | P47: 114008 | Q47: 112827 | R47: 111691 | S47: 110597 | T47: 109542 | U47: 108525 | V47: 107544 | W47: 106597 | X47: 105681 | Y47: 104797 | Z47: 103941 | AA47: 103113 | AB47: 102311 | AC47: 101534 | AD47: 100781 | AE47: 100051 | AF47: 99343 | AG47: 98655 | AH47: 97988 | AI47: 97339 | AJ47: 96709 | AK47: 96097 | AL47: 95501 | AM47: 94921
A48: 48 | B48: 6 | C48: 25 | D48: 30 | E48: 136305 | F48: 134395 | G48: 132577 | H48: 130842 | I48: 129187 | J48: 127605 | K48: 126092 | L48: 124643 | M48: 123255 | N48: 121924 | O48: 120645 | P48: 119417 | Q48: 118236 | R48: 117099 | S48: 116005 | T48: 114951 | U48: 113934 | V48: 112953 | W48: 112005 | X48: 111090 | Y48: 110205 | Z48: 109349 | AA48: 108521 | AB48: 107719 | AC48: 106943 | AD48: 106190 | AE48: 105460 | AF48: 104751 | AG48: 104064 | AH48: 103397 | AI48: 102748 | AJ48: 102118 | AK48: 101505 | AL48: 100909 | AM48: 100330
A49: 49 | B49: 7 | C49: 30 | D49: 35 | E49: 141714 | F49: 139804 | G49: 137985 | H49: 136251 | I49: 134596 | J49: 133014 | K49: 131501 | L49: 130052 | M49: 128664 | N49: 127332 | O49: 126054 | P49: 124826 | Q49: 123645 | R49: 122508 | S49: 121414 | T49: 120359 | U49: 119342 | V49: 118361 | W49: 117414 | X49: 116499 | Y49: 115614 | Z49: 114758 | AA49: 113930 | AB49: 113128 | AC49: 112351 | AD49: 111598 | AE49: 110868 | AF49: 110160 | AG49: 109473 | AH49: 108805 | AI49: 108157 | AJ49: 107526 | AK49: 106914 | AL49: 106318 | AM49: 105738
A50: 50 | B50: 8 | C50: 35 | D50: 40 | E50: 147122 | F50: 145213 | G50: 143394 | H50: 141660 | I50: 140004 | J50: 138422 | K50: 136909 | L50: 135461 | M50: 134072 | N50: 132741 | O50: 131462 | P50: 130234 | Q50: 129053 | R50: 127917 | S50: 126822 | T50: 125768 | U50: 124751 | V50: 123770 | W50: 122822 | X50: 121907 | Y50: 121022 | Z50: 120167 | AA50: 119339 | AB50: 118537 | AC50: 117760 | AD50: 117007 | AE50: 116277 | AF50: 115569 | AG50: 114881 | AH50: 114214 | AI50: 113565 | AJ50: 112935 | AK50: 112322 | AL50: 111727 | AM50: 111147
A51: 51 | B51: 9 | C51: 40 | D51: 45 | E51: 152531 | F51: 150621 | G51: 148802 | H51: 147068 | I51: 145413 | J51: 143831 | K51: 142318 | L51: 140869 | M51: 139481 | N51: 138149 | O51: 136871 | P51: 135643 | Q51: 134462 | R51: 133325 | S51: 132231 | T51: 131176 | U51: 130160 | V51: 129178 | W51: 128231 | X51: 127316 | Y51: 126431 | Z51: 125575 | AA51: 124747 | AB51: 123945 | AC51: 123168 | AD51: 122416 | AE51: 121686 | AF51: 120977 | AG51: 120290 | AH51: 119622 | AI51: 118974 | AJ51: 118344 | AK51: 117731 | AL51: 117135 | AM51: 116555
A52: 52 | B52: 10 | C52: 45 | D52: 50 | E52: 157939 | F52: 156030 | G52: 154211 | H52: 152477 | I52: 150821 | J52: 149240 | K52: 147726 | L52: 146278 | M52: 144890 | N52: 143558 | O52: 142280 | P52: 141051 | Q52: 139870 | R52: 138734 | S52: 137640 | T52: 136585 | U52: 135568 | V52: 134587 | W52: 133640 | X52: 132724 | Y52: 131840 | Z52: 130984 | AA52: 130156 | AB52: 129354 | AC52: 128577 | AD52: 127824 | AE52: 127094 | AF52: 126386 | AG52: 125698 | AH52: 125031 | AI52: 124382 | AJ52: 123752 | AK52: 123140 | AL52: 122544 | AM52: 121964
A53: 53 | B53: 11 | C53: 50 | D53: 55 | E53: 163348 | F53: 161438 | G53: 159620 | H53: 157885 | I53: 156230 | J53: 154648 | K53: 153135 | L53: 151686 | M53: 150298 | N53: 148967 | O53: 147688 | P53: 146460 | Q53: 145279 | R53: 144143 | S53: 143048 | T53: 141994 | U53: 140977 | V53: 139996 | W53: 139048 | X53: 138133 | Y53: 137248 | Z53: 136392 | AA53: 135564 | AB53: 134762 | AC53: 133986 | AD53: 133233 | AE53: 132503 | AF53: 131794 | AG53: 131107 | AH53: 130440 | AI53: 129791 | AJ53: 129161 | AK53: 128548 | AL53: 127952 | AM53: 127373
A54: 54 | B54: 12 | C54: 55 | D54: 60 | E54: 168757 | F54: 166847 | G54: 165028 | H54: 163294 | I54: 161639 | J54: 160057 | K54: 158544 | L54: 157095 | M54: 155707 | N54: 154375 | O54: 153097 | P54: 151869 | Q54: 150688 | R54: 149551 | S54: 148457 | T54: 147402 | U54: 146385 | V54: 145404 | W54: 144457 | X54: 143542 | Y54: 142657 | Z54: 141801 | AA54: 140973 | AB54: 140171 | AC54: 139394 | AD54: 138641 | AE54: 137911 | AF54: 137203 | AG54: 136516 | AH54: 135848 | AI54: 135200 | AJ54: 134569 | AK54: 133957 | AL54: 133361 | AM54: 132781
A55: 55 | B55: 13 | C55: 60 | D55: 65 | E55: 174165 | F55: 172256 | G55: 170437 | H55: 168703 | I55: 167047 | J55: 165465 | K55: 163952 | L55: 162504 | M55: 161115 | N55: 159784 | O55: 158505 | P55: 157277 | Q55: 156096 | R55: 154960 | S55: 153865 | T55: 152811 | U55: 151794 | V55: 150813 | W55: 149865 | X55: 148950 | Y55: 148065 | Z55: 147210 | AA55: 146382 | AB55: 145580 | AC55: 144803 | AD55: 144050 | AE55: 143320 | AF55: 142612 | AG55: 141924 | AH55: 141257 | AI55: 140608 | AJ55: 139978 | AK55: 139365 | AL55: 138770 | AM55: 138190
A56: 56 | B56: 14 | C56: 65 | D56: 70 | E56: 179574 | F56: 177664 | G56: 175845 | H56: 174111 | I56: 172456 | J56: 170874 | K56: 169361 | L56: 167912 | M56: 166524 | N56: 165192 | O56: 163914 | P56: 162686 | Q56: 161505 | R56: 160368 | S56: 159274 | T56: 158219 | U56: 157203 | V56: 156221 | W56: 155274 | X56: 154359 | Y56: 153474 | Z56: 152618 | AA56: 151790 | AB56: 150988 | AC56: 150212 | AD56: 149459 | AE56: 148729 | AF56: 148020 | AG56: 147333 | AH56: 146665 | AI56: 146017 | AJ56: 145387 | AK56: 144774 | AL56: 144178 | AM56: 143598
A57: 57 | B57: 15 | C57: 70 | D57: 75 | E57: 184982 | F57: 183073 | G57: 181254 | H57: 179520 | I57: 177864 | J57: 176283 | K57: 174769 | L57: 173321 | M57: 171933 | N57: 170601 | O57: 169323 | P57: 168094 | Q57: 166913 | R57: 165777 | S57: 164683 | T57: 163628 | U57: 162611 | V57: 161630 | W57: 160683 | X57: 159767 | Y57: 158883 | Z57: 158027 | AA57: 157199 | AB57: 156397 | AC57: 155620 | AD57: 154867 | AE57: 154137 | AF57: 153429 | AG57: 152741 | AH57: 152074 | AI57: 151425 | AJ57: 150795 | AK57: 150183 | AL57: 149587 | AM57: 149007
A58: 58 | B58: 16 | C58: 75 | D58: 80 | E58: 190391 | F58: 188481 | G58: 186663 | H58: 184928 | I58: 183273 | J58: 181691 | K58: 180178 | L58: 178729 | M58: 177341 | N58: 176010 | O58: 174731 | P58: 173503 | Q58: 172322 | R58: 171186 | S58: 170091 | T58: 169037 | U58: 168020 | V58: 167039 | W58: 166091 | X58: 165176 | Y58: 164291 | Z58: 163435 | AA58: 162607 | AB58: 161805 | AC58: 161029 | AD58: 160276 | AE58: 159546 | AF58: 158837 | AG58: 158150 | AH58: 157483 | AI58: 156834 | AJ58: 156204 | AK58: 155591 | AL58: 154995 | AM58: 154416
A59: 59 | B59: 17 | C59: 80 | D59: 85 | E59: 195800 | F59: 193890 | G59: 192071 | H59: 190337 | I59: 188682 | J59: 187100 | K59: 185587 | L59: 184138 | M59: 182750 | N59: 181418 | O59: 180140 | P59: 178912 | Q59: 177731 | R59: 176594 | S59: 175500 | T59: 174445 | U59: 173428 | V59: 172447 | W59: 171500 | X59: 170585 | Y59: 169700 | Z59: 168844 | AA59: 168016 | AB59: 167214 | AC59: 166437 | AD59: 165684 | AE59: 164954 | AF59: 164246 | AG59: 163559 | AH59: 162891 | AI59: 162243 | AJ59: 161612 | AK59: 161000 | AL59: 160404 | AM59: 159824
A60: 60 | B60: 18 | C60: 85 | D60: 90 | E60: 201208 | F60: 199299 | G60: 197480 | H60: 195746 | I60: 194090 | J60: 192508 | K60: 190995 | L60: 189547 | M60: 188158 | N60: 186827 | O60: 185548 | P60: 184320 | Q60: 183139 | R60: 182003 | S60: 180908 | T60: 179854 | U60: 178837 | V60: 177856 | W60: 176908 | X60: 175993 | Y60: 175108 | Z60: 174253 | AA60: 173425 | AB60: 172623 | AC60: 171846 | AD60: 171093 | AE60: 170363 | AF60: 169655 | AG60: 168967 | AH60: 168300 | AI60: 167651 | AJ60: 167021 | AK60: 166408 | AL60: 165813 | AM60: 165233
A61: 61 | B61: 19 | C61: 90 | D61: 95 | E61: 206617 | F61: 204707 | G61: 202888 | H61: 201154 | I61: 199499 | J61: 197917 | K61: 196404 | L61: 194955 | M61: 193567 | N61: 192235 | O61: 190957 | P61: 189729 | Q61: 188548 | R61: 187411 | S61: 186317 | T61: 185262 | U61: 184246 | V61: 183264 | W61: 182317 | X61: 181402 | Y61: 180517 | Z61: 179661 | AA61: 178833 | AB61: 178031 | AC61: 177255 | AD61: 176502 | AE61: 175772 | AF61: 175063 | AG61: 174376 | AH61: 173708 | AI61: 173060 | AJ61: 172430 | AK61: 171817 | AL61: 171221 | AM61: 170641
A62: 62 | B62: 20 | C62: 95 | D62: 100 | E62: 212025 | F62: 210116 | G62: 208297 | H62: 206563 | I62: 204907 | J62: 203326 | K62: 201812 | L62: 200364 | M62: 198976 | N62: 197644 | O62: 196366 | P62: 195137 | Q62: 193956 | R62: 192820 | S62: 191726 | T62: 190671 | U62: 189654 | V62: 188673 | W62: 187726 | X62: 186810 | Y62: 185926 | Z62: 185070 | AA62: 184242 | AB62: 183440 | AC62: 182663 | AD62: 181910 | AE62: 181180 | AF62: 180472 | AG62: 179784 | AH62: 179117 | AI62: 178468 | AJ62: 177838 | AK62: 177226 | AL62: 176630 | AM62: 176050
A63: 63

Sheet Valoración (hidden)
A1: Tecnología | B1: Requerimientos | L1: Cantidad requerimientos | M1: Cumplimiento requerimientos (%)
B2: Escala mínima | C2: Escala máxima | D2: Unidad | E2: Valoración | F2: Contenido de humedad | G2: Unidad | H2: Valoración | I2: Complejidad | J2: Separación en la fuente | K2: Valoración
A3: Compostaje en pilas con volteo manual | B3: 1000 | C3: 200000 | D3: tpa | E3: =IF(AND((Cálculo!$B$127)>=B3,(Cálculo!$B$127)<=C3),"Adecuado", "No adecuado") -> Adecuado | F3: 0.5 | G3: % | H3: =IF((((Cálculo!$B$127)/(Cálculo!$B$126))*'Información referencia'!$B$2)>=F3,"Adecuado","No adecuado") -> No adecuado | I3: Baja - Media | J3: Alta | K3: =IF(Cálculo!$C$136="Alta","Adecuado","No adecuado") -> No adecuado | L3: 3 | M3: =COUNTIF(B3:K3,"Adecuado")/L3 -> 0.3333333333
A4: Compostaje en pilas con aireación forzada | B4: 1000 | C4: 200000 | D4: tpa | E4: =IF(AND((Cálculo!$B$127)>=B4,(Cálculo!$B$127)<=C4),"Adecuado", "No adecuado") -> Adecuado | F4: 0.5 | G4: % | H4: =IF((((Cálculo!$B$127)/(Cálculo!$B$126))*'Información referencia'!$B$2)>=F4,"Adecuado","No adecuado") -> No adecuado | I4: Baja - Media | J4: Alta | K4: =IF(Cálculo!$C$136="Alta","Adecuado","No adecuado") -> No adecuado | L4: 3 | M4: =COUNTIF(B4:K4,"Adecuado")/L4 -> 0.3333333333
A5: Compostaje cerrado o "In vessel" | B5: 5000 | C5: 300000 | D5: tpa | E5: =IF(AND((Cálculo!$B$127)>=B5,(Cálculo!$B$127)<=C5),"Adecuado", "No adecuado") -> Adecuado | F5: 0.5 | G5: % | H5: =IF((((Cálculo!$B$127)/(Cálculo!$B$126))*'Información referencia'!$B$2)>=F5,"Adecuado","No adecuado") -> No adecuado | I5: Baja - Media | J5: Alta | K5: =IF(Cálculo!$C$136="Alta","Adecuado","No adecuado") -> No adecuado | L5: 3 | M5: =COUNTIF(B5:K5,"Adecuado")/L5 -> 0.3333333333
A6: Tratamiento Mecánico Biológico | B6: 20000 | C6: 500000 | D6: tpa | E6: =IF(AND((Cálculo!$B$126)>=B6,(Cálculo!$B$127)<=C6),"Adecuado", "No adecuado") -> Adecuado | F6: 0 | G6: % | H6: =IF((((Cálculo!$B$127)/(Cálculo!$B$126))*'Información referencia'!$B$2)>=F6,"Adecuado","No adecuado") -> Adecuado | I6: Media - Alta | J6: Baja | K6: =IF(OR(Cálculo!$C$136="Media",Cálculo!$C$136="Alta"),"Adecuado","No adecuado") -> Adecuado | L6: 3 | M6: =COUNTIF(B6:K6,"Adecuado")/L6 -> 1
A7: Digestión Anaerobia | B7: 20000 | C7: 500000 | D7: tpa | E7: =IF(AND((Cálculo!$B$127)>=B7,(Cálculo!$B$126)<=C7),"Adecuado", "No adecuado") -> Adecuado | F7: 0.6 | G7: % | H7: =IF((((Cálculo!$B$127)/(Cálculo!$B$126))*'Información referencia'!$B$2)>=F7,"Adecuado","No adecuado") -> No adecuado | I7: Media - Alta | J7: Media | K7: =IF(OR(Cálculo!C136="Media",Cálculo!$C$136="Alta"),"Adecuado","No adecuado") -> Adecuado | L7: 3 | M7: =COUNTIF(B7:K7,"Adecuado")/L7 -> 0.6666666667

Sheet Costos de operación (hidden)
B1: 1 | C1: =+'Fichas técnicas Tecnologías'!A3 -> Compostaje en pilas con volteo manual | M1: Costo según mercado atendido residuos sólidos sin incluir poda, corte de cesped ni plazas de mercado | O1: Costo según mercado atendido de residuos de poda, corte de cesped y plazas de mercado
B2: 2 | C2: Escala (ton/mes) | D2: 38933 | F2: 9125 | H2: 304 | J2: Funciones de costos
B3: 3 | C3: Componente | D3: Valor (COP)/año | E3: COP/Ton/año | F3: Valor (COP)/año | G3: COP/Ton/año | H3: Valor (COP)/año | I3: COP/Ton/año | J3: a | K3: b | L3: Techo | M3: COP/ton | N3: Valor total | O3: COP/ton | P3: Valor total
A4: =$C$1 -> Compostaje en pilas con volteo manual | B4: 4 | C4: Energia | D4: =708100645*D14 -> 637290580.5 | E4: =+D4/($D$2*12) -> 1364.075421 | F4: =165961089*F14 -> 157663034.5 | G4: =+F4/($F$2*12) -> 1439.845064 | H4: 5532036 | I4: =IFERROR(H4/($H$2*12),0) -> 1516.457237 | J4: =+E4 -> 1364.075421 | K4: =+G4 -> 1439.845064 | L4: =+MAX(E4,G4,I4) -> 1516.457237 | M4: =+IF('Fichas técnicas Tecnologías'!$Y$3<=$H$2*12,I4,IF(AND('Fichas técnicas Tecnologías'!$Y$3>$H$2*12,'Fichas técnicas Tecnologías'!$Y$3<=$F$2*12),G4,E4)) -> 1364.075421 | N4: =ROUND('Fichas técnicas Tecnologías'!$X$3*M4,-6) -> 63000000 | O4: =+IF('Fichas técnicas Tecnologías'!$Y$3<=$H$2*12,I4,IF(AND('Fichas técnicas Tecnologías'!$Y$3>$H$2*12,'Fichas técnicas Tecnologías'!$Y$3<=$F$2*12),G4,E4)) -> 1364.075421 | P4: =IFERROR(ROUND('Fichas técnicas Tecnologías'!$Y$3*O4,-6),"Se debe indicar cantidades en los datos de entrada") -> 273000000
B5: 5 | C5: Combustible | D5: =2734906203*D14 -> 2461415583 | E5: =+D5/($D$2*12) -> 5268.485995 | F5: =640993641*F14 -> 608943958.9 | G5: =+F5/($F$2*12) -> 5561.132045 | H5: 21366455 | I5: =IFERROR(H5/($H$2*12),0) -> 5857.032621 | J5: 5268.485995 | K5: 5561.132045 | L5: 5857.032621 | M5: =+IF('Fichas técnicas Tecnologías'!$Y$3<=$H$2*12,I5,IF(AND('Fichas técnicas Tecnologías'!$Y$3>$H$2*12,'Fichas técnicas Tecnologías'!$Y$3<=$F$2*12),G5,E5)) -> 5268.485995 | N5: =ROUND('Fichas técnicas Tecnologías'!$X$3*M5,-6) -> 242000000 | O5: =+IF('Fichas técnicas Tecnologías'!$Y$3<=$H$2*12,I5,IF(AND('Fichas técnicas Tecnologías'!$Y$3>$H$2*12,'Fichas técnicas Tecnologías'!$Y$3<=$F$2*12),G5,E5)) -> 5268.485995 | P5: =IFERROR(ROUND('Fichas técnicas Tecnologías'!$Y$3*O5,-6),"Se debe indicar cantidades en los datos de entrada") -> 1054000000
B6: 6 | C6: Agua | D6: =85465819*D14 -> 76919237.1 | E6: 164.6401876 | F6: =20031051*F14 -> 19029498.45 | G6: 173.785374 | H6: 667702 | I6: 183.0323465 | J6: 164.6401876 | K6: 173.785374 | L6: 183.0323465 | M6: =+IF('Fichas técnicas Tecnologías'!$Y$3<=$H$2*12,I6,IF(AND('Fichas técnicas Tecnologías'!$Y$3>$H$2*12,'Fichas técnicas Tecnologías'!$Y$3<=$F$2*12),G6,E6)) -> 164.6401876 | N6: =ROUND('Fichas técnicas Tecnologías'!$X$3*M6,-6) -> 8000000 | O6: =+IF('Fichas técnicas Tecnologías'!$Y$3<=$H$2*12,I6,IF(AND('Fichas técnicas Tecnologías'!$Y$3>$H$2*12,'Fichas técnicas Tecnologías'!$Y$3<=$F$2*12),G6,E6)) -> 164.6401876 | P6: =IFERROR(ROUND('Fichas técnicas Tecnologías'!$Y$3*O6,-6),"Se debe indicar cantidades en los datos de entrada") -> 33000000
B7: 7 | C7: Tratamiento RSO | D7: =9157052019*D14 -> 8241346817 | E7: 17640.02007 | F7: =2146184067*F14 -> 2038874864 | G7: 18619.86177 | H7: =+G7*H2*12 -> 67925255.73 | I7: 18619.86177 | J7: 17640.02007 | K7: 18619.86177 | L7: 18619.86177 | M7: =+IF('Fichas técnicas Tecnologías'!$Y$3<=$H$2*12,I7,IF(AND('Fichas técnicas Tecnologías'!$Y$3>$H$2*12,'Fichas técnicas Tecnologías'!$Y$3<=$F$2*12),G7,E7)) -> 17640.02007 | N7: =ROUND('Fichas técnicas Tecnologías'!$X$3*M7,-6) -> 811000000 | O7: =+IF('Fichas técnicas Tecnologías'!$Y$3<=$H$2*12,I7,IF(AND('Fichas técnicas Tecnologías'!$Y$3>$H$2*12,'Fichas técnicas Tecnologías'!$Y$3<=$F$2*12),G7,E7)) -> 17640.02007 | P7: =IFERROR(ROUND('Fichas técnicas Tecnologías'!$Y$3*O7,-6),"Se debe indicar cantidades en los datos de entrada") -> 3528000000
B8: 8 | C8: Monitoreo Ambiental | D8: 45000000 | E8: 96.3193178 | F8: 31359767 | G8: 286.3905662 | H8: 7839942 | I8: 2149.106908 | J8: 96.3193178 | K8: 286.3905662 | L8: 2149.106908 | M8: =+IF('Fichas técnicas Tecnologías'!$Y$3<=$H$2*12,I8,IF(AND('Fichas técnicas Tecnologías'!$Y$3>$H$2*12,'Fichas técnicas Tecnologías'!$Y$3<=$F$2*12),G8,E8)) -> 96.3193178 | N8: =ROUND('Fichas técnicas Tecnologías'!$X$3*M8,-6) -> 4000000 | O8: =+IF('Fichas técnicas Tecnologías'!$Y$3<=$H$2*12,I8,IF(AND('Fichas técnicas Tecnologías'!$Y$3>$H$2*12,'Fichas técnicas Tecnologías'!$Y$3<=$F$2*12),G8,E8)) -> 96.3193178 | P8: =IFERROR(ROUND('Fichas técnicas Tecnologías'!$Y$3*O8,-6),"Se debe indicar cantidades en los datos de entrada") -> 19000000
B9: 9 | C9: Mantenimiento - Maquinaria y equipos | D9: =345828645*D14 -> 311245780.5 | E9: 666.1995833 | F9: =165791431*F14 -> 157501859.4 | G9: 1438.373146 | H9: 13754548 | I9: 3770.435307 | J9: 666.1995833 | K9: 1438.373146 | L9: 3770.435307 | M9: =+IF('Fichas técnicas Tecnologías'!$Y$3<=$H$2*12,I9,IF(AND('Fichas técnicas Tecnologías'!$Y$3>$H$2*12,'Fichas técnicas Tecnologías'!$Y$3<=$F$2*12),G9,E9)) -> 666.1995833 | N9: =ROUND('Fichas técnicas Tecnologías'!$X$3*M9,-6) -> 31000000 | O9: =+IF('Fichas técnicas Tecnologías'!$Y$3<=$H$2*12,I9,IF(AND('Fichas técnicas Tecnologías'!$Y$3>$H$2*12,'Fichas técnicas Tecnologías'!$Y$3<=$F$2*12),G9,E9)) -> 666.1995833 | P9: =IFERROR(ROUND('Fichas técnicas Tecnologías'!$Y$3*O9,-6),"Se debe indicar cantidades en los datos de entrada") -> 133000000
B10: 10 | C10: Mantenimiento - Infraestructura | D10: =406980090*D14 -> 366282081 | E10: 784.0008926 | F10: =124636727*F14 -> 118404890.6 | G10: 1081.323202 | H10: 4154558 | I10: 1138.859101 | J10: 784.0008926 | K10: 1081.323202 | L10: =+MAX(E10,G10,I10) -> 1138.859101 | M10: =+IF('Fichas técnicas Tecnologías'!$Y$3<=$H$2*12,I10,IF(AND('Fichas técnicas Tecnologías'!$Y$3>$H$2*12,'Fichas técnicas Tecnologías'!$Y$3<=$F$2*12),G10,E10)) -> 784.0008926 | N10: =ROUND('Fichas técnicas Tecnologías'!$X$3*M10,-6) -> 36000000 | O10: =+IF('Fichas técnicas Tecnologías'!$Y$3<=$H$2*12,I10,IF(AND('Fichas técnicas Tecnologías'!$Y$3>$H$2*12,'Fichas técnicas Tecnologías'!$Y$3<=$F$2*12),G10,E10)) -> 784.0008926 | P10: =IFERROR(ROUND('Fichas técnicas Tecnologías'!$Y$3*O10,-6),"Se debe indicar cantidades en los datos de entrada") -> 157000000
B11: 11 | C11: Mano de Obra | D11: 576133411 | E11: 1233.172825 | F11: 199882140 | G11: 1825.407671 | H11: 12959852 | I11: 3552.591009 | J11: 1233.172825 | K11: 1825.407671 | L11: =+MAX(E11,G11,I11) -> 3552.591009 | M11: =+IF('Fichas técnicas Tecnologías'!$Y$3<=$H$2*12,I11,IF(AND('Fichas técnicas Tecnologías'!$Y$3>$H$2*12,'Fichas técnicas Tecnologías'!$Y$3<=$F$2*12),G11,E11)) -> 1233.172825 | N11: =ROUND('Fichas técnicas Tecnologías'!$X$3*M11,-6) -> 57000000 | O11: =+IF('Fichas técnicas Tecnologías'!$Y$3<=$H$2*12,I11,IF(AND('Fichas técnicas Tecnologías'!$Y$3>$H$2*12,'Fichas técnicas Tecnologías'!$Y$3<=$F$2*12),G11,E11)) -> 1233.172825 | P11: =IFERROR(ROUND('Fichas técnicas Tecnologías'!$Y$3*O11,-6),"Se debe indicar cantidades en los datos de entrada") -> 247000000
B12: 12 | C12: Valor de Operación Anual | D12: =SUM(D4:D11) -> 1.271563349e+10 | F12: =SUM(F4:F11) -> 3331660013 | H12: =SUM(H4:H11) -> 134200348.7 | N12: =SUM(N4:N11) -> 1252000000 | P12: =SUM(P4:P11) -> 5444000000
B13: 13
B14: 14 | D14: 0.9 | F14: 0.95 | G14: =+F2*12 -> 109500 | I14: =+H2*12 -> 3648
B15: 15
B16: 16 | C16: =+'Fichas técnicas Tecnologías'!A4 -> Compostaje en pilas con aireación forzada | M16: Costo según mercado atendido residuos sólidos sin incluir poda, corte de cesped ni plazas de mercado | O16: Costo según mercado atendido de residuos de poda, corte de cesped y plazas de mercado
B17: 17 | C17: Escala (ton/mes) | D17: 38933 | F17: 9125 | H17: 304 | J17: Funciones de costos
B18: 18 | C18: Componente | D18: Valor (COP)/año | E18: COP/Ton/año | F18: Valor (COP)/año | G18: COP/Ton/año | H18: Valor (COP)/año | I18: COP/Ton/año | J18: a | K18: b | L18: Techo | M18: COP/ton | N18: Valor total | O18: COP/ton | P18: Valor total
A19: =+$C$16 -> Compostaje en pilas con aireación forzada | B19: 19 | C19: Energia | D19: =757667690*D29 -> 681900921 | E19: =+D19/($D$17*12) -> 1459.5607 | F19: =177578365*F29 -> 168699446.8 | G19: =+F19/($F$17*12) -> 1540.634217 | H19: 5919279 | I19: =IFERROR(H19/($H$17*12),0) -> 1622.609375 | J19: =+E19 -> 1459.5607 | K19: =+G19 -> 1540.634217 | L19: =+MAX(E19,G19,I19) -> 1622.609375 | M19: =+IF('Fichas técnicas Tecnologías'!$Y$3<=$H$2*12,I19,IF(AND('Fichas técnicas Tecnologías'!$Y$3>$H$2*12,'Fichas técnicas Tecnologías'!$Y$3<=$F$2*12),G19,E19)) -> 1459.5607 | N19: =ROUND('Fichas técnicas Tecnologías'!$X$4*M19,-6) -> 67000000 | O19: =+IF('Fichas técnicas Tecnologías'!$Y$3<=$H$2*12,I19,IF(AND('Fichas técnicas Tecnologías'!$Y$3>$H$2*12,'Fichas técnicas Tecnologías'!$Y$3<=$F$2*12),G19,E19)) -> 1459.5607 | P19: =IFERROR(ROUND('Fichas técnicas Tecnologías'!$Y$4*O19,-6),"Se debe indicar cantidades en los datos de entrada") -> 292000000
B20: 20 | C20: Combustible | D20: =2926349637*D29 -> 2633714673 | E20: =+D20/($D$17*12) -> 5637.280014 | F20: =685863196*F29 -> 651570036.2 | G20: =+F20/($F$17*12) -> 5950.411289 | H20: 22862107 | I20: =IFERROR(H20/($H$17*12),0) -> 6267.024945 | J20: 5637.280014 | K20: 5950.411289 | L20: =+MAX(E20,G20,I20) -> 6267.024945 | M20: =+IF('Fichas técnicas Tecnologías'!$Y$3<=$H$2*12,I20,IF(AND('Fichas técnicas Tecnologías'!$Y$3>$H$2*12,'Fichas técnicas Tecnologías'!$Y$3<=$F$2*12),G20,E20)) -> 5637.280014 | N20: =ROUND('Fichas técnicas Tecnologías'!$X$4*M20,-6) -> 259000000 | O20: =+IF('Fichas técnicas Tecnologías'!$Y$3<=$H$2*12,I20,IF(AND('Fichas técnicas Tecnologías'!$Y$3>$H$2*12,'Fichas técnicas Tecnologías'!$Y$3<=$F$2*12),G20,E20)) -> 5637.280014 | P20: =IFERROR(ROUND('Fichas técnicas Tecnologías'!$Y$4*O20,-6),"Se debe indicar cantidades en los datos de entrada") -> 1127000000
B21: 21 | C21: Agua | D21: =91448426*D29 -> 82303583.4 | E21: 176.1650001 | F21: 21433225 | G21: 195.7372146 | H21: 714441 | I21: 195.8445724 | J21: 176.1650001 | K21: 195.7372146 | L21: 195.8445724 | M21: =+IF('Fichas técnicas Tecnologías'!$Y$3<=$H$2*12,I21,IF(AND('Fichas técnicas Tecnologías'!$Y$3>$H$2*12,'Fichas técnicas Tecnologías'!$Y$3<=$F$2*12),G21,E21)) -> 176.1650001 | N21: =ROUND('Fichas técnicas Tecnologías'!$X$4*M21,-6) -> 8000000 | O21: =+IF('Fichas técnicas Tecnologías'!$Y$3<=$H$2*12,I21,IF(AND('Fichas técnicas Tecnologías'!$Y$3>$H$2*12,'Fichas técnicas Tecnologías'!$Y$3<=$F$2*12),G21,E21)) -> 176.1650001 | P21: =IFERROR(ROUND('Fichas técnicas Tecnologías'!$Y$4*O21,-6),"Se debe indicar cantidades en los datos de entrada") -> 35000000
B22: 22 | C22: Tratamiento RSO | D22: =9798045660*D29 -> 8818241094 | E22: 18874.82148 | F22: 2296416952 | G22: 20971.84431 | H22: 76505288.04 | I22: 20971.84431 | J22: 18874.82148 | K22: 20971.84431 | L22: 20971.84431 | M22: =+IF('Fichas técnicas Tecnologías'!$Y$3<=$H$2*12,I22,IF(AND('Fichas técnicas Tecnologías'!$Y$3>$H$2*12,'Fichas técnicas Tecnologías'!$Y$3<=$F$2*12),G22,E22)) -> 18874.82148 | N22: =ROUND('Fichas técnicas Tecnologías'!$X$4*M22,-6) -> 868000000 | O22: =+IF('Fichas técnicas Tecnologías'!$Y$3<=$H$2*12,I22,IF(AND('Fichas técnicas Tecnologías'!$Y$3>$H$2*12,'Fichas técnicas Tecnologías'!$Y$3<=$F$2*12),G22,E22)) -> 18874.82148 | P22: =IFERROR(ROUND('Fichas técnicas Tecnologías'!$Y$4*O22,-6),"Se debe indicar cantidades en los datos de entrada") -> 3775000000
B23: 23 | C23: Monitoreo Ambiental | D23: 45000000 | E23: 96.3193178 | F23: 33554951 | G23: 306.4379087 | H23: 8388738 | I23: 2299.544408 | J23: 96.3193178 | K23: 306.4379087 | L23: 2299.544408 | M23: =+IF('Fichas técnicas Tecnologías'!$Y$3<=$H$2*12,I23,IF(AND('Fichas técnicas Tecnologías'!$Y$3>$H$2*12,'Fichas técnicas Tecnologías'!$Y$3<=$F$2*12),G23,E23)) -> 96.3193178 | N23: =ROUND('Fichas técnicas Tecnologías'!$X$4*M23,-6) -> 4000000 | O23: =+IF('Fichas técnicas Tecnologías'!$Y$3<=$H$2*12,I23,IF(AND('Fichas técnicas Tecnologías'!$Y$3>$H$2*12,'Fichas técnicas Tecnologías'!$Y$3<=$F$2*12),G23,E23)) -> 96.3193178 | P23: =IFERROR(ROUND('Fichas técnicas Tecnologías'!$Y$4*O23,-6),"Se debe indicar cantidades en los datos de entrada") -> 19000000
B24: 24 | C24: Mantenimiento - Maquinaria y equipos | D24: =370036650*D29 -> 333032985 | E24: 712.8335538 | F24: 177396832 | G24: 1620.062393 | H24: 14717367 | I24: 4034.365954 | J24: 712.8335538 | K24: 1620.062393 | L24: 4034.365954 | M24: =+IF('Fichas técnicas Tecnologías'!$Y$3<=$H$2*12,I24,IF(AND('Fichas técnicas Tecnologías'!$Y$3>$H$2*12,'Fichas técnicas Tecnologías'!$Y$3<=$F$2*12),G24,E24)) -> 712.8335538 | N24: =ROUND('Fichas técnicas Tecnologías'!$X$4*M24,-6) -> 33000000 | O24: =+IF('Fichas técnicas Tecnologías'!$Y$3<=$H$2*12,I24,IF(AND('Fichas técnicas Tecnologías'!$Y$3>$H$2*12,'Fichas técnicas Tecnologías'!$Y$3<=$F$2*12),G24,E24)) -> 712.8335538 | P24: =IFERROR(ROUND('Fichas técnicas Tecnologías'!$Y$4*O24,-6),"Se debe indicar cantidades en los datos de entrada") -> 143000000
B25: 25 | C25: Mantenimiento - Infraestructura | D25: =608838780*D29 -> 547954902 | E25: 1172.858719 | F25: 142696589 | G25: 1303.165196 | H25: 4756553 | I25: 1303.87966 | J25: 1172.858719 | K25: 1303.165196 | L25: 1303.87966 | M25: =+IF('Fichas técnicas Tecnologías'!$Y$3<=$H$2*12,I25,IF(AND('Fichas técnicas Tecnologías'!$Y$3>$H$2*12,'Fichas técnicas Tecnologías'!$Y$3<=$F$2*12),G25,E25)) -> 1172.858719 | N25: =ROUND('Fichas técnicas Tecnologías'!$X$4*M25,-6) -> 54000000 | O25: =+IF('Fichas técnicas Tecnologías'!$Y$3<=$H$2*12,I25,IF(AND('Fichas técnicas Tecnologías'!$Y$3>$H$2*12,'Fichas técnicas Tecnologías'!$Y$3<=$F$2*12),G25,E25)) -> 1172.858719 | P25: =IFERROR(ROUND('Fichas técnicas Tecnologías'!$Y$4*O25,-6),"Se debe indicar cantidades en los datos de entrada") -> 235000000
B26: 26 | C26: Mano de Obra | D26: 576133411 | E26: =+D26/($D$2*12) -> 1233.172825 | F26: 199882140 | G26: =+F26/($F$2*12) -> 1825.407671 | H26: 12959852 | I26: =IFERROR(H26/($H$2*12),0) -> 3552.591009 | J26: 1233.172825 | K26: 1825.407671 | L26: 3552.591009 | M26: =+IF('Fichas técnicas Tecnologías'!$Y$3<=$H$2*12,I26,IF(AND('Fichas técnicas Tecnologías'!$Y$3>$H$2*12,'Fichas técnicas Tecnologías'!$Y$3<=$F$2*12),G26,E26)) -> 1233.172825 | N26: =ROUND('Fichas técnicas Tecnologías'!$X$4*M26,-6) -> 57000000 | O26: =+IF('Fichas técnicas Tecnologías'!$Y$3<=$H$2*12,I26,IF(AND('Fichas técnicas Tecnologías'!$Y$3>$H$2*12,'Fichas técnicas Tecnologías'!$Y$3<=$F$2*12),G26,E26)) -> 1233.172825 | P26: =IFERROR(ROUND('Fichas técnicas Tecnologías'!$Y$4*O26,-6),"Se debe indicar cantidades en los datos de entrada") -> 247000000
B27: 27 | C27: Valor de Operación Anual | D27: =SUM(D19:D26) -> 1.371828157e+10 | N27: =SUM(N19:N26) -> 1350000000 | P27: =SUM(P19:P26) -> 5873000000
B28: 28
B29: 29 | D29: 0.9 | F29: 0.95
B30: 30
B31: 31 | C31: =+'Fichas técnicas Tecnologías'!A5 -> Compostaje cerrado o "In vessel" | M31: Costo según mercado atendido residuos sólidos sin incluir poda, corte de cesped ni plazas de mercado | O31: Costo según mercado atendido de residuos de poda, corte de cesped y plazas de mercado
B32: 32 | C32: Escala (ton/mes) | D32: 38933 | F32: 9125 | H32: 304 | J32: Funciones de costos
B33: 33 | C33: Componente | D33: Valor (COP)/año | E33: COP/Ton | F33: Valor (COP)/año | G33: COP/Ton | H33: Valor (COP)/año | I33: COP/Ton | J33: a | K33: b | L33: Techo | M33: COP/ton | N33: Valor total | O33: COP/ton | P33: Valor total
A34: =+$C$31 -> Compostaje cerrado o "In vessel" | B34: 34 | C34: Energia | D34: =6104701346*D43 -> 5494231211 | E34: =+D34/($D$32*12) -> 11760.01338 | F34: =1430789378*F43 -> 1359249909 | G34: =+F34/($F$32*12) -> 12413.24118 | H34: 47692979 | I34: =IFERROR(H34/($H$32*12),0) -> 13073.73328 | J34: =+E34 -> 11760.01338 | K34: =+G34 -> 12413.24118 | L34: =+MAX(E34,G34,I34) -> 13073.73328 | M34: =+IF('Fichas técnicas Tecnologías'!$Y$3<=$H$2*12,I34,IF(AND('Fichas técnicas Tecnologías'!$Y$3>$H$2*12,'Fichas técnicas Tecnologías'!$Y$3<=$F$2*12),G34,E34)) -> 11760.01338 | N34: =ROUND('Fichas técnicas Tecnologías'!$X$5*M34,-6) -> 541000000
B35: 35 | C35: Combustible | D35: =100422337*D43 -> 90380103.3 | E35: 193.4522198 | F35: =8584736*F43 -> 8155499.2 | G35: 74.47944475 | H35: 286158 | I35: 78.44243421 | J35: 193.4522198 | K35: 74.47944475 | L35: =+MAX(E35,G35,I35) -> 193.4522198 | M35: =+IF('Fichas técnicas Tecnologías'!$Y$3<=$H$2*12,I35,IF(AND('Fichas técnicas Tecnologías'!$Y$3>$H$2*12,'Fichas técnicas Tecnologías'!$Y$3<=$F$2*12),G35,E35)) -> 193.4522198 | N35: =ROUND('Fichas técnicas Tecnologías'!$X$5*M35,-6) -> 9000000
B36: 36 | C36: Agua | D36: =100422337*D43 -> 90380103.3 | E36: 193.4522198 | F36: =23536485*F43 -> 22359660.75 | G36: 204.1978151 | H36: 784550 | I36: 215.0630482 | J36: 193.4522198 | K36: 204.1978151 | L36: 215.0630482 | M36: =+IF('Fichas técnicas Tecnologías'!$Y$3<=$H$2*12,I36,IF(AND('Fichas técnicas Tecnologías'!$Y$3>$H$2*12,'Fichas técnicas Tecnologías'!$Y$3<=$F$2*12),G36,E36)) -> 193.4522198 | N36: =ROUND('Fichas técnicas Tecnologías'!$X$5*M36,-6) -> 9000000
B37: 37 | C37: Tratamiento RSO | D37: =4214884792*D43 -> 3793396313 | E37: 8119.496556 | F37: =987863623*F43 -> 938470441.8 | G37: 8570.506318 | H37: 32928787 | I37: 9026.531524 | J37: 8119.496556 | K37: 8570.506318 | L37: 9026.531524 | M37: =+IF('Fichas técnicas Tecnologías'!$Y$3<=$H$2*12,I37,IF(AND('Fichas técnicas Tecnologías'!$Y$3>$H$2*12,'Fichas técnicas Tecnologías'!$Y$3<=$F$2*12),G37,E37)) -> 8119.496556 | N37: =ROUND('Fichas técnicas Tecnologías'!$X$5*M37,-6) -> 373000000
B38: 38 | C38: Monitoreo Ambiental | D38: 45000000 | E38: 96.3193178 | F38: 31359767 | G38: 286.3905662 | H38: 15679884 | I38: =IFERROR(H38/($H$32*12),0) -> 4298.213816 | J38: 96.3193178 | K38: 286.3905662 | L38: 4298.213816 | M38: =+IF('Fichas técnicas Tecnologías'!$Y$3<=$H$2*12,I38,IF(AND('Fichas técnicas Tecnologías'!$Y$3>$H$2*12,'Fichas técnicas Tecnologías'!$Y$3<=$F$2*12),G38,E38)) -> 96.3193178 | N38: =ROUND('Fichas técnicas Tecnologías'!$X$5*M38,-6) -> 4000000
B39: 39 | C39: Mantenimiento - Infraestructura | D39: =4629052334*D43 -> 4166147101 | E39: 8917.343258 | F39: =1159152680*F43 -> 1101195046 | G39: 10056.57576 | H39: 47105699 | I39: 12912.74644 | J39: 8917.343258 | K39: 10056.57576 | L39: 12912.74644 | M39: =+IF('Fichas técnicas Tecnologías'!$Y$3<=$H$2*12,I39,IF(AND('Fichas técnicas Tecnologías'!$Y$3>$H$2*12,'Fichas técnicas Tecnologías'!$Y$3<=$F$2*12),G39,E39)) -> 8917.343258 | N39: =ROUND('Fichas técnicas Tecnologías'!$X$5*M39,-6) -> 410000000
B40: 40 | C40: Mano de Obra | D40: 1225072508 | E40: =+D40/($D$2*12) -> 2622.181072 | F40: 748895482.1 | G40: =+F40/($F$2*12) -> 6839.228147 | H40: 404548929.7 | I40: =IFERROR(H40/($H$2*12),0) -> 110896.0882 | J40: 2622.181072 | K40: 6839.228147 | L40: 110896.0882 | M40: =+IF('Fichas técnicas Tecnologías'!$Y$3<=$H$2*12,I40,IF(AND('Fichas técnicas Tecnologías'!$Y$3>$H$2*12,'Fichas técnicas Tecnologías'!$Y$3<=$F$2*12),G40,E40)) -> 2622.181072 | N40: =ROUND('Fichas técnicas Tecnologías'!$X$5*M40,-6) -> 121000000
B41: 41 | C41: Valor de Operación Anual | M41: =+IF('Fichas técnicas Tecnologías'!$Y$3<=$H$2*12,I41,IF(AND('Fichas técnicas Tecnologías'!$Y$3>$H$2*12,'Fichas técnicas Tecnologías'!$Y$3<=$F$2*12),G41,E41)) -> 0 | N41: =SUM(N34:N39) -> 1346000000
B42: 42
B43: 43 | D43: 0.9 | F43: 0.95
B44: 44
B45: 45
B46: 46 | C46: =+'Fichas técnicas Tecnologías'!A6 -> Tratamiento Mecánico Biológico | M46: Costo según mercado atendido residuos sólidos sin incluir poda, corte de cesped ni plazas de mercado | O46: Costo según mercado atendido de residuos de poda, corte de cesped y plazas de mercado
B47: 47 | C47: Escala (ton/mes) | D47: 38933 | F47: 9125 | H47: 304 | J47: Funciones de costos
B48: 48 | C48: Componente | D48: Valor (COP)/año | E48: COP/Ton/año | F48: Valor (COP)/año | G48: COP/Ton/año | H48: Valor (COP)/año | I48: COP/Ton/año | J48: a | K48: b | L48: Techo | M48: COP/ton | N48: Valor total | O48: COP/ton | P48: Valor total
A49: =+$C$46 -> Tratamiento Mecánico Biológico | B49: 49 | C49: Disposición final de rechazos diferentes a residuos que van a otro tratamiento | D49: CALCULADO A PARTIR DE LOS COSTOS DE RECOLECCIÓN Y TRANSPORTE (CRT) Y DE DISPOSICIÓN FINAL (CDF) DE LAS METODOLOGÍAS TARIFARIAS | M49: ='CDF y CRT-TMB'!$H$4 -> 221118.916 | N49: =ROUND('Fichas técnicas Tecnologías'!$X$6*M49*((1-'Fichas técnicas Tecnologías'!S6)+(1-'Fichas técnicas Tecnologías'!S7)-('Fichas técnicas Tecnologías'!S8)),-6) -> 3560000000
B50: 50 | C50: Tratamiento RSO (compostaje aireación forzada) | D50: CALCULADO A PARTIR DEL COSTO DE LA TECNOLOGÍA INDICADA | M50: =+$M$22 -> 18874.82148 | N50: =ROUND('Fichas técnicas Tecnologías'!$X$6*M50,-6) -> 868000000
B51: 51 | C51: Combustible | D51: =1220940269*D59 -> 1098846242 | E51: =+D51/($D$47*12) -> 2352.002676 | F51: =286157876*F59 -> 271849982.2 | G51: =+F51/($F$47*12) -> 2482.648239 | H51: 9538596 | I51: =IFERROR(H51/($H$47*12),0) -> 2614.746711 | J51: =+E51 -> 2352.002676 | K51: =+G51 -> 2482.648239 | L51: =+MAX(E51,G51,I51) -> 2614.746711 | M51: =+IF('Fichas técnicas Tecnologías'!$Y$3<=$H$2*12,I51,IF(AND('Fichas técnicas Tecnologías'!$Y$3>$H$2*12,'Fichas técnicas Tecnologías'!$Y$3<=$F$2*12),G51,E51)) -> 2352.002676 | N51: =ROUND('Fichas técnicas Tecnologías'!$X$6*M51,-6) -> 108000000
B52: 52 | C52: Energía (consumo) | D52: =3371907834*D59 -> 3034717051 | E52: 6495.597245 | F52: =790290898*F59 -> 750776353.1 | G52: 6856.405051 | H52: 8781010 | I52: 2407.07511 | J52: =+E52 -> 6495.597245 | K52: =+G52 -> 6856.405051 | L52: =+MAX(E52,G52,I52) -> 6856.405051 | M52: =+IF('Fichas técnicas Tecnologías'!$Y$3<=$H$2*12,I52,IF(AND('Fichas técnicas Tecnologías'!$Y$3>$H$2*12,'Fichas técnicas Tecnologías'!$Y$3<=$F$2*12),G52,E52)) -> 6495.597245 | N52: =ROUND('Fichas técnicas Tecnologías'!$X$6*M52,-6) -> 299000000
B53: 53 | C53: Monitoreo Ambiental | D53: 45000000 | E53: 96.3193178 | F53: 31359767 | G53: 286.3905662 | H53: 15679884 | I53: 4298.213816 | J53: 96.3193178 | K53: 286.3905662 | L53: 4298.213816 | M53: =+IF('Fichas técnicas Tecnologías'!$Y$3<=$H$2*12,I53,IF(AND('Fichas técnicas Tecnologías'!$Y$3>$H$2*12,'Fichas técnicas Tecnologías'!$Y$3<=$F$2*12),G53,E53)) -> 96.3193178 | N53: =ROUND('Fichas técnicas Tecnologías'!$X$6*M53,-6) -> 4000000
B54: 54 | C54: Mantenimiento - Maquinaria y equipos | D54: =333111219*D59 -> 299800097.1 | E54: 641.7009073 | F54: =200478583*F59 -> 190454653.8 | G54: 1739.311907 | H54: 7224196 | I54: 1980.316886 | J54: 641.7009073 | K54: 1739.311907 | L54: 1980.316886 | M54: =+IF('Fichas técnicas Tecnologías'!$Y$3<=$H$2*12,I54,IF(AND('Fichas técnicas Tecnologías'!$Y$3>$H$2*12,'Fichas técnicas Tecnologías'!$Y$3<=$F$2*12),G54,E54)) -> 641.7009073 | N54: =ROUND('Fichas técnicas Tecnologías'!$X$6*M54,-6) -> 30000000
B55: 55 | C55: Mantenimiento - Infraestructura | D55: =107686132*D59 -> 96917518.8 | E55: 207.4450954 | F55: =25238937*F59 -> 23976990.15 | G55: 218.9679466 | H55: 841298 | I55: 230.6189693 | J55: 207.4450954 | K55: 218.9679466 | L55: 230.6189693 | M55: =+IF('Fichas técnicas Tecnologías'!$Y$3<=$H$2*12,I55,IF(AND('Fichas técnicas Tecnologías'!$Y$3>$H$2*12,'Fichas técnicas Tecnologías'!$Y$3<=$F$2*12),G55,E55)) -> 207.4450954 | N55: =ROUND('Fichas técnicas Tecnologías'!$X$6*M55,-6) -> 10000000
B56: 56 | C56: Mano de Obra | D56: 2306697560 | E56: =+D56/($D$2*12) -> 4937.323008 | F56: 1678126134 | G56: =+F56/($F$2*12) -> 15325.35282 | H56: 132972780.8 | I56: =IFERROR(H56/($H$2*12),0) -> 36450.87192 | J56: 4937.323008 | K56: 15325.35282 | L56: 36450.87192 | M56: =+IF('Fichas técnicas Tecnologías'!$Y$3<=$H$2*12,I56,IF(AND('Fichas técnicas Tecnologías'!$Y$3>$H$2*12,'Fichas técnicas Tecnologías'!$Y$3<=$F$2*12),G56,E56)) -> 4937.323008 | N56: =ROUND('Fichas técnicas Tecnologías'!$X$6*M56,-6) -> 227000000
B57: 57 | C57: Valor de Operación Anual | M57: =+IF('Fichas técnicas Tecnologías'!$Y$3<=$H$2*12,I57,IF(AND('Fichas técnicas Tecnologías'!$Y$3>$H$2*12,'Fichas técnicas Tecnologías'!$Y$3<=$F$2*12),G57,E57)) -> 0 | N57: =SUM(N49:N55) -> 4879000000
B58: 58
B59: 59 | D59: 0.9 | F59: 0.95
B60: 60
B61: 61
B62: 62 | C62: =+'Fichas técnicas Tecnologías'!A9 -> Digestión Anaerobia | M62: Costo según mercado atendido residuos sólidos sin incluir poda, corte de cesped ni plazas de mercado | O62: Costo según mercado atendido de residuos de poda, corte de cesped y plazas de mercado
B63: 63 | C63: Escala (ton/mes) | D63: 38933 | F63: 9125 | H63: 304 | J63: Funciones de costos
B64: 64 | C64: Componente | D64: Valor (COP)/año | E64: COP/Ton/año | F64: Valor (COP)/año | G64: COP/Ton/año | H64: Valor (COP)/año | I64: COP/Ton/año | J64: a | K64: b | L64: Techo | M64: COP/ton | N64: Valor total | O64: COP/ton | P64: Valor total
A65: =+$C$62 -> Digestión Anaerobia | B65: 65 | C65: Agua Residual | D65: =610470135*D75 -> 549423121.5 | E65: =+D65/($D$63*12) -> 1176.001339 | F65: =143078938*F75 -> 135924991.1 | G65: =+F65/($F$63*12) -> 1241.32412 | H65: 31359767 | I65: =IFERROR(H65/($H$63*12*20),0) -> 429.8213679 | J65: =+E65 -> 1176.001339 | K65: =+G65 -> 1241.32412 | L65: =+MAX(E65,G65,I65) -> 1241.32412 | M65: =+IF('Fichas técnicas Tecnologías'!$Y$3<=$H$2*12,I65,IF(AND('Fichas técnicas Tecnologías'!$Y$3>$H$2*12,'Fichas técnicas Tecnologías'!$Y$3<=$F$2*12),G65,E65)) -> 1176.001339 | N65: =ROUND('Fichas técnicas Tecnologías'!$X$9*M65,-6) -> 54000000
B66: 66 | C66: Tratamiento RSO | D66: CALCULADO A PARTIR DE LOS COSTOS DE RECOLECCIÓN Y TRANSPORTE (CRT) Y DE DISPOSICIÓN FINAL (CDF) DE LAS METODOLOGÍAS TARIFARIAS | M66: ='CDF y CRT-DA'!$H$4 -> 168657.2274 | N66: =ROUND('Fichas técnicas Tecnologías'!$X$9*M66*'Fichas técnicas Tecnologías'!Q9,-6) -> 4655000000
B67: 67 | C67: Agua (consumo) | D67: =42732909*D75 -> 38459618.1 | E67: =+D67/($D$63*12) -> 82.32009285 | F67: =10015526*F75 -> 9514749.7 | G67: =+F67/($F$63*12) -> 86.89269132 | H67: 2195184 | I67: =IFERROR(H67/($H$63*12*20),0) -> 30.0875 | J67: =+E67 -> 82.32009285 | K67: =+G67 -> 86.89269132 | L67: =+MAX(E67,G67,I67) -> 86.89269132 | M67: =+IF('Fichas técnicas Tecnologías'!$Y$3<=$H$2*12,I67,IF(AND('Fichas técnicas Tecnologías'!$Y$3>$H$2*12,'Fichas técnicas Tecnologías'!$Y$3<=$F$2*12),G67,E67)) -> 82.32009285 | N67: =ROUND('Fichas técnicas Tecnologías'!$X$9*M67,-6) -> 4000000
B68: 68 | C68: Monitoreo Ambiental | D68: 45000000 | E68: =+D68/($D$63*12) -> 96.3193178 | F68: 31359767 | G68: =+F68/($F$63*12) -> 286.3905662 | H68: 15679884 | I68: =IFERROR(H68/($H$63*12*20),0) -> 214.9106908 | J68: 96.3193178 | K68: 286.3905662 | L68: 286.3905662 | M68: =+IF('Fichas técnicas Tecnologías'!$Y$3<=$H$2*12,I68,IF(AND('Fichas técnicas Tecnologías'!$Y$3>$H$2*12,'Fichas técnicas Tecnologías'!$Y$3<=$F$2*12),G68,E68)) -> 96.3193178 | N68: =ROUND('Fichas técnicas Tecnologías'!$X$9*M68,-6) -> 4000000
B69: 69 | C69: Mantenimiento - Maquinaria y equipos | D69: =7710048300*D75 -> 6939043470 | E69: =+D69/($D$63*12) -> 14852.53185 | F69: =1993356567*F75 -> 1893688739 | G69: =+F69/($F$63*12) -> 17293.96108 | H69: 518157800 | I69: =IFERROR(H69/($H$63*12*20),0) -> 7101.943531 | J69: 14852.53185 | K69: 17293.96108 | L69: 17293.96108 | M69: =+IF('Fichas técnicas Tecnologías'!$Y$3<=$H$2*12,I69,IF(AND('Fichas técnicas Tecnologías'!$Y$3>$H$2*12,'Fichas técnicas Tecnologías'!$Y$3<=$F$2*12),G69,E69)) -> 14852.53185 | N69: =ROUND('Fichas técnicas Tecnologías'!$X$9*M69,-6) -> 683000000
B70: 70 | C70: Mantenimiento - Infraestructura | D70: =358953774*D75 -> 323058396.6 | E70: =+D70/($D$63*12) -> 691.4836527 | F70: =168259582*F75 -> 159846602.9 | G70: =+F70/($F$63*12) -> 1459.786328 | H70: 46098516 | I70: =IFERROR(H70/($H$63*12*20),0) -> 631.8327303 | J70: 691.4836527 | K70: 1459.786328 | L70: 1459.786328 | M70: =+IF('Fichas técnicas Tecnologías'!$Y$3<=$H$2*12,I70,IF(AND('Fichas técnicas Tecnologías'!$Y$3>$H$2*12,'Fichas técnicas Tecnologías'!$Y$3<=$F$2*12),G70,E70)) -> 691.4836527 | N70: =ROUND('Fichas técnicas Tecnologías'!$X$9*M70,-6) -> 32000000
B71: 71 | C71: Energía (consumo) | D71: =3371907834*1.5 -> 5057861751 | E71: =+D71/($D$47*12) -> 10825.99541 | F71: =790290898*1.5 -> 1185436347 | G71: =+F71/($F$47*12) -> 10825.90271 | H71: 87810101.5 | I71: =IFERROR(H71/($H$47*12),0) -> 24070.75151 | J71: 10825.99541 | K71: 10825.90271 | L71: 24070.75151 | M71: =+IF('Fichas técnicas Tecnologías'!$Y$3<=$H$2*12,I71,IF(AND('Fichas técnicas Tecnologías'!$Y$3>$H$2*12,'Fichas técnicas Tecnologías'!$Y$3<=$F$2*12),G71,E71)) -> 10825.99541 | N71: =ROUND('Fichas técnicas Tecnologías'!$X$9*M71,-6) -> 498000000
B72: 72 | C72: Mano de Obra | D72: 1472750904 | E72: =+D72/($D$2*12) -> 3152.319164 | F72: 1177532222 | G72: =+F72/($F$2*12) -> 10753.71892 | H72: 882313540.3 | I72: =IFERROR(H72/($H$2*12),0) -> 241862.2643 | J72: 3152.319164 | K72: 10753.71892 | L72: 241862.2643 | M72: =+IF('Fichas técnicas Tecnologías'!$Y$3<=$H$2*12,I72,IF(AND('Fichas técnicas Tecnologías'!$Y$3>$H$2*12,'Fichas técnicas Tecnologías'!$Y$3<=$F$2*12),G72,E72)) -> 3152.319164 | N72: =ROUND('Fichas técnicas Tecnologías'!$X$9*M72,-6) -> 145000000
B73: 73 | C73: Valor de Operación Anual | N73: =SUM(N65:N72) -> 6075000000
B74: 74
B75: 75 | D75: 0.9 | F75: 0.95
B76: 76 | N76: =+N66/N73 -> 0.766255144
B77: 77

Sheet Costos de inversión (hidden)
B1: 1 | C1: =+'Fichas técnicas Tecnologías'!A3 -> Compostaje en pilas con volteo manual | M1: Costo según mercado atendido residuos sólidos sin incluir poda, corte de cesped ni plazas de mercado | O1: Costo según mercado atendido de residuos de poda, corte de cesped y plazas de mercado
B2: =B1+1 -> 2 | C2: Escala (ton/mes) | D2: 38933 | F2: 9125 | H2: 304 | J2: Funciones de costos
B3: =B2+1 -> 3 | C3: Componentes | D3: Valor (COP) | E3: COP/Ton | F3: Valor (COP) | G3: COP/Ton | H3: Valor (COP) | I3: COP/Ton | J3: a | K3: b | L3: Techo | M3: COP/ton | N3: Valor total | O3: COP/ton | P3: Valor total
A4: =$C$1 -> Compostaje en pilas con volteo manual | B4: 4 | C4: Pre-inversión
B5: 5 | C5: Estudios, Diseños | D5: 873399584 | E5: =+D5/($D$2*12) -> 1869.450047 | F5: 299277561 | G5: =+F5/($F$2*12) -> 2733.128411 | H5: 40601853 | I5: =IFERROR(H25/($H$2*12),0) -> 12742.61568 | J5: =+E5 -> 1869.450047 | K5: =+G5 -> 2733.128411 | L5: =+MAX(E5,G5,I5) -> 12742.61568 | M5: =+IF('Fichas técnicas Tecnologías'!$X$3<=$H$2*12,I5,IF(AND('Fichas técnicas Tecnologías'!$X$3>$H$2*12,'Fichas técnicas Tecnologías'!$X$3<=$F$2*12),G5,E5)) -> 2733.128411 | N5: =ROUND('Fichas técnicas Tecnologías'!$X$3*M5,-6) -> 126000000 | O5: =+IF('Fichas técnicas Tecnologías'!$Y$3<=$H$2*12,I5,IF(AND('Fichas técnicas Tecnologías'!$Y$3>$H$2*12,'Fichas técnicas Tecnologías'!$Y$3<=$F$2*12),G5,E5)) -> 1869.450047 | P5: =IFERROR(ROUND('Fichas técnicas Tecnologías'!$Y$3*O5,-6),"Se debe indicar cantidades en los datos de entrada") -> 374000000
B6: 6 | C6: Permisos | D6: 200000000 | E6: =+D6/($D$2*12) -> 428.0858569 | F6: 149638781 | G6: =+F6/($F$2*12) -> 1366.56421 | H6: 20300927 | I6: =IFERROR(H26/($H$2*12),0) -> 6371.30784 | J6: =+E6 -> 428.0858569 | K6: =+G6 -> 1366.56421 | L6: =+MAX(E6,G6,I6) -> 6371.30784 | M6: =+IF('Fichas técnicas Tecnologías'!$X$3<=$H$2*12,I6,IF(AND('Fichas técnicas Tecnologías'!$X$3>$H$2*12,'Fichas técnicas Tecnologías'!$X$3<=$F$2*12),G6,E6)) -> 1366.56421 | N6: =ROUND('Fichas técnicas Tecnologías'!$X$3*M6,-6) -> 63000000 | O6: =+IF('Fichas técnicas Tecnologías'!$Y$3<=$H$2*12,I6,IF(AND('Fichas técnicas Tecnologías'!$Y$3>$H$2*12,'Fichas técnicas Tecnologías'!$Y$3<=$F$2*12),G6,E6)) -> 428.0858569 | P6: =IFERROR(ROUND('Fichas técnicas Tecnologías'!$Y$3*O6,-6),"Se debe indicar cantidades en los datos de entrada") -> 86000000
B7: 7 | C7: Infraestructura | D7: 40698008973 | E7: =+D7/($D$2*12) -> 87111.21023 | F7: 9538595853 | G7: =+F7/($F$2*12) -> 87110.46441 | H7: 317953195 | I7: =IFERROR(H27/($H$2*12),0) -> 93259.29797 | J7: =+E7 -> 87111.21023 | K7: =+G7 -> 87110.46441 | L7: =+MAX(E7,G7,I7) -> 93259.29797 | M7: =+IF('Fichas técnicas Tecnologías'!$X$3<=$H$2*12,I7,IF(AND('Fichas técnicas Tecnologías'!$X$3>$H$2*12,'Fichas técnicas Tecnologías'!$X$3<=$F$2*12),G7,E7)) -> 87110.46441 | N7: =ROUND('Fichas técnicas Tecnologías'!$X$3*M7,-6) -> 4007000000 | O7: =+IF('Fichas técnicas Tecnologías'!$Y$3<=$H$2*12,I7,IF(AND('Fichas técnicas Tecnologías'!$Y$3>$H$2*12,'Fichas técnicas Tecnologías'!$Y$3<=$F$2*12),G7,E7)) -> 87111.21023 | P7: =IFERROR(ROUND('Fichas técnicas Tecnologías'!$Y$3*O7,-6),"Se debe indicar cantidades en los datos de entrada") -> 17422000000
B8: 8 | C8: Maquinaria y Equipos (incluido el costo de instalación)
B9: 9 | C9: Trommel | D9: 1345846222 | E9: =+D9/($D$2*12) -> 2880.688666 | F9: 336461555 | G9: =+F9/($F$2*12) -> 3072.708265 | H9: 168230778 | I9: =IFERROR(H29/($H$2*12),0) -> 49344.00548 | J9: =+E9 -> 2880.688666 | K9: =+G9 -> 3072.708265 | L9: =+MAX(E9,G9,I9) -> 49344.00548 | M9: =+IF('Fichas técnicas Tecnologías'!$X$3<=$H$2*12,I9,IF(AND('Fichas técnicas Tecnologías'!$X$3>$H$2*12,'Fichas técnicas Tecnologías'!$X$3<=$F$2*12),G9,E9)) -> 3072.708265 | N9: =ROUND('Fichas técnicas Tecnologías'!$X$3*M9,-6) -> 141000000 | O9: =+IF('Fichas técnicas Tecnologías'!$Y$3<=$H$2*12,I9,IF(AND('Fichas técnicas Tecnologías'!$Y$3>$H$2*12,'Fichas técnicas Tecnologías'!$Y$3<=$F$2*12),G9,E9)) -> 2880.688666 | P9: =IFERROR(ROUND('Fichas técnicas Tecnologías'!$Y$3*O9,-6),"Se debe indicar cantidades en los datos de entrada") -> 576000000
B10: 10 | C10: Minicargador | D10: 488689705 | E10: 1046.005756 | F10: 244344853 | G10: 2231.459845 | H10: 244344853 | I10: =IFERROR(H30/($H$2*12),0) -> 71669.13158 | M10: =+N10/'Fichas técnicas Tecnologías'!$X$3 -> 5311.84463 | N10: =IF('Fichas técnicas Tecnologías'!$X$3<=$H$2*12,H10,IF(AND('Fichas técnicas Tecnologías'!$X$3>$H$2*12,'Fichas técnicas Tecnologías'!$X$3<=$F$2*12),F10,D10)) -> 244344853 | O10: =IF('Fichas técnicas Tecnologías'!$Y$3*Cálculo!$B$130>=$F$2,IF(L10=0,J10+K10/'Fichas técnicas Tecnologías'!$Y$3*Cálculo!$B$130,MIN(L10,J10+K10/'Fichas técnicas Tecnologías'!$Y$3*Cálculo!$B$130)), MIN(L10,J10+K10/'Fichas técnicas Tecnologías'!$Y$3*Cálculo!$B$130)) -> 0 | P10: =IF('Fichas técnicas Tecnologías'!$Y$3<=$H$2*12,H10,IF(AND('Fichas técnicas Tecnologías'!$Y$3>$H$2*12,'Fichas técnicas Tecnologías'!$Y$3<=$F$2*12),F10,D10)) -> 488689705
B11: 11 | C11: Tractor | D11: 488689705 | E11: 1046.005756 | F11: 244344853 | G11: 2231.459845 | H11: 0 | I11: =IFERROR(H31/($H$2*Cálculo!$B$130),0) -> 0 | M11: =+N11/'Fichas técnicas Tecnologías'!$X$3 -> 5311.84463 | N11: =IF('Fichas técnicas Tecnologías'!$X$3<=$H$2*12,H11,IF(AND('Fichas técnicas Tecnologías'!$X$3>$H$2*12,'Fichas técnicas Tecnologías'!$X$3<=$F$2*12),F11,D11)) -> 244344853 | O11: =IF('Fichas técnicas Tecnologías'!$Y$3*Cálculo!$B$130>=$F$2,IF(L11=0,J11+K11/'Fichas técnicas Tecnologías'!$Y$3*Cálculo!$B$130,MIN(L11,J11+K11/'Fichas técnicas Tecnologías'!$Y$3*Cálculo!$B$130)), MIN(L11,J11+K11/'Fichas técnicas Tecnologías'!$Y$3*Cálculo!$B$130)) -> 0 | P11: =IF('Fichas técnicas Tecnologías'!$Y$3<=$H$2*12,H11,IF(AND('Fichas técnicas Tecnologías'!$Y$3>$H$2*12,'Fichas técnicas Tecnologías'!$Y$3<=$F$2*12),F11,D11)) -> 488689705
B12: 12 | C12: Retroexcavadora | D12: 425970171 | E12: 911.7590283 | F12: 212985085 | G12: 1945.069269 | H12: 0 | I12: =IFERROR(H32/($H$2*Cálculo!$B$130),0) -> 0 | M12: =+N12/'Fichas técnicas Tecnologías'!$X$3 -> 4630.110543 | N12: =IF('Fichas técnicas Tecnologías'!$X$3<=$H$2*12,H12,IF(AND('Fichas técnicas Tecnologías'!$X$3>$H$2*12,'Fichas técnicas Tecnologías'!$X$3<=$F$2*12),F12,D12)) -> 212985085 | O12: =IF('Fichas técnicas Tecnologías'!$Y$3*Cálculo!$B$130>=$F$2,IF(L12=0,J12+K12/'Fichas técnicas Tecnologías'!$Y$3*Cálculo!$B$130,MIN(L12,J12+K12/'Fichas técnicas Tecnologías'!$Y$3*Cálculo!$B$130)), MIN(L12,J12+K12/'Fichas técnicas Tecnologías'!$Y$3*Cálculo!$B$130)) -> 0 | P12: =IF('Fichas técnicas Tecnologías'!$Y$3<=$H$2*12,H12,IF(AND('Fichas técnicas Tecnologías'!$Y$3>$H$2*12,'Fichas técnicas Tecnologías'!$Y$3<=$F$2*12),F12,D12)) -> 425970171
B13: 13 | C13: Montacargas | D13: =+F13*2 -> 303144416 | E13: 648.8591854 | F13: 151572208 | G13: 1384.221078 | H13: 0 | I13: =IFERROR(H33/($H$2*Cálculo!$B$130),0) -> 0 | M13: =+N13/'Fichas técnicas Tecnologías'!$X$3 -> 3295.048 | N13: =IF('Fichas técnicas Tecnologías'!$X$3<=$H$2*12,H13,IF(AND('Fichas técnicas Tecnologías'!$X$3>$H$2*12,'Fichas técnicas Tecnologías'!$X$3<=$F$2*12),F13,D13)) -> 151572208 | O13: =IF('Fichas técnicas Tecnologías'!$Y$3*Cálculo!$B$130>=$F$2,IF(L13=0,J13+K13/'Fichas técnicas Tecnologías'!$Y$3*Cálculo!$B$130,MIN(L13,J13+K13/'Fichas técnicas Tecnologías'!$Y$3*Cálculo!$B$130)), MIN(L13,J13+K13/'Fichas técnicas Tecnologías'!$Y$3*Cálculo!$B$130)) -> 0 | P13: =IF('Fichas técnicas Tecnologías'!$Y$3<=$H$2*12,H13,IF(AND('Fichas técnicas Tecnologías'!$Y$3>$H$2*12,'Fichas técnicas Tecnologías'!$Y$3<=$F$2*12),F13,D13)) -> 303144416
B14: 14 | C14: Planta electrica | D14: =+F14*2 -> 287464532 | E14: 615.2975025 | F14: 143732266 | G14: 1312.623434 | H14: 143732266 | I14: =IFERROR(H34/($H$2*12),0) -> 42158.31277 | M14: =+N14/'Fichas técnicas Tecnologías'!$X$3 -> 3124.614478 | N14: =IF('Fichas técnicas Tecnologías'!$X$3<=$H$2*12,H14,IF(AND('Fichas técnicas Tecnologías'!$X$3>$H$2*12,'Fichas técnicas Tecnologías'!$X$3<=$F$2*12),F14,D14)) -> 143732266 | O14: =IF('Fichas técnicas Tecnologías'!$Y$3*Cálculo!$B$130>=$F$2,IF(L14=0,J14+K14/'Fichas técnicas Tecnologías'!$Y$3*Cálculo!$B$130,MIN(L14,J14+K14/'Fichas técnicas Tecnologías'!$Y$3*Cálculo!$B$130)), MIN(L14,J14+K14/'Fichas técnicas Tecnologías'!$Y$3*Cálculo!$B$130)) -> 0 | P14: =IF('Fichas técnicas Tecnologías'!$Y$3<=$H$2*12,H14,IF(AND('Fichas técnicas Tecnologías'!$Y$3>$H$2*12,'Fichas técnicas Tecnologías'!$Y$3<=$F$2*12),F14,D14)) -> 287464532
B15: 15 | C15: Compresor | D15: =+F15*2 -> 70559476 | E15: 151.0275687 | F15: 35279738 | G15: 322.1893881 | H15: 35279738 | I15: =IFERROR(H35/($H$2*12),0) -> 10347.94956 | M15: =+N15/'Fichas técnicas Tecnologías'!$X$3 -> 766.9508261 | N15: =IF('Fichas técnicas Tecnologías'!$X$3<=$H$2*12,H15,IF(AND('Fichas técnicas Tecnologías'!$X$3>$H$2*12,'Fichas técnicas Tecnologías'!$X$3<=$F$2*12),F15,D15)) -> 35279738 | O15: =IF('Fichas técnicas Tecnologías'!$Y$3*Cálculo!$B$130>=$F$2,IF(L15=0,J15+K15/'Fichas técnicas Tecnologías'!$Y$3*Cálculo!$B$130,MIN(L15,J15+K15/'Fichas técnicas Tecnologías'!$Y$3*Cálculo!$B$130)), MIN(L15,J15+K15/'Fichas técnicas Tecnologías'!$Y$3*Cálculo!$B$130)) -> 0 | P15: =IF('Fichas técnicas Tecnologías'!$Y$3<=$H$2*12,H15,IF(AND('Fichas técnicas Tecnologías'!$Y$3>$H$2*12,'Fichas técnicas Tecnologías'!$Y$3<=$F$2*12),F15,D15)) -> 70559476
B16: 16 | C16: Volqueta | D16: 862393598 | E16: 1845.892512 | F16: 574929065 | G16: 5250.493744 | H16: 287464533 | I16: =IFERROR(H36/($H$2*12),0) -> 84316.62555 | M16: =+N16/'Fichas técnicas Tecnologías'!$X$3 -> 12498.45793 | N16: =IF('Fichas técnicas Tecnologías'!$X$3<=$H$2*12,H16,IF(AND('Fichas técnicas Tecnologías'!$X$3>$H$2*12,'Fichas técnicas Tecnologías'!$X$3<=$F$2*12),F16,D16)) -> 574929065 | O16: =IF('Fichas técnicas Tecnologías'!$Y$3*Cálculo!$B$130>=$F$2,IF(L16=0,J16+K16/'Fichas técnicas Tecnologías'!$Y$3*Cálculo!$B$130,MIN(L16,J16+K16/'Fichas técnicas Tecnologías'!$Y$3*Cálculo!$B$130)), MIN(L16,J16+K16/'Fichas técnicas Tecnologías'!$Y$3*Cálculo!$B$130)) -> 0 | P16: =IF('Fichas técnicas Tecnologías'!$Y$3<=$H$2*12,H16,IF(AND('Fichas técnicas Tecnologías'!$Y$3>$H$2*12,'Fichas técnicas Tecnologías'!$Y$3<=$F$2*12),F16,D16)) -> 862393598
B17: 17 | C17: Total Costo de Inversión Inicial | N17: =SUM(N5:N16) -> 5944188068 | P17: =SUM(P5:P16) -> 21384911603
B18: 18
B19: 19
B20: 20
B21: 21 | C21: =+'Fichas técnicas Tecnologías'!A4 -> Compostaje en pilas con aireación forzada | M21: Costo según mercado atendido residuos sólidos sin incluir poda, corte de cesped ni plazas de mercado | O21: Costo según mercado atendido de residuos de poda, corte de cesped y plazas de mercado
B22: 22 | C22: Escala (ton/mes) | D22: 38933 | F22: 9125 | H22: 304 | J22: Funciones de costos
B23: 23 | C23: Componentes | D23: Valor (COP) | E23: COP/Ton | F23: Valor (COP) | G23: COP/Ton | H23: Valor (COP) | I23: COP/Ton | J23: a | K23: b | L23: Techo | M23: COP/ton | N23: Valor total | O23: COP/ton | P23: Valor total
A24: =$C$21 -> Compostaje en pilas con aireación forzada | B24: 24 | C24: Pre-inversión
B25: 25 | C25: Estudios, Diseños | D25: =+(D27+SUM(D29:D37))*5% -> 2427296926 | E25: =+D25/($D$22*12) -> 5195.457422 | F25: =+(F27+SUM(F29:F37))*5% -> 629035140.4 | G25: =+F25/($F$22*12) -> 5744.613154 | H25: 46485062 | I25: =IFERROR(H25/($H$22*12),0) -> 12742.61568 | J25: =+E25 -> 5195.457422 | K25: =+G25 -> 5744.613154 | L25: =+MAX(E25,G25,I25) -> 12742.61568 | M25: =+IF('Fichas técnicas Tecnologías'!$X$3<=$H$2*12,I25,IF(AND('Fichas técnicas Tecnologías'!$X$3>$H$2*12,'Fichas técnicas Tecnologías'!$X$3<=$F$2*12),G25,E25)) -> 5744.613154 | N25: =ROUND('Fichas técnicas Tecnologías'!$X$4*M25,-6) -> 264000000 | O25: =+IF('Fichas técnicas Tecnologías'!$Y$3<=$H$2*12,I25,IF(AND('Fichas técnicas Tecnologías'!$Y$3>$H$2*12,'Fichas técnicas Tecnologías'!$Y$3<=$F$2*12),G25,E25)) -> 5195.457422 | P25: =IFERROR(ROUND('Fichas técnicas Tecnologías'!$Y$4*O25,-6),"Se debe indicar cantidades en los datos de entrada") -> 1039000000
B26: 26 | C26: Permisos | D26: 200000000 | E26: =+D26/($D$22*12) -> 428.0858569 | F26: 171321440 | G26: =+F26/($F$22*12) -> 1564.579361 | H26: 23242531 | I26: =IFERROR(H26/($H$22*12),0) -> 6371.30784 | J26: 428.0858569 | K26: 1564.579361 | L26: =+MAX(E26,G26,I26) -> 6371.30784 | M26: =+IF('Fichas técnicas Tecnologías'!$X$3<=$H$2*12,I26,IF(AND('Fichas técnicas Tecnologías'!$X$3>$H$2*12,'Fichas técnicas Tecnologías'!$X$3<=$F$2*12),G26,E26)) -> 1564.579361 | N26: =ROUND('Fichas técnicas Tecnologías'!$X$4*M26,-6) -> 72000000 | O26: =+IF('Fichas técnicas Tecnologías'!$Y$3<=$H$2*12,I26,IF(AND('Fichas técnicas Tecnologías'!$Y$3>$H$2*12,'Fichas técnicas Tecnologías'!$Y$3<=$F$2*12),G26,E26)) -> 428.0858569 | P26: =IFERROR(ROUND('Fichas técnicas Tecnologías'!$Y$4*O26,-6),"Se debe indicar cantidades en los datos de entrada") -> 86000000
B27: 27 | C27: Infraestructura | D27: 43546869601 | E27: =+D27/($D$22*12) -> 93208.99494 | F27: 10206297563 | G27: =+F27/($F$22*12) -> 93208.19692 | H27: 340209919 | I27: =IFERROR(H27/($H$22*12),0) -> 93259.29797 | J27: =+E27 -> 93208.99494 | K27: =+G27 -> 93208.19692 | L27: =+MAX(E27,G27,I27) -> 93259.29797 | M27: =+IF('Fichas técnicas Tecnologías'!$X$3<=$H$2*12,I27,IF(AND('Fichas técnicas Tecnologías'!$X$3>$H$2*12,'Fichas técnicas Tecnologías'!$X$3<=$F$2*12),G27,E27)) -> 93208.19692 | N27: =ROUND('Fichas técnicas Tecnologías'!$X$4*M27,-6) -> 4288000000 | O27: =+IF('Fichas técnicas Tecnologías'!$Y$3<=$H$2*12,I27,IF(AND('Fichas técnicas Tecnologías'!$Y$3>$H$2*12,'Fichas técnicas Tecnologías'!$Y$3<=$F$2*12),G27,E27)) -> 93208.99494 | P27: =IFERROR(ROUND('Fichas técnicas Tecnologías'!$Y$4*O27,-6),"Se debe indicar cantidades en los datos de entrada") -> 18642000000
B28: 28 | C28: Maquinaria y Equipos (incluido el costo de instalación)
B29: 29 | C29: Trommel | D29: 1440055457 | E29: =+D29/($D$22*12) -> 3082.336871 | F29: 360013864 | G29: =+F29/($F$22*12) -> 3287.797845 | H29: 180006932 | I29: =IFERROR(H29/($H$22*12),0) -> 49344.00548 | J29: =+E29 -> 3082.336871 | K29: =+G29 -> 3287.797845 | L29: =+MAX(E29,G29,I29) -> 49344.00548 | M29: =+IF('Fichas técnicas Tecnologías'!$X$3<=$H$2*12,I29,IF(AND('Fichas técnicas Tecnologías'!$X$3>$H$2*12,'Fichas técnicas Tecnologías'!$X$3<=$F$2*12),G29,E29)) -> 3287.797845 | N29: =ROUND('Fichas técnicas Tecnologías'!$X$4*M29,-6) -> 151000000 | O29: =+IF('Fichas técnicas Tecnologías'!$Y$3<=$H$2*12,I29,IF(AND('Fichas técnicas Tecnologías'!$Y$3>$H$2*12,'Fichas técnicas Tecnologías'!$Y$3<=$F$2*12),G29,E29)) -> 3082.336871 | P29: =IFERROR(ROUND('Fichas técnicas Tecnologías'!$Y$4*O29,-6),"Se debe indicar cantidades en los datos de entrada") -> 616000000
B30: 30 | C30: Minicargador | D30: 522897985 | E30: 1119.22616 | F30: 261448992 | G30: 2387.662027 | H30: 261448992 | I30: =IFERROR(H30/($H$22*12),0) -> 71669.13158 | M30: =+N30/'Fichas técnicas Tecnologías'!$X$4 -> 5683.673739 | N30: =IF('Fichas técnicas Tecnologías'!$X$4<=$H$22*12,H30,IF(AND('Fichas técnicas Tecnologías'!$X$4>$H$22*12,'Fichas técnicas Tecnologías'!$X$4<=$F$22*12),F30,D30)) -> 261448992 | O30: =IF('Fichas técnicas Tecnologías'!$Y$4*Cálculo!$B$130>=$F$22,IF(L30=0,J30+K30/'Fichas técnicas Tecnologías'!$Y$4*Cálculo!$B$130,MIN(L30,J30+K30/'Fichas técnicas Tecnologías'!$Y$4*Cálculo!$B$130)), MIN(L30,J30+K30/'Fichas técnicas Tecnologías'!$Y$4*Cálculo!$B$130)) -> 0 | P30: =IF('Fichas técnicas Tecnologías'!$Y$3<=$H$2*12,H30,IF(AND('Fichas técnicas Tecnologías'!$Y$3>$H$2*12,'Fichas técnicas Tecnologías'!$Y$3<=$F$2*12),F30,D30)) -> 522897985
B31: 31 | C31: Tractor | D31: 522897985 | E31: 1119.22616 | F31: 261448992 | G31: 2387.662027 | H31: $ - | I31: =IFERROR(H31/($H$22*Cálculo!$B$130),0) -> 0 | M31: =+N31/'Fichas técnicas Tecnologías'!$X$4 -> 5683.673739 | N31: =IF('Fichas técnicas Tecnologías'!$X$4<=$H$22*12,H31,IF(AND('Fichas técnicas Tecnologías'!$X$4>$H$22*12,'Fichas técnicas Tecnologías'!$X$4<=$F$22*12),F31,D31)) -> 261448992 | O31: =IF('Fichas técnicas Tecnologías'!$Y$4*Cálculo!$B$130>=$F$22,IF(L31=0,J31+K31/'Fichas técnicas Tecnologías'!$Y$4*Cálculo!$B$130,MIN(L31,J31+K31/'Fichas técnicas Tecnologías'!$Y$4*Cálculo!$B$130)), MIN(L31,J31+K31/'Fichas técnicas Tecnologías'!$Y$4*Cálculo!$B$130)) -> 0 | P31: =IF('Fichas técnicas Tecnologías'!$Y$3<=$H$2*12,H31,IF(AND('Fichas técnicas Tecnologías'!$Y$3>$H$2*12,'Fichas técnicas Tecnologías'!$Y$3<=$F$2*12),F31,D31)) -> 522897985
B32: 32 | C32: Retroexcavadora | D32: 455788083 | E32: 975.5821604 | F32: 227894041 | G32: 2081.224119 | H32: $ - | I32: =IFERROR(H32/($H$22*Cálculo!$B$130),0) -> 0 | M32: =+N32/'Fichas técnicas Tecnologías'!$X$4 -> 4954.218283 | N32: =IF('Fichas técnicas Tecnologías'!$X$4<=$H$22*12,H32,IF(AND('Fichas técnicas Tecnologías'!$X$4>$H$22*12,'Fichas técnicas Tecnologías'!$X$4<=$F$22*12),F32,D32)) -> 227894041 | O32: =IF('Fichas técnicas Tecnologías'!$Y$4*Cálculo!$B$130>=$F$22,IF(L32=0,J32+K32/'Fichas técnicas Tecnologías'!$Y$4*Cálculo!$B$130,MIN(L32,J32+K32/'Fichas técnicas Tecnologías'!$Y$4*Cálculo!$B$130)), MIN(L32,J32+K32/'Fichas técnicas Tecnologías'!$Y$4*Cálculo!$B$130)) -> 0 | P32: =IF('Fichas técnicas Tecnologías'!$Y$3<=$H$2*12,H32,IF(AND('Fichas técnicas Tecnologías'!$Y$3>$H$2*12,'Fichas técnicas Tecnologías'!$Y$3<=$F$2*12),F32,D32)) -> 455788083
B33: 33 | C33: Montacargas | D33: 162182263 | E33: 347.1396652 | F33: 162182263 | G33: 1481.116557 | H33: $ - | I33: =IFERROR(H33/($H$22*Cálculo!$B$130),0) -> 0 | M33: =+N33/'Fichas técnicas Tecnologías'!$X$4 -> 3525.70137 | N33: =IF('Fichas técnicas Tecnologías'!$X$4<=$H$22*12,H33,IF(AND('Fichas técnicas Tecnologías'!$X$4>$H$22*12,'Fichas técnicas Tecnologías'!$X$4<=$F$22*12),F33,D33)) -> 162182263 | O33: =IF('Fichas técnicas Tecnologías'!$Y$4*Cálculo!$B$130>=$F$22,IF(L33=0,J33+K33/'Fichas técnicas Tecnologías'!$Y$4*Cálculo!$B$130,MIN(L33,J33+K33/'Fichas técnicas Tecnologías'!$Y$4*Cálculo!$B$130)), MIN(L33,J33+K33/'Fichas técnicas Tecnologías'!$Y$4*Cálculo!$B$130)) -> 0 | P33: =IF('Fichas técnicas Tecnologías'!$Y$3<=$H$2*12,H33,IF(AND('Fichas técnicas Tecnologías'!$Y$3>$H$2*12,'Fichas técnicas Tecnologías'!$Y$3<=$F$2*12),F33,D33)) -> 162182263
B34: 34 | C34: Planta electrica | D34: =153793525*4 -> 615174100 | E34: 1316.736659 | F34: =153793525*2 -> 307587050 | G34: 2809.014155 | H34: 153793525 | I34: =IFERROR(H34/($H$22*12),0) -> 42158.31277 | M34: =+N34/'Fichas técnicas Tecnologías'!$X$4 -> 6686.675 | N34: =IF('Fichas técnicas Tecnologías'!$X$4<=$H$22*12,H34,IF(AND('Fichas técnicas Tecnologías'!$X$4>$H$22*12,'Fichas técnicas Tecnologías'!$X$4<=$F$22*12),F34,D34)) -> 307587050 | O34: =IF('Fichas técnicas Tecnologías'!$Y$4*Cálculo!$B$130>=$F$22,IF(L34=0,J34+K34/'Fichas técnicas Tecnologías'!$Y$4*Cálculo!$B$130,MIN(L34,J34+K34/'Fichas técnicas Tecnologías'!$Y$4*Cálculo!$B$130)), MIN(L34,J34+K34/'Fichas técnicas Tecnologías'!$Y$4*Cálculo!$B$130)) -> 0 | P34: =IF('Fichas técnicas Tecnologías'!$Y$3<=$H$2*12,H34,IF(AND('Fichas técnicas Tecnologías'!$Y$3>$H$2*12,'Fichas técnicas Tecnologías'!$Y$3<=$F$2*12),F34,D34)) -> 615174100
B35: 35 | C35: Compresor | D35: =37749320*4 -> 150997280 | E35: 323.199 | F35: =37749320*2 -> 75498640 | G35: 689.4852968 | H35: 37749320 | I35: 10347.94956 | M35: =+N35/'Fichas técnicas Tecnologías'!$X$4 -> 1641.274783 | N35: =IF('Fichas técnicas Tecnologías'!$X$4<=$H$22*12,H35,IF(AND('Fichas técnicas Tecnologías'!$X$4>$H$22*12,'Fichas técnicas Tecnologías'!$X$4<=$F$22*12),F35,D35)) -> 75498640 | O35: =IF('Fichas técnicas Tecnologías'!$Y$4*Cálculo!$B$130>=$F$22,IF(L35=0,J35+K35/'Fichas técnicas Tecnologías'!$Y$4*Cálculo!$B$130,MIN(L35,J35+K35/'Fichas técnicas Tecnologías'!$Y$4*Cálculo!$B$130)), MIN(L35,J35+K35/'Fichas técnicas Tecnologías'!$Y$4*Cálculo!$B$130)) -> 0 | P35: =IF('Fichas técnicas Tecnologías'!$Y$3<=$H$2*12,H35,IF(AND('Fichas técnicas Tecnologías'!$Y$3>$H$2*12,'Fichas técnicas Tecnologías'!$Y$3<=$F$2*12),F35,D35)) -> 150997280
B36: 36 | C36: Volqueta | D36: 922761150 | E36: 1975.104988 | F36: 615174100 | G36: 5618.028311 | H36: 307587050 | I36: 84316.62555 | M36: =+N36/'Fichas técnicas Tecnologías'!$X$4 -> 13373.35 | N36: =IF('Fichas técnicas Tecnologías'!$X$4<=$H$22*12,H36,IF(AND('Fichas técnicas Tecnologías'!$X$4>$H$22*12,'Fichas técnicas Tecnologías'!$X$4<=$F$22*12),F36,D36)) -> 615174100 | O36: =IF('Fichas técnicas Tecnologías'!$Y$4*Cálculo!$B$130>=$F$22,IF(L36=0,J36+K36/'Fichas técnicas Tecnologías'!$Y$4*Cálculo!$B$130,MIN(L36,J36+K36/'Fichas técnicas Tecnologías'!$Y$4*Cálculo!$B$130)), MIN(L36,J36+K36/'Fichas técnicas Tecnologías'!$Y$4*Cálculo!$B$130)) -> 0 | P36: =IF('Fichas técnicas Tecnologías'!$Y$3<=$H$2*12,H36,IF(AND('Fichas técnicas Tecnologías'!$Y$3>$H$2*12,'Fichas técnicas Tecnologías'!$Y$3<=$F$2*12),F36,D36)) -> 922761150
B37: 37 | C37: Báscula de pesaje | D37: 206314606 | E37: 441.6018245 | F37: 103157303 | G37: 942.0758265 | H37: $ - | I37: =IFERROR(H37/($H$22*Cálculo!$B$130),0) -> 0 | M37: =+N37/'Fichas técnicas Tecnologías'!$X$4 -> 2242.550065 | N37: =IF('Fichas técnicas Tecnologías'!$X$4<=$H$22*12,H37,IF(AND('Fichas técnicas Tecnologías'!$X$4>$H$22*12,'Fichas técnicas Tecnologías'!$X$4<=$F$22*12),F37,D37)) -> 103157303 | O37: =IF('Fichas técnicas Tecnologías'!$Y$4*Cálculo!$B$130>=$F$22,IF(L37=0,J37+K37/'Fichas técnicas Tecnologías'!$Y$4*Cálculo!$B$130,MIN(L37,J37+K37/'Fichas técnicas Tecnologías'!$Y$4*Cálculo!$B$130)), MIN(L37,J37+K37/'Fichas técnicas Tecnologías'!$Y$4*Cálculo!$B$130)) -> 0 | P37: =IF('Fichas técnicas Tecnologías'!$Y$3<=$H$2*12,H37,IF(AND('Fichas técnicas Tecnologías'!$Y$3>$H$2*12,'Fichas técnicas Tecnologías'!$Y$3<=$F$2*12),F37,D37)) -> 206314606
B38: 38 | C38: Total Costo de Inversión Inicial | E38: =+D38/($D$22*Cálculo!$B$130) -> 0 | N38: =SUM(N25:N37) -> 6789391381 | P38: =SUM(P25:P37) -> 23942013452
B39: 39 | D39: =+(D25/(D27+SUM(D29:D37))) -> 0.05 | F39: =+(F25/(F27+SUM(F29:F37))) -> 0.05 | H39: =+(H25/(H27+SUM(H29:H37))) -> 0.03629389185
B40: 40 | C40: =+'Fichas técnicas Tecnologías'!A5 -> Compostaje cerrado o "In vessel" | M40: Costo según mercado atendido residuos sólidos sin incluir poda, corte de cesped ni plazas de mercado | O40: Costo según mercado atendido de residuos de poda, corte de cesped y plazas de mercado
B41: 41 | C41: Escala (ton/mes) | D41: 38933 | F41: 9125 | H41: 304 | J41: Funciones de costos
B42: 42 | C42: Componentes | D42: Valor (COP) | E42: COP/Ton | F42: Valor (COP) | G42: COP/Ton | H42: Valor (COP) | I42: COP/Ton | J42: a | K42: b | L42: Techo | M42: COP/ton | N42: Valor total | O42: COP/ton | P42: Valor total
A43: =$C$40 -> Compostaje cerrado o "In vessel" | B43: 43 | C43: Pre-inversión
B44: 44 | C44: Estudios, Diseños | D44: =+(D46+SUM(D48:D57))*5% -> 2620483599 | E44: =+D44/($D$41*12) -> 5608.959834 | F44: =+(F46+SUM(F48:F57))*5% -> 723482998.2 | G44: =+F44/($F$41*12) -> 6607.150668 | H44: =+(H46+SUM(H48:H57))*5% -> 68660586.9 | I44: =+H44/($H$41*12) -> 18821.43281 | J44: =+E44 -> 5608.959834 | K44: =+G44 -> 6607.150668 | L44: =+MAX(E44,G44,I44) -> 18821.43281 | M44: =+IF('Fichas técnicas Tecnologías'!$X$3<=$H$2*12,I44,IF(AND('Fichas técnicas Tecnologías'!$X$3>$H$2*12,'Fichas técnicas Tecnologías'!$X$3<=$F$2*12),G44,E44)) -> 6607.150668 | N44: =ROUND('Fichas técnicas Tecnologías'!$X$5*M44,-6) -> 304000000
B45: 45 | C45: Permisos | D45: 386924233 | E45: =+D45/($D$41*12) -> 828.1839592 | F45: 193740491 | G45: =+F45/($F$41*12) -> 1769.319553 | H45: 23607687 | I45: =+H45/($H$41*12) -> 6471.405428 | J45: 828.1839592 | K45: 1769.319553 | L45: =+MAX(E45,G45,I45) -> 6471.405428 | M45: =+IF('Fichas técnicas Tecnologías'!$X$3<=$H$2*12,I45,IF(AND('Fichas técnicas Tecnologías'!$X$3>$H$2*12,'Fichas técnicas Tecnologías'!$X$3<=$F$2*12),G45,E45)) -> 1769.319553 | N45: =ROUND('Fichas técnicas Tecnologías'!$X$5*M45,-6) -> 81000000
B46: 46 | C46: Infraestructura | D46: 43546869601 | E46: =+D46/($D$41*12) -> 93208.99494 | F46: 10206297563 | G46: =+F46/($F$41*12) -> 93208.19692 | H46: 340209919 | I46: =+H46/($H$41*12) -> 93259.29797 | J46: =+E46 -> 93208.99494 | K46: =+G46 -> 93208.19692 | L46: =+MAX(E46,G46,I46) -> 93259.29797 | M46: =+IF('Fichas técnicas Tecnologías'!$X$3<=$H$2*12,I46,IF(AND('Fichas técnicas Tecnologías'!$X$3>$H$2*12,'Fichas técnicas Tecnologías'!$X$3<=$F$2*12),G46,E46)) -> 93208.19692 | N46: =ROUND('Fichas técnicas Tecnologías'!$X$5*M46,-6) -> 4288000000
B47: 47 | C47: Maquinaria y Equipos (incluido el costo de instalación)
B48: 48 | C48: Equipo de compostaje | D48: =30*D41*'Datos de entrada'!$B$61 -> 4438362000 | E48: =+D48/($D$41*12) -> 9500 | F48: =+F41*60*'Datos de entrada'!$B$61 -> 2080500000 | G48: =+F48/($F$41*12) -> 19000 | H48: =+H41*80*'Datos de entrada'!$B$61 -> 92416000 | I48: =IFERROR(H48/($H$22*12),0) -> 25333.33333 | J48: =+E48 -> 9500 | K48: =+G48 -> 19000 | L48: =+MAX(E48,G48,I48) -> 25333.33333 | M48: =+IF('Fichas técnicas Tecnologías'!$X$3<=$H$2*12,I48,IF(AND('Fichas técnicas Tecnologías'!$X$3>$H$2*12,'Fichas técnicas Tecnologías'!$X$3<=$F$2*12),G48,E48)) -> 19000 | N48: =ROUND('Fichas técnicas Tecnologías'!$X$5*M48,-6) -> 874000000
B49: 49 | C49: Trommel | D49: 1440055457 | E49: 3082.336871 | F49: 360013864 | G49: 3287.797845 | H49: 180006932 | I49: 49344.00548 | J49: 3082.336871 | K49: 3287.797845 | L49: 49344.00548 | M49: =+IF('Fichas técnicas Tecnologías'!$X$3<=$H$2*12,I49,IF(AND('Fichas técnicas Tecnologías'!$X$3>$H$2*12,'Fichas técnicas Tecnologías'!$X$3<=$F$2*12),G49,E49)) -> 3287.797845 | N49: =ROUND('Fichas técnicas Tecnologías'!$X$5*M49,-6) -> 151000000
B50: 50 | C50: Minicargador | D50: 522897985 | E50: 1119.22616 | F50: 261448992 | G50: 2387.662027 | H50: 261448992 | I50: 71669.13158 | M50: =+N50/'Fichas técnicas Tecnologías'!$X$5 -> 5683.673739 | N50: =IF('Fichas técnicas Tecnologías'!$X$5<=$H$41*12,H50,IF(AND('Fichas técnicas Tecnologías'!$X$5>$H$41*12,'Fichas técnicas Tecnologías'!$X$5<=$F$41*12),F50,D50)) -> 261448992
B51: 51 | C51: Tractor | D51: 522897985 | E51: 1119.22616 | F51: 261448992 | G51: 2387.662027 | H51: $ - | I51: 0 | M51: =+N51/'Fichas técnicas Tecnologías'!$X$5 -> 5683.673739 | N51: =IF('Fichas técnicas Tecnologías'!$X$5<=$H$41*12,H51,IF(AND('Fichas técnicas Tecnologías'!$X$5>$H$41*12,'Fichas técnicas Tecnologías'!$X$5<=$F$41*12),F51,D51)) -> 261448992
B52: 52 | C52: Retroexcavadora | D52: 455788083 | E52: 975.5821604 | F52: 227894041 | G52: 2081.224119 | H52: $ - | I52: 0 | M52: =+N52/'Fichas técnicas Tecnologías'!$X$5 -> 4954.218283 | N52: =IF('Fichas técnicas Tecnologías'!$X$5<=$H$41*12,H52,IF(AND('Fichas técnicas Tecnologías'!$X$5>$H$41*12,'Fichas técnicas Tecnologías'!$X$5<=$F$41*12),F52,D52)) -> 227894041
B53: 53 | C53: Montacargas | D53: 162182263 | E53: 347.1396652 | F53: 162182263 | G53: 1481.116557 | H53: $ - | I53: 0 | M53: =+N53/'Fichas técnicas Tecnologías'!$X$5 -> 3525.70137 | N53: =IF('Fichas técnicas Tecnologías'!$X$5<=$H$41*12,H53,IF(AND('Fichas técnicas Tecnologías'!$X$5>$H$41*12,'Fichas técnicas Tecnologías'!$X$5<=$F$41*12),F53,D53)) -> 162182263
B54: 54 | C54: Planta electrica | D54: 153793525 | E54: 329.1841647 | F54: 153793525 | G54: 1404.507078 | H54: 153793525 | I54: 42158.31277 | M54: =+N54/'Fichas técnicas Tecnologías'!$X$5 -> 3343.3375 | N54: =IF('Fichas técnicas Tecnologías'!$X$5<=$H$41*12,H54,IF(AND('Fichas técnicas Tecnologías'!$X$5>$H$41*12,'Fichas técnicas Tecnologías'!$X$5<=$F$41*12),F54,D54)) -> 153793525
B55: 55 | C55: Compresor | D55: 37749320 | E55: 80.79975 | F55: 37749320 | G55: 344.7426484 | H55: 37749320 | I55: 10347.94956 | M55: =+N55/'Fichas técnicas Tecnologías'!$X$5 -> 820.6373913 | N55: =IF('Fichas técnicas Tecnologías'!$X$5<=$H$41*12,H55,IF(AND('Fichas técnicas Tecnologías'!$X$5>$H$41*12,'Fichas técnicas Tecnologías'!$X$5<=$F$41*12),F55,D55)) -> 37749320
B56: 56 | C56: Volqueta | D56: 922761150 | E56: 1975.104988 | F56: 615174100 | G56: 5618.028311 | H56: 307587050 | I56: 84316.62555 | M56: =+N56/'Fichas técnicas Tecnologías'!$X$5 -> 13373.35 | N56: =IF('Fichas técnicas Tecnologías'!$X$5<=$H$41*12,H56,IF(AND('Fichas técnicas Tecnologías'!$X$5>$H$41*12,'Fichas técnicas Tecnologías'!$X$5<=$F$41*12),F56,D56)) -> 615174100
B57: 57 | C57: Báscula de pesaje | D57: 206314606 | E57: 441.6018245 | F57: 103157303 | G57: 942.0758265 | H57: $ - | I57: 0 | M57: =+N57/'Fichas técnicas Tecnologías'!$X$5 -> 2242.550065 | N57: =IF('Fichas técnicas Tecnologías'!$X$5<=$H$41*12,H57,IF(AND('Fichas técnicas Tecnologías'!$X$5>$H$41*12,'Fichas técnicas Tecnologías'!$X$5<=$F$41*12),F57,D57)) -> 103157303
B58: 58 | C58: Total Costo de Inversión Inicial | N58: =SUM(N44:N57) -> 7520848536
B59: 59
B60: 60 | C60: =+'Fichas técnicas Tecnologías'!A6 -> Tratamiento Mecánico Biológico | M60: Costo según mercado atendido residuos sólidos sin incluir poda, corte de cesped ni plazas de mercado | O60: Costo según mercado atendido de residuos de poda, corte de cesped y plazas de mercado
B61: 61 | C61: Escala (ton/mes) | D61: 38933 | F61: 9125 | H61: 304 | J61: Funciones de costos
B62: 62 | C62: Componente | D62: Valor (COP) | E62: COP/Ton | F62: Valor (COP) | G62: COP/Ton | H62: Valor (COP) | I62: COP/Ton | J62: a | K62: b | L62: Techo | M62: COP/ton | N62: Valor total | O62: COP/ton | P62: Valor total
A63: =$C$60 -> Tratamiento Mecánico Biológico | B63: 63 | C63: Pre-inversión
B64: 64 | C64: Estudios, Diseños | D64: =+(D66+SUM(D68:D73))*5% -> 771719568.6 | E64: =+D64/(D$61*12) -> 1651.811164 | F64: =+(F66+SUM(F68:F73))*5% -> 287054974.2 | G64: =+F64/(F$61*12) -> 2621.506614 | H64: =+(H66+SUM(H68:H73))*5% -> 12771311.05 | I64: =+H64/(H$61*12) -> 3500.907634 | J64: =+E64 -> 1651.811164 | K64: =+G64 -> 2621.506614 | L64: =+MAX(E64,G64,I64) -> 3500.907634 | M64: =+IF('Fichas técnicas Tecnologías'!$X$3<=$H$2*12,I64,IF(AND('Fichas técnicas Tecnologías'!$X$3>$H$2*12,'Fichas técnicas Tecnologías'!$X$3<=$F$2*12),G64,E64)) -> 2621.506614 | N64: =ROUND('Fichas técnicas Tecnologías'!$X$6*M64,-6) -> 121000000
B65: 65 | C65: Permisos | D65: 386924233 | E65: =+D65/(D$61*12) -> 828.1839592 | F65: 193740491 | G65: 1769.319553 | H65: 23607687 | I65: 6471.405428 | J65: 828.1839592 | K65: 1769.319553 | L65: =+MAX(E65,G65,I65) -> 6471.405428 | M65: =+IF('Fichas técnicas Tecnologías'!$X$3<=$H$2*12,I65,IF(AND('Fichas técnicas Tecnologías'!$X$3>$H$2*12,'Fichas técnicas Tecnologías'!$X$3<=$F$2*12),G65,E65)) -> 1769.319553 | N65: =ROUND('Fichas técnicas Tecnologías'!$X$6*M65,-6) -> 81000000
B66: 66 | C66: Infraestructura | D66: 8241346817 | E66: =+D66/(D$61*12) -> 17640.02007 | F66: 1931565660 | G66: 17639.86904 | H66: 64385522 | I66: =+H66/(H$61*12) -> 17649.54002 | J66: =+E66 -> 17640.02007 | K66: =+G66 -> 17639.86904 | L66: =+MAX(E66,G66,I66) -> 17649.54002 | M66: =+IF('Fichas técnicas Tecnologías'!$X$3<=$H$2*12,I66,IF(AND('Fichas técnicas Tecnologías'!$X$3>$H$2*12,'Fichas técnicas Tecnologías'!$X$3<=$F$2*12),G66,E66)) -> 17639.86904 | N66: =ROUND('Fichas técnicas Tecnologías'!$X$6*M66,-6) -> 811000000
B67: 67 | C67: Maquinaria y Equipos (incluido el costo de instalación)
B68: 68 | C68: Bandas transportadoras | D68: 1098542445 | E68: =+D68/(D$61*12) -> 2351.35242 | F68: 659125467 | G68: 6019.410658 | H68: 87883396 | I68: =IFERROR(H68/($H$61*12),0) -> 24090.8432 | J68: =+E68 -> 2351.35242 | K68: =+G68 -> 6019.410658 | L68: =+MAX(E68,G68,I68) -> 24090.8432 | M68: =+IF('Fichas técnicas Tecnologías'!$X$3<=$H$2*12,I68,IF(AND('Fichas técnicas Tecnologías'!$X$3>$H$2*12,'Fichas técnicas Tecnologías'!$X$3<=$F$2*12),G68,E68)) -> 6019.410658 | N68: =ROUND('Fichas técnicas Tecnologías'!$X$6*M68,-6) -> 277000000
B69: =B68+1 -> 69 | C69: Sistema de tamizaje (piso vivo, tolva viva, bandas y tromel) | D69: 878833956 | E69: 1881.081936 | F69: 439416978 | G69: 4012.940438 | H69: $ - | I69: 0 | J69: 1881.081936 | K69: 4012.940438 | L69: 4012.940438 | M69: =+IF('Fichas técnicas Tecnologías'!$X$3<=$H$2*12,I69,IF(AND('Fichas técnicas Tecnologías'!$X$3>$H$2*12,'Fichas técnicas Tecnologías'!$X$3<=$F$2*12),G69,E69)) -> 4012.940438 | N69: =ROUND('Fichas técnicas Tecnologías'!$X$6*M69,-6) -> 185000000
B70: 70 | C70: Imán de remoción de metales | D70: 175766791 | E70: 376.2163867 | F70: 87883396 | G70: 802.5880913 | H70: $ - | I70: 0 | M70: =+IF('Fichas técnicas Tecnologías'!$X$3<=$H$2*12,I70,IF(AND('Fichas técnicas Tecnologías'!$X$3>$H$2*12,'Fichas técnicas Tecnologías'!$X$3<=$F$2*12),G70,E70)) -> 802.5880913 | N70: =IF('Fichas técnicas Tecnologías'!$X$6<=$H$41*12,H70,IF(AND('Fichas técnicas Tecnologías'!$X$6>$H$41*12,'Fichas técnicas Tecnologías'!$X$6<=$F$41*12),F70,D70)) -> 87883396
B71: 71 | C71: Sistema separación balística | D71: 2197084889 | E71: 4702.704837 | F71: 1098542445 | G71: 10032.3511 | H71: $ - | I71: 0 | J71: =+E71 -> 4702.704837 | K71: =+G71 -> 10032.3511 | L71: 10032.3511 | M71: =+IF('Fichas técnicas Tecnologías'!$X$3<=$H$2*12,I71,IF(AND('Fichas técnicas Tecnologías'!$X$3>$H$2*12,'Fichas técnicas Tecnologías'!$X$3<=$F$2*12),G71,E71)) -> 10032.3511 | N71: =ROUND('Fichas técnicas Tecnologías'!$X$6*M71,-6) -> 461000000
B72: 72 | C72: Rompebolsas | D72: 2636501867 | E72: 5643.245805 | F72: 1318250933 | G72: 12038.82131 | H72: $ - | I72: 0 | J72: 5643.245805 | K72: 12038.82131 | L72: 12038.82131 | M72: =+IF('Fichas técnicas Tecnologías'!$X$3<=$H$2*12,I72,IF(AND('Fichas técnicas Tecnologías'!$X$3>$H$2*12,'Fichas técnicas Tecnologías'!$X$3<=$F$2*12),G72,E72)) -> 12038.82131 | N72: =ROUND('Fichas técnicas Tecnologías'!$X$6*M72,-6) -> 554000000
B73: 73 | C73: Báscula de pesaje | D73: 206314606 | E73: 441.6018245 | F73: 206314606 | G73: 1884.151653 | H73: 103157303 | I73: 28277.76946 | J73: 441.6018245 | K73: 1884.151653 | L73: =+MAX(E73,G73,I73) -> 28277.76946 | M73: =+IF('Fichas técnicas Tecnologías'!$X$3<=$H$2*12,I73,IF(AND('Fichas técnicas Tecnologías'!$X$3>$H$2*12,'Fichas técnicas Tecnologías'!$X$3<=$F$2*12),G73,E73)) -> 1884.151653 | N73: =IF('Fichas técnicas Tecnologías'!$X$6<=$H$41*12,H73,IF(AND('Fichas técnicas Tecnologías'!$X$6>$H$41*12,'Fichas técnicas Tecnologías'!$X$6<=$F$41*12),F73,D73)) -> 206314606
B74: 74 | C74: Sistema de compostaje (Compostaje en pilas con aireación forzada) | M74: =+SUM(M25:M37)*'Fichas técnicas Tecnologías'!S7 -> 88557.78256 | N74: =ROUND('Fichas técnicas Tecnologías'!$X$6*M74,-6) -> 4074000000
B75: 75 | C75: Total Costo de Inversión Inicial | N75: =SUM(N64:N74) -> 6858198002
B76: 76
B77: 77
B78: 78
B79: 79 | C79: =+'Fichas técnicas Tecnologías'!A9 -> Digestión Anaerobia | M79: Costo según mercado atendido residuos sólidos sin incluir poda, corte de cesped ni plazas de mercado | O79: Costo según mercado atendido de residuos de poda, corte de cesped y plazas de mercado
B80: 80 | C80: Escala (ton/mes) | D80: 38933 | F80: 9125 | H80: 304 | J80: Funciones de costos
B81: 81 | C81: Componente | D81: Valor (COP) | E81: COP/Ton | F81: Valor (COP) | G81: COP/Ton | H81: Valor (COP) | I81: COP/Ton | J81: a | K81: b | L81: Techo | M81: COP/ton | N81: Valor total | O81: COP/ton | P81: Valor total
A82: =$C$79 -> Digestión Anaerobia | B82: 82 | C82: Pre-inversión
B83: 83 | C83: Estudios, Diseños | D83: =+(D85+SUM(D87:D88))*5% -> 11208550953 | E83: =+D83/(D$80*12) -> 23991.1107 | F83: =+(F85+SUM(F87:F88))*5% -> 3187095598 | G83: =+F83/(F$80*12) -> 29105.89587 | H83: =+(H85+SUM(H87:H88))*5% -> 837656588.8 | I83: =+H83/(H$80*12) -> 229620.7754 | J83: =+E83 -> 23991.1107 | K83: =+G83 -> 29105.89587 | L83: =+MAX(E83,G83,I83) -> 229620.7754 | M83: =+IF('Fichas técnicas Tecnologías'!$X$3<=$H$2*12,I83,IF(AND('Fichas técnicas Tecnologías'!$X$3>$H$2*12,'Fichas técnicas Tecnologías'!$X$3<=$F$2*12),G83,E83)) -> 29105.89587 | N83: =ROUND('Fichas técnicas Tecnologías'!$X$9*M83,-6) -> 1339000000
B84: 84 | C84: Permisos | D84: 386924233 | E84: =+D84/($D$80*12) -> 828.1839592 | F84: 193740491 | G84: 1769.319553 | H84: 23607687 | I84: 6471.405428 | J84: 828.1839592 | K84: 1769.319553 | L84: =+MAX(E84,G84,I84) -> 6471.405428 | M84: =+IF('Fichas técnicas Tecnologías'!$X$3<=$H$2*12,I84,IF(AND('Fichas técnicas Tecnologías'!$X$3>$H$2*12,'Fichas técnicas Tecnologías'!$X$3<=$F$2*12),G84,E84)) -> 1769.319553 | N84: =ROUND('Fichas técnicas Tecnologías'!$X$9*M84,-6) -> 81000000
B85: 85 | C85: Infraestructura | D85: 27471156057 | E85: =+D85/($D$80*12) -> 58800.0669 | F85: 12877104402 | G85: 117599.127 | H85: 3527973809 | I85: =+H85/(H$80*12) -> 967098.0836 | J85: =+E85 -> 58800.0669 | K85: =+G85 -> 117599.127 | L85: =+MAX(E85,G85,I85) -> 967098.0836 | M85: =+IF('Fichas técnicas Tecnologías'!$X$3<=$H$2*12,I85,IF(AND('Fichas técnicas Tecnologías'!$X$3>$H$2*12,'Fichas técnicas Tecnologías'!$X$3<=$F$2*12),G85,E85)) -> 117599.127 | N85: =ROUND('Fichas técnicas Tecnologías'!$X$9*M85,-6) -> 5410000000
B86: 86 | C86: Maquinaria y Equipos (incluido el costo de instalación)
B87: 87 | C87: Digestor y Sistema de manejo de lodos | D87: 196493548397 | E87: =+D87/($D$80*12) -> 420580.5452 | F87: 50658492946 | G87: 462634.6388 | H87: 13122000664 | I87: =+H87/(H$80*12) -> 3597039.656 | J87: =+E87 -> 420580.5452 | K87: =+G87 -> 462634.6388 | L87: =+MAX(E87,G87,I87) -> 3597039.656 | M87: =+IF('Fichas técnicas Tecnologías'!$X$3<=$H$2*12,I87,IF(AND('Fichas técnicas Tecnologías'!$X$3>$H$2*12,'Fichas técnicas Tecnologías'!$X$3<=$F$2*12),G87,E87)) -> 462634.6388 | N87: =ROUND('Fichas técnicas Tecnologías'!$X$9*M87,-6) -> 21281000000
B88: 88 | C88: Báscula de pesaje | D88: 206314606 | E88: =+D88/($D$80*12) -> 441.6018245 | F88: 206314606 | G88: 1884.151653 | H88: 103157303 | I88: =+H88/(H$80*12) -> 28277.76946 | M88: =+IF('Fichas técnicas Tecnologías'!$X$3<=$H$2*12,I88,IF(AND('Fichas técnicas Tecnologías'!$X$3>$H$2*12,'Fichas técnicas Tecnologías'!$X$3<=$F$2*12),G88,E88)) -> 1884.151653 | N88: =IF('Fichas técnicas Tecnologías'!$X$9<=$H$41*12,H88,IF(AND('Fichas técnicas Tecnologías'!$X$9>$H$41*12,'Fichas técnicas Tecnologías'!$X$9<=$F$41*12),F88,D88)) -> 206314606
B89: 89 | C89: Total Costo de Inversión Inicial | N89: =SUM(N83:N88) -> 28317314606
B90: 90
B91: 91
B92: 92
